Workbook

Sheet Report - ALL (DASHBOARD)
B1: Select Parameter: | F1: Select Statistic: | I1: Select Seasonal Period: | L1: News | W1: 26
L2: - DSM2 flows may not be consistent with CalSim II. Refer to CalSim II ouput for flows. | W2: 1
L3: - year type sorting is now done by calendar year | W3: 16
L4: - year type sorting is provided for 60-20-20 index as well as 40-30-30 index | W4: FALSE
L5: - format consistent with appendix reports
L6: - check out the new spinners!
B12: =CONCATENATE('Report Data'!$P$7," / seasonal statistics (",$W$1,"-",$W$2,"-",$W$3,"-",IF(NOT($W$4),1,2),"a):") -> Sacramento River at Emmaton EC / seasonal statistics (26-1-16-1a):
C16: ='Report Data'!P6 -> October-September
C17: ='Report Data'!P7 -> Sacramento River at Emmaton EC
C18: ='Report Data'!P9 -> (RSAC092/EC-MEAN)
C19: ='Report Data'!P8 -> Averages
C20: ='Report Data'!P11 -> EC (UMHOS/CM) | F20: =CONCATENATE("Difference from ",'Report Data'!Q13) -> Difference from NAA 011221 | G20: ="Difference from Previous" -> Difference from Previous
C24: ='Report Data'!O14 -> NAA 011221 | E24: ='Report Data'!P14 -> 822.4117841
C25: ='Report Data'!O15 -> Alt 1A 011221 | E25: ='Report Data'!P15 -> 764.5060028 | F25: ='Report Data'!Q15 -> -57.90578123 | G25: ='Report Data'!R15 -> -57.90578123
C26: ='Report Data'!O16 -> Alt 1B 011221 | E26: ='Report Data'!P16 -> 765.4638851 | F26: ='Report Data'!Q16 -> -56.94789896 | G26: ='Report Data'!R16 -> 0.9578822686
C27: ='Report Data'!O17 -> Alt 2 011221 | E27: ='Report Data'!P17 -> 768.7927963 | F27: ='Report Data'!Q17 -> -53.61898773 | G27: ='Report Data'!R17 -> 3.328911231
C28: ='Report Data'!O18 -> 0 | E28: ='Report Data'!P18 -> 0 | F28: ='Report Data'!Q18 -> 0 | G28: ='Report Data'!R18 -> 0
B59: =CONCATENATE('Report Data'!$P$7," / monthly statistics (",$W$1,"-",$W$2,"-",$W$3,"-",IF(NOT($W$4),1,2),"b):") -> Sacramento River at Emmaton EC / monthly statistics (26-1-16-1b):
B87: =CONCATENATE('Report Data'!$P$7," / time series (",$W$1,"-",$W$2,"-",$W$3,"-",IF(NOT($W$4),1,2),"c):") -> Sacramento River at Emmaton EC / time series (26-1-16-1c):

Sheet Chart - Prob Exc

Sheet Chart - Pattern

Sheet Report Data
A2: Information, Tables and Calculations for Reports
A4: Table of Selected Values for Monthly Chart: | O4: Trend Evaluation:
A6: Title: | B6: ='Compile Data'!$B$5 -> Sacramento River at Emmaton EC | O6: Title: | P6: =INDEX(Other!$B$9:$B$31,'Report - ALL (DASHBOARD)'!$W$3) -> October-September
B7: =INDEX(Other!$C$9:$C$33,'Report - ALL (DASHBOARD)'!$W$2) -> Averages | P7: ='Compile Data'!$B$5 -> Sacramento River at Emmaton EC
B8: =CONCATENATE("(",'Compile Data'!$B$6,"/",'Compile Data'!$B$7,")") -> (RSAC092/EC-MEAN) | P8: =CONCATENATE(INDEX(Other!$C$9:$C$33,'Report - ALL (DASHBOARD)'!$W$2)," ",IF('Report - ALL (DASHBOARD)'!$W$2>4,IF(AND('Compile Data'!$B$10="TAF",'Compile Data'!$B$8="PER-AVER"),"Totals","Averages"),"")) -> Averages
P9: =CONCATENATE("(",'Compile Data'!$B$6,"/",'Compile Data'!$B$7,")") -> (RSAC092/EC-MEAN)
A11: Y-axis: | B11: =IF('Compile Data'!$B$10="CFS","Flow (CFS)",IF('Compile Data'!$B$10="TAF","Volume (TAF)",IF('Compile Data'!$B$10="KM","POSITION (KM)",IF('Compile Data'!$B$10="UMHOS/CM","EC (UMHOS/CM)",IF('Compile Data'!$B$10="mg/L","Chloride (mg/L)",""))))) -> EC (UMHOS/CM) | P11: =IF('Compile Data'!$B$10="CFS","Flow (CFS)",IF('Compile Data'!$B$10="TAF","Volume (TAF)",IF('Compile Data'!$B$10="KM","POSITION (KM)",IF('Compile Data'!$B$10="UMHOS/CM","EC (UMHOS/CM)",IF('Compile Data'!$B$10="mg/L","Chloride (mg/L)",""))))) -> EC (UMHOS/CM)
Q12: Diff from | R12: Diff from
B13: OCT | C13: NOV | D13: DEC | E13: JAN | F13: FEB | G13: MAR | H13: APR | I13: MAY | J13: JUN | K13: JUL | L13: AUG | M13: SEP | P13: Value | Q13: =$O$14 -> NAA 011221 | R13: Previous
A14: ='Compile Data'!$B$1 -> NAA 011221 | B14: =INDEX('Compile Data'!K$95:K$118,'Report - ALL (DASHBOARD)'!$W$2) -> 1705.680615 | C14: =INDEX('Compile Data'!L$95:L$118,'Report - ALL (DASHBOARD)'!$W$2) -> 1484.455845 | D14: =INDEX('Compile Data'!M$95:M$118,'Report - ALL (DASHBOARD)'!$W$2) -> 989.4360084 | E14: =INDEX('Compile Data'!N$95:N$118,'Report - ALL (DASHBOARD)'!$W$2) -> 478.8881966 | F14: =INDEX('Compile Data'!O$95:O$118,'Report - ALL (DASHBOARD)'!$W$2) -> 248.8125858 | G14: =INDEX('Compile Data'!P$95:P$118,'Report - ALL (DASHBOARD)'!$W$2) -> 224.4427334 | H14: =INDEX('Compile Data'!Q$95:Q$118,'Report - ALL (DASHBOARD)'!$W$2) -> 236.9955426 | I14: =INDEX('Compile Data'!R$95:R$118,'Report - ALL (DASHBOARD)'!$W$2) -> 340.7366151 | J14: =INDEX('Compile Data'!S$95:S$118,'Report - ALL (DASHBOARD)'!$W$2) -> 541.4019132 | K14: =INDEX('Compile Data'!T$95:T$118,'Report - ALL (DASHBOARD)'!$W$2) -> 729.8344055 | L14: =INDEX('Compile Data'!U$95:U$118,'Report - ALL (DASHBOARD)'!$W$2) -> 1277.230635 | M14: =INDEX('Compile Data'!V$95:V$118,'Report - ALL (DASHBOARD)'!$W$2) -> 1611.026313 | O14: ='Compile Data'!$B$1 -> NAA 011221 | P14: =INDEX('Compile Data'!$K$95:$AF$118,'Report - ALL (DASHBOARD)'!$W$2,'Report - ALL (DASHBOARD)'!$W$3) -> 822.4117841
A15: ='Compile Data'!$C$1 -> Alt 1A 011221 | B15: =INDEX('Compile Data'!AI$95:AI$118,'Report - ALL (DASHBOARD)'!$W$2) -> 1456.222963 | C15: =INDEX('Compile Data'!AJ$95:AJ$118,'Report - ALL (DASHBOARD)'!$W$2) -> 1354.88631 | D15: =INDEX('Compile Data'!AK$95:AK$118,'Report - ALL (DASHBOARD)'!$W$2) -> 996.6349387 | E15: =INDEX('Compile Data'!AL$95:AL$118,'Report - ALL (DASHBOARD)'!$W$2) -> 489.5860532 | F15: =INDEX('Compile Data'!AM$95:AM$118,'Report - ALL (DASHBOARD)'!$W$2) -> 252.6735457 | G15: =INDEX('Compile Data'!AN$95:AN$118,'Report - ALL (DASHBOARD)'!$W$2) -> 226.5041182 | H15: =INDEX('Compile Data'!AO$95:AO$118,'Report - ALL (DASHBOARD)'!$W$2) -> 237.2807152 | I15: =INDEX('Compile Data'!AP$95:AP$118,'Report - ALL (DASHBOARD)'!$W$2) -> 342.3125553 | J15: =INDEX('Compile Data'!AQ$95:AQ$118,'Report - ALL (DASHBOARD)'!$W$2) -> 545.5899325 | K15: =INDEX('Compile Data'!AR$95:AR$118,'Report - ALL (DASHBOARD)'!$W$2) -> 701.5144279 | L15: =INDEX('Compile Data'!AS$95:AS$118,'Report - ALL (DASHBOARD)'!$W$2) -> 1145.150159 | M15: =INDEX('Compile Data'!AT$95:AT$118,'Report - ALL (DASHBOARD)'!$W$2) -> 1425.716315 | O15: ='Compile Data'!$C$1 -> Alt 1A 011221 | P15: =INDEX('Compile Data'!$AI$95:$BD$118,'Report - ALL (DASHBOARD)'!$W$2,'Report - ALL (DASHBOARD)'!$W$3) -> 764.5060028 | Q15: =$P15-$P$14 -> -57.90578123 | R15: =$P15-$P$14 -> -57.90578123
A16: ='Compile Data'!$D$1 -> Alt 1B 011221 | B16: =INDEX('Compile Data'!BG$95:BG$118,'Report - ALL (DASHBOARD)'!$W$2) -> 1473.914899 | C16: =INDEX('Compile Data'!BH$95:BH$118,'Report - ALL (DASHBOARD)'!$W$2) -> 1360.130359 | D16: =INDEX('Compile Data'!BI$95:BI$118,'Report - ALL (DASHBOARD)'!$W$2) -> 991.4043451 | E16: =INDEX('Compile Data'!BJ$95:BJ$118,'Report - ALL (DASHBOARD)'!$W$2) -> 489.010895 | F16: =INDEX('Compile Data'!BK$95:BK$118,'Report - ALL (DASHBOARD)'!$W$2) -> 251.8911243 | G16: =INDEX('Compile Data'!BL$95:BL$118,'Report - ALL (DASHBOARD)'!$W$2) -> 226.5068906 | H16: =INDEX('Compile Data'!BM$95:BM$118,'Report - ALL (DASHBOARD)'!$W$2) -> 237.2432039 | I16: =INDEX('Compile Data'!BN$95:BN$118,'Report - ALL (DASHBOARD)'!$W$2) -> 342.8932683 | J16: =INDEX('Compile Data'!BO$95:BO$118,'Report - ALL (DASHBOARD)'!$W$2) -> 546.6009149 | K16: =INDEX('Compile Data'!BP$95:BP$118,'Report - ALL (DASHBOARD)'!$W$2) -> 700.4749897 | L16: =INDEX('Compile Data'!BQ$95:BQ$118,'Report - ALL (DASHBOARD)'!$W$2) -> 1142.702834 | M16: =INDEX('Compile Data'!BR$95:BR$118,'Report - ALL (DASHBOARD)'!$W$2) -> 1422.792899 | O16: ='Compile Data'!$D$1 -> Alt 1B 011221 | P16: =INDEX('Compile Data'!$BG$95:$CB$118,'Report - ALL (DASHBOARD)'!$W$2,'Report - ALL (DASHBOARD)'!$W$3) -> 765.4638851 | Q16: =$P16-$P$14 -> -56.94789896 | R16: =$P16-$P$15 -> 0.9578822686
A17: ='Compile Data'!$E$1 -> Alt 2 011221 | B17: =INDEX('Compile Data'!CE$95:CE$118,'Report - ALL (DASHBOARD)'!$W$2) -> 1473.184298 | C17: =INDEX('Compile Data'!CF$95:CF$118,'Report - ALL (DASHBOARD)'!$W$2) -> 1380.702974 | D17: =INDEX('Compile Data'!CG$95:CG$118,'Report - ALL (DASHBOARD)'!$W$2) -> 999.6457577 | E17: =INDEX('Compile Data'!CH$95:CH$118,'Report - ALL (DASHBOARD)'!$W$2) -> 490.5880501 | F17: =INDEX('Compile Data'!CI$95:CI$118,'Report - ALL (DASHBOARD)'!$W$2) -> 251.963177 | G17: =INDEX('Compile Data'!CJ$95:CJ$118,'Report - ALL (DASHBOARD)'!$W$2) -> 226.4478058 | H17: =INDEX('Compile Data'!CK$95:CK$118,'Report - ALL (DASHBOARD)'!$W$2) -> 237.3026711 | I17: =INDEX('Compile Data'!CL$95:CL$118,'Report - ALL (DASHBOARD)'!$W$2) -> 342.3532052 | J17: =INDEX('Compile Data'!CM$95:CM$118,'Report - ALL (DASHBOARD)'!$W$2) -> 545.6868651 | K17: =INDEX('Compile Data'!CN$95:CN$118,'Report - ALL (DASHBOARD)'!$W$2) -> 702.2438334 | L17: =INDEX('Compile Data'!CO$95:CO$118,'Report - ALL (DASHBOARD)'!$W$2) -> 1144.252666 | M17: =INDEX('Compile Data'!CP$95:CP$118,'Report - ALL (DASHBOARD)'!$W$2) -> 1431.142252 | O17: ='Compile Data'!$E$1 -> Alt 2 011221 | P17: =INDEX('Compile Data'!$CE$95:$CZ$118,'Report - ALL (DASHBOARD)'!$W$2,'Report - ALL (DASHBOARD)'!$W$3) -> 768.7927963 | Q17: -53.61898773 | R17: =$P17-$P$16 -> 3.328911231
A22: Annuals Plot: | O22: Exceedence Plot:
A24: Title: | B24: =INDEX(Other!$B$9:$B$31,'Report - ALL (DASHBOARD)'!$W$3) -> October-September | O24: Title: | P24: =INDEX(Other!$B$9:$B$31,'Report - ALL (DASHBOARD)'!$W$3) -> October-September
B25: ='Compile Data'!$B$5 -> Sacramento River at Emmaton EC | P25: ='Compile Data'!$B$5 -> Sacramento River at Emmaton EC
B26: =IF('Compile Data'!$B$10="CFS","Flow (CFS)",IF('Compile Data'!$B$10="TAF","Volume (TAF)",IF('Compile Data'!$B$10="KM","POSITION (KM)",IF('Compile Data'!$B$10="UMHOS/CM","EC (UMHOS/CM)",IF('Compile Data'!$B$10="mg/L","Chloride (mg/L)",""))))) -> EC (UMHOS/CM) | P26: =IF('Compile Data'!$B$10="CFS","Flow (CFS)",IF('Compile Data'!$B$10="TAF","Volume (TAF)",IF('Compile Data'!$B$10="KM","POSITION (KM)",IF('Compile Data'!$B$10="UMHOS/CM","EC (UMHOS/CM)",IF('Compile Data'!$B$10="mg/L","Chloride (mg/L)",""))))) -> EC (UMHOS/CM)
B28: ='Compile Data'!$B$1 -> NAA 011221 | C28: ='Compile Data'!$C$1 -> Alt 1A 011221 | D28: ='Compile Data'!$D$1 -> Alt 1B 011221 | E28: ='Compile Data'!$E$1 -> Alt 2 011221 | Q28: ='Compile Data'!$B$1 -> NAA 011221 | R28: ='Compile Data'!$C$1 -> Alt 1A 011221 | S28: ='Compile Data'!$D$1 -> Alt 1B 011221 | T28: ='Compile Data'!$E$1 -> Alt 2 011221
A29: 1922 | B29: =INDEX('Compile Data'!$K$12:$AF$93,$A29-1921,'Report - ALL (DASHBOARD)'!$W$3) -> 435.7679151 | C29: =INDEX('Compile Data'!$AI$12:$BD$93,$A29-1921,'Report - ALL (DASHBOARD)'!$W$3) -> 453.2639491 | D29: =INDEX('Compile Data'!$BG$12:$CB$93,$A29-1921,'Report - ALL (DASHBOARD)'!$W$3) -> 453.1364581 | E29: =INDEX('Compile Data'!$CE$12:$CZ$93,$A29-1921,'Report - ALL (DASHBOARD)'!$W$3) -> 453.2639491 | O29: 1 | P29: =(O29-1)/81 -> 0 | Q29: =INDEX('Compile Data'!$K$121:$AF$202,$O29,'Report - ALL (DASHBOARD)'!$W$3) -> 2062.549343 | R29: =INDEX('Compile Data'!$AI$121:$BD$202,$O29,'Report - ALL (DASHBOARD)'!$W$3) -> 2014.992736 | S29: =INDEX('Compile Data'!$BG$121:$CB$202,$O29,'Report - ALL (DASHBOARD)'!$W$3) -> 2052.909351 | T29: =INDEX('Compile Data'!$CE$121:$CZ$202,$O29,'Report - ALL (DASHBOARD)'!$W$3) -> 2015.727882
A30: =A29+1 -> 1923 | B30: =INDEX('Compile Data'!$K$12:$AF$93,$A30-1921,'Report - ALL (DASHBOARD)'!$W$3) -> 537.2465439 | C30: =INDEX('Compile Data'!$AI$12:$BD$93,$A30-1921,'Report - ALL (DASHBOARD)'!$W$3) -> 488.3639526 | D30: =INDEX('Compile Data'!$BG$12:$CB$93,$A30-1921,'Report - ALL (DASHBOARD)'!$W$3) -> 477.4265442 | E30: =INDEX('Compile Data'!$CE$12:$CZ$93,$A30-1921,'Report - ALL (DASHBOARD)'!$W$3) -> 482.4781799 | O30: 2 | P30: 0.01234567901 | Q30: =INDEX('Compile Data'!$K$121:$AF$202,$O30,'Report - ALL (DASHBOARD)'!$W$3) -> 2024.995402 | R30: =INDEX('Compile Data'!$AI$121:$BD$202,$O30,'Report - ALL (DASHBOARD)'!$W$3) -> 1914.483185 | S30: =INDEX('Compile Data'!$BG$121:$CB$202,$O30,'Report - ALL (DASHBOARD)'!$W$3) -> 1912.86468 | T30: =INDEX('Compile Data'!$CE$121:$CZ$202,$O30,'Report - ALL (DASHBOARD)'!$W$3) -> 1918.531194
A31: =A30+1 -> 1924 | B31: =INDEX('Compile Data'!$K$12:$AF$93,$A31-1921,'Report - ALL (DASHBOARD)'!$W$3) -> 1863.280024 | C31: =INDEX('Compile Data'!$AI$12:$BD$93,$A31-1921,'Report - ALL (DASHBOARD)'!$W$3) -> 1734.466365 | D31: =INDEX('Compile Data'!$BG$12:$CB$93,$A31-1921,'Report - ALL (DASHBOARD)'!$W$3) -> 1721.443453 | E31: =INDEX('Compile Data'!$CE$12:$CZ$93,$A31-1921,'Report - ALL (DASHBOARD)'!$W$3) -> 1731.069191 | O31: 3 | P31: 0.02469135802 | Q31: =INDEX('Compile Data'!$K$121:$AF$202,$O31,'Report - ALL (DASHBOARD)'!$W$3) -> 1969.665705 | R31: =INDEX('Compile Data'!$AI$121:$BD$202,$O31,'Report - ALL (DASHBOARD)'!$W$3) -> 1866.085403 | S31: =INDEX('Compile Data'!$BG$121:$CB$202,$O31,'Report - ALL (DASHBOARD)'!$W$3) -> 1808.695269 | T31: =INDEX('Compile Data'!$CE$121:$CZ$202,$O31,'Report - ALL (DASHBOARD)'!$W$3) -> 1836.91186
A32: 1925 | B32: =INDEX('Compile Data'!$K$12:$AF$93,$A32-1921,'Report - ALL (DASHBOARD)'!$W$3) -> 1349.502823 | C32: =INDEX('Compile Data'!$AI$12:$BD$93,$A32-1921,'Report - ALL (DASHBOARD)'!$W$3) -> 1176.03985 | D32: =INDEX('Compile Data'!$BG$12:$CB$93,$A32-1921,'Report - ALL (DASHBOARD)'!$W$3) -> 1179.578985 | E32: =INDEX('Compile Data'!$CE$12:$CZ$93,$A32-1921,'Report - ALL (DASHBOARD)'!$W$3) -> 1215.230974 | O32: 4 | P32: 0.03703703704 | Q32: =INDEX('Compile Data'!$K$121:$AF$202,$O32,'Report - ALL (DASHBOARD)'!$W$3) -> 1864.581938 | R32: =INDEX('Compile Data'!$AI$121:$BD$202,$O32,'Report - ALL (DASHBOARD)'!$W$3) -> 1836.006641 | S32: =INDEX('Compile Data'!$BG$121:$CB$202,$O32,'Report - ALL (DASHBOARD)'!$W$3) -> 1784.326889 | T32: =INDEX('Compile Data'!$CE$121:$CZ$202,$O32,'Report - ALL (DASHBOARD)'!$W$3) -> 1836.400543
A33: 1926 | B33: =INDEX('Compile Data'!$K$12:$AF$93,$A33-1921,'Report - ALL (DASHBOARD)'!$W$3) -> 1414.815444 | C33: =INDEX('Compile Data'!$AI$12:$BD$93,$A33-1921,'Report - ALL (DASHBOARD)'!$W$3) -> 1401.724976 | D33: =INDEX('Compile Data'!$BG$12:$CB$93,$A33-1921,'Report - ALL (DASHBOARD)'!$W$3) -> 1403.019208 | E33: =INDEX('Compile Data'!$CE$12:$CZ$93,$A33-1921,'Report - ALL (DASHBOARD)'!$W$3) -> 1389.670535 | O33: 5 | P33: 0.04938271605 | Q33: =INDEX('Compile Data'!$K$121:$AF$202,$O33,'Report - ALL (DASHBOARD)'!$W$3) -> 1863.280024 | R33: =INDEX('Compile Data'!$AI$121:$BD$202,$O33,'Report - ALL (DASHBOARD)'!$W$3) -> 1734.466365 | S33: =INDEX('Compile Data'!$BG$121:$CB$202,$O33,'Report - ALL (DASHBOARD)'!$W$3) -> 1725.630102 | T33: =INDEX('Compile Data'!$CE$121:$CZ$202,$O33,'Report - ALL (DASHBOARD)'!$W$3) -> 1731.069191
A34: 1927 | B34: =INDEX('Compile Data'!$K$12:$AF$93,$A34-1921,'Report - ALL (DASHBOARD)'!$W$3) -> 533.9598262 | C34: =INDEX('Compile Data'!$AI$12:$BD$93,$A34-1921,'Report - ALL (DASHBOARD)'!$W$3) -> 531.5409241 | D34: =INDEX('Compile Data'!$BG$12:$CB$93,$A34-1921,'Report - ALL (DASHBOARD)'!$W$3) -> 547.2065697 | E34: =INDEX('Compile Data'!$CE$12:$CZ$93,$A34-1921,'Report - ALL (DASHBOARD)'!$W$3) -> 525.0513306 | O34: 6 | P34: 0.06172839506 | Q34: =INDEX('Compile Data'!$K$121:$AF$202,$O34,'Report - ALL (DASHBOARD)'!$W$3) -> 1700.947311 | R34: =INDEX('Compile Data'!$AI$121:$BD$202,$O34,'Report - ALL (DASHBOARD)'!$W$3) -> 1726.596387 | S34: =INDEX('Compile Data'!$BG$121:$CB$202,$O34,'Report - ALL (DASHBOARD)'!$W$3) -> 1721.443453 | T34: =INDEX('Compile Data'!$CE$121:$CZ$202,$O34,'Report - ALL (DASHBOARD)'!$W$3) -> 1722.368299
A35: 1928 | B35: =INDEX('Compile Data'!$K$12:$AF$93,$A35-1921,'Report - ALL (DASHBOARD)'!$W$3) -> 385.1585604 | C35: =INDEX('Compile Data'!$AI$12:$BD$93,$A35-1921,'Report - ALL (DASHBOARD)'!$W$3) -> 418.9715919 | D35: =INDEX('Compile Data'!$BG$12:$CB$93,$A35-1921,'Report - ALL (DASHBOARD)'!$W$3) -> 419.778628 | E35: =INDEX('Compile Data'!$CE$12:$CZ$93,$A35-1921,'Report - ALL (DASHBOARD)'!$W$3) -> 416.2812411 | O35: 7 | P35: 0.07407407407 | Q35: =INDEX('Compile Data'!$K$121:$AF$202,$O35,'Report - ALL (DASHBOARD)'!$W$3) -> 1461.787326 | R35: =INDEX('Compile Data'!$AI$121:$BD$202,$O35,'Report - ALL (DASHBOARD)'!$W$3) -> 1467.961207 | S35: =INDEX('Compile Data'!$BG$121:$CB$202,$O35,'Report - ALL (DASHBOARD)'!$W$3) -> 1470.367063 | T35: =INDEX('Compile Data'!$CE$121:$CZ$202,$O35,'Report - ALL (DASHBOARD)'!$W$3) -> 1469.793945
A36: 1929 | B36: =INDEX('Compile Data'!$K$12:$AF$93,$A36-1921,'Report - ALL (DASHBOARD)'!$W$3) -> 1134.217471 | C36: =INDEX('Compile Data'!$AI$12:$BD$93,$A36-1921,'Report - ALL (DASHBOARD)'!$W$3) -> 1047.998306 | D36: =INDEX('Compile Data'!$BG$12:$CB$93,$A36-1921,'Report - ALL (DASHBOARD)'!$W$3) -> 1048.919556 | E36: =INDEX('Compile Data'!$CE$12:$CZ$93,$A36-1921,'Report - ALL (DASHBOARD)'!$W$3) -> 1047.930468 | O36: 8 | P36: 0.08641975309 | Q36: =INDEX('Compile Data'!$K$121:$AF$202,$O36,'Report - ALL (DASHBOARD)'!$W$3) -> 1444.855681 | R36: =INDEX('Compile Data'!$AI$121:$BD$202,$O36,'Report - ALL (DASHBOARD)'!$W$3) -> 1401.724976 | S36: =INDEX('Compile Data'!$BG$121:$CB$202,$O36,'Report - ALL (DASHBOARD)'!$W$3) -> 1403.019208 | T36: =INDEX('Compile Data'!$CE$121:$CZ$202,$O36,'Report - ALL (DASHBOARD)'!$W$3) -> 1389.670535
A37: 1930 | B37: =INDEX('Compile Data'!$K$12:$AF$93,$A37-1921,'Report - ALL (DASHBOARD)'!$W$3) -> 1376.726737 | C37: =INDEX('Compile Data'!$AI$12:$BD$93,$A37-1921,'Report - ALL (DASHBOARD)'!$W$3) -> 1057.211478 | D37: =INDEX('Compile Data'!$BG$12:$CB$93,$A37-1921,'Report - ALL (DASHBOARD)'!$W$3) -> 1061.909868 | E37: =INDEX('Compile Data'!$CE$12:$CZ$93,$A37-1921,'Report - ALL (DASHBOARD)'!$W$3) -> 1060.752755 | O37: 9 | P37: 0.0987654321 | Q37: =INDEX('Compile Data'!$K$121:$AF$202,$O37,'Report - ALL (DASHBOARD)'!$W$3) -> 1414.815444 | R37: =INDEX('Compile Data'!$AI$121:$BD$202,$O37,'Report - ALL (DASHBOARD)'!$W$3) -> 1319.016073 | S37: =INDEX('Compile Data'!$BG$121:$CB$202,$O37,'Report - ALL (DASHBOARD)'!$W$3) -> 1326.430674 | T37: =INDEX('Compile Data'!$CE$121:$CZ$202,$O37,'Report - ALL (DASHBOARD)'!$W$3) -> 1330.223694
A38: 1931 | B38: =INDEX('Compile Data'!$K$12:$AF$93,$A38-1921,'Report - ALL (DASHBOARD)'!$W$3) -> 1969.665705 | C38: =INDEX('Compile Data'!$AI$12:$BD$93,$A38-1921,'Report - ALL (DASHBOARD)'!$W$3) -> 1914.483185 | D38: =INDEX('Compile Data'!$BG$12:$CB$93,$A38-1921,'Report - ALL (DASHBOARD)'!$W$3) -> 1912.86468 | E38: =INDEX('Compile Data'!$CE$12:$CZ$93,$A38-1921,'Report - ALL (DASHBOARD)'!$W$3) -> 1918.531194 | O38: 10 | P38: 0.1111111111 | Q38: =INDEX('Compile Data'!$K$121:$AF$202,$O38,'Report - ALL (DASHBOARD)'!$W$3) -> 1393.973373 | R38: =INDEX('Compile Data'!$AI$121:$BD$202,$O38,'Report - ALL (DASHBOARD)'!$W$3) -> 1280.218114 | S38: =INDEX('Compile Data'!$BG$121:$CB$202,$O38,'Report - ALL (DASHBOARD)'!$W$3) -> 1303.239169 | T38: =INDEX('Compile Data'!$CE$121:$CZ$202,$O38,'Report - ALL (DASHBOARD)'!$W$3) -> 1323.608017
A39: 1932 | B39: =INDEX('Compile Data'!$K$12:$AF$93,$A39-1921,'Report - ALL (DASHBOARD)'!$W$3) -> 1235.81539 | C39: =INDEX('Compile Data'!$AI$12:$BD$93,$A39-1921,'Report - ALL (DASHBOARD)'!$W$3) -> 1237.847911 | D39: =INDEX('Compile Data'!$BG$12:$CB$93,$A39-1921,'Report - ALL (DASHBOARD)'!$W$3) -> 1238.937261 | E39: =INDEX('Compile Data'!$CE$12:$CZ$93,$A39-1921,'Report - ALL (DASHBOARD)'!$W$3) -> 1237.819013 | O39: 11 | P39: 0.1234567901 | Q39: =INDEX('Compile Data'!$K$121:$AF$202,$O39,'Report - ALL (DASHBOARD)'!$W$3) -> 1376.726737 | R39: =INDEX('Compile Data'!$AI$121:$BD$202,$O39,'Report - ALL (DASHBOARD)'!$W$3) -> 1264.55231 | S39: =INDEX('Compile Data'!$BG$121:$CB$202,$O39,'Report - ALL (DASHBOARD)'!$W$3) -> 1241.200465 | T39: =INDEX('Compile Data'!$CE$121:$CZ$202,$O39,'Report - ALL (DASHBOARD)'!$W$3) -> 1253.172089
A40: 1933 | B40: =INDEX('Compile Data'!$K$12:$AF$93,$A40-1921,'Report - ALL (DASHBOARD)'!$W$3) -> 1461.787326 | C40: =INDEX('Compile Data'!$AI$12:$BD$93,$A40-1921,'Report - ALL (DASHBOARD)'!$W$3) -> 1467.961207 | D40: =INDEX('Compile Data'!$BG$12:$CB$93,$A40-1921,'Report - ALL (DASHBOARD)'!$W$3) -> 1470.367063 | E40: =INDEX('Compile Data'!$CE$12:$CZ$93,$A40-1921,'Report - ALL (DASHBOARD)'!$W$3) -> 1469.793945 | O40: 12 | P40: 0.1358024691 | Q40: =INDEX('Compile Data'!$K$121:$AF$202,$O40,'Report - ALL (DASHBOARD)'!$W$3) -> 1366.576152 | R40: =INDEX('Compile Data'!$AI$121:$BD$202,$O40,'Report - ALL (DASHBOARD)'!$W$3) -> 1237.847911 | S40: =INDEX('Compile Data'!$BG$121:$CB$202,$O40,'Report - ALL (DASHBOARD)'!$W$3) -> 1238.937261 | T40: =INDEX('Compile Data'!$CE$121:$CZ$202,$O40,'Report - ALL (DASHBOARD)'!$W$3) -> 1237.819013
A41: 1934 | B41: =INDEX('Compile Data'!$K$12:$AF$93,$A41-1921,'Report - ALL (DASHBOARD)'!$W$3) -> 1366.576152 | C41: =INDEX('Compile Data'!$AI$12:$BD$93,$A41-1921,'Report - ALL (DASHBOARD)'!$W$3) -> 1319.016073 | D41: =INDEX('Compile Data'!$BG$12:$CB$93,$A41-1921,'Report - ALL (DASHBOARD)'!$W$3) -> 1326.430674 | E41: =INDEX('Compile Data'!$CE$12:$CZ$93,$A41-1921,'Report - ALL (DASHBOARD)'!$W$3) -> 1323.608017 | O41: 13 | P41: 0.1481481481 | Q41: =INDEX('Compile Data'!$K$121:$AF$202,$O41,'Report - ALL (DASHBOARD)'!$W$3) -> 1349.502823 | R41: =INDEX('Compile Data'!$AI$121:$BD$202,$O41,'Report - ALL (DASHBOARD)'!$W$3) -> 1195.746553 | S41: =INDEX('Compile Data'!$BG$121:$CB$202,$O41,'Report - ALL (DASHBOARD)'!$W$3) -> 1182.575077 | T41: =INDEX('Compile Data'!$CE$121:$CZ$202,$O41,'Report - ALL (DASHBOARD)'!$W$3) -> 1227.69241
A42: 1935 | B42: =INDEX('Compile Data'!$K$12:$AF$93,$A42-1921,'Report - ALL (DASHBOARD)'!$W$3) -> 977.1498922 | C42: =INDEX('Compile Data'!$AI$12:$BD$93,$A42-1921,'Report - ALL (DASHBOARD)'!$W$3) -> 897.3252144 | D42: =INDEX('Compile Data'!$BG$12:$CB$93,$A42-1921,'Report - ALL (DASHBOARD)'!$W$3) -> 904.4332987 | E42: =INDEX('Compile Data'!$CE$12:$CZ$93,$A42-1921,'Report - ALL (DASHBOARD)'!$W$3) -> 893.8394076 | O42: 14 | P42: 0.1604938272 | Q42: =INDEX('Compile Data'!$K$121:$AF$202,$O42,'Report - ALL (DASHBOARD)'!$W$3) -> 1314.380157 | R42: =INDEX('Compile Data'!$AI$121:$BD$202,$O42,'Report - ALL (DASHBOARD)'!$W$3) -> 1176.03985 | S42: =INDEX('Compile Data'!$BG$121:$CB$202,$O42,'Report - ALL (DASHBOARD)'!$W$3) -> 1179.578985 | T42: =INDEX('Compile Data'!$CE$121:$CZ$202,$O42,'Report - ALL (DASHBOARD)'!$W$3) -> 1215.230974
A43: 1936 | B43: =INDEX('Compile Data'!$K$12:$AF$93,$A43-1921,'Report - ALL (DASHBOARD)'!$W$3) -> 1022.736056 | C43: =INDEX('Compile Data'!$AI$12:$BD$93,$A43-1921,'Report - ALL (DASHBOARD)'!$W$3) -> 890.9991252 | D43: =INDEX('Compile Data'!$BG$12:$CB$93,$A43-1921,'Report - ALL (DASHBOARD)'!$W$3) -> 895.0069911 | E43: =INDEX('Compile Data'!$CE$12:$CZ$93,$A43-1921,'Report - ALL (DASHBOARD)'!$W$3) -> 874.8640315 | O43: 15 | P43: 0.1728395062 | Q43: =INDEX('Compile Data'!$K$121:$AF$202,$O43,'Report - ALL (DASHBOARD)'!$W$3) -> 1235.81539 | R43: =INDEX('Compile Data'!$AI$121:$BD$202,$O43,'Report - ALL (DASHBOARD)'!$W$3) -> 1169.426661 | S43: =INDEX('Compile Data'!$BG$121:$CB$202,$O43,'Report - ALL (DASHBOARD)'!$W$3) -> 1169.813741 | T43: =INDEX('Compile Data'!$CE$121:$CZ$202,$O43,'Report - ALL (DASHBOARD)'!$W$3) -> 1172.04609
A44: 1937 | B44: =INDEX('Compile Data'!$K$12:$AF$93,$A44-1921,'Report - ALL (DASHBOARD)'!$W$3) -> 1054.001367 | C44: =INDEX('Compile Data'!$AI$12:$BD$93,$A44-1921,'Report - ALL (DASHBOARD)'!$W$3) -> 963.1075083 | D44: =INDEX('Compile Data'!$BG$12:$CB$93,$A44-1921,'Report - ALL (DASHBOARD)'!$W$3) -> 944.2503535 | E44: =INDEX('Compile Data'!$CE$12:$CZ$93,$A44-1921,'Report - ALL (DASHBOARD)'!$W$3) -> 958.1375961 | O44: 16 | P44: 0.1851851852 | Q44: =INDEX('Compile Data'!$K$121:$AF$202,$O44,'Report - ALL (DASHBOARD)'!$W$3) -> 1224.450504 | R44: =INDEX('Compile Data'!$AI$121:$BD$202,$O44,'Report - ALL (DASHBOARD)'!$W$3) -> 1146.712215 | S44: =INDEX('Compile Data'!$BG$121:$CB$202,$O44,'Report - ALL (DASHBOARD)'!$W$3) -> 1156.62485 | T44: =INDEX('Compile Data'!$CE$121:$CZ$202,$O44,'Report - ALL (DASHBOARD)'!$W$3) -> 1167.742584
A45: 1938 | B45: =INDEX('Compile Data'!$K$12:$AF$93,$A45-1921,'Report - ALL (DASHBOARD)'!$W$3) -> 455.1141548 | C45: =INDEX('Compile Data'!$AI$12:$BD$93,$A45-1921,'Report - ALL (DASHBOARD)'!$W$3) -> 439.4026769 | D45: =INDEX('Compile Data'!$BG$12:$CB$93,$A45-1921,'Report - ALL (DASHBOARD)'!$W$3) -> 453.8179347 | E45: =INDEX('Compile Data'!$CE$12:$CZ$93,$A45-1921,'Report - ALL (DASHBOARD)'!$W$3) -> 439.4663022 | O45: 17 | P45: 0.1975308642 | Q45: =INDEX('Compile Data'!$K$121:$AF$202,$O45,'Report - ALL (DASHBOARD)'!$W$3) -> 1194.414754 | R45: =INDEX('Compile Data'!$AI$121:$BD$202,$O45,'Report - ALL (DASHBOARD)'!$W$3) -> 1057.211478 | S45: =INDEX('Compile Data'!$BG$121:$CB$202,$O45,'Report - ALL (DASHBOARD)'!$W$3) -> 1061.909868 | T45: =INDEX('Compile Data'!$CE$121:$CZ$202,$O45,'Report - ALL (DASHBOARD)'!$W$3) -> 1060.752755
A46: 1939 | B46: =INDEX('Compile Data'!$K$12:$AF$93,$A46-1921,'Report - ALL (DASHBOARD)'!$W$3) -> 1064.460508 | C46: =INDEX('Compile Data'!$AI$12:$BD$93,$A46-1921,'Report - ALL (DASHBOARD)'!$W$3) -> 957.0708872 | D46: =INDEX('Compile Data'!$BG$12:$CB$93,$A46-1921,'Report - ALL (DASHBOARD)'!$W$3) -> 954.0185954 | E46: =INDEX('Compile Data'!$CE$12:$CZ$93,$A46-1921,'Report - ALL (DASHBOARD)'!$W$3) -> 957.8400955 | O46: 18 | P46: 0.2098765432 | Q46: =INDEX('Compile Data'!$K$121:$AF$202,$O46,'Report - ALL (DASHBOARD)'!$W$3) -> 1190.643463 | R46: =INDEX('Compile Data'!$AI$121:$BD$202,$O46,'Report - ALL (DASHBOARD)'!$W$3) -> 1047.998306 | S46: =INDEX('Compile Data'!$BG$121:$CB$202,$O46,'Report - ALL (DASHBOARD)'!$W$3) -> 1057.310759 | T46: =INDEX('Compile Data'!$CE$121:$CZ$202,$O46,'Report - ALL (DASHBOARD)'!$W$3) -> 1047.930468
A47: 1940 | B47: =INDEX('Compile Data'!$K$12:$AF$93,$A47-1921,'Report - ALL (DASHBOARD)'!$W$3) -> 890.7723554 | C47: =INDEX('Compile Data'!$AI$12:$BD$93,$A47-1921,'Report - ALL (DASHBOARD)'!$W$3) -> 784.6143328 | D47: =INDEX('Compile Data'!$BG$12:$CB$93,$A47-1921,'Report - ALL (DASHBOARD)'!$W$3) -> 777.5092125 | E47: =INDEX('Compile Data'!$CE$12:$CZ$93,$A47-1921,'Report - ALL (DASHBOARD)'!$W$3) -> 784.2713877 | O47: 19 | P47: 0.2222222222 | Q47: =INDEX('Compile Data'!$K$121:$AF$202,$O47,'Report - ALL (DASHBOARD)'!$W$3) -> 1134.217471 | R47: =INDEX('Compile Data'!$AI$121:$BD$202,$O47,'Report - ALL (DASHBOARD)'!$W$3) -> 1045.860601 | S47: =INDEX('Compile Data'!$BG$121:$CB$202,$O47,'Report - ALL (DASHBOARD)'!$W$3) -> 1048.919556 | T47: =INDEX('Compile Data'!$CE$121:$CZ$202,$O47,'Report - ALL (DASHBOARD)'!$W$3) -> 1046.156447
A48: 1941 | B48: =INDEX('Compile Data'!$K$12:$AF$93,$A48-1921,'Report - ALL (DASHBOARD)'!$W$3) -> 332.2683372 | C48: =INDEX('Compile Data'!$AI$12:$BD$93,$A48-1921,'Report - ALL (DASHBOARD)'!$W$3) -> 322.0906258 | D48: =INDEX('Compile Data'!$BG$12:$CB$93,$A48-1921,'Report - ALL (DASHBOARD)'!$W$3) -> 323.7720044 | E48: =INDEX('Compile Data'!$CE$12:$CZ$93,$A48-1921,'Report - ALL (DASHBOARD)'!$W$3) -> 323.5027733 | O48: 20 | P48: 0.2345679012 | Q48: =INDEX('Compile Data'!$K$121:$AF$202,$O48,'Report - ALL (DASHBOARD)'!$W$3) -> 1125.050858 | R48: =INDEX('Compile Data'!$AI$121:$BD$202,$O48,'Report - ALL (DASHBOARD)'!$W$3) -> 1042.10038 | S48: =INDEX('Compile Data'!$BG$121:$CB$202,$O48,'Report - ALL (DASHBOARD)'!$W$3) -> 1039.239541 | T48: =INDEX('Compile Data'!$CE$121:$CZ$202,$O48,'Report - ALL (DASHBOARD)'!$W$3) -> 1040.864232
A49: 1942 | B49: =INDEX('Compile Data'!$K$12:$AF$93,$A49-1921,'Report - ALL (DASHBOARD)'!$W$3) -> 302.6736984 | C49: =INDEX('Compile Data'!$AI$12:$BD$93,$A49-1921,'Report - ALL (DASHBOARD)'!$W$3) -> 293.6039085 | D49: =INDEX('Compile Data'!$BG$12:$CB$93,$A49-1921,'Report - ALL (DASHBOARD)'!$W$3) -> 293.5285098 | E49: =INDEX('Compile Data'!$CE$12:$CZ$93,$A49-1921,'Report - ALL (DASHBOARD)'!$W$3) -> 293.5972061 | O49: 21 | P49: 0.2469135802 | Q49: =INDEX('Compile Data'!$K$121:$AF$202,$O49,'Report - ALL (DASHBOARD)'!$W$3) -> 1104.489868 | R49: =INDEX('Compile Data'!$AI$121:$BD$202,$O49,'Report - ALL (DASHBOARD)'!$W$3) -> 1009.467552 | S49: =INDEX('Compile Data'!$BG$121:$CB$202,$O49,'Report - ALL (DASHBOARD)'!$W$3) -> 1016.109717 | T49: =INDEX('Compile Data'!$CE$121:$CZ$202,$O49,'Report - ALL (DASHBOARD)'!$W$3) -> 1038.502844
A50: 1943 | B50: =INDEX('Compile Data'!$K$12:$AF$93,$A50-1921,'Report - ALL (DASHBOARD)'!$W$3) -> 315.4087029 | C50: =INDEX('Compile Data'!$AI$12:$BD$93,$A50-1921,'Report - ALL (DASHBOARD)'!$W$3) -> 316.0511004 | D50: =INDEX('Compile Data'!$BG$12:$CB$93,$A50-1921,'Report - ALL (DASHBOARD)'!$W$3) -> 316.0492465 | E50: =INDEX('Compile Data'!$CE$12:$CZ$93,$A50-1921,'Report - ALL (DASHBOARD)'!$W$3) -> 316.048111 | O50: 22 | P50: 0.2592592593 | Q50: =INDEX('Compile Data'!$K$121:$AF$202,$O50,'Report - ALL (DASHBOARD)'!$W$3) -> 1064.460508 | R50: =INDEX('Compile Data'!$AI$121:$BD$202,$O50,'Report - ALL (DASHBOARD)'!$W$3) -> 963.1075083 | S50: =INDEX('Compile Data'!$BG$121:$CB$202,$O50,'Report - ALL (DASHBOARD)'!$W$3) -> 954.0185954 | T50: =INDEX('Compile Data'!$CE$121:$CZ$202,$O50,'Report - ALL (DASHBOARD)'!$W$3) -> 1010.188554
A51: 1944 | B51: =INDEX('Compile Data'!$K$12:$AF$93,$A51-1921,'Report - ALL (DASHBOARD)'!$W$3) -> 871.2049014 | C51: =INDEX('Compile Data'!$AI$12:$BD$93,$A51-1921,'Report - ALL (DASHBOARD)'!$W$3) -> 800.5296656 | D51: =INDEX('Compile Data'!$BG$12:$CB$93,$A51-1921,'Report - ALL (DASHBOARD)'!$W$3) -> 798.5608139 | E51: =INDEX('Compile Data'!$CE$12:$CZ$93,$A51-1921,'Report - ALL (DASHBOARD)'!$W$3) -> 800.5253372 | O51: 23 | P51: 0.2716049383 | Q51: =INDEX('Compile Data'!$K$121:$AF$202,$O51,'Report - ALL (DASHBOARD)'!$W$3) -> 1054.001367 | R51: =INDEX('Compile Data'!$AI$121:$BD$202,$O51,'Report - ALL (DASHBOARD)'!$W$3) -> 957.0708872 | S51: =INDEX('Compile Data'!$BG$121:$CB$202,$O51,'Report - ALL (DASHBOARD)'!$W$3) -> 944.2503535 | T51: =INDEX('Compile Data'!$CE$121:$CZ$202,$O51,'Report - ALL (DASHBOARD)'!$W$3) -> 959.3962746
A52: 1945 | B52: =INDEX('Compile Data'!$K$12:$AF$93,$A52-1921,'Report - ALL (DASHBOARD)'!$W$3) -> 955.2084974 | C52: =INDEX('Compile Data'!$AI$12:$BD$93,$A52-1921,'Report - ALL (DASHBOARD)'!$W$3) -> 810.6342456 | D52: =INDEX('Compile Data'!$BG$12:$CB$93,$A52-1921,'Report - ALL (DASHBOARD)'!$W$3) -> 797.4072851 | E52: =INDEX('Compile Data'!$CE$12:$CZ$93,$A52-1921,'Report - ALL (DASHBOARD)'!$W$3) -> 810.5808551 | O52: 24 | P52: 0.2839506173 | Q52: =INDEX('Compile Data'!$K$121:$AF$202,$O52,'Report - ALL (DASHBOARD)'!$W$3) -> 1043.947735 | R52: =INDEX('Compile Data'!$AI$121:$BD$202,$O52,'Report - ALL (DASHBOARD)'!$W$3) -> 936.8027356 | S52: =INDEX('Compile Data'!$BG$121:$CB$202,$O52,'Report - ALL (DASHBOARD)'!$W$3) -> 939.3839391 | T52: =INDEX('Compile Data'!$CE$121:$CZ$202,$O52,'Report - ALL (DASHBOARD)'!$W$3) -> 958.1375961
A53: 1946 | B53: =INDEX('Compile Data'!$K$12:$AF$93,$A53-1921,'Report - ALL (DASHBOARD)'!$W$3) -> 714.6467743 | C53: =INDEX('Compile Data'!$AI$12:$BD$93,$A53-1921,'Report - ALL (DASHBOARD)'!$W$3) -> 663.3872655 | D53: =INDEX('Compile Data'!$BG$12:$CB$93,$A53-1921,'Report - ALL (DASHBOARD)'!$W$3) -> 663.0397504 | E53: =INDEX('Compile Data'!$CE$12:$CZ$93,$A53-1921,'Report - ALL (DASHBOARD)'!$W$3) -> 661.3103612 | O53: 25 | P53: 0.2962962963 | Q53: =INDEX('Compile Data'!$K$121:$AF$202,$O53,'Report - ALL (DASHBOARD)'!$W$3) -> 1032.248433 | R53: =INDEX('Compile Data'!$AI$121:$BD$202,$O53,'Report - ALL (DASHBOARD)'!$W$3) -> 897.3252144 | S53: =INDEX('Compile Data'!$BG$121:$CB$202,$O53,'Report - ALL (DASHBOARD)'!$W$3) -> 933.3715007 | T53: =INDEX('Compile Data'!$CE$121:$CZ$202,$O53,'Report - ALL (DASHBOARD)'!$W$3) -> 957.8400955
A54: 1947 | B54: =INDEX('Compile Data'!$K$12:$AF$93,$A54-1921,'Report - ALL (DASHBOARD)'!$W$3) -> 1104.489868 | C54: =INDEX('Compile Data'!$AI$12:$BD$93,$A54-1921,'Report - ALL (DASHBOARD)'!$W$3) -> 1042.10038 | D54: =INDEX('Compile Data'!$BG$12:$CB$93,$A54-1921,'Report - ALL (DASHBOARD)'!$W$3) -> 1039.239541 | E54: =INDEX('Compile Data'!$CE$12:$CZ$93,$A54-1921,'Report - ALL (DASHBOARD)'!$W$3) -> 1040.864232 | O54: 26 | P54: 0.3086419753 | Q54: =INDEX('Compile Data'!$K$121:$AF$202,$O54,'Report - ALL (DASHBOARD)'!$W$3) -> 1030.084947 | R54: =INDEX('Compile Data'!$AI$121:$BD$202,$O54,'Report - ALL (DASHBOARD)'!$W$3) -> 891.8234393 | S54: =INDEX('Compile Data'!$BG$121:$CB$202,$O54,'Report - ALL (DASHBOARD)'!$W$3) -> 904.4332987 | T54: =INDEX('Compile Data'!$CE$121:$CZ$202,$O54,'Report - ALL (DASHBOARD)'!$W$3) -> 935.0749919
A55: 1948 | B55: =INDEX('Compile Data'!$K$12:$AF$93,$A55-1921,'Report - ALL (DASHBOARD)'!$W$3) -> 1030.084947 | C55: =INDEX('Compile Data'!$AI$12:$BD$93,$A55-1921,'Report - ALL (DASHBOARD)'!$W$3) -> 936.8027356 | D55: =INDEX('Compile Data'!$BG$12:$CB$93,$A55-1921,'Report - ALL (DASHBOARD)'!$W$3) -> 933.3715007 | E55: =INDEX('Compile Data'!$CE$12:$CZ$93,$A55-1921,'Report - ALL (DASHBOARD)'!$W$3) -> 935.0749919 | O55: 27 | P55: 0.3209876543 | Q55: =INDEX('Compile Data'!$K$121:$AF$202,$O55,'Report - ALL (DASHBOARD)'!$W$3) -> 1022.736056 | R55: =INDEX('Compile Data'!$AI$121:$BD$202,$O55,'Report - ALL (DASHBOARD)'!$W$3) -> 890.9991252 | S55: =INDEX('Compile Data'!$BG$121:$CB$202,$O55,'Report - ALL (DASHBOARD)'!$W$3) -> 897.3813299 | T55: =INDEX('Compile Data'!$CE$121:$CZ$202,$O55,'Report - ALL (DASHBOARD)'!$W$3) -> 893.8394076
A56: 1949 | B56: =INDEX('Compile Data'!$K$12:$AF$93,$A56-1921,'Report - ALL (DASHBOARD)'!$W$3) -> 1194.414754 | C56: =INDEX('Compile Data'!$AI$12:$BD$93,$A56-1921,'Report - ALL (DASHBOARD)'!$W$3) -> 1146.712215 | D56: =INDEX('Compile Data'!$BG$12:$CB$93,$A56-1921,'Report - ALL (DASHBOARD)'!$W$3) -> 1156.62485 | E56: =INDEX('Compile Data'!$CE$12:$CZ$93,$A56-1921,'Report - ALL (DASHBOARD)'!$W$3) -> 1172.04609 | O56: 28 | P56: 0.3333333333 | Q56: =INDEX('Compile Data'!$K$121:$AF$202,$O56,'Report - ALL (DASHBOARD)'!$W$3) -> 1003.687403 | R56: =INDEX('Compile Data'!$AI$121:$BD$202,$O56,'Report - ALL (DASHBOARD)'!$W$3) -> 888.5236028 | S56: =INDEX('Compile Data'!$BG$121:$CB$202,$O56,'Report - ALL (DASHBOARD)'!$W$3) -> 895.0069911 | T56: =INDEX('Compile Data'!$CE$121:$CZ$202,$O56,'Report - ALL (DASHBOARD)'!$W$3) -> 891.7633362
A57: 1950 | B57: =INDEX('Compile Data'!$K$12:$AF$93,$A57-1921,'Report - ALL (DASHBOARD)'!$W$3) -> 1003.687403 | C57: =INDEX('Compile Data'!$AI$12:$BD$93,$A57-1921,'Report - ALL (DASHBOARD)'!$W$3) -> 888.5236028 | D57: =INDEX('Compile Data'!$BG$12:$CB$93,$A57-1921,'Report - ALL (DASHBOARD)'!$W$3) -> 939.3839391 | E57: =INDEX('Compile Data'!$CE$12:$CZ$93,$A57-1921,'Report - ALL (DASHBOARD)'!$W$3) -> 1038.502844 | O57: 29 | P57: 0.3456790123 | Q57: =INDEX('Compile Data'!$K$121:$AF$202,$O57,'Report - ALL (DASHBOARD)'!$W$3) -> 977.4913063 | R57: =INDEX('Compile Data'!$AI$121:$BD$202,$O57,'Report - ALL (DASHBOARD)'!$W$3) -> 882.7103793 | S57: =INDEX('Compile Data'!$BG$121:$CB$202,$O57,'Report - ALL (DASHBOARD)'!$W$3) -> 894.6504313 | T57: =INDEX('Compile Data'!$CE$121:$CZ$202,$O57,'Report - ALL (DASHBOARD)'!$W$3) -> 882.6113777
A58: 1951 | B58: =INDEX('Compile Data'!$K$12:$AF$93,$A58-1921,'Report - ALL (DASHBOARD)'!$W$3) -> 318.0631752 | C58: =INDEX('Compile Data'!$AI$12:$BD$93,$A58-1921,'Report - ALL (DASHBOARD)'!$W$3) -> 304.6334991 | D58: =INDEX('Compile Data'!$BG$12:$CB$93,$A58-1921,'Report - ALL (DASHBOARD)'!$W$3) -> 300.9717178 | E58: =INDEX('Compile Data'!$CE$12:$CZ$93,$A58-1921,'Report - ALL (DASHBOARD)'!$W$3) -> 299.3382772 | O58: 30 | P58: 0.3580246914 | Q58: =INDEX('Compile Data'!$K$121:$AF$202,$O58,'Report - ALL (DASHBOARD)'!$W$3) -> 977.1498922 | R58: =INDEX('Compile Data'!$AI$121:$BD$202,$O58,'Report - ALL (DASHBOARD)'!$W$3) -> 880.0896123 | S58: =INDEX('Compile Data'!$BG$121:$CB$202,$O58,'Report - ALL (DASHBOARD)'!$W$3) -> 892.7748451 | T58: =INDEX('Compile Data'!$CE$121:$CZ$202,$O58,'Report - ALL (DASHBOARD)'!$W$3) -> 874.8640315
A59: 1952 | B59: =INDEX('Compile Data'!$K$12:$AF$93,$A59-1921,'Report - ALL (DASHBOARD)'!$W$3) -> 285.9249344 | C59: =INDEX('Compile Data'!$AI$12:$BD$93,$A59-1921,'Report - ALL (DASHBOARD)'!$W$3) -> 281.7136841 | D59: =INDEX('Compile Data'!$BG$12:$CB$93,$A59-1921,'Report - ALL (DASHBOARD)'!$W$3) -> 280.1129278 | E59: =INDEX('Compile Data'!$CE$12:$CZ$93,$A59-1921,'Report - ALL (DASHBOARD)'!$W$3) -> 280.2646268 | O59: 31 | P59: 0.3703703704 | Q59: =INDEX('Compile Data'!$K$121:$AF$202,$O59,'Report - ALL (DASHBOARD)'!$W$3) -> 955.2084974 | R59: =INDEX('Compile Data'!$AI$121:$BD$202,$O59,'Report - ALL (DASHBOARD)'!$W$3) -> 867.4920031 | S59: =INDEX('Compile Data'!$BG$121:$CB$202,$O59,'Report - ALL (DASHBOARD)'!$W$3) -> 860.6313337 | T59: =INDEX('Compile Data'!$CE$121:$CZ$202,$O59,'Report - ALL (DASHBOARD)'!$W$3) -> 867.4671427
A60: 1953 | B60: =INDEX('Compile Data'!$K$12:$AF$93,$A60-1921,'Report - ALL (DASHBOARD)'!$W$3) -> 318.6220093 | C60: =INDEX('Compile Data'!$AI$12:$BD$93,$A60-1921,'Report - ALL (DASHBOARD)'!$W$3) -> 303.4754359 | D60: =INDEX('Compile Data'!$BG$12:$CB$93,$A60-1921,'Report - ALL (DASHBOARD)'!$W$3) -> 306.321209 | E60: =INDEX('Compile Data'!$CE$12:$CZ$93,$A60-1921,'Report - ALL (DASHBOARD)'!$W$3) -> 306.3881416 | O60: 32 | P60: 0.3827160494 | Q60: =INDEX('Compile Data'!$K$121:$AF$202,$O60,'Report - ALL (DASHBOARD)'!$W$3) -> 951.9367256 | R60: =INDEX('Compile Data'!$AI$121:$BD$202,$O60,'Report - ALL (DASHBOARD)'!$W$3) -> 810.6342456 | S60: =INDEX('Compile Data'!$BG$121:$CB$202,$O60,'Report - ALL (DASHBOARD)'!$W$3) -> 798.5608139 | T60: =INDEX('Compile Data'!$CE$121:$CZ$202,$O60,'Report - ALL (DASHBOARD)'!$W$3) -> 810.5808551
A61: 1954 | B61: =INDEX('Compile Data'!$K$12:$AF$93,$A61-1921,'Report - ALL (DASHBOARD)'!$W$3) -> 358.713356 | C61: =INDEX('Compile Data'!$AI$12:$BD$93,$A61-1921,'Report - ALL (DASHBOARD)'!$W$3) -> 379.9396973 | D61: =INDEX('Compile Data'!$BG$12:$CB$93,$A61-1921,'Report - ALL (DASHBOARD)'!$W$3) -> 379.8026835 | E61: =INDEX('Compile Data'!$CE$12:$CZ$93,$A61-1921,'Report - ALL (DASHBOARD)'!$W$3) -> 379.9304657 | O61: 33 | P61: =(O61-1)/81 -> 0.3950617284 | Q61: =INDEX('Compile Data'!$K$121:$AF$202,$O61,'Report - ALL (DASHBOARD)'!$W$3) -> 890.7723554 | R61: =INDEX('Compile Data'!$AI$121:$BD$202,$O61,'Report - ALL (DASHBOARD)'!$W$3) -> 800.5296656 | S61: =INDEX('Compile Data'!$BG$121:$CB$202,$O61,'Report - ALL (DASHBOARD)'!$W$3) -> 797.4072851 | T61: =INDEX('Compile Data'!$CE$121:$CZ$202,$O61,'Report - ALL (DASHBOARD)'!$W$3) -> 800.5253372
A62: 1955 | B62: =INDEX('Compile Data'!$K$12:$AF$93,$A62-1921,'Report - ALL (DASHBOARD)'!$W$3) -> 738.8633575 | C62: =INDEX('Compile Data'!$AI$12:$BD$93,$A62-1921,'Report - ALL (DASHBOARD)'!$W$3) -> 678.3557053 | D62: =INDEX('Compile Data'!$BG$12:$CB$93,$A62-1921,'Report - ALL (DASHBOARD)'!$W$3) -> 667.716924 | E62: =INDEX('Compile Data'!$CE$12:$CZ$93,$A62-1921,'Report - ALL (DASHBOARD)'!$W$3) -> 678.6608556 | O62: 34 | P62: 0.4074074074 | Q62: =INDEX('Compile Data'!$K$121:$AF$202,$O62,'Report - ALL (DASHBOARD)'!$W$3) -> 871.2049014 | R62: =INDEX('Compile Data'!$AI$121:$BD$202,$O62,'Report - ALL (DASHBOARD)'!$W$3) -> 784.6143328 | S62: =INDEX('Compile Data'!$BG$121:$CB$202,$O62,'Report - ALL (DASHBOARD)'!$W$3) -> 782.0700467 | T62: =INDEX('Compile Data'!$CE$121:$CZ$202,$O62,'Report - ALL (DASHBOARD)'!$W$3) -> 784.9148293
A63: 1956 | B63: =INDEX('Compile Data'!$K$12:$AF$93,$A63-1921,'Report - ALL (DASHBOARD)'!$W$3) -> 612.3610217 | C63: =INDEX('Compile Data'!$AI$12:$BD$93,$A63-1921,'Report - ALL (DASHBOARD)'!$W$3) -> 533.2513809 | D63: =INDEX('Compile Data'!$BG$12:$CB$93,$A63-1921,'Report - ALL (DASHBOARD)'!$W$3) -> 541.6428121 | E63: =INDEX('Compile Data'!$CE$12:$CZ$93,$A63-1921,'Report - ALL (DASHBOARD)'!$W$3) -> 533.0800247 | O63: 35 | P63: 0.4197530864 | Q63: =INDEX('Compile Data'!$K$121:$AF$202,$O63,'Report - ALL (DASHBOARD)'!$W$3) -> 836.7847684 | R63: =INDEX('Compile Data'!$AI$121:$BD$202,$O63,'Report - ALL (DASHBOARD)'!$W$3) -> 784.5682551 | S63: =INDEX('Compile Data'!$BG$121:$CB$202,$O63,'Report - ALL (DASHBOARD)'!$W$3) -> 777.5092125 | T63: =INDEX('Compile Data'!$CE$121:$CZ$202,$O63,'Report - ALL (DASHBOARD)'!$W$3) -> 784.2713877
A64: 1957 | B64: =INDEX('Compile Data'!$K$12:$AF$93,$A64-1921,'Report - ALL (DASHBOARD)'!$W$3) -> 489.3598557 | C64: =INDEX('Compile Data'!$AI$12:$BD$93,$A64-1921,'Report - ALL (DASHBOARD)'!$W$3) -> 485.0011139 | D64: =INDEX('Compile Data'!$BG$12:$CB$93,$A64-1921,'Report - ALL (DASHBOARD)'!$W$3) -> 486.3606606 | E64: =INDEX('Compile Data'!$CE$12:$CZ$93,$A64-1921,'Report - ALL (DASHBOARD)'!$W$3) -> 484.8028399 | O64: 36 | P64: 0.4320987654 | Q64: =INDEX('Compile Data'!$K$121:$AF$202,$O64,'Report - ALL (DASHBOARD)'!$W$3) -> 806.9283625 | R64: =INDEX('Compile Data'!$AI$121:$BD$202,$O64,'Report - ALL (DASHBOARD)'!$W$3) -> 720.720047 | S64: =INDEX('Compile Data'!$BG$121:$CB$202,$O64,'Report - ALL (DASHBOARD)'!$W$3) -> 745.8958079 | T64: =INDEX('Compile Data'!$CE$121:$CZ$202,$O64,'Report - ALL (DASHBOARD)'!$W$3) -> 735.3980904
A65: 1958 | B65: =INDEX('Compile Data'!$K$12:$AF$93,$A65-1921,'Report - ALL (DASHBOARD)'!$W$3) -> 308.3785082 | C65: =INDEX('Compile Data'!$AI$12:$BD$93,$A65-1921,'Report - ALL (DASHBOARD)'!$W$3) -> 306.4351451 | D65: =INDEX('Compile Data'!$BG$12:$CB$93,$A65-1921,'Report - ALL (DASHBOARD)'!$W$3) -> 310.0634575 | E65: =INDEX('Compile Data'!$CE$12:$CZ$93,$A65-1921,'Report - ALL (DASHBOARD)'!$W$3) -> 306.5216255 | O65: 37 | P65: 0.4444444444 | Q65: =INDEX('Compile Data'!$K$121:$AF$202,$O65,'Report - ALL (DASHBOARD)'!$W$3) -> 806.4017296 | R65: =INDEX('Compile Data'!$AI$121:$BD$202,$O65,'Report - ALL (DASHBOARD)'!$W$3) -> 704.4020398 | S65: =INDEX('Compile Data'!$BG$121:$CB$202,$O65,'Report - ALL (DASHBOARD)'!$W$3) -> 718.1262258 | T65: =INDEX('Compile Data'!$CE$121:$CZ$202,$O65,'Report - ALL (DASHBOARD)'!$W$3) -> 720.5967013
A66: 1959 | B66: =INDEX('Compile Data'!$K$12:$AF$93,$A66-1921,'Report - ALL (DASHBOARD)'!$W$3) -> 628.4180196 | C66: =INDEX('Compile Data'!$AI$12:$BD$93,$A66-1921,'Report - ALL (DASHBOARD)'!$W$3) -> 601.3530553 | D66: =INDEX('Compile Data'!$BG$12:$CB$93,$A66-1921,'Report - ALL (DASHBOARD)'!$W$3) -> 600.2417361 | E66: =INDEX('Compile Data'!$CE$12:$CZ$93,$A66-1921,'Report - ALL (DASHBOARD)'!$W$3) -> 601.643542 | O66: 38 | P66: 0.4567901235 | Q66: =INDEX('Compile Data'!$K$121:$AF$202,$O66,'Report - ALL (DASHBOARD)'!$W$3) -> 799.3419215 | R66: =INDEX('Compile Data'!$AI$121:$BD$202,$O66,'Report - ALL (DASHBOARD)'!$W$3) -> 695.2777138 | S66: =INDEX('Compile Data'!$BG$121:$CB$202,$O66,'Report - ALL (DASHBOARD)'!$W$3) -> 705.6636009 | T66: =INDEX('Compile Data'!$CE$121:$CZ$202,$O66,'Report - ALL (DASHBOARD)'!$W$3) -> 694.4522209
A67: 1960 | B67: =INDEX('Compile Data'!$K$12:$AF$93,$A67-1921,'Report - ALL (DASHBOARD)'!$W$3) -> 1224.450504 | C67: =INDEX('Compile Data'!$AI$12:$BD$93,$A67-1921,'Report - ALL (DASHBOARD)'!$W$3) -> 1045.860601 | D67: =INDEX('Compile Data'!$BG$12:$CB$93,$A67-1921,'Report - ALL (DASHBOARD)'!$W$3) -> 1057.310759 | E67: =INDEX('Compile Data'!$CE$12:$CZ$93,$A67-1921,'Report - ALL (DASHBOARD)'!$W$3) -> 1046.156447 | O67: 39 | P67: 0.4691358025 | Q67: =INDEX('Compile Data'!$K$121:$AF$202,$O67,'Report - ALL (DASHBOARD)'!$W$3) -> 795.9113579 | R67: =INDEX('Compile Data'!$AI$121:$BD$202,$O67,'Report - ALL (DASHBOARD)'!$W$3) -> 678.3557053 | S67: =INDEX('Compile Data'!$BG$121:$CB$202,$O67,'Report - ALL (DASHBOARD)'!$W$3) -> 678.8961233 | T67: =INDEX('Compile Data'!$CE$121:$CZ$202,$O67,'Report - ALL (DASHBOARD)'!$W$3) -> 678.6608556
A68: 1961 | B68: =INDEX('Compile Data'!$K$12:$AF$93,$A68-1921,'Report - ALL (DASHBOARD)'!$W$3) -> 1125.050858 | C68: =INDEX('Compile Data'!$AI$12:$BD$93,$A68-1921,'Report - ALL (DASHBOARD)'!$W$3) -> 1009.467552 | D68: =INDEX('Compile Data'!$BG$12:$CB$93,$A68-1921,'Report - ALL (DASHBOARD)'!$W$3) -> 1016.109717 | E68: =INDEX('Compile Data'!$CE$12:$CZ$93,$A68-1921,'Report - ALL (DASHBOARD)'!$W$3) -> 1010.188554 | O68: 40 | P68: 0.4814814815 | Q68: =INDEX('Compile Data'!$K$121:$AF$202,$O68,'Report - ALL (DASHBOARD)'!$W$3) -> 738.8633575 | R68: =INDEX('Compile Data'!$AI$121:$BD$202,$O68,'Report - ALL (DASHBOARD)'!$W$3) -> 677.1247075 | S68: =INDEX('Compile Data'!$BG$121:$CB$202,$O68,'Report - ALL (DASHBOARD)'!$W$3) -> 671.6490351 | T68: =INDEX('Compile Data'!$CE$121:$CZ$202,$O68,'Report - ALL (DASHBOARD)'!$W$3) -> 675.1598422
A69: 1962 | B69: =INDEX('Compile Data'!$K$12:$AF$93,$A69-1921,'Report - ALL (DASHBOARD)'!$W$3) -> 1032.248433 | C69: =INDEX('Compile Data'!$AI$12:$BD$93,$A69-1921,'Report - ALL (DASHBOARD)'!$W$3) -> 880.0896123 | D69: =INDEX('Compile Data'!$BG$12:$CB$93,$A69-1921,'Report - ALL (DASHBOARD)'!$W$3) -> 897.3813299 | E69: =INDEX('Compile Data'!$CE$12:$CZ$93,$A69-1921,'Report - ALL (DASHBOARD)'!$W$3) -> 959.3962746 | O69: 41 | P69: 0.4938271605 | Q69: =INDEX('Compile Data'!$K$121:$AF$202,$O69,'Report - ALL (DASHBOARD)'!$W$3) -> 734.4295031 | R69: =INDEX('Compile Data'!$AI$121:$BD$202,$O69,'Report - ALL (DASHBOARD)'!$W$3) -> 671.0907936 | S69: =INDEX('Compile Data'!$BG$121:$CB$202,$O69,'Report - ALL (DASHBOARD)'!$W$3) -> 667.716924 | T69: =INDEX('Compile Data'!$CE$121:$CZ$202,$O69,'Report - ALL (DASHBOARD)'!$W$3) -> 668.9011993
A70: 1963 | B70: =INDEX('Compile Data'!$K$12:$AF$93,$A70-1921,'Report - ALL (DASHBOARD)'!$W$3) -> 290.3769519 | C70: =INDEX('Compile Data'!$AI$12:$BD$93,$A70-1921,'Report - ALL (DASHBOARD)'!$W$3) -> 281.4580243 | D70: =INDEX('Compile Data'!$BG$12:$CB$93,$A70-1921,'Report - ALL (DASHBOARD)'!$W$3) -> 281.4200338 | E70: =INDEX('Compile Data'!$CE$12:$CZ$93,$A70-1921,'Report - ALL (DASHBOARD)'!$W$3) -> 280.7667414 | O70: 42 | P70: 0.5061728395 | Q70: =INDEX('Compile Data'!$K$121:$AF$202,$O70,'Report - ALL (DASHBOARD)'!$W$3) -> 731.3596141 | R70: =INDEX('Compile Data'!$AI$121:$BD$202,$O70,'Report - ALL (DASHBOARD)'!$W$3) -> 663.3872655 | S70: =INDEX('Compile Data'!$BG$121:$CB$202,$O70,'Report - ALL (DASHBOARD)'!$W$3) -> 663.0397504 | T70: =INDEX('Compile Data'!$CE$121:$CZ$202,$O70,'Report - ALL (DASHBOARD)'!$W$3) -> 661.3103612
A71: 1964 | B71: =INDEX('Compile Data'!$K$12:$AF$93,$A71-1921,'Report - ALL (DASHBOARD)'!$W$3) -> 806.4017296 | C71: =INDEX('Compile Data'!$AI$12:$BD$93,$A71-1921,'Report - ALL (DASHBOARD)'!$W$3) -> 671.0907936 | D71: =INDEX('Compile Data'!$BG$12:$CB$93,$A71-1921,'Report - ALL (DASHBOARD)'!$W$3) -> 671.6490351 | E71: =INDEX('Compile Data'!$CE$12:$CZ$93,$A71-1921,'Report - ALL (DASHBOARD)'!$W$3) -> 668.9011993 | O71: 43 | P71: 0.5185185185 | Q71: =INDEX('Compile Data'!$K$121:$AF$202,$O71,'Report - ALL (DASHBOARD)'!$W$3) -> 714.6467743 | R71: =INDEX('Compile Data'!$AI$121:$BD$202,$O71,'Report - ALL (DASHBOARD)'!$W$3) -> 625.4211795 | S71: =INDEX('Compile Data'!$BG$121:$CB$202,$O71,'Report - ALL (DASHBOARD)'!$W$3) -> 636.3766683 | T71: =INDEX('Compile Data'!$CE$121:$CZ$202,$O71,'Report - ALL (DASHBOARD)'!$W$3) -> 655.4304339
A72: 1965 | B72: =INDEX('Compile Data'!$K$12:$AF$93,$A72-1921,'Report - ALL (DASHBOARD)'!$W$3) -> 563.3077418 | C72: =INDEX('Compile Data'!$AI$12:$BD$93,$A72-1921,'Report - ALL (DASHBOARD)'!$W$3) -> 504.7352537 | D72: =INDEX('Compile Data'!$BG$12:$CB$93,$A72-1921,'Report - ALL (DASHBOARD)'!$W$3) -> 504.6698456 | E72: =INDEX('Compile Data'!$CE$12:$CZ$93,$A72-1921,'Report - ALL (DASHBOARD)'!$W$3) -> 503.6290716 | O72: 44 | P72: 0.5308641975 | Q72: =INDEX('Compile Data'!$K$121:$AF$202,$O72,'Report - ALL (DASHBOARD)'!$W$3) -> 692.1372401 | R72: =INDEX('Compile Data'!$AI$121:$BD$202,$O72,'Report - ALL (DASHBOARD)'!$W$3) -> 624.9352315 | S72: =INDEX('Compile Data'!$BG$121:$CB$202,$O72,'Report - ALL (DASHBOARD)'!$W$3) -> 635.2650337 | T72: =INDEX('Compile Data'!$CE$121:$CZ$202,$O72,'Report - ALL (DASHBOARD)'!$W$3) -> 625.2498093
A73: 1966 | B73: =INDEX('Compile Data'!$K$12:$AF$93,$A73-1921,'Report - ALL (DASHBOARD)'!$W$3) -> 546.3370806 | C73: =INDEX('Compile Data'!$AI$12:$BD$93,$A73-1921,'Report - ALL (DASHBOARD)'!$W$3) -> 511.4065043 | D73: =INDEX('Compile Data'!$BG$12:$CB$93,$A73-1921,'Report - ALL (DASHBOARD)'!$W$3) -> 512.0119438 | E73: =INDEX('Compile Data'!$CE$12:$CZ$93,$A73-1921,'Report - ALL (DASHBOARD)'!$W$3) -> 508.6861102 | O73: 45 | P73: 0.5432098765 | Q73: =INDEX('Compile Data'!$K$121:$AF$202,$O73,'Report - ALL (DASHBOARD)'!$W$3) -> 670.5159963 | R73: =INDEX('Compile Data'!$AI$121:$BD$202,$O73,'Report - ALL (DASHBOARD)'!$W$3) -> 616.4484151 | S73: =INDEX('Compile Data'!$BG$121:$CB$202,$O73,'Report - ALL (DASHBOARD)'!$W$3) -> 625.0184275 | T73: =INDEX('Compile Data'!$CE$121:$CZ$202,$O73,'Report - ALL (DASHBOARD)'!$W$3) -> 623.7408473
A74: 1967 | B74: =INDEX('Compile Data'!$K$12:$AF$93,$A74-1921,'Report - ALL (DASHBOARD)'!$W$3) -> 511.1206385 | C74: =INDEX('Compile Data'!$AI$12:$BD$93,$A74-1921,'Report - ALL (DASHBOARD)'!$W$3) -> 472.1210976 | D74: =INDEX('Compile Data'!$BG$12:$CB$93,$A74-1921,'Report - ALL (DASHBOARD)'!$W$3) -> 472.2625936 | E74: =INDEX('Compile Data'!$CE$12:$CZ$93,$A74-1921,'Report - ALL (DASHBOARD)'!$W$3) -> 470.078022 | O74: 46 | P74: 0.5555555556 | Q74: =INDEX('Compile Data'!$K$121:$AF$202,$O74,'Report - ALL (DASHBOARD)'!$W$3) -> 659.4885597 | R74: =INDEX('Compile Data'!$AI$121:$BD$202,$O74,'Report - ALL (DASHBOARD)'!$W$3) -> 606.5507634 | S74: =INDEX('Compile Data'!$BG$121:$CB$202,$O74,'Report - ALL (DASHBOARD)'!$W$3) -> 614.7083613 | T74: =INDEX('Compile Data'!$CE$121:$CZ$202,$O74,'Report - ALL (DASHBOARD)'!$W$3) -> 602.321092
A75: 1968 | B75: =INDEX('Compile Data'!$K$12:$AF$93,$A75-1921,'Report - ALL (DASHBOARD)'!$W$3) -> 611.3425229 | C75: =INDEX('Compile Data'!$AI$12:$BD$93,$A75-1921,'Report - ALL (DASHBOARD)'!$W$3) -> 586.8018214 | D75: =INDEX('Compile Data'!$BG$12:$CB$93,$A75-1921,'Report - ALL (DASHBOARD)'!$W$3) -> 578.1441142 | E75: =INDEX('Compile Data'!$CE$12:$CZ$93,$A75-1921,'Report - ALL (DASHBOARD)'!$W$3) -> 586.7296092 | O75: 47 | P75: 0.5679012346 | Q75: =INDEX('Compile Data'!$K$121:$AF$202,$O75,'Report - ALL (DASHBOARD)'!$W$3) -> 628.4180196 | R75: =INDEX('Compile Data'!$AI$121:$BD$202,$O75,'Report - ALL (DASHBOARD)'!$W$3) -> 601.3530553 | S75: =INDEX('Compile Data'!$BG$121:$CB$202,$O75,'Report - ALL (DASHBOARD)'!$W$3) -> 600.2417361 | T75: =INDEX('Compile Data'!$CE$121:$CZ$202,$O75,'Report - ALL (DASHBOARD)'!$W$3) -> 602.2625249
A76: 1969 | B76: =INDEX('Compile Data'!$K$12:$AF$93,$A76-1921,'Report - ALL (DASHBOARD)'!$W$3) -> 527.8841693 | C76: =INDEX('Compile Data'!$AI$12:$BD$93,$A76-1921,'Report - ALL (DASHBOARD)'!$W$3) -> 485.3630765 | D76: =INDEX('Compile Data'!$BG$12:$CB$93,$A76-1921,'Report - ALL (DASHBOARD)'!$W$3) -> 476.0520782 | E76: =INDEX('Compile Data'!$CE$12:$CZ$93,$A76-1921,'Report - ALL (DASHBOARD)'!$W$3) -> 485.5493495 | O76: 48 | P76: 0.5802469136 | Q76: =INDEX('Compile Data'!$K$121:$AF$202,$O76,'Report - ALL (DASHBOARD)'!$W$3) -> 614.5176722 | R76: =INDEX('Compile Data'!$AI$121:$BD$202,$O76,'Report - ALL (DASHBOARD)'!$W$3) -> 600.8532117 | S76: =INDEX('Compile Data'!$BG$121:$CB$202,$O76,'Report - ALL (DASHBOARD)'!$W$3) -> 594.5162659 | T76: =INDEX('Compile Data'!$CE$121:$CZ$202,$O76,'Report - ALL (DASHBOARD)'!$W$3) -> 601.643542
A77: 1970 | B77: =INDEX('Compile Data'!$K$12:$AF$93,$A77-1921,'Report - ALL (DASHBOARD)'!$W$3) -> 353.3399938 | C77: =INDEX('Compile Data'!$AI$12:$BD$93,$A77-1921,'Report - ALL (DASHBOARD)'!$W$3) -> 349.4201597 | D77: =INDEX('Compile Data'!$BG$12:$CB$93,$A77-1921,'Report - ALL (DASHBOARD)'!$W$3) -> 349.4137217 | E77: =INDEX('Compile Data'!$CE$12:$CZ$93,$A77-1921,'Report - ALL (DASHBOARD)'!$W$3) -> 349.4143333 | O77: 49 | P77: 0.5925925926 | Q77: =INDEX('Compile Data'!$K$121:$AF$202,$O77,'Report - ALL (DASHBOARD)'!$W$3) -> 612.3610217 | R77: =INDEX('Compile Data'!$AI$121:$BD$202,$O77,'Report - ALL (DASHBOARD)'!$W$3) -> 586.8018214 | S77: =INDEX('Compile Data'!$BG$121:$CB$202,$O77,'Report - ALL (DASHBOARD)'!$W$3) -> 578.1441142 | T77: =INDEX('Compile Data'!$CE$121:$CZ$202,$O77,'Report - ALL (DASHBOARD)'!$W$3) -> 586.7296092
A78: 1971 | B78: =INDEX('Compile Data'!$K$12:$AF$93,$A78-1921,'Report - ALL (DASHBOARD)'!$W$3) -> 284.4424082 | C78: =INDEX('Compile Data'!$AI$12:$BD$93,$A78-1921,'Report - ALL (DASHBOARD)'!$W$3) -> 283.8666382 | D78: =INDEX('Compile Data'!$BG$12:$CB$93,$A78-1921,'Report - ALL (DASHBOARD)'!$W$3) -> 283.8721504 | E78: =INDEX('Compile Data'!$CE$12:$CZ$93,$A78-1921,'Report - ALL (DASHBOARD)'!$W$3) -> 283.571949 | O78: 50 | P78: 0.6049382716 | Q78: =INDEX('Compile Data'!$K$121:$AF$202,$O78,'Report - ALL (DASHBOARD)'!$W$3) -> 611.3425229 | R78: =INDEX('Compile Data'!$AI$121:$BD$202,$O78,'Report - ALL (DASHBOARD)'!$W$3) -> 533.2513809 | S78: =INDEX('Compile Data'!$BG$121:$CB$202,$O78,'Report - ALL (DASHBOARD)'!$W$3) -> 547.2065697 | T78: =INDEX('Compile Data'!$CE$121:$CZ$202,$O78,'Report - ALL (DASHBOARD)'!$W$3) -> 533.0800247
A79: 1972 | B79: =INDEX('Compile Data'!$K$12:$AF$93,$A79-1921,'Report - ALL (DASHBOARD)'!$W$3) -> 659.4885597 | C79: =INDEX('Compile Data'!$AI$12:$BD$93,$A79-1921,'Report - ALL (DASHBOARD)'!$W$3) -> 624.9352315 | D79: =INDEX('Compile Data'!$BG$12:$CB$93,$A79-1921,'Report - ALL (DASHBOARD)'!$W$3) -> 625.0184275 | E79: =INDEX('Compile Data'!$CE$12:$CZ$93,$A79-1921,'Report - ALL (DASHBOARD)'!$W$3) -> 625.2498093 | O79: 51 | P79: 0.6172839506 | Q79: =INDEX('Compile Data'!$K$121:$AF$202,$O79,'Report - ALL (DASHBOARD)'!$W$3) -> 563.3077418 | R79: =INDEX('Compile Data'!$AI$121:$BD$202,$O79,'Report - ALL (DASHBOARD)'!$W$3) -> 531.5409241 | S79: =INDEX('Compile Data'!$BG$121:$CB$202,$O79,'Report - ALL (DASHBOARD)'!$W$3) -> 541.6428121 | T79: =INDEX('Compile Data'!$CE$121:$CZ$202,$O79,'Report - ALL (DASHBOARD)'!$W$3) -> 525.0513306
A80: 1973 | B80: =INDEX('Compile Data'!$K$12:$AF$93,$A80-1921,'Report - ALL (DASHBOARD)'!$W$3) -> 508.3663699 | C80: =INDEX('Compile Data'!$AI$12:$BD$93,$A80-1921,'Report - ALL (DASHBOARD)'!$W$3) -> 491.4278526 | D80: =INDEX('Compile Data'!$BG$12:$CB$93,$A80-1921,'Report - ALL (DASHBOARD)'!$W$3) -> 484.3174171 | E80: =INDEX('Compile Data'!$CE$12:$CZ$93,$A80-1921,'Report - ALL (DASHBOARD)'!$W$3) -> 491.4085312 | O80: 52 | P80: 0.6296296296 | Q80: =INDEX('Compile Data'!$K$121:$AF$202,$O80,'Report - ALL (DASHBOARD)'!$W$3) -> 546.3370806 | R80: =INDEX('Compile Data'!$AI$121:$BD$202,$O80,'Report - ALL (DASHBOARD)'!$W$3) -> 511.4065043 | S80: =INDEX('Compile Data'!$BG$121:$CB$202,$O80,'Report - ALL (DASHBOARD)'!$W$3) -> 512.0119438 | T80: =INDEX('Compile Data'!$CE$121:$CZ$202,$O80,'Report - ALL (DASHBOARD)'!$W$3) -> 508.6861102
A81: 1974 | B81: =INDEX('Compile Data'!$K$12:$AF$93,$A81-1921,'Report - ALL (DASHBOARD)'!$W$3) -> 267.9167608 | C81: =INDEX('Compile Data'!$AI$12:$BD$93,$A81-1921,'Report - ALL (DASHBOARD)'!$W$3) -> 258.5173798 | D81: =INDEX('Compile Data'!$BG$12:$CB$93,$A81-1921,'Report - ALL (DASHBOARD)'!$W$3) -> 258.5917142 | E81: =INDEX('Compile Data'!$CE$12:$CZ$93,$A81-1921,'Report - ALL (DASHBOARD)'!$W$3) -> 258.5213165 | O81: 53 | P81: 0.6419753086 | Q81: =INDEX('Compile Data'!$K$121:$AF$202,$O81,'Report - ALL (DASHBOARD)'!$W$3) -> 537.2465439 | R81: =INDEX('Compile Data'!$AI$121:$BD$202,$O81,'Report - ALL (DASHBOARD)'!$W$3) -> 504.7352537 | S81: =INDEX('Compile Data'!$BG$121:$CB$202,$O81,'Report - ALL (DASHBOARD)'!$W$3) -> 504.6698456 | T81: =INDEX('Compile Data'!$CE$121:$CZ$202,$O81,'Report - ALL (DASHBOARD)'!$W$3) -> 503.6290716
A82: 1975 | B82: =INDEX('Compile Data'!$K$12:$AF$93,$A82-1921,'Report - ALL (DASHBOARD)'!$W$3) -> 419.2697716 | C82: =INDEX('Compile Data'!$AI$12:$BD$93,$A82-1921,'Report - ALL (DASHBOARD)'!$W$3) -> 409.7301216 | D82: =INDEX('Compile Data'!$BG$12:$CB$93,$A82-1921,'Report - ALL (DASHBOARD)'!$W$3) -> 409.7411715 | E82: =INDEX('Compile Data'!$CE$12:$CZ$93,$A82-1921,'Report - ALL (DASHBOARD)'!$W$3) -> 409.7365964 | O82: 54 | P82: 0.6543209877 | Q82: =INDEX('Compile Data'!$K$121:$AF$202,$O82,'Report - ALL (DASHBOARD)'!$W$3) -> 533.9598262 | R82: =INDEX('Compile Data'!$AI$121:$BD$202,$O82,'Report - ALL (DASHBOARD)'!$W$3) -> 491.4278526 | S82: =INDEX('Compile Data'!$BG$121:$CB$202,$O82,'Report - ALL (DASHBOARD)'!$W$3) -> 486.3606606 | T82: =INDEX('Compile Data'!$CE$121:$CZ$202,$O82,'Report - ALL (DASHBOARD)'!$W$3) -> 491.4085312
A83: 1976 | B83: =INDEX('Compile Data'!$K$12:$AF$93,$A83-1921,'Report - ALL (DASHBOARD)'!$W$3) -> 1314.380157 | C83: =INDEX('Compile Data'!$AI$12:$BD$93,$A83-1921,'Report - ALL (DASHBOARD)'!$W$3) -> 1264.55231 | D83: =INDEX('Compile Data'!$BG$12:$CB$93,$A83-1921,'Report - ALL (DASHBOARD)'!$W$3) -> 1241.200465 | E83: =INDEX('Compile Data'!$CE$12:$CZ$93,$A83-1921,'Report - ALL (DASHBOARD)'!$W$3) -> 1253.172089 | O83: 55 | P83: 0.6666666667 | Q83: =INDEX('Compile Data'!$K$121:$AF$202,$O83,'Report - ALL (DASHBOARD)'!$W$3) -> 527.8841693 | R83: =INDEX('Compile Data'!$AI$121:$BD$202,$O83,'Report - ALL (DASHBOARD)'!$W$3) -> 488.3639526 | S83: =INDEX('Compile Data'!$BG$121:$CB$202,$O83,'Report - ALL (DASHBOARD)'!$W$3) -> 484.3174171 | T83: =INDEX('Compile Data'!$CE$121:$CZ$202,$O83,'Report - ALL (DASHBOARD)'!$W$3) -> 485.5493495
A84: 1977 | B84: =INDEX('Compile Data'!$K$12:$AF$93,$A84-1921,'Report - ALL (DASHBOARD)'!$W$3) -> 2024.995402 | C84: =INDEX('Compile Data'!$AI$12:$BD$93,$A84-1921,'Report - ALL (DASHBOARD)'!$W$3) -> 1866.085403 | D84: =INDEX('Compile Data'!$BG$12:$CB$93,$A84-1921,'Report - ALL (DASHBOARD)'!$W$3) -> 1784.326889 | E84: =INDEX('Compile Data'!$CE$12:$CZ$93,$A84-1921,'Report - ALL (DASHBOARD)'!$W$3) -> 1836.91186 | O84: 56 | P84: 0.6790123457 | Q84: =INDEX('Compile Data'!$K$121:$AF$202,$O84,'Report - ALL (DASHBOARD)'!$W$3) -> 511.8083967 | R84: =INDEX('Compile Data'!$AI$121:$BD$202,$O84,'Report - ALL (DASHBOARD)'!$W$3) -> 485.3630765 | S84: =INDEX('Compile Data'!$BG$121:$CB$202,$O84,'Report - ALL (DASHBOARD)'!$W$3) -> 477.4265442 | T84: =INDEX('Compile Data'!$CE$121:$CZ$202,$O84,'Report - ALL (DASHBOARD)'!$W$3) -> 484.8028399
A85: 1978 | B85: =INDEX('Compile Data'!$K$12:$AF$93,$A85-1921,'Report - ALL (DASHBOARD)'!$W$3) -> 836.7847684 | C85: =INDEX('Compile Data'!$AI$12:$BD$93,$A85-1921,'Report - ALL (DASHBOARD)'!$W$3) -> 704.4020398 | D85: =INDEX('Compile Data'!$BG$12:$CB$93,$A85-1921,'Report - ALL (DASHBOARD)'!$W$3) -> 745.8958079 | E85: =INDEX('Compile Data'!$CE$12:$CZ$93,$A85-1921,'Report - ALL (DASHBOARD)'!$W$3) -> 735.3980904 | O85: 57 | P85: 0.6913580247 | Q85: =INDEX('Compile Data'!$K$121:$AF$202,$O85,'Report - ALL (DASHBOARD)'!$W$3) -> 511.1206385 | R85: =INDEX('Compile Data'!$AI$121:$BD$202,$O85,'Report - ALL (DASHBOARD)'!$W$3) -> 485.0011139 | S85: =INDEX('Compile Data'!$BG$121:$CB$202,$O85,'Report - ALL (DASHBOARD)'!$W$3) -> 476.0520782 | T85: =INDEX('Compile Data'!$CE$121:$CZ$202,$O85,'Report - ALL (DASHBOARD)'!$W$3) -> 482.4781799
A86: 1979 | B86: =INDEX('Compile Data'!$K$12:$AF$93,$A86-1921,'Report - ALL (DASHBOARD)'!$W$3) -> 692.1372401 | C86: =INDEX('Compile Data'!$AI$12:$BD$93,$A86-1921,'Report - ALL (DASHBOARD)'!$W$3) -> 677.1247075 | D86: =INDEX('Compile Data'!$BG$12:$CB$93,$A86-1921,'Report - ALL (DASHBOARD)'!$W$3) -> 678.8961233 | E86: =INDEX('Compile Data'!$CE$12:$CZ$93,$A86-1921,'Report - ALL (DASHBOARD)'!$W$3) -> 675.1598422 | O86: 58 | P86: 0.7037037037 | Q86: =INDEX('Compile Data'!$K$121:$AF$202,$O86,'Report - ALL (DASHBOARD)'!$W$3) -> 508.3663699 | R86: =INDEX('Compile Data'!$AI$121:$BD$202,$O86,'Report - ALL (DASHBOARD)'!$W$3) -> 472.1210976 | S86: =INDEX('Compile Data'!$BG$121:$CB$202,$O86,'Report - ALL (DASHBOARD)'!$W$3) -> 472.2625936 | T86: =INDEX('Compile Data'!$CE$121:$CZ$202,$O86,'Report - ALL (DASHBOARD)'!$W$3) -> 470.078022
A87: 1980 | B87: =INDEX('Compile Data'!$K$12:$AF$93,$A87-1921,'Report - ALL (DASHBOARD)'!$W$3) -> 614.5176722 | C87: =INDEX('Compile Data'!$AI$12:$BD$93,$A87-1921,'Report - ALL (DASHBOARD)'!$W$3) -> 600.8532117 | D87: =INDEX('Compile Data'!$BG$12:$CB$93,$A87-1921,'Report - ALL (DASHBOARD)'!$W$3) -> 594.5162659 | E87: =INDEX('Compile Data'!$CE$12:$CZ$93,$A87-1921,'Report - ALL (DASHBOARD)'!$W$3) -> 602.321092 | O87: 59 | P87: 0.7160493827 | Q87: =INDEX('Compile Data'!$K$121:$AF$202,$O87,'Report - ALL (DASHBOARD)'!$W$3) -> 489.3598557 | R87: =INDEX('Compile Data'!$AI$121:$BD$202,$O87,'Report - ALL (DASHBOARD)'!$W$3) -> 453.2639491 | S87: =INDEX('Compile Data'!$BG$121:$CB$202,$O87,'Report - ALL (DASHBOARD)'!$W$3) -> 453.8179347 | T87: =INDEX('Compile Data'!$CE$121:$CZ$202,$O87,'Report - ALL (DASHBOARD)'!$W$3) -> 453.2639491
A88: 1981 | B88: =INDEX('Compile Data'!$K$12:$AF$93,$A88-1921,'Report - ALL (DASHBOARD)'!$W$3) -> 795.9113579 | C88: =INDEX('Compile Data'!$AI$12:$BD$93,$A88-1921,'Report - ALL (DASHBOARD)'!$W$3) -> 720.720047 | D88: =INDEX('Compile Data'!$BG$12:$CB$93,$A88-1921,'Report - ALL (DASHBOARD)'!$W$3) -> 718.1262258 | E88: =INDEX('Compile Data'!$CE$12:$CZ$93,$A88-1921,'Report - ALL (DASHBOARD)'!$W$3) -> 720.5967013 | O88: 60 | P88: 0.7283950617 | Q88: =INDEX('Compile Data'!$K$121:$AF$202,$O88,'Report - ALL (DASHBOARD)'!$W$3) -> 455.1141548 | R88: =INDEX('Compile Data'!$AI$121:$BD$202,$O88,'Report - ALL (DASHBOARD)'!$W$3) -> 439.4026769 | S88: =INDEX('Compile Data'!$BG$121:$CB$202,$O88,'Report - ALL (DASHBOARD)'!$W$3) -> 453.1364581 | T88: =INDEX('Compile Data'!$CE$121:$CZ$202,$O88,'Report - ALL (DASHBOARD)'!$W$3) -> 439.4663022
A89: 1982 | B89: =INDEX('Compile Data'!$K$12:$AF$93,$A89-1921,'Report - ALL (DASHBOARD)'!$W$3) -> 511.8083967 | C89: =INDEX('Compile Data'!$AI$12:$BD$93,$A89-1921,'Report - ALL (DASHBOARD)'!$W$3) -> 428.259388 | D89: =INDEX('Compile Data'!$BG$12:$CB$93,$A89-1921,'Report - ALL (DASHBOARD)'!$W$3) -> 445.2546705 | E89: =INDEX('Compile Data'!$CE$12:$CZ$93,$A89-1921,'Report - ALL (DASHBOARD)'!$W$3) -> 428.2506523 | O89: 61 | P89: 0.7407407407 | Q89: =INDEX('Compile Data'!$K$121:$AF$202,$O89,'Report - ALL (DASHBOARD)'!$W$3) -> 438.1511307 | R89: =INDEX('Compile Data'!$AI$121:$BD$202,$O89,'Report - ALL (DASHBOARD)'!$W$3) -> 429.7711792 | S89: =INDEX('Compile Data'!$BG$121:$CB$202,$O89,'Report - ALL (DASHBOARD)'!$W$3) -> 445.2546705 | T89: =INDEX('Compile Data'!$CE$121:$CZ$202,$O89,'Report - ALL (DASHBOARD)'!$W$3) -> 429.7737211
A90: 1983 | B90: =INDEX('Compile Data'!$K$12:$AF$93,$A90-1921,'Report - ALL (DASHBOARD)'!$W$3) -> 183.5438042 | C90: =INDEX('Compile Data'!$AI$12:$BD$93,$A90-1921,'Report - ALL (DASHBOARD)'!$W$3) -> 183.8806941 | D90: =INDEX('Compile Data'!$BG$12:$CB$93,$A90-1921,'Report - ALL (DASHBOARD)'!$W$3) -> 183.87345 | E90: =INDEX('Compile Data'!$CE$12:$CZ$93,$A90-1921,'Report - ALL (DASHBOARD)'!$W$3) -> 183.8627892 | O90: 62 | P90: 0.7530864198 | Q90: =INDEX('Compile Data'!$K$121:$AF$202,$O90,'Report - ALL (DASHBOARD)'!$W$3) -> 435.7679151 | R90: =INDEX('Compile Data'!$AI$121:$BD$202,$O90,'Report - ALL (DASHBOARD)'!$W$3) -> 428.259388 | S90: =INDEX('Compile Data'!$BG$121:$CB$202,$O90,'Report - ALL (DASHBOARD)'!$W$3) -> 429.6579641 | T90: =INDEX('Compile Data'!$CE$121:$CZ$202,$O90,'Report - ALL (DASHBOARD)'!$W$3) -> 428.2506523
A91: 1984 | B91: =INDEX('Compile Data'!$K$12:$AF$93,$A91-1921,'Report - ALL (DASHBOARD)'!$W$3) -> 278.2361196 | C91: =INDEX('Compile Data'!$AI$12:$BD$93,$A91-1921,'Report - ALL (DASHBOARD)'!$W$3) -> 272.5057437 | D91: =INDEX('Compile Data'!$BG$12:$CB$93,$A91-1921,'Report - ALL (DASHBOARD)'!$W$3) -> 273.8932215 | E91: =INDEX('Compile Data'!$CE$12:$CZ$93,$A91-1921,'Report - ALL (DASHBOARD)'!$W$3) -> 272.4931704 | O91: 63 | P91: 0.7654320988 | Q91: =INDEX('Compile Data'!$K$121:$AF$202,$O91,'Report - ALL (DASHBOARD)'!$W$3) -> 419.2697716 | R91: =INDEX('Compile Data'!$AI$121:$BD$202,$O91,'Report - ALL (DASHBOARD)'!$W$3) -> 418.9715919 | S91: =INDEX('Compile Data'!$BG$121:$CB$202,$O91,'Report - ALL (DASHBOARD)'!$W$3) -> 419.778628 | T91: =INDEX('Compile Data'!$CE$121:$CZ$202,$O91,'Report - ALL (DASHBOARD)'!$W$3) -> 416.2812411
A92: 1985 | B92: =INDEX('Compile Data'!$K$12:$AF$93,$A92-1921,'Report - ALL (DASHBOARD)'!$W$3) -> 670.5159963 | C92: =INDEX('Compile Data'!$AI$12:$BD$93,$A92-1921,'Report - ALL (DASHBOARD)'!$W$3) -> 606.5507634 | D92: =INDEX('Compile Data'!$BG$12:$CB$93,$A92-1921,'Report - ALL (DASHBOARD)'!$W$3) -> 614.7083613 | E92: =INDEX('Compile Data'!$CE$12:$CZ$93,$A92-1921,'Report - ALL (DASHBOARD)'!$W$3) -> 602.2625249 | O92: 64 | P92: 0.7777777778 | Q92: =INDEX('Compile Data'!$K$121:$AF$202,$O92,'Report - ALL (DASHBOARD)'!$W$3) -> 385.1585604 | R92: =INDEX('Compile Data'!$AI$121:$BD$202,$O92,'Report - ALL (DASHBOARD)'!$W$3) -> 409.7301216 | S92: =INDEX('Compile Data'!$BG$121:$CB$202,$O92,'Report - ALL (DASHBOARD)'!$W$3) -> 409.7411715 | T92: =INDEX('Compile Data'!$CE$121:$CZ$202,$O92,'Report - ALL (DASHBOARD)'!$W$3) -> 409.7365964
A93: 1986 | B93: =INDEX('Compile Data'!$K$12:$AF$93,$A93-1921,'Report - ALL (DASHBOARD)'!$W$3) -> 731.3596141 | C93: =INDEX('Compile Data'!$AI$12:$BD$93,$A93-1921,'Report - ALL (DASHBOARD)'!$W$3) -> 625.4211795 | D93: =INDEX('Compile Data'!$BG$12:$CB$93,$A93-1921,'Report - ALL (DASHBOARD)'!$W$3) -> 636.3766683 | E93: =INDEX('Compile Data'!$CE$12:$CZ$93,$A93-1921,'Report - ALL (DASHBOARD)'!$W$3) -> 623.7408473 | O93: 65 | P93: =(O93-1)/81 -> 0.7901234568 | Q93: =INDEX('Compile Data'!$K$121:$AF$202,$O93,'Report - ALL (DASHBOARD)'!$W$3) -> 358.713356 | R93: =INDEX('Compile Data'!$AI$121:$BD$202,$O93,'Report - ALL (DASHBOARD)'!$W$3) -> 379.9396973 | S93: =INDEX('Compile Data'!$BG$121:$CB$202,$O93,'Report - ALL (DASHBOARD)'!$W$3) -> 379.8026835 | T93: =INDEX('Compile Data'!$CE$121:$CZ$202,$O93,'Report - ALL (DASHBOARD)'!$W$3) -> 379.9304657
A94: 1987 | B94: =INDEX('Compile Data'!$K$12:$AF$93,$A94-1921,'Report - ALL (DASHBOARD)'!$W$3) -> 977.4913063 | C94: =INDEX('Compile Data'!$AI$12:$BD$93,$A94-1921,'Report - ALL (DASHBOARD)'!$W$3) -> 882.7103793 | D94: =INDEX('Compile Data'!$BG$12:$CB$93,$A94-1921,'Report - ALL (DASHBOARD)'!$W$3) -> 894.6504313 | E94: =INDEX('Compile Data'!$CE$12:$CZ$93,$A94-1921,'Report - ALL (DASHBOARD)'!$W$3) -> 882.6113777 | O94: 66 | P94: 0.8024691358 | Q94: =INDEX('Compile Data'!$K$121:$AF$202,$O94,'Report - ALL (DASHBOARD)'!$W$3) -> 353.3399938 | R94: =INDEX('Compile Data'!$AI$121:$BD$202,$O94,'Report - ALL (DASHBOARD)'!$W$3) -> 349.4201597 | S94: =INDEX('Compile Data'!$BG$121:$CB$202,$O94,'Report - ALL (DASHBOARD)'!$W$3) -> 349.4137217 | T94: =INDEX('Compile Data'!$CE$121:$CZ$202,$O94,'Report - ALL (DASHBOARD)'!$W$3) -> 349.8841006
A95: =A94+1 -> 1988 | B95: =INDEX('Compile Data'!$K$12:$AF$93,$A95-1921,'Report - ALL (DASHBOARD)'!$W$3) -> 1393.973373 | C95: =INDEX('Compile Data'!$AI$12:$BD$93,$A95-1921,'Report - ALL (DASHBOARD)'!$W$3) -> 1195.746553 | D95: =INDEX('Compile Data'!$BG$12:$CB$93,$A95-1921,'Report - ALL (DASHBOARD)'!$W$3) -> 1182.575077 | E95: =INDEX('Compile Data'!$CE$12:$CZ$93,$A95-1921,'Report - ALL (DASHBOARD)'!$W$3) -> 1227.69241 | O95: 67 | P95: 0.8148148148 | Q95: =INDEX('Compile Data'!$K$121:$AF$202,$O95,'Report - ALL (DASHBOARD)'!$W$3) -> 352.4413923 | R95: =INDEX('Compile Data'!$AI$121:$BD$202,$O95,'Report - ALL (DASHBOARD)'!$W$3) -> 335.6057968 | S95: =INDEX('Compile Data'!$BG$121:$CB$202,$O95,'Report - ALL (DASHBOARD)'!$W$3) -> 335.3323326 | T95: =INDEX('Compile Data'!$CE$121:$CZ$202,$O95,'Report - ALL (DASHBOARD)'!$W$3) -> 349.4143333
A96: 1989 | B96: =INDEX('Compile Data'!$K$12:$AF$93,$A96-1921,'Report - ALL (DASHBOARD)'!$W$3) -> 1444.855681 | C96: =INDEX('Compile Data'!$AI$12:$BD$93,$A96-1921,'Report - ALL (DASHBOARD)'!$W$3) -> 1280.218114 | D96: =INDEX('Compile Data'!$BG$12:$CB$93,$A96-1921,'Report - ALL (DASHBOARD)'!$W$3) -> 1303.239169 | E96: =INDEX('Compile Data'!$CE$12:$CZ$93,$A96-1921,'Report - ALL (DASHBOARD)'!$W$3) -> 1330.223694 | O96: 68 | P96: 0.8271604938 | Q96: =INDEX('Compile Data'!$K$121:$AF$202,$O96,'Report - ALL (DASHBOARD)'!$W$3) -> 332.2683372 | R96: =INDEX('Compile Data'!$AI$121:$BD$202,$O96,'Report - ALL (DASHBOARD)'!$W$3) -> 322.0906258 | S96: =INDEX('Compile Data'!$BG$121:$CB$202,$O96,'Report - ALL (DASHBOARD)'!$W$3) -> 323.7720044 | T96: =INDEX('Compile Data'!$CE$121:$CZ$202,$O96,'Report - ALL (DASHBOARD)'!$W$3) -> 323.5027733
A97: 1990 | B97: =INDEX('Compile Data'!$K$12:$AF$93,$A97-1921,'Report - ALL (DASHBOARD)'!$W$3) -> 1700.947311 | C97: =INDEX('Compile Data'!$AI$12:$BD$93,$A97-1921,'Report - ALL (DASHBOARD)'!$W$3) -> 1726.596387 | D97: =INDEX('Compile Data'!$BG$12:$CB$93,$A97-1921,'Report - ALL (DASHBOARD)'!$W$3) -> 1725.630102 | E97: =INDEX('Compile Data'!$CE$12:$CZ$93,$A97-1921,'Report - ALL (DASHBOARD)'!$W$3) -> 1722.368299 | O97: 69 | P97: 0.8395061728 | Q97: =INDEX('Compile Data'!$K$121:$AF$202,$O97,'Report - ALL (DASHBOARD)'!$W$3) -> 318.6220093 | R97: =INDEX('Compile Data'!$AI$121:$BD$202,$O97,'Report - ALL (DASHBOARD)'!$W$3) -> 316.0511004 | S97: =INDEX('Compile Data'!$BG$121:$CB$202,$O97,'Report - ALL (DASHBOARD)'!$W$3) -> 316.0492465 | T97: =INDEX('Compile Data'!$CE$121:$CZ$202,$O97,'Report - ALL (DASHBOARD)'!$W$3) -> 316.048111
A98: 1991 | B98: =INDEX('Compile Data'!$K$12:$AF$93,$A98-1921,'Report - ALL (DASHBOARD)'!$W$3) -> 2062.549343 | C98: =INDEX('Compile Data'!$AI$12:$BD$93,$A98-1921,'Report - ALL (DASHBOARD)'!$W$3) -> 2014.992736 | D98: =INDEX('Compile Data'!$BG$12:$CB$93,$A98-1921,'Report - ALL (DASHBOARD)'!$W$3) -> 2052.909351 | E98: =INDEX('Compile Data'!$CE$12:$CZ$93,$A98-1921,'Report - ALL (DASHBOARD)'!$W$3) -> 2015.727882 | O98: 70 | P98: 0.8518518519 | Q98: =INDEX('Compile Data'!$K$121:$AF$202,$O98,'Report - ALL (DASHBOARD)'!$W$3) -> 318.0631752 | R98: =INDEX('Compile Data'!$AI$121:$BD$202,$O98,'Report - ALL (DASHBOARD)'!$W$3) -> 313.0968984 | S98: =INDEX('Compile Data'!$BG$121:$CB$202,$O98,'Report - ALL (DASHBOARD)'!$W$3) -> 313.0599581 | T98: =INDEX('Compile Data'!$CE$121:$CZ$202,$O98,'Report - ALL (DASHBOARD)'!$W$3) -> 312.8094419
A99: 1992 | B99: =INDEX('Compile Data'!$K$12:$AF$93,$A99-1921,'Report - ALL (DASHBOARD)'!$W$3) -> 1864.581938 | C99: =INDEX('Compile Data'!$AI$12:$BD$93,$A99-1921,'Report - ALL (DASHBOARD)'!$W$3) -> 1836.006641 | D99: =INDEX('Compile Data'!$BG$12:$CB$93,$A99-1921,'Report - ALL (DASHBOARD)'!$W$3) -> 1808.695269 | E99: =INDEX('Compile Data'!$CE$12:$CZ$93,$A99-1921,'Report - ALL (DASHBOARD)'!$W$3) -> 1836.400543 | O99: 71 | P99: 0.8641975309 | Q99: =INDEX('Compile Data'!$K$121:$AF$202,$O99,'Report - ALL (DASHBOARD)'!$W$3) -> 315.4087029 | R99: =INDEX('Compile Data'!$AI$121:$BD$202,$O99,'Report - ALL (DASHBOARD)'!$W$3) -> 306.4351451 | S99: =INDEX('Compile Data'!$BG$121:$CB$202,$O99,'Report - ALL (DASHBOARD)'!$W$3) -> 310.0634575 | T99: =INDEX('Compile Data'!$CE$121:$CZ$202,$O99,'Report - ALL (DASHBOARD)'!$W$3) -> 306.5216255
A100: 1993 | B100: =INDEX('Compile Data'!$K$12:$AF$93,$A100-1921,'Report - ALL (DASHBOARD)'!$W$3) -> 799.3419215 | C100: =INDEX('Compile Data'!$AI$12:$BD$93,$A100-1921,'Report - ALL (DASHBOARD)'!$W$3) -> 784.5682551 | D100: =INDEX('Compile Data'!$BG$12:$CB$93,$A100-1921,'Report - ALL (DASHBOARD)'!$W$3) -> 782.0700467 | E100: =INDEX('Compile Data'!$CE$12:$CZ$93,$A100-1921,'Report - ALL (DASHBOARD)'!$W$3) -> 784.9148293 | O100: 72 | P100: 0.8765432099 | Q100: =INDEX('Compile Data'!$K$121:$AF$202,$O100,'Report - ALL (DASHBOARD)'!$W$3) -> 311.3764051 | R100: =INDEX('Compile Data'!$AI$121:$BD$202,$O100,'Report - ALL (DASHBOARD)'!$W$3) -> 304.6334991 | S100: =INDEX('Compile Data'!$BG$121:$CB$202,$O100,'Report - ALL (DASHBOARD)'!$W$3) -> 306.321209 | T100: =INDEX('Compile Data'!$CE$121:$CZ$202,$O100,'Report - ALL (DASHBOARD)'!$W$3) -> 306.3881416
A101: 1994 | B101: =INDEX('Compile Data'!$K$12:$AF$93,$A101-1921,'Report - ALL (DASHBOARD)'!$W$3) -> 1190.643463 | C101: =INDEX('Compile Data'!$AI$12:$BD$93,$A101-1921,'Report - ALL (DASHBOARD)'!$W$3) -> 1169.426661 | D101: =INDEX('Compile Data'!$BG$12:$CB$93,$A101-1921,'Report - ALL (DASHBOARD)'!$W$3) -> 1169.813741 | E101: =INDEX('Compile Data'!$CE$12:$CZ$93,$A101-1921,'Report - ALL (DASHBOARD)'!$W$3) -> 1167.742584 | O101: 73 | P101: 0.8888888889 | Q101: =INDEX('Compile Data'!$K$121:$AF$202,$O101,'Report - ALL (DASHBOARD)'!$W$3) -> 308.3785082 | R101: =INDEX('Compile Data'!$AI$121:$BD$202,$O101,'Report - ALL (DASHBOARD)'!$W$3) -> 303.4754359 | S101: =INDEX('Compile Data'!$BG$121:$CB$202,$O101,'Report - ALL (DASHBOARD)'!$W$3) -> 300.9717178 | T101: =INDEX('Compile Data'!$CE$121:$CZ$202,$O101,'Report - ALL (DASHBOARD)'!$W$3) -> 299.3708789
A102: 1995 | B102: =INDEX('Compile Data'!$K$12:$AF$93,$A102-1921,'Report - ALL (DASHBOARD)'!$W$3) -> 806.9283625 | C102: =INDEX('Compile Data'!$AI$12:$BD$93,$A102-1921,'Report - ALL (DASHBOARD)'!$W$3) -> 695.2777138 | D102: =INDEX('Compile Data'!$BG$12:$CB$93,$A102-1921,'Report - ALL (DASHBOARD)'!$W$3) -> 705.6636009 | E102: =INDEX('Compile Data'!$CE$12:$CZ$93,$A102-1921,'Report - ALL (DASHBOARD)'!$W$3) -> 694.4522209 | O102: 74 | P102: 0.9012345679 | Q102: =INDEX('Compile Data'!$K$121:$AF$202,$O102,'Report - ALL (DASHBOARD)'!$W$3) -> 305.0499763 | R102: =INDEX('Compile Data'!$AI$121:$BD$202,$O102,'Report - ALL (DASHBOARD)'!$W$3) -> 299.3824018 | S102: =INDEX('Compile Data'!$BG$121:$CB$202,$O102,'Report - ALL (DASHBOARD)'!$W$3) -> 299.2606074 | T102: =INDEX('Compile Data'!$CE$121:$CZ$202,$O102,'Report - ALL (DASHBOARD)'!$W$3) -> 299.3382772
A103: 1996 | B103: =INDEX('Compile Data'!$K$12:$AF$93,$A103-1921,'Report - ALL (DASHBOARD)'!$W$3) -> 352.4413923 | C103: =INDEX('Compile Data'!$AI$12:$BD$93,$A103-1921,'Report - ALL (DASHBOARD)'!$W$3) -> 335.6057968 | D103: =INDEX('Compile Data'!$BG$12:$CB$93,$A103-1921,'Report - ALL (DASHBOARD)'!$W$3) -> 335.3323326 | E103: =INDEX('Compile Data'!$CE$12:$CZ$93,$A103-1921,'Report - ALL (DASHBOARD)'!$W$3) -> 349.8841006 | O103: 75 | P103: 0.9135802469 | Q103: =INDEX('Compile Data'!$K$121:$AF$202,$O103,'Report - ALL (DASHBOARD)'!$W$3) -> 302.6736984 | R103: =INDEX('Compile Data'!$AI$121:$BD$202,$O103,'Report - ALL (DASHBOARD)'!$W$3) -> 293.6039085 | S103: =INDEX('Compile Data'!$BG$121:$CB$202,$O103,'Report - ALL (DASHBOARD)'!$W$3) -> 293.5285098 | T103: =INDEX('Compile Data'!$CE$121:$CZ$202,$O103,'Report - ALL (DASHBOARD)'!$W$3) -> 293.5972061
A104: 1997 | B104: =INDEX('Compile Data'!$K$12:$AF$93,$A104-1921,'Report - ALL (DASHBOARD)'!$W$3) -> 311.3764051 | C104: =INDEX('Compile Data'!$AI$12:$BD$93,$A104-1921,'Report - ALL (DASHBOARD)'!$W$3) -> 313.0968984 | D104: =INDEX('Compile Data'!$BG$12:$CB$93,$A104-1921,'Report - ALL (DASHBOARD)'!$W$3) -> 313.0599581 | E104: =INDEX('Compile Data'!$CE$12:$CZ$93,$A104-1921,'Report - ALL (DASHBOARD)'!$W$3) -> 312.8094419 | O104: 76 | P104: 0.9259259259 | Q104: =INDEX('Compile Data'!$K$121:$AF$202,$O104,'Report - ALL (DASHBOARD)'!$W$3) -> 290.3769519 | R104: =INDEX('Compile Data'!$AI$121:$BD$202,$O104,'Report - ALL (DASHBOARD)'!$W$3) -> 283.8666382 | S104: =INDEX('Compile Data'!$BG$121:$CB$202,$O104,'Report - ALL (DASHBOARD)'!$W$3) -> 283.8721504 | T104: =INDEX('Compile Data'!$CE$121:$CZ$202,$O104,'Report - ALL (DASHBOARD)'!$W$3) -> 283.571949
A105: 1998 | B105: =INDEX('Compile Data'!$K$12:$AF$93,$A105-1921,'Report - ALL (DASHBOARD)'!$W$3) -> 305.0499763 | C105: =INDEX('Compile Data'!$AI$12:$BD$93,$A105-1921,'Report - ALL (DASHBOARD)'!$W$3) -> 299.3824018 | D105: =INDEX('Compile Data'!$BG$12:$CB$93,$A105-1921,'Report - ALL (DASHBOARD)'!$W$3) -> 299.2606074 | E105: =INDEX('Compile Data'!$CE$12:$CZ$93,$A105-1921,'Report - ALL (DASHBOARD)'!$W$3) -> 299.3708789 | O105: 77 | P105: 0.9382716049 | Q105: =INDEX('Compile Data'!$K$121:$AF$202,$O105,'Report - ALL (DASHBOARD)'!$W$3) -> 285.9249344 | R105: =INDEX('Compile Data'!$AI$121:$BD$202,$O105,'Report - ALL (DASHBOARD)'!$W$3) -> 281.7136841 | S105: =INDEX('Compile Data'!$BG$121:$CB$202,$O105,'Report - ALL (DASHBOARD)'!$W$3) -> 281.4200338 | T105: =INDEX('Compile Data'!$CE$121:$CZ$202,$O105,'Report - ALL (DASHBOARD)'!$W$3) -> 280.7667414
A106: 1999 | B106: =INDEX('Compile Data'!$K$12:$AF$93,$A106-1921,'Report - ALL (DASHBOARD)'!$W$3) -> 262.0393295 | C106: =INDEX('Compile Data'!$AI$12:$BD$93,$A106-1921,'Report - ALL (DASHBOARD)'!$W$3) -> 257.6774762 | D106: =INDEX('Compile Data'!$BG$12:$CB$93,$A106-1921,'Report - ALL (DASHBOARD)'!$W$3) -> 257.508611 | E106: =INDEX('Compile Data'!$CE$12:$CZ$93,$A106-1921,'Report - ALL (DASHBOARD)'!$W$3) -> 257.6400146 | O106: 78 | P106: 0.950617284 | Q106: =INDEX('Compile Data'!$K$121:$AF$202,$O106,'Report - ALL (DASHBOARD)'!$W$3) -> 284.4424082 | R106: =INDEX('Compile Data'!$AI$121:$BD$202,$O106,'Report - ALL (DASHBOARD)'!$W$3) -> 281.4580243 | S106: =INDEX('Compile Data'!$BG$121:$CB$202,$O106,'Report - ALL (DASHBOARD)'!$W$3) -> 280.1129278 | T106: =INDEX('Compile Data'!$CE$121:$CZ$202,$O106,'Report - ALL (DASHBOARD)'!$W$3) -> 280.2646268
A107: 2000 | B107: =INDEX('Compile Data'!$K$12:$AF$93,$A107-1921,'Report - ALL (DASHBOARD)'!$W$3) -> 438.1511307 | C107: =INDEX('Compile Data'!$AI$12:$BD$93,$A107-1921,'Report - ALL (DASHBOARD)'!$W$3) -> 429.7711792 | D107: =INDEX('Compile Data'!$BG$12:$CB$93,$A107-1921,'Report - ALL (DASHBOARD)'!$W$3) -> 429.6579641 | E107: =INDEX('Compile Data'!$CE$12:$CZ$93,$A107-1921,'Report - ALL (DASHBOARD)'!$W$3) -> 429.7737211 | O107: 79 | P107: 0.962962963 | Q107: =INDEX('Compile Data'!$K$121:$AF$202,$O107,'Report - ALL (DASHBOARD)'!$W$3) -> 278.2361196 | R107: =INDEX('Compile Data'!$AI$121:$BD$202,$O107,'Report - ALL (DASHBOARD)'!$W$3) -> 272.5057437 | S107: =INDEX('Compile Data'!$BG$121:$CB$202,$O107,'Report - ALL (DASHBOARD)'!$W$3) -> 273.8932215 | T107: =INDEX('Compile Data'!$CE$121:$CZ$202,$O107,'Report - ALL (DASHBOARD)'!$W$3) -> 272.4931704
A108: 2001 | B108: =INDEX('Compile Data'!$K$12:$AF$93,$A108-1921,'Report - ALL (DASHBOARD)'!$W$3) -> 951.9367256 | C108: =INDEX('Compile Data'!$AI$12:$BD$93,$A108-1921,'Report - ALL (DASHBOARD)'!$W$3) -> 867.4920031 | D108: =INDEX('Compile Data'!$BG$12:$CB$93,$A108-1921,'Report - ALL (DASHBOARD)'!$W$3) -> 860.6313337 | E108: =INDEX('Compile Data'!$CE$12:$CZ$93,$A108-1921,'Report - ALL (DASHBOARD)'!$W$3) -> 867.4671427 | O108: 80 | P108: 0.975308642 | Q108: =INDEX('Compile Data'!$K$121:$AF$202,$O108,'Report - ALL (DASHBOARD)'!$W$3) -> 267.9167608 | R108: =INDEX('Compile Data'!$AI$121:$BD$202,$O108,'Report - ALL (DASHBOARD)'!$W$3) -> 258.5173798 | S108: =INDEX('Compile Data'!$BG$121:$CB$202,$O108,'Report - ALL (DASHBOARD)'!$W$3) -> 258.5917142 | T108: =INDEX('Compile Data'!$CE$121:$CZ$202,$O108,'Report - ALL (DASHBOARD)'!$W$3) -> 258.5213165
A109: 2002 | B109: =INDEX('Compile Data'!$K$12:$AF$93,$A109-1921,'Report - ALL (DASHBOARD)'!$W$3) -> 1043.947735 | C109: =INDEX('Compile Data'!$AI$12:$BD$93,$A109-1921,'Report - ALL (DASHBOARD)'!$W$3) -> 891.8234393 | D109: =INDEX('Compile Data'!$BG$12:$CB$93,$A109-1921,'Report - ALL (DASHBOARD)'!$W$3) -> 892.7748451 | E109: =INDEX('Compile Data'!$CE$12:$CZ$93,$A109-1921,'Report - ALL (DASHBOARD)'!$W$3) -> 891.7633362 | O109: 81 | P109: 0.987654321 | Q109: =INDEX('Compile Data'!$K$121:$AF$202,$O109,'Report - ALL (DASHBOARD)'!$W$3) -> 262.0393295 | R109: =INDEX('Compile Data'!$AI$121:$BD$202,$O109,'Report - ALL (DASHBOARD)'!$W$3) -> 257.6774762 | S109: =INDEX('Compile Data'!$BG$121:$CB$202,$O109,'Report - ALL (DASHBOARD)'!$W$3) -> 257.508611 | T109: =INDEX('Compile Data'!$CE$121:$CZ$202,$O109,'Report - ALL (DASHBOARD)'!$W$3) -> 257.6400146
A110: 2003 | B110: =INDEX('Compile Data'!$K$12:$AF$93,$A110-1921,'Report - ALL (DASHBOARD)'!$W$3) -> 734.4295031 | C110: =INDEX('Compile Data'!$AI$12:$BD$93,$A110-1921,'Report - ALL (DASHBOARD)'!$W$3) -> 616.4484151 | D110: =INDEX('Compile Data'!$BG$12:$CB$93,$A110-1921,'Report - ALL (DASHBOARD)'!$W$3) -> 635.2650337 | E110: =INDEX('Compile Data'!$CE$12:$CZ$93,$A110-1921,'Report - ALL (DASHBOARD)'!$W$3) -> 655.4304339 | O110: 82 | P110: 1 | Q110: =INDEX('Compile Data'!$K$121:$AF$202,$O110,'Report - ALL (DASHBOARD)'!$W$3) -> 183.5438042 | R110: =INDEX('Compile Data'!$AI$121:$BD$202,$O110,'Report - ALL (DASHBOARD)'!$W$3) -> 183.8806941 | S110: =INDEX('Compile Data'!$BG$121:$CB$202,$O110,'Report - ALL (DASHBOARD)'!$W$3) -> 183.87345 | T110: =INDEX('Compile Data'!$CE$121:$CZ$202,$O110,'Report - ALL (DASHBOARD)'!$W$3) -> 183.8627892

Sheet Compile Data
B1: =Control!$B$9 -> NAA 011221 | C1: =Control!$B$10 -> Alt 1A 011221 | D1: =Control!$B$11 -> Alt 1B 011221 | E1: =Control!$B$12 -> Alt 2 011221 | F1: =Control!$B$13 -> 0 | AB1: =$B$8 -> PER-AVER | AZ1: =$C$8 -> PER-AVER | BX1: ='Compile Data'!$D$8 -> PER-AVER | CV1: ='Compile Data'!$D$8 -> PER-AVER | DT1: ='Compile Data'!$F$8 -> PER-AVER
A2: Index: | B2: ='Report - ALL (DASHBOARD)'!W1 -> 26 | C2: =B2 -> 26 | D2: 26 | E2: 26 | F2: 26
A3: Convert? | B3: =IF('Report - ALL (DASHBOARD)'!W4,1,0) -> 0 | C3: 0 | D3: 0 | E3: 0 | F3: 0
A4: Column: | B4: =VLOOKUP(B$2,Control!$A$25:$J$93,7) -> Z | C4: Z | D4: Z | E4: Z | F4: Z
A5: Title: | B5: =VLOOKUP(B$2,Control!$A$25:$J$93,10) -> Sacramento River at Emmaton EC | C5: =VLOOKUP(C$2,Control!$A$25:$J$155,9) -> PER-AVER | D5: =VLOOKUP(D$2,Control!$A$25:$J$155,9) -> PER-AVER | E5: =VLOOKUP(E$2,Control!$A$25:$J$155,9) -> PER-AVER | F5: =VLOOKUP(F$2,Control!$A$25:$J$155,9) -> PER-AVER
A6: Parameter: | B6: =INDIRECT(CONCATENATE("'",B$1,"'!",B$4,2)) -> RSAC092 | C6: =INDIRECT(CONCATENATE("'",C$1,"'!",C$4,2)) -> RSAC092 | D6: RSAC092 | E6: RSAC092
B7: =INDIRECT(CONCATENATE("'",B$1,"'!",B$4,3)) -> EC-MEAN | C7: EC-MEAN | D7: EC-MEAN | E7: EC-MEAN
A8: Type: | B8: =TRIM(VLOOKUP(B$2,Control!$A$25:$J$93,9)) -> PER-AVER | C8: =TRIM(VLOOKUP(C$2,Control!$A$25:$J$155,9)) -> PER-AVER | D8: =TRIM(VLOOKUP(D$2,Control!$A$25:$J$155,9)) -> PER-AVER | E8: =TRIM(VLOOKUP(E$2,Control!$A$25:$J$155,9)) -> PER-AVER | F8: =TRIM(VLOOKUP(F$2,Control!$A$25:$J$155,9)) -> PER-AVER | J8: =CONCATENATE(TRIM(B$1),": ",TRIM(B$5)," - ",TRIM(B$6)," ",TRIM(B$7)," (",TRIM(B$10),") ",TRIM(B$11)) -> NAA 011221: Sacramento River at Emmaton EC - RSAC092 EC-MEAN (UMHOS/CM) | AH8: =CONCATENATE(TRIM(C$1),": ",TRIM(C$5)," - ",TRIM(C$6)," ",TRIM(C$7)," (",TRIM(C$10),") ",TRIM(C$11)) -> Alt 1A 011221: PER-AVER - RSAC092 EC-MEAN (UMHOS/CM) | BF8: =CONCATENATE(TRIM('Compile Data'!D$1),": ",TRIM('Compile Data'!D$5)," - ",TRIM('Compile Data'!D$6)," ",TRIM('Compile Data'!D$7)," (",TRIM('Compile Data'!D$10),") ",TRIM('Compile Data'!D$11)) -> Alt 1B 011221: PER-AVER - RSAC092 EC-MEAN (UMHOS/CM) | CD8: =CONCATENATE(TRIM('Compile Data'!E$1),": ",TRIM('Compile Data'!E$5)," - ",TRIM('Compile Data'!E$6)," ",TRIM('Compile Data'!E$7)," (",TRIM('Compile Data'!E$10),") ",TRIM('Compile Data'!E$11)) -> Alt 2 011221: PER-AVER - RSAC092 EC-MEAN (UMHOS/CM) | DB8: =CONCATENATE(TRIM('Compile Data'!F$1),": ",TRIM('Compile Data'!F$5)," - ",TRIM('Compile Data'!F$6)," ",TRIM('Compile Data'!F$7)," (",TRIM('Compile Data'!F$10),") ",TRIM('Compile Data'!F$11)) -> 
A9: Units-native: | B9: =TRIM(INDIRECT(CONCATENATE("'",B$1,"'!",B$4,11))) -> UMHOS/CM | C9: UMHOS/CM | D9: UMHOS/CM | E9: UMHOS/CM
A10: Units-shown: | B10: =IF(AND(B$3>0,B$9="CFS"),"TAF",B$9) -> UMHOS/CM | C10: UMHOS/CM | D10: UMHOS/CM | E10: UMHOS/CM | X10: Jan-Dec | Y10: Mar-Feb | Z10: Oct-Sep | AB10: Oct-Jan | AC10: Dec-Feb | AD10: Mar-Jun | AE10: Jun-Sep | AF10: Sep-Nov | AV10: Jan-Dec | AW10: Mar-Feb | AX10: Oct-Sep | AZ10: Oct-Jan | BA10: Dec-Feb | BB10: Mar-Jun | BC10: Jun-Sep | BD10: Sep-Nov | BT10: Jan-Dec | BU10: Mar-Feb | BV10: Oct-Sep | BX10: Oct-Jan | BY10: Dec-Feb | BZ10: Mar-Jun | CA10: Jun-Sep | CB10: Sep-Nov | CR10: Jan-Dec | CS10: Mar-Feb | CT10: Oct-Sep | CV10: Oct-Jan | CW10: Dec-Feb | CX10: Mar-Jun | CY10: Jun-Sep | CZ10: Sep-Nov | DP10: Jan-Dec | DQ10: Mar-Feb | DR10: Oct-Sep | DT10: Oct-Jan | DU10: Dec-Feb | DV10: Mar-Jun | DW10: Jun-Sep | DX10: Sep-Nov
A11: Date | B11: =IF(ISNUMBER(FIND("PRV",B$6)),"SHIFTED","") ->  | J11: YEAR | K11: OCT | L11: NOV | M11: DEC | N11: JAN | O11: FEB | P11: MAR | Q11: APR | R11: MAY | S11: JUN | T11: JUL | U11: AUG | V11: SEP | X11: =IF(AND($B$10="TAF",$B$8="PER-AVER"),"TOT","AVG") -> AVG | Y11: =IF(AND($B$10="TAF",$B$8="PER-AVER"),"TOT","AVG") -> AVG | Z11: =IF(AND($B$10="TAF",$B$8="PER-AVER"),"TOT","AVG") -> AVG | AB11: =IF(AND($B$10="TAF",$B$8="PER-AVER"),"TOT","AVG") -> AVG | AC11: =IF(AND($B$10="TAF",$B$8="PER-AVER"),"TOT","AVG") -> AVG | AD11: =IF(AND($B$10="TAF",$B$8="PER-AVER"),"TOT","AVG") -> AVG | AE11: =IF(AND($B$10="TAF",$B$8="PER-AVER"),"TOT","AVG") -> AVG | AF11: =IF(AND($B$10="TAF",$B$8="PER-AVER"),"TOT","AVG") -> AVG | AH11: YEAR | AI11: OCT | AJ11: NOV | AK11: DEC | AL11: JAN | AM11: FEB | AN11: MAR | AO11: APR | AP11: MAY | AQ11: JUN | AR11: JUL | AS11: AUG | AT11: SEP | AV11: =IF(AND($C$10="TAF",$C$8="PER-AVER"),"TOT","AVG") -> AVG | AW11: =IF(AND($C$10="TAF",$C$8="PER-AVER"),"TOT","AVG") -> AVG | AX11: =IF(AND($C$10="TAF",$C$8="PER-AVER"),"TOT","AVG") -> AVG | AZ11: =IF(AND($C$10="TAF",$C$8="PER-AVER"),"TOT","AVG") -> AVG | BA11: =IF(AND($C$10="TAF",$C$8="PER-AVER"),"TOT","AVG") -> AVG | BB11: =IF(AND($C$10="TAF",$C$8="PER-AVER"),"TOT","AVG") -> AVG | BC11: =IF(AND($C$10="TAF",$C$8="PER-AVER"),"TOT","AVG") -> AVG | BD11: =IF(AND($C$10="TAF",$C$8="PER-AVER"),"TOT","AVG") -> AVG | BF11: YEAR | BG11: OCT | BH11: NOV | BI11: DEC | BJ11: JAN | BK11: FEB | BL11: MAR | BM11: APR | BN11: MAY | BO11: JUN | BP11: JUL | BQ11: AUG | BR11: SEP | BT11: =IF(AND('Compile Data'!$D$10="TAF",'Compile Data'!$D$8="PER-AVER"),"TOT","AVG") -> AVG | BU11: =IF(AND('Compile Data'!$D$10="TAF",'Compile Data'!$D$8="PER-AVER"),"TOT","AVG") -> AVG | BV11: =IF(AND('Compile Data'!$D$10="TAF",'Compile Data'!$D$8="PER-AVER"),"TOT","AVG") -> AVG | BX11: =IF(AND('Compile Data'!$D$10="TAF",'Compile Data'!$D$8="PER-AVER"),"TOT","AVG") -> AVG | BY11: =IF(AND('Compile Data'!$D$10="TAF",'Compile Data'!$D$8="PER-AVER"),"TOT","AVG") -> AVG | BZ11: =IF(AND('Compile Data'!$D$10="TAF",'Compile Data'!$D$8="PER-AVER"),"TOT","AVG") -> AVG | CA11: =IF(AND('Compile Data'!$D$10="TAF",'Compile Data'!$D$8="PER-AVER"),"TOT","AVG") -> AVG | CB11: =IF(AND('Compile Data'!$D$10="TAF",'Compile Data'!$D$8="PER-AVER"),"TOT","AVG") -> AVG | CD11: YEAR | CE11: OCT | CF11: NOV | CG11: DEC | CH11: JAN | CI11: FEB | CJ11: MAR | CK11: APR | CL11: MAY | CM11: JUN | CN11: JUL | CO11: AUG | CP11: SEP | CR11: =IF(AND('Compile Data'!$D$10="TAF",'Compile Data'!$D$8="PER-AVER"),"TOT","AVG") -> AVG | CS11: =IF(AND('Compile Data'!$D$10="TAF",'Compile Data'!$D$8="PER-AVER"),"TOT","AVG") -> AVG | CT11: =IF(AND('Compile Data'!$D$10="TAF",'Compile Data'!$D$8="PER-AVER"),"TOT","AVG") -> AVG | CV11: =IF(AND('Compile Data'!$D$10="TAF",'Compile Data'!$D$8="PER-AVER"),"TOT","AVG") -> AVG | CW11: =IF(AND('Compile Data'!$D$10="TAF",'Compile Data'!$D$8="PER-AVER"),"TOT","AVG") -> AVG | CX11: =IF(AND('Compile Data'!$D$10="TAF",'Compile Data'!$D$8="PER-AVER"),"TOT","AVG") -> AVG | CY11: =IF(AND('Compile Data'!$D$10="TAF",'Compile Data'!$D$8="PER-AVER"),"TOT","AVG") -> AVG | CZ11: =IF(AND('Compile Data'!$D$10="TAF",'Compile Data'!$D$8="PER-AVER"),"TOT","AVG") -> AVG | DB11: YEAR | DC11: OCT | DD11: NOV | DE11: DEC | DF11: JAN | DG11: FEB | DH11: MAR | DI11: APR | DJ11: MAY | DK11: JUN | DL11: JUL | DM11: AUG | DN11: SEP | DP11: =IF(AND('Compile Data'!$F$10="TAF",'Compile Data'!$F$8="PER-AVER"),"TOT","AVG") ->  | DQ11: =IF(AND('Compile Data'!$F$10="TAF",'Compile Data'!$F$8="PER-AVER"),"TOT","AVG") ->  | DR11: =IF(AND('Compile Data'!$F$10="TAF",'Compile Data'!$F$8="PER-AVER"),"TOT","AVG") ->  | DT11: =IF(AND('Compile Data'!$F$10="TAF",'Compile Data'!$F$8="PER-AVER"),"TOT","AVG") ->  | DU11: =IF(AND('Compile Data'!$F$10="TAF",'Compile Data'!$F$8="PER-AVER"),"TOT","AVG") ->  | DV11: =IF(AND('Compile Data'!$F$10="TAF",'Compile Data'!$F$8="PER-AVER"),"TOT","AVG") ->  | DW11: =IF(AND('Compile Data'!$F$10="TAF",'Compile Data'!$F$8="PER-AVER"),"TOT","AVG") ->  | DX11: =IF(AND('Compile Data'!$F$10="TAF",'Compile Data'!$F$8="PER-AVER"),"TOT","AVG") -> 
A12: 1921-09-30 | J12: 1922 | K12: =B13 -> 738.5219116 | L12: =B14 -> 1413.811279 | M12: =B15 -> 725.8640747 | N12: =B16 -> 377.3710022 | O12: =B17 -> 213.2744141 | P12: =B18 -> 197.6605072 | Q12: =B19 -> 186.5575104 | R12: =B20 -> 177.6238556 | S12: =B21 -> 180.4200134 | T12: =B22 -> 240.1080933 | U12: =B23 -> 452.2880859 | V12: =B24 -> 325.7142334 | X12: =IF(X$11="AVG",AVERAGE(N12:V12,K13:M13),SUM(N12:V12,K13:M13)) -> 301.407093 | Y12: =IF(Y$11="AVG",AVERAGE(P12:V12,K13:O13),SUM(P12:V12,K13:O13)) -> 285.9752769 | Z12: =IF(Z$11="AVG",AVERAGE(K12:V12),SUM(K12:V12)) -> 435.7679151 | AB12: =IF(AB$11="AVG",IF(AB$1="INST-VAL",AVERAGE(V11,K12:M12,K12:N12),AVERAGE(K12:N12)),SUM(K12:N12)) -> 813.892067 | AC12: =IF(AC$11="AVG",IF(AB$1="INST-VAL",AVERAGE(L12:N12,M12:O12),AVERAGE(M12:O12)),SUM(M12:O12)) -> 438.836497 | AD12: =IF(AD$11="AVG",IF(AB$1="INST-VAL",AVERAGE(O12:R12,P12:S12),AVERAGE(P12:S12)),SUM(P12:S12)) -> 185.5654716 | AE12: =IF(AE$11="AVG",IF(AB$1="INST-VAL",AVERAGE(R12:U12,S12:V12),AVERAGE(S12:V12)),SUM(S12:V12)) -> 299.6326065 | AF12: =IF(AF$11="AVG",IF(AB$1="INST-VAL",AVERAGE(U12:V12,K13,V12,K13:L13),AVERAGE(V12,K13:L13)),SUM(V12,K13:L13)) -> 448.3046163 | AH12: 1922 | AI12: ='Compile Data'!C13 -> 725.5599976 | AJ12: ='Compile Data'!C14 -> 1410.874878 | AK12: ='Compile Data'!C15 -> 938.8301392 | AL12: ='Compile Data'!C16 -> 432.3120422 | AM12: ='Compile Data'!C17 -> 215.5066833 | AN12: ='Compile Data'!C18 -> 199.7300262 | AO12: ='Compile Data'!C19 -> 186.6403351 | AP12: ='Compile Data'!C20 -> 177.6580353 | AQ12: ='Compile Data'!C21 -> 180.5178528 | AR12: ='Compile Data'!C22 -> 240.3972931 | AS12: ='Compile Data'!C23 -> 424.7478638 | AT12: ='Compile Data'!C24 -> 306.3922424 | AV12: =IF(AV$11="AVG",AVERAGE(AL12:AT12,AI13:AK13),SUM(AL12:AT12,AI13:AK13)) -> 298.2695605 | AW12: =IF(AW$11="AVG",AVERAGE(AN12:AT12,AI13:AM13),SUM(AN12:AT12,AI13:AM13)) -> 278.1281789 | AX12: =IF(AX$11="AVG",AVERAGE(AI12:AT12),SUM(AI12:AT12)) -> 453.2639491 | AZ12: =IF(AZ$11="AVG",IF(AZ$1="INST-VAL",AVERAGE(AT11,AI12:AK12,AI12:AL12),AVERAGE(AI12:AL12)),SUM(AI12:AL12)) -> 876.8942642 | BA12: =IF(BA$11="AVG",IF(AZ$1="INST-VAL",AVERAGE(AJ12:AL12,AK12:AM12),AVERAGE(AK12:AM12)),SUM(AK12:AM12)) -> 528.8829549 | BB12: =IF(BB$11="AVG",IF(AZ$1="INST-VAL",AVERAGE(AM12:AP12,AN12:AQ12),AVERAGE(AN12:AQ12)),SUM(AN12:AQ12)) -> 186.1365623 | BC12: =IF(BC$11="AVG",IF(AZ$1="INST-VAL",AVERAGE(AP12:AS12,AQ12:AT12),AVERAGE(AQ12:AT12)),SUM(AQ12:AT12)) -> 288.013813 | BD12: =IF(BD$11="AVG",IF(AZ$1="INST-VAL",AVERAGE(AS12:AT12,AI13,AT12,AI13:AJ13),AVERAGE(AT12,AI13:AJ13)),SUM(AT12,AI13:AJ13)) -> 425.1808573 | BF12: 1922 | BG12: ='Compile Data'!D13 -> 724.6408081 | BH12: ='Compile Data'!D14 -> 1410.501587 | BI12: ='Compile Data'!D15 -> 938.7148438 | BJ12: ='Compile Data'!D16 -> 432.4196472 | BK12: ='Compile Data'!D17 -> 215.4534302 | BL12: ='Compile Data'!D18 -> 199.7129974 | BM12: ='Compile Data'!D19 -> 186.3686066 | BN12: ='Compile Data'!D20 -> 177.645462 | BO12: ='Compile Data'!D21 -> 180.5171509 | BP12: ='Compile Data'!D22 -> 240.3962097 | BQ12: ='Compile Data'!D23 -> 424.7527466 | BR12: ='Compile Data'!D24 -> 306.5140076 | BT12: =IF(BT$11="AVG",AVERAGE(BJ12:BR12,BG13:BI13),SUM(BJ12:BR12,BG13:BI13)) -> 298.0527242 | BU12: =IF(BU$11="AVG",AVERAGE(BL12:BR12,BG13:BK13),SUM(BL12:BR12,BG13:BK13)) -> 277.9087931 | BV12: =IF(BV$11="AVG",AVERAGE(BG12:BR12),SUM(BG12:BR12)) -> 453.1364581 | BX12: =IF(BX$11="AVG",IF(BX$1="INST-VAL",AVERAGE(BR11,BG12:BI12,BG12:BJ12),AVERAGE(BG12:BJ12)),SUM(BG12:BJ12)) -> 876.5692215 | BY12: =IF(BY$11="AVG",IF(BX$1="INST-VAL",AVERAGE(BH12:BJ12,BI12:BK12),AVERAGE(BI12:BK12)),SUM(BI12:BK12)) -> 528.8626404 | BZ12: =IF(BZ$11="AVG",IF(BX$1="INST-VAL",AVERAGE(BK12:BN12,BL12:BO12),AVERAGE(BL12:BO12)),SUM(BL12:BO12)) -> 186.0610542 | CA12: =IF(CA$11="AVG",IF(BX$1="INST-VAL",AVERAGE(BN12:BQ12,BO12:BR12),AVERAGE(BO12:BR12)),SUM(BO12:BR12)) -> 288.0450287 | CB12: =IF(CB$11="AVG",IF(BX$1="INST-VAL",AVERAGE(BQ12:BR12,BG13,BR12,BG13:BH13),AVERAGE(BR12,BG13:BH13)),SUM(BR12,BG13:BH13)) -> 424.3310038 | CD12: 1922 | CE12: ='Compile Data'!E13 -> 725.5599976 | CF12: ='Compile Data'!E14 -> 1410.874878 | CG12: ='Compile Data'!E15 -> 938.8301392 | CH12: ='Compile Data'!E16 -> 432.3120422 | CI12: ='Compile Data'!E17 -> 215.5066833 | CJ12: ='Compile Data'!E18 -> 199.7300262 | CK12: ='Compile Data'!E19 -> 186.6403351 | CL12: ='Compile Data'!E20 -> 177.6580353 | CM12: ='Compile Data'!E21 -> 180.5178528 | CN12: ='Compile Data'!E22 -> 240.3972931 | CO12: ='Compile Data'!E23 -> 424.7478638 | CP12: ='Compile Data'!E24 -> 306.3922424 | CR12: =IF(CR$11="AVG",AVERAGE(CH12:CP12,CE13:CG13),SUM(CH12:CP12,CE13:CG13)) -> 298.2695605 | CS12: =IF(CS$11="AVG",AVERAGE(CJ12:CP12,CE13:CI13),SUM(CJ12:CP12,CE13:CI13)) -> 278.1281789 | CT12: =IF(CT$11="AVG",AVERAGE(CE12:CP12),SUM(CE12:CP12)) -> 453.2639491 | CV12: =IF(CV$11="AVG",IF(CV$1="INST-VAL",AVERAGE(CP11,CE12:CG12,CE12:CH12),AVERAGE(CE12:CH12)),SUM(CE12:CH12)) -> 876.8942642 | CW12: =IF(CW$11="AVG",IF(CV$1="INST-VAL",AVERAGE(CF12:CH12,CG12:CI12),AVERAGE(CG12:CI12)),SUM(CG12:CI12)) -> 528.8829549 | CX12: =IF(CX$11="AVG",IF(CV$1="INST-VAL",AVERAGE(CI12:CL12,CJ12:CM12),AVERAGE(CJ12:CM12)),SUM(CJ12:CM12)) -> 186.1365623 | CY12: =IF(CY$11="AVG",IF(CV$1="INST-VAL",AVERAGE(CL12:CO12,CM12:CP12),AVERAGE(CM12:CP12)),SUM(CM12:CP12)) -> 288.013813 | CZ12: =IF(CZ$11="AVG",IF(CV$1="INST-VAL",AVERAGE(CO12:CP12,CE13,CP12,CE13:CF13),AVERAGE(CP12,CE13:CF13)),SUM(CP12,CE13:CF13)) -> 425.1808573 | DB12: 1922 | DC12: ='Compile Data'!F13 ->  | DD12: ='Compile Data'!F14 ->  | DE12: ='Compile Data'!F15 ->  | DF12: ='Compile Data'!F16 ->  | DG12: ='Compile Data'!F17 ->  | DH12: ='Compile Data'!F18 ->  | DI12: ='Compile Data'!F19 ->  | DJ12: ='Compile Data'!F20 ->  | DK12: ='Compile Data'!F21 ->  | DL12: ='Compile Data'!F22 ->  | DM12: ='Compile Data'!F23 ->  | DN12: ='Compile Data'!F24 ->  | DP12: =IF(DP$11="AVG",AVERAGE(DF12:DN12,DC13:DE13),SUM(DF12:DN12,DC13:DE13)) ->  | DQ12: =IF(DQ$11="AVG",AVERAGE(DH12:DN12,DC13:DG13),SUM(DH12:DN12,DC13:DG13)) ->  | DR12: =IF(DR$11="AVG",AVERAGE(DC12:DN12),SUM(DC12:DN12)) ->  | DT12: =IF(DT$11="AVG",IF(DT$1="INST-VAL",AVERAGE(DN11,DC12:DE12,DC12:DF12),AVERAGE(DC12:DF12)),SUM(DC12:DF12)) ->  | DU12: =IF(DU$11="AVG",IF(DT$1="INST-VAL",AVERAGE(DD12:DF12,DE12:DG12),AVERAGE(DE12:DG12)),SUM(DE12:DG12)) ->  | DV12: =IF(DV$11="AVG",IF(DT$1="INST-VAL",AVERAGE(DG12:DJ12,DH12:DK12),AVERAGE(DH12:DK12)),SUM(DH12:DK12)) ->  | DW12: =IF(DW$11="AVG",IF(DT$1="INST-VAL",AVERAGE(DJ12:DM12,DK12:DN12),AVERAGE(DK12:DN12)),SUM(DK12:DN12)) ->  | DX12: =IF(DX$11="AVG",IF(DT$1="INST-VAL",AVERAGE(DM12:DN12,DC13,DN12,DC13:DD13),AVERAGE(DN12,DC13:DD13)),SUM(DN12,DC13:DD13)) -> 
A13: 1921-10-31 | B13: =INDIRECT(CONCATENATE("'",B$1,"'!",B$4,(YEAR($A13)-1921)*12+MONTH($A13)+3+IF(ISNUMBER(FIND("PRV",B$6)),1,0)))*IF(AND(B$3>0,TRIM(B$9)="CFS"),Conv_Flags!$C13,1) -> 738.5219116 | C13: =INDIRECT(CONCATENATE("'",C$1,"'!",C$4,(YEAR($A13)-1921)*12+MONTH($A13)+3+IF(ISNUMBER(FIND("PRV",C$6)),1,0)))*IF(AND(C$3>0,TRIM(C$9)="CFS"),Conv_Flags!$C13,1) -> 725.5599976 | D13: =INDIRECT(CONCATENATE("'",D$1,"'!",D$4,(YEAR($A13)-1921)*12+MONTH($A13)+3+IF(ISNUMBER(FIND("PRV",D$6)),1,0)))*IF(AND(D$3>0,TRIM(D$9)="CFS"),Conv_Flags!$C13,1) -> 724.6408081 | E13: =INDIRECT(CONCATENATE("'",E$1,"'!",E$4,(YEAR($A13)-1921)*12+MONTH($A13)+3+IF(ISNUMBER(FIND("PRV",E$6)),1,0)))*IF(AND(E$3>0,TRIM(E$9)="CFS"),Conv_Flags!$C13,1) -> 725.5599976 | F13: =INDIRECT(CONCATENATE("'",F$1,"'!",F$4,(YEAR($A13)-1921)*12+MONTH($A13)+3+IF(ISNUMBER(FIND("PRV",F$6)),1,0)))*IF(AND(F$3>0,TRIM(F$9)="CFS"),Conv_Flags!$C13,1) ->  | J13: 1923 | K13: =B25 -> 384.3628845 | L13: =B26 -> 634.836731 | M13: =B27 -> 246.6677856 | N13: =B28 -> 205.2501221 | O13: =B29 -> 200.213501 | P13: =B30 -> 249.6968536 | Q13: =B31 -> 198.4570465 | R13: =B32 -> 188.1662292 | S13: =B33 -> 373.0559692 | T13: =B34 -> 591.7183228 | U13: =B35 -> 1273.2677 | V13: =B36 -> 1901.265381 | X13: 1021.301376 | Y13: 1121.0724 | Z13: 537.2465439 | AB13: 367.7793808 | AC13: 217.3771362 | AD13: 252.3440247 | AE13: 1034.826843 | AF13: 2296.080404 | AH13: 1923 | AI13: ='Compile Data'!C25 -> 345.7921143 | AJ13: ='Compile Data'!C26 -> 623.3582153 | AK13: ='Compile Data'!C27 -> 246.1820221 | AL13: ='Compile Data'!C28 -> 205.7574768 | AM13: ='Compile Data'!C29 -> 200.3646698 | AN13: ='Compile Data'!C30 -> 249.770462 | AO13: ='Compile Data'!C31 -> 198.6297913 | AP13: ='Compile Data'!C32 -> 188.3809052 | AQ13: ='Compile Data'!C33 -> 378.7949829 | AR13: ='Compile Data'!C34 -> 574.5285645 | AS13: ='Compile Data'!C35 -> 1031.360107 | AT13: ='Compile Data'!C36 -> 1617.44812 | AV13: 908.4319801 | AW13: 1006.813103 | AX13: 488.3639526 | AZ13: 355.2724571 | BA13: 217.4347229 | BB13: 253.8940353 | BC13: 900.5329437 | BD13: 1953.872721 | BF13: 1923 | BG13: ='Compile Data'!D25 -> 338.8931274 | BH13: ='Compile Data'!D26 -> 627.5858765 | BI13: ='Compile Data'!D27 -> 246.3734283 | BJ13: ='Compile Data'!D28 -> 205.7493439 | BK13: ='Compile Data'!D29 -> 200.3965607 | BL13: ='Compile Data'!D30 -> 249.6878357 | BM13: ='Compile Data'!D31 -> 198.6874542 | BN13: ='Compile Data'!D32 -> 188.3800659 | BO13: ='Compile Data'!D33 -> 378.7270813 | BP13: ='Compile Data'!D34 -> 574.6029663 | BQ13: ='Compile Data'!D35 -> 1033.088501 | BR13: ='Compile Data'!D36 -> 1486.946289 | BT13: 888.3238309 | BU13: 986.2763786 | BV13: 477.4265442 | BX13: 354.650444 | BY13: 217.5064443 | BZ13: 253.8706093 | CA13: 868.3412094 | CB13: 1876.463338 | CD13: 1923 | CE13: ='Compile Data'!E25 -> 345.7921143 | CF13: ='Compile Data'!E26 -> 623.3582153 | CG13: ='Compile Data'!E27 -> 246.1820221 | CH13: ='Compile Data'!E28 -> 205.7574768 | CI13: ='Compile Data'!E29 -> 200.3646698 | CJ13: ='Compile Data'!E30 -> 249.770462 | CK13: ='Compile Data'!E31 -> 198.6297913 | CL13: ='Compile Data'!E32 -> 188.3809052 | CM13: ='Compile Data'!E33 -> 378.8037109 | CN13: ='Compile Data'!E34 -> 573.8532104 | CO13: ='Compile Data'!E35 -> 1041.633057 | CP13: ='Compile Data'!E36 -> 1537.212524 | CR13: 893.9076373 | CS13: 992.6735331 | CT13: 482.4781799 | CV13: 355.2724571 | CW13: 217.4347229 | CX13: 253.8962173 | CY13: 882.8756256 | CZ13: 1889.611532 | DB13: 1923 | DC13: ='Compile Data'!F25 ->  | DD13: ='Compile Data'!F26 ->  | DE13: ='Compile Data'!F27 ->  | DF13: ='Compile Data'!F28 ->  | DG13: ='Compile Data'!F29 ->  | DH13: ='Compile Data'!F30 ->  | DI13: ='Compile Data'!F31 ->  | DJ13: ='Compile Data'!F32 ->  | DK13: ='Compile Data'!F33 ->  | DL13: ='Compile Data'!F34 ->  | DM13: ='Compile Data'!F35 ->  | DN13: ='Compile Data'!F36 -> 
A14: 1921-11-30 | B14: =INDIRECT(CONCATENATE("'",B$1,"'!",B$4,(YEAR($A14)-1921)*12+MONTH($A14)+3+IF(ISNUMBER(FIND("PRV",B$6)),1,0)))*IF(AND(B$3>0,TRIM(B$9)="CFS"),Conv_Flags!$C14,1) -> 1413.811279 | C14: =INDIRECT(CONCATENATE("'",C$1,"'!",C$4,(YEAR($A14)-1921)*12+MONTH($A14)+3+IF(ISNUMBER(FIND("PRV",C$6)),1,0)))*IF(AND(C$3>0,TRIM(C$9)="CFS"),Conv_Flags!$C14,1) -> 1410.874878 | D14: =INDIRECT(CONCATENATE("'",D$1,"'!",D$4,(YEAR($A14)-1921)*12+MONTH($A14)+3+IF(ISNUMBER(FIND("PRV",D$6)),1,0)))*IF(AND(D$3>0,TRIM(D$9)="CFS"),Conv_Flags!$C14,1) -> 1410.501587 | E14: =INDIRECT(CONCATENATE("'",E$1,"'!",E$4,(YEAR($A14)-1921)*12+MONTH($A14)+3+IF(ISNUMBER(FIND("PRV",E$6)),1,0)))*IF(AND(E$3>0,TRIM(E$9)="CFS"),Conv_Flags!$C14,1) -> 1410.874878 | F14: =INDIRECT(CONCATENATE("'",F$1,"'!",F$4,(YEAR($A14)-1921)*12+MONTH($A14)+3+IF(ISNUMBER(FIND("PRV",F$6)),1,0)))*IF(AND(F$3>0,TRIM(F$9)="CFS"),Conv_Flags!$C14,1) ->  | J14: 1924 | K14: =B37 -> 2506.830811 | L14: =B38 -> 2480.14502 | M14: =B39 -> 2087.549561 | N14: =B40 -> 1221.408447 | O14: =B41 -> 381.3074646 | P14: =B42 -> 300.5654602 | Q14: =B43 -> 667.4066772 | R14: =B44 -> 1602.735474 | S14: =B45 -> 2582.70166 | T14: =B46 -> 2790.875244 | U14: =B47 -> 2602.434814 | V14: =B48 -> 3135.399658 | X14: 1993.367182 | Y14: 1944.925816 | Z14: 1863.280024 | AB14: 2073.983459 | AC14: 1230.088491 | AD14: 1288.352318 | AE14: 2777.852844 | AF14: 3510.441569 | AH14: 1924 | AI14: ='Compile Data'!C37 -> 2037.722778 | AJ14: ='Compile Data'!C38 -> 2206.447266 | AK14: ='Compile Data'!C39 -> 2011.978638 | AL14: ='Compile Data'!C40 -> 1207.632324 | AM14: ='Compile Data'!C41 -> 379.0632935 | AN14: ='Compile Data'!C42 -> 300.163208 | AO14: ='Compile Data'!C43 -> 666.8001709 | AP14: ='Compile Data'!C44 -> 1602.019653 | AQ14: ='Compile Data'!C45 -> 2595.155273 | AR14: ='Compile Data'!C46 -> 2487.16333 | AS14: ='Compile Data'!C47 -> 2461.462402 | AT14: ='Compile Data'!C48 -> 2857.988037 | AV14: 1801.979996 | AW14: 1763.755075 | AX14: 1734.466365 | AZ14: 1865.945251 | BA14: 1199.558085 | BB14: 1291.034576 | BC14: 2600.442261 | BD14: 2809.401937 | BF14: 1924 | BG14: ='Compile Data'!D37 -> 1961.88269 | BH14: ='Compile Data'!D38 -> 2180.561035 | BI14: ='Compile Data'!D39 -> 2001.176147 | BJ14: ='Compile Data'!D40 -> 1203.118286 | BK14: ='Compile Data'!D41 -> 378.4581909 | BL14: ='Compile Data'!D42 -> 299.9630432 | BM14: ='Compile Data'!D43 -> 666.7133179 | BN14: ='Compile Data'!D44 -> 1601.963867 | BO14: ='Compile Data'!D45 -> 2595.406982 | BP14: ='Compile Data'!D46 -> 2483.690186 | BQ14: ='Compile Data'!D47 -> 2527.501709 | BR14: ='Compile Data'!D48 -> 2756.885986 | BT14: 1796.128471 | BU14: 1758.501088 | BV14: 1721.443453 | BX14: 1836.68454 | BY14: 1194.250875 | BZ14: 1291.011803 | CA14: 2590.871216 | CB14: 2766.677165 | CD14: 1924 | CE14: ='Compile Data'!E37 -> 1987.175781 | CF14: ='Compile Data'!E38 -> 2144.446289 | CG14: ='Compile Data'!E39 -> 2020.86377 | CH14: ='Compile Data'!E40 -> 1211.75769 | CI14: ='Compile Data'!E41 -> 379.5552063 | CJ14: ='Compile Data'!E42 -> 300.345459 | CK14: ='Compile Data'!E43 -> 666.9064331 | CL14: ='Compile Data'!E44 -> 1602.029175 | CM14: ='Compile Data'!E45 -> 2598.778076 | CN14: ='Compile Data'!E46 -> 2486.037109 | CO14: ='Compile Data'!E47 -> 2471.648193 | CP14: ='Compile Data'!E48 -> 2903.287109 | CR14: 1806.851652 | CS14: 1767.897856 | CT14: 1731.069191 | CV14: 1841.060883 | CW14: 1204.058889 | CX14: 1292.014786 | CY14: 2614.937622 | CZ14: 2826.039062 | DB14: 1924 | DC14: ='Compile Data'!F37 ->  | DD14: ='Compile Data'!F38 ->  | DE14: ='Compile Data'!F39 ->  | DF14: ='Compile Data'!F40 ->  | DG14: ='Compile Data'!F41 ->  | DH14: ='Compile Data'!F42 ->  | DI14: ='Compile Data'!F43 ->  | DJ14: ='Compile Data'!F44 ->  | DK14: ='Compile Data'!F45 ->  | DL14: ='Compile Data'!F46 ->  | DM14: ='Compile Data'!F47 ->  | DN14: ='Compile Data'!F48 -> 
A15: 1921-12-31 | B15: =INDIRECT(CONCATENATE("'",B$1,"'!",B$4,(YEAR($A15)-1921)*12+MONTH($A15)+3+IF(ISNUMBER(FIND("PRV",B$6)),1,0)))*IF(AND(B$3>0,TRIM(B$9)="CFS"),Conv_Flags!$C15,1) -> 725.8640747 | C15: =INDIRECT(CONCATENATE("'",C$1,"'!",C$4,(YEAR($A15)-1921)*12+MONTH($A15)+3+IF(ISNUMBER(FIND("PRV",C$6)),1,0)))*IF(AND(C$3>0,TRIM(C$9)="CFS"),Conv_Flags!$C15,1) -> 938.8301392 | D15: =INDIRECT(CONCATENATE("'",D$1,"'!",D$4,(YEAR($A15)-1921)*12+MONTH($A15)+3+IF(ISNUMBER(FIND("PRV",D$6)),1,0)))*IF(AND(D$3>0,TRIM(D$9)="CFS"),Conv_Flags!$C15,1) -> 938.7148438 | E15: =INDIRECT(CONCATENATE("'",E$1,"'!",E$4,(YEAR($A15)-1921)*12+MONTH($A15)+3+IF(ISNUMBER(FIND("PRV",E$6)),1,0)))*IF(AND(E$3>0,TRIM(E$9)="CFS"),Conv_Flags!$C15,1) -> 938.8301392 | F15: =INDIRECT(CONCATENATE("'",F$1,"'!",F$4,(YEAR($A15)-1921)*12+MONTH($A15)+3+IF(ISNUMBER(FIND("PRV",F$6)),1,0)))*IF(AND(F$3>0,TRIM(F$9)="CFS"),Conv_Flags!$C15,1) ->  | J15: 1925 | K15: =B49 -> 3696.948975 | L15: =B50 -> 3698.976074 | M15: =B51 -> 1239.64624 | N15: =B52 -> 828.2877197 | O15: =B53 -> 193.1317902 | P15: =B54 -> 199.566803 | Q15: =B55 -> 188.4519196 | R15: =B56 -> 189.3830261 | S15: =B57 -> 452.780304 | T15: =B58 -> 855.6957397 | U15: =B59 -> 2046.848633 | V15: =B60 -> 2604.31665 | X15: 1326.289302 | Y15: 1310.076094 | Z15: 1349.502823 | AB15: 2365.964752 | AC15: 753.6885834 | AD15: 257.5455132 | AE15: 1489.910332 | AF15: 2803.122559 | AH15: 1925 | AI15: ='Compile Data'!C49 -> 2739.878662 | AJ15: ='Compile Data'!C50 -> 2830.339111 | AK15: ='Compile Data'!C51 -> 1496.094482 | AL15: ='Compile Data'!C52 -> 933.0721436 | AM15: ='Compile Data'!C53 -> 194.9244232 | AN15: ='Compile Data'!C54 -> 199.7764435 | AO15: ='Compile Data'!C55 -> 188.509613 | AP15: ='Compile Data'!C56 -> 190.2667999 | AQ15: ='Compile Data'!C57 -> 457.4541626 | AR15: ='Compile Data'!C58 -> 826.5703125 | AS15: ='Compile Data'!C59 -> 1753.640869 | AT15: ='Compile Data'!C60 -> 2301.951172 | AV15: 1261.383905 | AW15: 1242.121852 | AX15: 1176.03985 | AZ15: 1999.8461 | BA15: 874.6970164 | BB15: 259.0017548 | BC15: 1334.904129 | BD15: 2626.048258 | BF15: 1925 | BG15: ='Compile Data'!D49 -> 2718.004395 | BH15: ='Compile Data'!D50 -> 2825.141113 | BI15: ='Compile Data'!D51 -> 1496.69458 | BJ15: ='Compile Data'!D52 -> 935.1104126 | BK15: ='Compile Data'!D53 -> 194.9374695 | BL15: ='Compile Data'!D54 -> 199.9165344 | BM15: ='Compile Data'!D55 -> 188.5552826 | BN15: ='Compile Data'!D56 -> 190.1945038 | BO15: ='Compile Data'!D57 -> 456.8332214 | BP15: ='Compile Data'!D58 -> 841.8325195 | BQ15: ='Compile Data'!D59 -> 1659.197266 | BR15: ='Compile Data'!D60 -> 2448.530518 | BT15: 1279.516118 | BU15: 1260.050737 | BV15: 1179.578985 | BX15: 1993.737625 | BY15: 875.5808207 | BZ15: 258.8748856 | CA15: 1351.598381 | CB15: 2723.460042 | CD15: 1925 | CE15: ='Compile Data'!E49 -> 2749.855225 | CF15: ='Compile Data'!E50 -> 2824.974854 | CG15: ='Compile Data'!E51 -> 1487.045288 | CH15: ='Compile Data'!E52 -> 928.9413452 | CI15: ='Compile Data'!E53 -> 194.9260101 | CJ15: ='Compile Data'!E54 -> 199.812149 | CK15: ='Compile Data'!E55 -> 188.5224762 | CL15: ='Compile Data'!E56 -> 190.2747803 | CM15: ='Compile Data'!E57 -> 457.1951904 | CN15: ='Compile Data'!E58 -> 832.6140137 | CO15: ='Compile Data'!E59 -> 1863.422607 | CP15: ='Compile Data'!E60 -> 2665.187744 | CR15: 1324.981045 | CS15: 1306.043432 | CT15: 1215.230974 | CV15: 1997.704178 | CW15: 870.3042145 | CX15: 258.951149 | CY15: 1454.604889 | CZ15: 2838.200277 | DB15: 1925 | DC15: ='Compile Data'!F49 ->  | DD15: ='Compile Data'!F50 ->  | DE15: ='Compile Data'!F51 ->  | DF15: ='Compile Data'!F52 ->  | DG15: ='Compile Data'!F53 ->  | DH15: ='Compile Data'!F54 ->  | DI15: ='Compile Data'!F55 ->  | DJ15: ='Compile Data'!F56 ->  | DK15: ='Compile Data'!F57 ->  | DL15: ='Compile Data'!F58 ->  | DM15: ='Compile Data'!F59 ->  | DN15: ='Compile Data'!F60 -> 
A16: 1922-01-31 | B16: =INDIRECT(CONCATENATE("'",B$1,"'!",B$4,(YEAR($A16)-1921)*12+MONTH($A16)+3+IF(ISNUMBER(FIND("PRV",B$6)),1,0)))*IF(AND(B$3>0,TRIM(B$9)="CFS"),Conv_Flags!$C16,1) -> 377.3710022 | C16: =INDIRECT(CONCATENATE("'",C$1,"'!",C$4,(YEAR($A16)-1921)*12+MONTH($A16)+3+IF(ISNUMBER(FIND("PRV",C$6)),1,0)))*IF(AND(C$3>0,TRIM(C$9)="CFS"),Conv_Flags!$C16,1) -> 432.3120422 | D16: =INDIRECT(CONCATENATE("'",D$1,"'!",D$4,(YEAR($A16)-1921)*12+MONTH($A16)+3+IF(ISNUMBER(FIND("PRV",D$6)),1,0)))*IF(AND(D$3>0,TRIM(D$9)="CFS"),Conv_Flags!$C16,1) -> 432.4196472 | E16: =INDIRECT(CONCATENATE("'",E$1,"'!",E$4,(YEAR($A16)-1921)*12+MONTH($A16)+3+IF(ISNUMBER(FIND("PRV",E$6)),1,0)))*IF(AND(E$3>0,TRIM(E$9)="CFS"),Conv_Flags!$C16,1) -> 432.3120422 | F16: =INDIRECT(CONCATENATE("'",F$1,"'!",F$4,(YEAR($A16)-1921)*12+MONTH($A16)+3+IF(ISNUMBER(FIND("PRV",F$6)),1,0)))*IF(AND(F$3>0,TRIM(F$9)="CFS"),Conv_Flags!$C16,1) ->  | J16: 1926 | K16: =B61 -> 3140.509033 | L16: =B62 -> 2664.541992 | M16: =B63 -> 2551.958008 | N16: =B64 -> 625.4636841 | O16: =B65 -> 201.3973389 | P16: =B66 -> 204.1587677 | Q16: =B67 -> 189.4252625 | R16: =B68 -> 212.7991943 | S16: =B69 -> 750.0795288 | T16: =B70 -> 1077.115845 | U16: =B71 -> 2430.013672 | V16: =B72 -> 2930.322998 | X16: 1051.951227 | Y16: 1013.89918 | Z16: 1414.815444 | AB16: 2245.618179 | AC16: 1126.27301 | AD16: 339.1156883 | AE16: 1796.883011 | AF16: 2235.908936 | AH16: 1926 | AI16: ='Compile Data'!C61 -> 2949.035645 | AJ16: ='Compile Data'!C62 -> 2627.157959 | AK16: ='Compile Data'!C63 -> 2514.247314 | AL16: ='Compile Data'!C64 -> 692.9874268 | AM16: ='Compile Data'!C65 -> 203.864502 | AN16: ='Compile Data'!C66 -> 204.5947266 | AO16: ='Compile Data'!C67 -> 189.9102478 | AP16: ='Compile Data'!C68 -> 212.0684509 | AQ16: ='Compile Data'!C69 -> 774.4702759 | AR16: ='Compile Data'!C70 -> 1061.860474 | AS16: ='Compile Data'!C71 -> 2445.096191 | AT16: ='Compile Data'!C72 -> 2945.406494 | AV16: 1063.119593 | AW16: 1019.270026 | AX16: 1401.724976 | AZ16: 2195.857086 | BA16: 1137.033081 | BB16: 345.2609253 | BC16: 1806.708359 | BD16: 2250.294596 | BF16: 1926 | BG16: ='Compile Data'!D61 -> 3073.230225 | BH16: ='Compile Data'!D62 -> 2648.619385 | BI16: ='Compile Data'!D63 -> 2517.236084 | BJ16: ='Compile Data'!D64 -> 692.6592407 | BK16: ='Compile Data'!D65 -> 203.8040619 | BL16: ='Compile Data'!D66 -> 204.5827789 | BM16: ='Compile Data'!D67 -> 189.9088135 | BN16: ='Compile Data'!D68 -> 212.1737366 | BO16: ='Compile Data'!D69 -> 741.8908691 | BP16: ='Compile Data'!D70 -> 994.7122192 | BQ16: ='Compile Data'!D71 -> 2386.878418 | BR16: ='Compile Data'!D72 -> 2970.534668 | BT16: 1067.565039 | BU16: 1023.871278 | BV16: 1403.019208 | BX16: 2232.936234 | BY16: 1137.899796 | BZ16: 337.1390495 | CA16: 1773.504044 | CB16: 2311.986959 | CD16: 1926 | CE16: ='Compile Data'!E61 -> 3174.614502 | CF16: ='Compile Data'!E62 -> 2674.798584 | CG16: ='Compile Data'!E63 -> 2529.463135 | CH16: ='Compile Data'!E64 -> 692.8370972 | CI16: ='Compile Data'!E65 -> 203.7789001 | CJ16: ='Compile Data'!E66 -> 204.5566711 | CK16: ='Compile Data'!E67 -> 189.896225 | CL16: ='Compile Data'!E68 -> 212.0576019 | CM16: ='Compile Data'!E69 -> 774.6157227 | CN16: ='Compile Data'!E70 -> 1047.705078 | CO16: ='Compile Data'!E71 -> 2226.182373 | CP16: ='Compile Data'!E72 -> 2745.540527 | CR16: 1020.542466 | CS16: 976.7093124 | CT16: 1389.670535 | CV16: 2267.928329 | CW16: 1142.026377 | CX16: 345.2815552 | CY16: 1698.510925 | CZ16: 2157.8986 | DB16: 1926 | DC16: ='Compile Data'!F61 ->  | DD16: ='Compile Data'!F62 ->  | DE16: ='Compile Data'!F63 ->  | DF16: ='Compile Data'!F64 ->  | DG16: ='Compile Data'!F65 ->  | DH16: ='Compile Data'!F66 ->  | DI16: ='Compile Data'!F67 ->  | DJ16: ='Compile Data'!F68 ->  | DK16: ='Compile Data'!F69 ->  | DL16: ='Compile Data'!F70 ->  | DM16: ='Compile Data'!F71 ->  | DN16: ='Compile Data'!F72 -> 
A17: 1922-02-28 | B17: =INDIRECT(CONCATENATE("'",B$1,"'!",B$4,(YEAR($A17)-1921)*12+MONTH($A17)+3+IF(ISNUMBER(FIND("PRV",B$6)),1,0)))*IF(AND(B$3>0,TRIM(B$9)="CFS"),Conv_Flags!$C17,1) -> 213.2744141 | C17: =INDIRECT(CONCATENATE("'",C$1,"'!",C$4,(YEAR($A17)-1921)*12+MONTH($A17)+3+IF(ISNUMBER(FIND("PRV",C$6)),1,0)))*IF(AND(C$3>0,TRIM(C$9)="CFS"),Conv_Flags!$C17,1) -> 215.5066833 | D17: =INDIRECT(CONCATENATE("'",D$1,"'!",D$4,(YEAR($A17)-1921)*12+MONTH($A17)+3+IF(ISNUMBER(FIND("PRV",D$6)),1,0)))*IF(AND(D$3>0,TRIM(D$9)="CFS"),Conv_Flags!$C17,1) -> 215.4534302 | E17: =INDIRECT(CONCATENATE("'",E$1,"'!",E$4,(YEAR($A17)-1921)*12+MONTH($A17)+3+IF(ISNUMBER(FIND("PRV",E$6)),1,0)))*IF(AND(E$3>0,TRIM(E$9)="CFS"),Conv_Flags!$C17,1) -> 215.5066833 | F17: =INDIRECT(CONCATENATE("'",F$1,"'!",F$4,(YEAR($A17)-1921)*12+MONTH($A17)+3+IF(ISNUMBER(FIND("PRV",F$6)),1,0)))*IF(AND(F$3>0,TRIM(F$9)="CFS"),Conv_Flags!$C17,1) ->  | J17: 1927 | K17: =B73 -> 3160.186768 | L17: =B74 -> 617.217041 | M17: =B75 -> 225.2346191 | N17: =B76 -> 187.9845581 | O17: =B77 -> 182.2519073 | P17: =B78 -> 182.3412323 | Q17: =B79 -> 179.2302399 | R17: =B80 -> 180.7427979 | S17: =B81 -> 197.1528778 | T17: =B82 -> 312.7129822 | U17: =B83 -> 624.3966064 | V17: =B84 -> 358.0662842 | X17: 349.9029922 | Y17: 359.7565486 | Z17: 533.9598262 | AB17: 1047.655746 | AC17: 198.4903615 | AD17: 184.866787 | AE17: 373.0821877 | AF17: 467.728007 | AH17: 1927 | AI17: ='Compile Data'!C73 -> 3191.013428 | AJ17: ='Compile Data'!C74 -> 614.4638672 | AK17: ='Compile Data'!C75 -> 221.6990356 | AL17: ='Compile Data'!C76 -> 188.090744 | AM17: ='Compile Data'!C77 -> 182.5663757 | AN17: ='Compile Data'!C78 -> 182.8836517 | AO17: ='Compile Data'!C79 -> 179.6508942 | AP17: ='Compile Data'!C80 -> 180.7958221 | AQ17: ='Compile Data'!C81 -> 198.3448181 | AR17: ='Compile Data'!C82 -> 314.5925903 | AS17: ='Compile Data'!C83 -> 587.9439697 | AT17: ='Compile Data'!C84 -> 336.4458923 | AV17: 375.7299779 | AW17: 388.7852936 | AX17: 531.5409241 | AZ17: 1053.816769 | BA17: 197.4520518 | BB17: 185.4187965 | BC17: 359.3318176 | BD17: 511.5894572 | BF17: 1927 | BG17: ='Compile Data'!D73 -> 3305.340332 | BH17: ='Compile Data'!D74 -> 660.0858765 | BI17: ='Compile Data'!D75 -> 248.2094574 | BJ17: ='Compile Data'!D76 -> 189.503952 | BK17: ='Compile Data'!D77 -> 182.6342163 | BL17: ='Compile Data'!D78 -> 182.8989716 | BM17: ='Compile Data'!D79 -> 179.6519775 | BN17: ='Compile Data'!D80 -> 180.7983246 | BO17: ='Compile Data'!D81 -> 198.3562775 | BP17: ='Compile Data'!D82 -> 314.6089783 | BQ17: ='Compile Data'!D83 -> 587.9561768 | BR17: ='Compile Data'!D84 -> 336.4342957 | BT17: 376.5630671 | BU17: 389.5298169 | BV17: 547.2065697 | BX17: 1100.784904 | BY17: 206.7825419 | BZ17: 185.4263878 | CA17: 359.338932 | CB17: 513.5929464 | CD17: 1927 | CE17: ='Compile Data'!E73 -> 3118.291992 | CF17: ='Compile Data'!E74 -> 609.8632812 | CG17: ='Compile Data'!E75 -> 221.1841278 | CH17: ='Compile Data'!E76 -> 188.0542755 | CI17: ='Compile Data'!E77 -> 182.5638733 | CJ17: ='Compile Data'!E78 -> 182.8811035 | CK17: ='Compile Data'!E79 -> 179.6491241 | CL17: ='Compile Data'!E80 -> 180.792923 | CM17: ='Compile Data'!E81 -> 198.3407593 | CN17: ='Compile Data'!E82 -> 314.5528564 | CO17: ='Compile Data'!E83 -> 587.9888306 | CP17: ='Compile Data'!E84 -> 336.4528198 | CR17: 375.5008074 | CS17: 388.5623029 | CT17: 525.0513306 | CV17: 1034.348419 | CW17: 197.2674255 | CX17: 185.4159775 | CY17: 359.3338165 | CZ17: 510.5799459 | DB17: 1927 | DC17: ='Compile Data'!F73 ->  | DD17: ='Compile Data'!F74 ->  | DE17: ='Compile Data'!F75 ->  | DF17: ='Compile Data'!F76 ->  | DG17: ='Compile Data'!F77 ->  | DH17: ='Compile Data'!F78 ->  | DI17: ='Compile Data'!F79 ->  | DJ17: ='Compile Data'!F80 ->  | DK17: ='Compile Data'!F81 ->  | DL17: ='Compile Data'!F82 ->  | DM17: ='Compile Data'!F83 ->  | DN17: ='Compile Data'!F84 -> 
A18: 1922-03-31 | B18: =INDIRECT(CONCATENATE("'",B$1,"'!",B$4,(YEAR($A18)-1921)*12+MONTH($A18)+3+IF(ISNUMBER(FIND("PRV",B$6)),1,0)))*IF(AND(B$3>0,TRIM(B$9)="CFS"),Conv_Flags!$C18,1) -> 197.6605072 | C18: =INDIRECT(CONCATENATE("'",C$1,"'!",C$4,(YEAR($A18)-1921)*12+MONTH($A18)+3+IF(ISNUMBER(FIND("PRV",C$6)),1,0)))*IF(AND(C$3>0,TRIM(C$9)="CFS"),Conv_Flags!$C18,1) -> 199.7300262 | D18: =INDIRECT(CONCATENATE("'",D$1,"'!",D$4,(YEAR($A18)-1921)*12+MONTH($A18)+3+IF(ISNUMBER(FIND("PRV",D$6)),1,0)))*IF(AND(D$3>0,TRIM(D$9)="CFS"),Conv_Flags!$C18,1) -> 199.7129974 | E18: =INDIRECT(CONCATENATE("'",E$1,"'!",E$4,(YEAR($A18)-1921)*12+MONTH($A18)+3+IF(ISNUMBER(FIND("PRV",E$6)),1,0)))*IF(AND(E$3>0,TRIM(E$9)="CFS"),Conv_Flags!$C18,1) -> 199.7300262 | F18: =INDIRECT(CONCATENATE("'",F$1,"'!",F$4,(YEAR($A18)-1921)*12+MONTH($A18)+3+IF(ISNUMBER(FIND("PRV",F$6)),1,0)))*IF(AND(F$3>0,TRIM(F$9)="CFS"),Conv_Flags!$C18,1) ->  | J18: 1928 | K18: =B85 -> 498.5163574 | L18: =B86 -> 546.6013794 | M18: =B87 -> 748.8386841 | N18: =B88 -> 296.1450195 | O18: =B89 -> 192.3341217 | P18: =B90 -> 180.5455322 | Q18: =B91 -> 184.5190125 | R18: =B92 -> 217.6472473 | S18: =B93 -> 353.4856567 | T18: =B94 -> 318.8152466 | U18: =B95 -> 666.2327881 | V18: =B96 -> 418.2216797 | X18: 464.7561353 | Y18: 538.5725377 | Z18: 385.1585604 | AB18: 522.5253601 | AC18: 412.4392751 | AD18: 234.0493622 | AE18: 439.1888428 | AF18: 567.4207764 | AH18: 1928 | AI18: ='Compile Data'!C85 -> 465.1993103 | AJ18: ='Compile Data'!C86 -> 733.1231689 | AK18: ='Compile Data'!C87 -> 959.1224976 | AL18: ='Compile Data'!C88 -> 332.2983704 | AM18: ='Compile Data'!C89 -> 195.0225372 | AN18: ='Compile Data'!C90 -> 180.8307037 | AO18: ='Compile Data'!C91 -> 184.3596802 | AP18: ='Compile Data'!C92 -> 221.6014862 | AQ18: ='Compile Data'!C93 -> 356.6270142 | AR18: ='Compile Data'!C94 -> 316.2366943 | AS18: ='Compile Data'!C95 -> 664.1743774 | AT18: ='Compile Data'!C96 -> 419.0632629 | AV18: 467.891084 | AW18: 538.5503031 | AX18: 418.9715919 | AZ18: 622.4358368 | BA18: 495.4811351 | BB18: 235.8547211 | BC18: 439.0253372 | BD18: 566.7845561 | BF18: 1928 | BG18: ='Compile Data'!D85 -> 468.5184326 | BH18: ='Compile Data'!D86 -> 735.8261108 | BI18: ='Compile Data'!D87 -> 961.5690918 | BJ18: ='Compile Data'!D88 -> 332.6952515 | BK18: ='Compile Data'!D89 -> 195.0439148 | BL18: ='Compile Data'!D90 -> 180.8305359 | BM18: ='Compile Data'!D91 -> 184.3586121 | BN18: ='Compile Data'!D92 -> 221.5958557 | BO18: ='Compile Data'!D93 -> 357.5187683 | BP18: ='Compile Data'!D94 -> 313.8947144 | BQ18: ='Compile Data'!D95 -> 665.0983887 | BR18: ='Compile Data'!D96 -> 420.3938599 | BT18: 468.0475184 | BU18: 538.6838226 | BV18: 419.778628 | BX18: 624.6522217 | BY18: 496.436086 | BZ18: 236.075943 | CA18: 439.2264328 | CB18: 567.3541667 | CD18: 1928 | CE18: ='Compile Data'!E85 -> 462.8009949 | CF18: ='Compile Data'!E86 -> 732.4860229 | CG18: ='Compile Data'!E87 -> 959.446106 | CH18: ='Compile Data'!E88 -> 332.3316345 | CI18: ='Compile Data'!E89 -> 195.0244598 | CJ18: ='Compile Data'!E90 -> 180.8302765 | CK18: ='Compile Data'!E91 -> 184.3663177 | CL18: ='Compile Data'!E92 -> 221.6089478 | CM18: ='Compile Data'!E93 -> 356.6240845 | CN18: ='Compile Data'!E94 -> 316.1938782 | CO18: ='Compile Data'!E95 -> 642.1778564 | CP18: ='Compile Data'!E96 -> 411.484314 | CR18: 465.3350512 | CS18: 535.9934107 | CT18: 416.2812411 | CV18: 621.7661896 | CW18: 495.6007334 | CX18: 235.8574066 | CY18: 431.6200333 | CZ18: 563.8906657 | DB18: 1928 | DC18: ='Compile Data'!F85 ->  | DD18: ='Compile Data'!F86 ->  | DE18: ='Compile Data'!F87 ->  | DF18: ='Compile Data'!F88 ->  | DG18: ='Compile Data'!F89 ->  | DH18: ='Compile Data'!F90 ->  | DI18: ='Compile Data'!F91 ->  | DJ18: ='Compile Data'!F92 ->  | DK18: ='Compile Data'!F93 ->  | DL18: ='Compile Data'!F94 ->  | DM18: ='Compile Data'!F95 ->  | DN18: ='Compile Data'!F96 -> 
A19: 1922-04-30 | B19: =INDIRECT(CONCATENATE("'",B$1,"'!",B$4,(YEAR($A19)-1921)*12+MONTH($A19)+3+IF(ISNUMBER(FIND("PRV",B$6)),1,0)))*IF(AND(B$3>0,TRIM(B$9)="CFS"),Conv_Flags!$C19,1) -> 186.5575104 | C19: =INDIRECT(CONCATENATE("'",C$1,"'!",C$4,(YEAR($A19)-1921)*12+MONTH($A19)+3+IF(ISNUMBER(FIND("PRV",C$6)),1,0)))*IF(AND(C$3>0,TRIM(C$9)="CFS"),Conv_Flags!$C19,1) -> 186.6403351 | D19: =INDIRECT(CONCATENATE("'",D$1,"'!",D$4,(YEAR($A19)-1921)*12+MONTH($A19)+3+IF(ISNUMBER(FIND("PRV",D$6)),1,0)))*IF(AND(D$3>0,TRIM(D$9)="CFS"),Conv_Flags!$C19,1) -> 186.3686066 | E19: =INDIRECT(CONCATENATE("'",E$1,"'!",E$4,(YEAR($A19)-1921)*12+MONTH($A19)+3+IF(ISNUMBER(FIND("PRV",E$6)),1,0)))*IF(AND(E$3>0,TRIM(E$9)="CFS"),Conv_Flags!$C19,1) -> 186.6403351 | F19: =INDIRECT(CONCATENATE("'",F$1,"'!",F$4,(YEAR($A19)-1921)*12+MONTH($A19)+3+IF(ISNUMBER(FIND("PRV",F$6)),1,0)))*IF(AND(F$3>0,TRIM(F$9)="CFS"),Conv_Flags!$C19,1) ->  | J19: 1929 | K19: =B97 -> 532.1372681 | L19: =B98 -> 751.9033813 | M19: =B99 -> 1465.08667 | N19: =B100 -> 1055.245728 | O19: =B101 -> 319.0302429 | P19: =B102 -> 315.2254944 | Q19: =B103 -> 413.4848328 | R19: =B104 -> 580.3488159 | S19: =B105 -> 802.3283691 | T19: =B106 -> 1446.93457 | U19: =B107 -> 2648.667969 | V19: =B108 -> 3280.216309 | X19: 1620.331383 | Y19: 1542.380207 | Z19: 1134.217471 | AB19: 951.0932617 | AC19: 946.4542135 | AD19: 527.8468781 | AE19: 2044.536804 | AF19: 3711.698649 | AH19: 1929 | AI19: ='Compile Data'!C97 -> 533.0939331 | AJ19: ='Compile Data'!C98 -> 748.1964722 | AK19: ='Compile Data'!C99 -> 1463.188477 | AL19: ='Compile Data'!C100 -> 1051.599976 | AM19: ='Compile Data'!C101 -> 323.6315613 | AN19: ='Compile Data'!C102 -> 310.2161865 | AO19: ='Compile Data'!C103 -> 407.2294006 | AP19: ='Compile Data'!C104 -> 563.9927979 | AQ19: ='Compile Data'!C105 -> 794.3400269 | AR19: ='Compile Data'!C106 -> 1316.544556 | AS19: ='Compile Data'!C107 -> 2308.773438 | AT19: ='Compile Data'!C108 -> 2755.172852 | AV19: 1299.362045 | AW19: 1221.116704 | AX19: 1047.998306 | AZ19: 949.0197144 | BA19: 946.1400045 | BB19: 518.944603 | BC19: 1793.707718 | BD19: 2625.974772 | BF19: 1929 | BG19: ='Compile Data'!D97 -> 533.3970947 | BH19: ='Compile Data'!D98 -> 748.2715454 | BI19: ='Compile Data'!D99 -> 1463.47168 | BJ19: ='Compile Data'!D100 -> 1051.651245 | BK19: ='Compile Data'!D101 -> 323.7235718 | BL19: ='Compile Data'!D102 -> 308.2251282 | BM19: ='Compile Data'!D103 -> 407.9821472 | BN19: ='Compile Data'!D104 -> 564.1404419 | BO19: ='Compile Data'!D105 -> 794.1741333 | BP19: ='Compile Data'!D106 -> 1324.224487 | BQ19: ='Compile Data'!D107 -> 2310.844727 | BR19: ='Compile Data'!D108 -> 2756.928467 | BT19: 1301.292013 | BU19: 1223.044432 | BV19: 1048.919556 | BX19: 949.1978912 | BY19: 946.2821655 | BZ19: 518.6304626 | CA19: 1796.542953 | CB19: 2630.634847 | CD19: 1929 | CE19: ='Compile Data'!E97 -> 532.0199585 | CF19: ='Compile Data'!E98 -> 748.1677246 | CG19: ='Compile Data'!E99 -> 1463.191162 | CH19: ='Compile Data'!E100 -> 1051.620972 | CI19: ='Compile Data'!E101 -> 323.635437 | CJ19: ='Compile Data'!E102 -> 310.2232361 | CK19: ='Compile Data'!E103 -> 407.223999 | CL19: ='Compile Data'!E104 -> 563.9942627 | CM19: ='Compile Data'!E105 -> 794.387085 | CN19: ='Compile Data'!E106 -> 1315.225464 | CO19: ='Compile Data'!E107 -> 2310.926758 | CP19: ='Compile Data'!E108 -> 2754.549561 | CR19: 1296.473422 | CS19: 1218.230489 | CT19: 1047.930468 | CV19: 948.7499542 | CW19: 946.1491903 | CX19: 518.9571457 | CY19: 1793.772217 | CZ19: 2614.19165 | DB19: 1929 | DC19: ='Compile Data'!F97 ->  | DD19: ='Compile Data'!F98 ->  | DE19: ='Compile Data'!F99 ->  | DF19: ='Compile Data'!F100 ->  | DG19: ='Compile Data'!F101 ->  | DH19: ='Compile Data'!F102 ->  | DI19: ='Compile Data'!F103 ->  | DJ19: ='Compile Data'!F104 ->  | DK19: ='Compile Data'!F105 ->  | DL19: ='Compile Data'!F106 ->  | DM19: ='Compile Data'!F107 ->  | DN19: ='Compile Data'!F108 -> 
A20: 1922-05-31 | B20: =INDIRECT(CONCATENATE("'",B$1,"'!",B$4,(YEAR($A20)-1921)*12+MONTH($A20)+3+IF(ISNUMBER(FIND("PRV",B$6)),1,0)))*IF(AND(B$3>0,TRIM(B$9)="CFS"),Conv_Flags!$C20,1) -> 177.6238556 | C20: =INDIRECT(CONCATENATE("'",C$1,"'!",C$4,(YEAR($A20)-1921)*12+MONTH($A20)+3+IF(ISNUMBER(FIND("PRV",C$6)),1,0)))*IF(AND(C$3>0,TRIM(C$9)="CFS"),Conv_Flags!$C20,1) -> 177.6580353 | D20: =INDIRECT(CONCATENATE("'",D$1,"'!",D$4,(YEAR($A20)-1921)*12+MONTH($A20)+3+IF(ISNUMBER(FIND("PRV",D$6)),1,0)))*IF(AND(D$3>0,TRIM(D$9)="CFS"),Conv_Flags!$C20,1) -> 177.645462 | E20: =INDIRECT(CONCATENATE("'",E$1,"'!",E$4,(YEAR($A20)-1921)*12+MONTH($A20)+3+IF(ISNUMBER(FIND("PRV",E$6)),1,0)))*IF(AND(E$3>0,TRIM(E$9)="CFS"),Conv_Flags!$C20,1) -> 177.6580353 | F20: =INDIRECT(CONCATENATE("'",F$1,"'!",F$4,(YEAR($A20)-1921)*12+MONTH($A20)+3+IF(ISNUMBER(FIND("PRV",F$6)),1,0)))*IF(AND(F$3>0,TRIM(F$9)="CFS"),Conv_Flags!$C20,1) ->  | J20: 1930 | K20: =B109 -> 3807.056396 | L20: =B110 -> 4047.823242 | M20: =B111 -> 727.614624 | N20: =B112 -> 234.6273804 | O20: =B113 -> 204.2344818 | P20: =B114 -> 187.5675659 | Q20: =B115 -> 202.1295471 | R20: =B116 -> 414.2199707 | S20: =B117 -> 624.2158203 | T20: =B118 -> 998.8894043 | U20: =B119 -> 2012.291382 | V20: =B120 -> 3060.051025 | X20: 1364.130515 | Y20: 1453.832878 | Z20: 1376.726737 | AB20: 2204.280411 | AC20: 388.8254954 | AD20: 357.033226 | AE20: 1673.861908 | AF20: 2990.137695 | AH20: 1930 | AI20: ='Compile Data'!C109 -> 2451.250732 | AJ20: ='Compile Data'!C110 -> 2671.500732 | AK20: ='Compile Data'!C111 -> 638.0922852 | AL20: ='Compile Data'!C112 -> 231.7825012 | AM20: ='Compile Data'!C113 -> 204.5049438 | AN20: ='Compile Data'!C114 -> 188.6687775 | AO20: ='Compile Data'!C115 -> 202.9065247 | AP20: ='Compile Data'!C116 -> 392.3634033 | AQ20: ='Compile Data'!C117 -> 609.4140015 | AR20: ='Compile Data'!C118 -> 929.3085938 | AS20: ='Compile Data'!C119 -> 1650.636353 | AT20: ='Compile Data'!C120 -> 2516.108887 | AV20: 1221.238639 | AW20: 1311.933826 | AX20: 1057.211478 | AZ20: 1498.156563 | BA20: 358.1265767 | BB20: 348.3381767 | BC20: 1426.366959 | BD20: 2607.691243 | BF20: 1930 | BG20: ='Compile Data'!D109 -> 2456.262207 | BH20: ='Compile Data'!D110 -> 2678.713867 | BI20: ='Compile Data'!D111 -> 638.633728 | BJ20: ='Compile Data'!D112 -> 231.8854828 | BK20: ='Compile Data'!D113 -> 204.5183716 | BL20: ='Compile Data'!D114 -> 188.6694489 | BM20: ='Compile Data'!D115 -> 202.9195709 | BN20: ='Compile Data'!D116 -> 392.3859253 | BO20: ='Compile Data'!D117 -> 609.5056763 | BP20: ='Compile Data'!D118 -> 927.2217407 | BQ20: ='Compile Data'!D119 -> 1670.639648 | BR20: ='Compile Data'!D120 -> 2541.562744 | BT20: 1222.091045 | BU20: 1312.696826 | BV20: 1061.909868 | BX20: 1501.373821 | BY20: 358.3458608 | BZ20: 348.3701553 | CA20: 1437.232452 | CB20: 2604.769694 | CD20: 1930 | CE20: ='Compile Data'!E109 -> 2432.368408 | CF20: ='Compile Data'!E110 -> 2655.656982 | CG20: ='Compile Data'!E111 -> 637.8688965 | CH20: ='Compile Data'!E112 -> 231.8330231 | CI20: ='Compile Data'!E113 -> 204.508194 | CJ20: ='Compile Data'!E114 -> 188.6684113 | CK20: ='Compile Data'!E115 -> 202.9076233 | CL20: ='Compile Data'!E116 -> 392.3675232 | CM20: ='Compile Data'!E117 -> 609.4314575 | CN20: ='Compile Data'!E118 -> 928.9241333 | CO20: ='Compile Data'!E119 -> 1654.258179 | CP20: ='Compile Data'!E120 -> 2590.240234 | CR20: 1231.742359 | CS20: 1322.463034 | CT20: 1060.752755 | CV20: 1489.431828 | CW20: 358.0700378 | CX20: 348.3437538 | CY20: 1445.713501 | CZ20: 2648.059733 | DB20: 1930 | DC20: ='Compile Data'!F109 ->  | DD20: ='Compile Data'!F110 ->  | DE20: ='Compile Data'!F111 ->  | DF20: ='Compile Data'!F112 ->  | DG20: ='Compile Data'!F113 ->  | DH20: ='Compile Data'!F114 ->  | DI20: ='Compile Data'!F115 ->  | DJ20: ='Compile Data'!F116 ->  | DK20: ='Compile Data'!F117 ->  | DL20: ='Compile Data'!F118 ->  | DM20: ='Compile Data'!F119 ->  | DN20: ='Compile Data'!F120 -> 
A21: 1922-06-30 | B21: =INDIRECT(CONCATENATE("'",B$1,"'!",B$4,(YEAR($A21)-1921)*12+MONTH($A21)+3+IF(ISNUMBER(FIND("PRV",B$6)),1,0)))*IF(AND(B$3>0,TRIM(B$9)="CFS"),Conv_Flags!$C21,1) -> 180.4200134 | C21: =INDIRECT(CONCATENATE("'",C$1,"'!",C$4,(YEAR($A21)-1921)*12+MONTH($A21)+3+IF(ISNUMBER(FIND("PRV",C$6)),1,0)))*IF(AND(C$3>0,TRIM(C$9)="CFS"),Conv_Flags!$C21,1) -> 180.5178528 | D21: =INDIRECT(CONCATENATE("'",D$1,"'!",D$4,(YEAR($A21)-1921)*12+MONTH($A21)+3+IF(ISNUMBER(FIND("PRV",D$6)),1,0)))*IF(AND(D$3>0,TRIM(D$9)="CFS"),Conv_Flags!$C21,1) -> 180.5171509 | E21: =INDIRECT(CONCATENATE("'",E$1,"'!",E$4,(YEAR($A21)-1921)*12+MONTH($A21)+3+IF(ISNUMBER(FIND("PRV",E$6)),1,0)))*IF(AND(E$3>0,TRIM(E$9)="CFS"),Conv_Flags!$C21,1) -> 180.5178528 | F21: =INDIRECT(CONCATENATE("'",F$1,"'!",F$4,(YEAR($A21)-1921)*12+MONTH($A21)+3+IF(ISNUMBER(FIND("PRV",F$6)),1,0)))*IF(AND(F$3>0,TRIM(F$9)="CFS"),Conv_Flags!$C21,1) ->  | J21: 1931 | K21: =B121 -> 3153.862549 | L21: =B122 -> 2756.499512 | M21: =B123 -> 2520.977539 | N21: =B124 -> 999.913147 | O21: =B125 -> 515.3770752 | P21: =B126 -> 593.583313 | Q21: =B127 -> 657.3340454 | R21: =B128 -> 1485.363403 | S21: =B129 -> 2542.739502 | T21: =B130 -> 2627.164062 | U21: =B131 -> 2639.312256 | V21: =B132 -> 3143.862061 | X21: 1949.472178 | Y21: 1862.243169 | Z21: 1969.665705 | AB21: 2357.813187 | AC21: 1345.422587 | AD21: 1319.755066 | AE21: 2738.26947 | AF21: 3568.900798 | AH21: 1931 | AI21: ='Compile Data'!C121 -> 2826.637939 | AJ21: ='Compile Data'!C122 -> 2480.326904 | AK21: ='Compile Data'!C123 -> 2422.204834 | AL21: ='Compile Data'!C124 -> 1009.515503 | AM21: ='Compile Data'!C125 -> 515.1141968 | AN21: ='Compile Data'!C126 -> 603.0656738 | AO21: ='Compile Data'!C127 -> 650.4379272 | AP21: ='Compile Data'!C128 -> 1486.234741 | AQ21: ='Compile Data'!C129 -> 2542.945068 | AR21: ='Compile Data'!C130 -> 2641.649414 | AS21: ='Compile Data'!C131 -> 2646.793945 | AT21: ='Compile Data'!C132 -> 3148.87207 | AV21: 1955.367833 | AW21: 1868.613135 | AX21: 1914.483185 | AZ21: 2184.671295 | BA21: 1315.611511 | BB21: 1320.670853 | BC21: 2745.065125 | BD21: 3567.931315 | BF21: 1931 | BG21: ='Compile Data'!D121 -> 2811.93042 | BH21: ='Compile Data'!D122 -> 2460.815918 | BI21: ='Compile Data'!D123 -> 2423.037598 | BJ21: ='Compile Data'!D124 -> 1008.871094 | BK21: ='Compile Data'!D125 -> 514.802124 | BL21: ='Compile Data'!D126 -> 603.0804443 | BM21: ='Compile Data'!D127 -> 649.3728638 | BN21: ='Compile Data'!D128 -> 1486.550659 | BO21: ='Compile Data'!D129 -> 2542.880371 | BP21: ='Compile Data'!D130 -> 2646.403809 | BQ21: ='Compile Data'!D131 -> 2652.769531 | BR21: ='Compile Data'!D132 -> 3153.861328 | BT21: 1955.176936 | BU21: 1868.505268 | BV21: 1912.86468 | BX21: 2176.163757 | BY21: 1315.570272 | BZ21: 1320.471085 | CA21: 2748.97876 | CB21: 3564.101644 | CD21: 1931 | CE21: ='Compile Data'!E121 -> 2867.5354 | CF21: ='Compile Data'!E122 -> 2486.403564 | CG21: ='Compile Data'!E123 -> 2423.830566 | CH21: ='Compile Data'!E124 -> 1009.851562 | CI21: ='Compile Data'!E125 -> 515.1377563 | CJ21: ='Compile Data'!E126 -> 603.0635986 | CK21: ='Compile Data'!E127 -> 650.3458252 | CL21: ='Compile Data'!E128 -> 1486.262695 | CM21: ='Compile Data'!E129 -> 2542.976074 | CN21: ='Compile Data'!E130 -> 2641.586182 | CO21: ='Compile Data'!E131 -> 2646.636719 | CP21: ='Compile Data'!E132 -> 3148.744385 | CR21: 1955.398183 | CS21: 1868.612835 | CT21: 1918.531194 | CV21: 2196.905273 | CW21: 1316.273295 | CX21: 1320.662048 | CY21: 2744.98584 | CZ21: 3568.012207 | DB21: 1931 | DC21: ='Compile Data'!F121 ->  | DD21: ='Compile Data'!F122 ->  | DE21: ='Compile Data'!F123 ->  | DF21: ='Compile Data'!F124 ->  | DG21: ='Compile Data'!F125 ->  | DH21: ='Compile Data'!F126 ->  | DI21: ='Compile Data'!F127 ->  | DJ21: ='Compile Data'!F128 ->  | DK21: ='Compile Data'!F129 ->  | DL21: ='Compile Data'!F130 ->  | DM21: ='Compile Data'!F131 ->  | DN21: ='Compile Data'!F132 -> 
A22: 1922-07-31 | B22: =INDIRECT(CONCATENATE("'",B$1,"'!",B$4,(YEAR($A22)-1921)*12+MONTH($A22)+3+IF(ISNUMBER(FIND("PRV",B$6)),1,0)))*IF(AND(B$3>0,TRIM(B$9)="CFS"),Conv_Flags!$C22,1) -> 240.1080933 | C22: =INDIRECT(CONCATENATE("'",C$1,"'!",C$4,(YEAR($A22)-1921)*12+MONTH($A22)+3+IF(ISNUMBER(FIND("PRV",C$6)),1,0)))*IF(AND(C$3>0,TRIM(C$9)="CFS"),Conv_Flags!$C22,1) -> 240.3972931 | D22: =INDIRECT(CONCATENATE("'",D$1,"'!",D$4,(YEAR($A22)-1921)*12+MONTH($A22)+3+IF(ISNUMBER(FIND("PRV",D$6)),1,0)))*IF(AND(D$3>0,TRIM(D$9)="CFS"),Conv_Flags!$C22,1) -> 240.3962097 | E22: =INDIRECT(CONCATENATE("'",E$1,"'!",E$4,(YEAR($A22)-1921)*12+MONTH($A22)+3+IF(ISNUMBER(FIND("PRV",E$6)),1,0)))*IF(AND(E$3>0,TRIM(E$9)="CFS"),Conv_Flags!$C22,1) -> 240.3972931 | F22: =INDIRECT(CONCATENATE("'",F$1,"'!",F$4,(YEAR($A22)-1921)*12+MONTH($A22)+3+IF(ISNUMBER(FIND("PRV",F$6)),1,0)))*IF(AND(F$3>0,TRIM(F$9)="CFS"),Conv_Flags!$C22,1) ->  | J22: 1932 | K22: =B133 -> 3618.125488 | L22: =B134 -> 3944.714844 | M22: =B135 -> 626.1769409 | N22: =B136 -> 252.3800964 | O22: =B137 -> 216.1620178 | P22: =B138 -> 250.3710022 | Q22: =B139 -> 268.3374634 | R22: =B140 -> 217.124649 | S22: =B141 -> 274.4009705 | T22: =B142 -> 736.9765625 | U22: =B143 -> 1849.545166 | V22: =B144 -> 2575.469482 | X22: 1203.293992 | Y22: 1250.811334 | Z22: 1235.81539 | AB22: 2110.349342 | AC22: 364.9063517 | AD22: 252.5585213 | AE22: 1359.098045 | AF22: 2724.469401 | AH22: 1932 | AI22: ='Compile Data'!C133 -> 3618.429932 | AJ22: ='Compile Data'!C134 -> 3936.491943 | AK22: ='Compile Data'!C135 -> 664.8635864 | AL22: ='Compile Data'!C136 -> 262.3529663 | AM22: ='Compile Data'!C137 -> 221.2203522 | AN22: ='Compile Data'!C138 -> 251.5717926 | AO22: ='Compile Data'!C139 -> 268.1655884 | AP22: ='Compile Data'!C140 -> 219.9552002 | AQ22: ='Compile Data'!C141 -> 271.5869446 | AR22: ='Compile Data'!C142 -> 732.1949463 | AS22: ='Compile Data'!C143 -> 1838.883423 | AT22: ='Compile Data'!C144 -> 2568.458252 | AV22: 1200.75912 | AW22: 1263.516005 | AX22: 1237.847911 | AZ22: 2120.534607 | BA22: 382.8123016 | BB22: 252.8198814 | BC22: 1352.780891 | BD22: 2720.849284 | BF22: 1932 | BG22: ='Compile Data'!D133 -> 3611.044189 | BH22: ='Compile Data'!D134 -> 3927.399414 | BI22: ='Compile Data'!D135 -> 665.0874023 | BJ22: ='Compile Data'!D136 -> 262.4527893 | BK22: ='Compile Data'!D137 -> 221.1604156 | BL22: ='Compile Data'!D138 -> 251.5944672 | BM22: ='Compile Data'!D139 -> 266.064209 | BN22: ='Compile Data'!D140 -> 218.8399353 | BO22: ='Compile Data'!D141 -> 277.1142578 | BP22: ='Compile Data'!D142 -> 746.7258911 | BQ22: ='Compile Data'!D143 -> 1847.158203 | BR22: ='Compile Data'!D144 -> 2572.605957 | BT22: 1203.506109 | BU22: 1266.251677 | BV22: 1238.937261 | BX22: 2116.495949 | BY22: 382.9002024 | BZ22: 253.4032173 | CA22: 1360.901077 | CB22: 2723.322347 | CD22: 1932 | CE22: ='Compile Data'!E133 -> 3618.588623 | CF22: ='Compile Data'!E134 -> 3936.703613 | CG22: ='Compile Data'!E135 -> 664.8811646 | CH22: ='Compile Data'!E136 -> 262.3569946 | CI22: ='Compile Data'!E137 -> 221.2081451 | CJ22: ='Compile Data'!E138 -> 251.5628967 | CK22: ='Compile Data'!E139 -> 268.1643372 | CL22: ='Compile Data'!E140 -> 219.9554596 | CM22: ='Compile Data'!E141 -> 271.559082 | CN22: ='Compile Data'!E142 -> 734.512146 | CO22: ='Compile Data'!E143 -> 1837.668701 | CP22: ='Compile Data'!E144 -> 2566.666992 | CR22: 1200.61751 | CS22: 1263.365378 | CT22: 1237.819013 | CV22: 2120.632599 | CW22: 382.8154348 | CX22: 252.8104439 | CY22: 1352.60173 | CZ22: 2720.062907 | DB22: 1932 | DC22: ='Compile Data'!F133 ->  | DD22: ='Compile Data'!F134 ->  | DE22: ='Compile Data'!F135 ->  | DF22: ='Compile Data'!F136 ->  | DG22: ='Compile Data'!F137 ->  | DH22: ='Compile Data'!F138 ->  | DI22: ='Compile Data'!F139 ->  | DJ22: ='Compile Data'!F140 ->  | DK22: ='Compile Data'!F141 ->  | DL22: ='Compile Data'!F142 ->  | DM22: ='Compile Data'!F143 ->  | DN22: ='Compile Data'!F144 -> 
A23: 1922-08-31 | B23: =INDIRECT(CONCATENATE("'",B$1,"'!",B$4,(YEAR($A23)-1921)*12+MONTH($A23)+3+IF(ISNUMBER(FIND("PRV",B$6)),1,0)))*IF(AND(B$3>0,TRIM(B$9)="CFS"),Conv_Flags!$C23,1) -> 452.2880859 | C23: =INDIRECT(CONCATENATE("'",C$1,"'!",C$4,(YEAR($A23)-1921)*12+MONTH($A23)+3+IF(ISNUMBER(FIND("PRV",C$6)),1,0)))*IF(AND(C$3>0,TRIM(C$9)="CFS"),Conv_Flags!$C23,1) -> 424.7478638 | D23: =INDIRECT(CONCATENATE("'",D$1,"'!",D$4,(YEAR($A23)-1921)*12+MONTH($A23)+3+IF(ISNUMBER(FIND("PRV",D$6)),1,0)))*IF(AND(D$3>0,TRIM(D$9)="CFS"),Conv_Flags!$C23,1) -> 424.7527466 | E23: =INDIRECT(CONCATENATE("'",E$1,"'!",E$4,(YEAR($A23)-1921)*12+MONTH($A23)+3+IF(ISNUMBER(FIND("PRV",E$6)),1,0)))*IF(AND(E$3>0,TRIM(E$9)="CFS"),Conv_Flags!$C23,1) -> 424.7478638 | F23: =INDIRECT(CONCATENATE("'",F$1,"'!",F$4,(YEAR($A23)-1921)*12+MONTH($A23)+3+IF(ISNUMBER(FIND("PRV",F$6)),1,0)))*IF(AND(F$3>0,TRIM(F$9)="CFS"),Conv_Flags!$C23,1) ->  | J23: 1933 | K23: =B145 -> 2865.503906 | L23: =B146 -> 2732.434814 | M23: =B147 -> 2200.821777 | N23: =B148 -> 686.2505493 | O23: =B149 -> 352.4996643 | P23: =B150 -> 323.0369263 | Q23: =B151 -> 295.4293213 | R23: =B152 -> 445.9348755 | S23: =B153 -> 673.8859253 | T23: =B154 -> 1476.064453 | U23: =B155 -> 2409.894775 | V23: =B156 -> 3079.690918 | X23: 1363.145276 | Y23: 1315.891122 | Z23: 1461.787326 | AB23: 2121.252762 | AC23: 1079.85733 | AD23: 434.5717621 | AE23: 1909.884018 | AF23: 2945.22876 | AH23: 1933 | AI23: ='Compile Data'!C145 -> 2862.844482 | AJ23: ='Compile Data'!C146 -> 2731.245117 | AK23: ='Compile Data'!C147 -> 2180.630371 | AL23: ='Compile Data'!C148 -> 845.8557739 | AM23: ='Compile Data'!C149 -> 390.8001709 | AN23: ='Compile Data'!C150 -> 331.5882874 | AO23: ='Compile Data'!C151 -> 298.0594482 | AP23: ='Compile Data'!C152 -> 444.3537292 | AQ23: ='Compile Data'!C153 -> 672.3798828 | AR23: ='Compile Data'!C154 -> 1476.89978 | AS23: ='Compile Data'!C155 -> 2373.441162 | AT23: ='Compile Data'!C156 -> 3007.436279 | AV23: 1329.17451 | AW23: 1267.138269 | AX23: 1467.961207 | AZ23: 2155.143936 | BA23: 1139.095439 | BB23: 436.5953369 | BC23: 1882.539276 | BD23: 2732.192464 | BF23: 1933 | BG23: ='Compile Data'!D145 -> 2865.103271 | BH23: ='Compile Data'!D146 -> 2732.257812 | BI23: ='Compile Data'!D147 -> 2180.996094 | BJ23: ='Compile Data'!D148 -> 845.7232056 | BK23: ='Compile Data'!D149 -> 390.8368225 | BL23: ='Compile Data'!D150 -> 331.5649109 | BM23: ='Compile Data'!D151 -> 298.0402222 | BN23: ='Compile Data'!D152 -> 444.0942078 | BO23: ='Compile Data'!D153 -> 672.0643311 | BP23: ='Compile Data'!D154 -> 1476.608643 | BQ23: ='Compile Data'!D155 -> 2376.26709 | BR23: ='Compile Data'!D156 -> 3030.848145 | BT23: 1337.347735 | BU23: 1274.657003 | BV23: 1470.367063 | BX23: 2156.020096 | BY23: 1139.185374 | BZ23: 436.440918 | CA23: 1888.947052 | CB23: 2762.149902 | CD23: 1933 | CE23: ='Compile Data'!E145 -> 2862.561279 | CF23: ='Compile Data'!E146 -> 2730.960449 | CG23: ='Compile Data'!E147 -> 2180.233643 | CH23: ='Compile Data'!E148 -> 845.769104 | CI23: ='Compile Data'!E149 -> 390.7704468 | CJ23: ='Compile Data'!E150 -> 331.5681458 | CK23: ='Compile Data'!E151 -> 298.0561218 | CL23: ='Compile Data'!E152 -> 444.3399048 | CM23: ='Compile Data'!E153 -> 672.3638306 | CN23: ='Compile Data'!E154 -> 1476.644165 | CO23: ='Compile Data'!E155 -> 2374.537354 | CP23: ='Compile Data'!E156 -> 3029.7229 | CR23: 1334.585027 | CS23: 1271.875201 | CT23: 1469.793945 | CV23: 2154.881119 | CW23: 1138.924398 | CX23: 436.5820007 | CY23: 1888.317062 | CZ23: 2752.243083 | DB23: 1933 | DC23: ='Compile Data'!F145 ->  | DD23: ='Compile Data'!F146 ->  | DE23: ='Compile Data'!F147 ->  | DF23: ='Compile Data'!F148 ->  | DG23: ='Compile Data'!F149 ->  | DH23: ='Compile Data'!F150 ->  | DI23: ='Compile Data'!F151 ->  | DJ23: ='Compile Data'!F152 ->  | DK23: ='Compile Data'!F153 ->  | DL23: ='Compile Data'!F154 ->  | DM23: ='Compile Data'!F155 ->  | DN23: ='Compile Data'!F156 -> 
A24: 1922-09-30 | B24: =INDIRECT(CONCATENATE("'",B$1,"'!",B$4,(YEAR($A24)-1921)*12+MONTH($A24)+3+IF(ISNUMBER(FIND("PRV",B$6)),1,0)))*IF(AND(B$3>0,TRIM(B$9)="CFS"),Conv_Flags!$C24,1) -> 325.7142334 | C24: =INDIRECT(CONCATENATE("'",C$1,"'!",C$4,(YEAR($A24)-1921)*12+MONTH($A24)+3+IF(ISNUMBER(FIND("PRV",C$6)),1,0)))*IF(AND(C$3>0,TRIM(C$9)="CFS"),Conv_Flags!$C24,1) -> 306.3922424 | D24: =INDIRECT(CONCATENATE("'",D$1,"'!",D$4,(YEAR($A24)-1921)*12+MONTH($A24)+3+IF(ISNUMBER(FIND("PRV",D$6)),1,0)))*IF(AND(D$3>0,TRIM(D$9)="CFS"),Conv_Flags!$C24,1) -> 306.5140076 | E24: =INDIRECT(CONCATENATE("'",E$1,"'!",E$4,(YEAR($A24)-1921)*12+MONTH($A24)+3+IF(ISNUMBER(FIND("PRV",E$6)),1,0)))*IF(AND(E$3>0,TRIM(E$9)="CFS"),Conv_Flags!$C24,1) -> 306.3922424 | F24: =INDIRECT(CONCATENATE("'",F$1,"'!",F$4,(YEAR($A24)-1921)*12+MONTH($A24)+3+IF(ISNUMBER(FIND("PRV",F$6)),1,0)))*IF(AND(F$3>0,TRIM(F$9)="CFS"),Conv_Flags!$C24,1) ->  | J24: 1934 | K24: =B157 -> 2885.314941 | L24: =B158 -> 2870.68042 | M24: =B159 -> 859.0605469 | N24: =B160 -> 252.3905945 | O24: =B161 -> 219.3097687 | P24: =B162 -> 249.1531525 | Q24: =B163 -> 306.7977295 | R24: =B164 -> 579.1234131 | S24: =B165 -> 786.8837891 | T24: =B166 -> 1509.221924 | U24: =B167 -> 2481.62207 | V24: =B168 -> 3399.355469 | X24: 1351.737701 | Y24: 1354.94846 | Z24: 1366.576152 | AB24: 1716.861626 | AC24: 443.58697 | AD24: 480.489521 | AE24: 2044.270813 | AF24: 2672.362508 | AH24: 1934 | AI24: ='Compile Data'!C157 -> 2586.344971 | AJ24: ='Compile Data'!C158 -> 2602.796143 | AK24: ='Compile Data'!C159 -> 920.1384888 | AL24: ='Compile Data'!C160 -> 264.0269775 | AM24: ='Compile Data'!C161 -> 228.1940765 | AN24: ='Compile Data'!C162 -> 249.1473236 | AO24: ='Compile Data'!C163 -> 303.7794495 | AP24: ='Compile Data'!C164 -> 575.0809937 | AQ24: ='Compile Data'!C165 -> 784.6888428 | AR24: ='Compile Data'!C166 -> 1508.895996 | AS24: ='Compile Data'!C167 -> 2450.090576 | AT24: ='Compile Data'!C168 -> 3355.009033 | AV24: 1327.20723 | AW24: 1330.093981 | AX24: 1319.016073 | AZ24: 1593.326645 | BA24: 470.7865143 | BB24: 478.1741524 | BC24: 2024.671112 | BD24: 2582.105632 | BF24: 1934 | BG24: ='Compile Data'!D157 -> 2650.998779 | BH24: ='Compile Data'!D158 -> 2604.602783 | BI24: ='Compile Data'!D159 -> 926.5236816 | BJ24: ='Compile Data'!D160 -> 265.2071838 | BK24: ='Compile Data'!D161 -> 219.0640564 | BL24: ='Compile Data'!D162 -> 249.7071838 | BM24: ='Compile Data'!D163 -> 308.945282 | BN24: ='Compile Data'!D164 -> 579.9458008 | BO24: ='Compile Data'!D165 -> 787.2861328 | BP24: ='Compile Data'!D166 -> 1510.677979 | BQ24: ='Compile Data'!D167 -> 2454.523926 | BR24: ='Compile Data'!D168 -> 3359.685303 | BT24: 1330.925812 | BU24: 1334.41126 | BV24: 1326.430674 | BX24: 1611.833107 | BY24: 470.264974 | BZ24: 481.4710999 | CA24: 2028.043335 | CB24: 2593.509481 | CD24: 1934 | CE24: ='Compile Data'!E157 -> 2633.432129 | CF24: ='Compile Data'!E158 -> 2593.574219 | CG24: ='Compile Data'!E159 -> 924.2420044 | CH24: ='Compile Data'!E160 -> 264.9734497 | CI24: ='Compile Data'!E161 -> 219.0481873 | CJ24: ='Compile Data'!E162 -> 250.4685669 | CK24: ='Compile Data'!E163 -> 309.0437927 | CL24: ='Compile Data'!E164 -> 579.993103 | CM24: ='Compile Data'!E165 -> 787.4091797 | CN24: ='Compile Data'!E166 -> 1510.329834 | CO24: ='Compile Data'!E167 -> 2452.134277 | CP24: ='Compile Data'!E168 -> 3358.647461 | CR24: 1328.529887 | CS24: 1332.073599 | CT24: 1323.608017 | CV24: 1604.05545 | CW24: 469.4212138 | CX24: 481.7286606 | CY24: 2027.130188 | CZ24: 2585.245483 | DB24: 1934 | DC24: ='Compile Data'!F157 ->  | DD24: ='Compile Data'!F158 ->  | DE24: ='Compile Data'!F159 ->  | DF24: ='Compile Data'!F160 ->  | DG24: ='Compile Data'!F161 ->  | DH24: ='Compile Data'!F162 ->  | DI24: ='Compile Data'!F163 ->  | DJ24: ='Compile Data'!F164 ->  | DK24: ='Compile Data'!F165 ->  | DL24: ='Compile Data'!F166 ->  | DM24: ='Compile Data'!F167 ->  | DN24: ='Compile Data'!F168 -> 
A25: 1922-10-31 | B25: =INDIRECT(CONCATENATE("'",B$1,"'!",B$4,(YEAR($A25)-1921)*12+MONTH($A25)+3+IF(ISNUMBER(FIND("PRV",B$6)),1,0)))*IF(AND(B$3>0,TRIM(B$9)="CFS"),Conv_Flags!$C25,1) -> 384.3628845 | C25: =INDIRECT(CONCATENATE("'",C$1,"'!",C$4,(YEAR($A25)-1921)*12+MONTH($A25)+3+IF(ISNUMBER(FIND("PRV",C$6)),1,0)))*IF(AND(C$3>0,TRIM(C$9)="CFS"),Conv_Flags!$C25,1) -> 345.7921143 | D25: =INDIRECT(CONCATENATE("'",D$1,"'!",D$4,(YEAR($A25)-1921)*12+MONTH($A25)+3+IF(ISNUMBER(FIND("PRV",D$6)),1,0)))*IF(AND(D$3>0,TRIM(D$9)="CFS"),Conv_Flags!$C25,1) -> 338.8931274 | E25: =INDIRECT(CONCATENATE("'",E$1,"'!",E$4,(YEAR($A25)-1921)*12+MONTH($A25)+3+IF(ISNUMBER(FIND("PRV",E$6)),1,0)))*IF(AND(E$3>0,TRIM(E$9)="CFS"),Conv_Flags!$C25,1) -> 345.7921143 | F25: =INDIRECT(CONCATENATE("'",F$1,"'!",F$4,(YEAR($A25)-1921)*12+MONTH($A25)+3+IF(ISNUMBER(FIND("PRV",F$6)),1,0)))*IF(AND(F$3>0,TRIM(F$9)="CFS"),Conv_Flags!$C25,1) ->  | J25: 1935 | K25: =B169 -> 2773.49585 | L25: =B170 -> 1844.236206 | M25: =B171 -> 1819.262451 | N25: =B172 -> 287.4319458 | O25: =B173 -> 222.7975159 | P25: =B174 -> 195.3335419 | Q25: =B175 -> 183.5092621 | R25: =B176 -> 184.6000366 | S25: =B177 -> 278.6615601 | T25: =B178 -> 527.444458 | U25: =B179 -> 1321.54541 | V25: =B180 -> 2087.480469 | X25: 1070.046326 | Y25: 1066.258842 | Z25: 977.1498922 | AB25: 1681.106613 | AC25: 776.4973043 | AD25: 210.5261002 | AE25: 1053.782974 | AF25: 2467.246989 | AH25: 1935 | AI25: ='Compile Data'!C169 -> 2451.500244 | AJ25: ='Compile Data'!C170 -> 1939.807617 | AK25: ='Compile Data'!C171 -> 1816.265625 | AL25: ='Compile Data'!C172 -> 286.317688 | AM25: ='Compile Data'!C173 -> 240.5443878 | AN25: ='Compile Data'!C174 -> 201.006897 | AO25: ='Compile Data'!C175 -> 184.4331512 | AP25: ='Compile Data'!C176 -> 185.0809784 | AQ25: ='Compile Data'!C177 -> 267.255127 | AR25: ='Compile Data'!C178 -> 484.1782837 | AS25: ='Compile Data'!C179 -> 1044.720337 | AT25: ='Compile Data'!C180 -> 1666.792236 | AV25: 914.17342 | AW25: 909.2260742 | AX25: 897.3252144 | AZ25: 1623.472794 | BA25: 781.0425669 | BB25: 209.4440384 | BC25: 865.736496 | BD25: 1989.58016 | BF25: 1935 | BG25: ='Compile Data'!D169 -> 2471.277344 | BH25: ='Compile Data'!D170 -> 1949.565796 | BI25: ='Compile Data'!D171 -> 1815.223755 | BJ25: ='Compile Data'!D172 -> 285.6208191 | BK25: ='Compile Data'!D173 -> 240.4757996 | BL25: ='Compile Data'!D174 -> 201.0172729 | BM25: ='Compile Data'!D175 -> 184.3280182 | BN25: ='Compile Data'!D176 -> 185.2437897 | BO25: ='Compile Data'!D177 -> 267.2287598 | BP25: ='Compile Data'!D178 -> 484.9833679 | BQ25: ='Compile Data'!D179 -> 1046.744873 | BR25: ='Compile Data'!D180 -> 1721.48999 | BT25: 925.8771362 | BU25: 921.001915 | BV25: 904.4332987 | BX25: 1630.421928 | BY25: 780.4401245 | BZ25: 209.4544601 | CA25: 880.1117477 | CB25: 2031.709106 | CD25: 1935 | CE25: ='Compile Data'!E169 -> 2454.262207 | CF25: ='Compile Data'!E170 -> 1942.826782 | CG25: ='Compile Data'!E171 -> 1813.221802 | CH25: ='Compile Data'!E172 -> 286.0184631 | CI25: ='Compile Data'!E173 -> 240.5277252 | CJ25: ='Compile Data'!E174 -> 201.0177002 | CK25: ='Compile Data'!E175 -> 184.3869934 | CL25: ='Compile Data'!E176 -> 184.9473572 | CM25: ='Compile Data'!E177 -> 267.2386475 | CN25: ='Compile Data'!E178 -> 485.4847107 | CO25: ='Compile Data'!E179 -> 1048.802002 | CP25: ='Compile Data'!E180 -> 1617.338501 | CR25: 896.4527499 | CS25: 891.4201711 | CT25: 893.8394076 | CV25: 1624.082314 | CW25: 779.9226634 | CX25: 209.3976746 | CY25: 854.7159653 | CZ25: 1923.256795 | DB25: 1935 | DC25: ='Compile Data'!F169 ->  | DD25: ='Compile Data'!F170 ->  | DE25: ='Compile Data'!F171 ->  | DF25: ='Compile Data'!F172 ->  | DG25: ='Compile Data'!F173 ->  | DH25: ='Compile Data'!F174 ->  | DI25: ='Compile Data'!F175 ->  | DJ25: ='Compile Data'!F176 ->  | DK25: ='Compile Data'!F177 ->  | DL25: ='Compile Data'!F178 ->  | DM25: ='Compile Data'!F179 ->  | DN25: ='Compile Data'!F180 -> 
A26: 1922-11-30 | B26: =INDIRECT(CONCATENATE("'",B$1,"'!",B$4,(YEAR($A26)-1921)*12+MONTH($A26)+3+IF(ISNUMBER(FIND("PRV",B$6)),1,0)))*IF(AND(B$3>0,TRIM(B$9)="CFS"),Conv_Flags!$C26,1) -> 634.836731 | C26: =INDIRECT(CONCATENATE("'",C$1,"'!",C$4,(YEAR($A26)-1921)*12+MONTH($A26)+3+IF(ISNUMBER(FIND("PRV",C$6)),1,0)))*IF(AND(C$3>0,TRIM(C$9)="CFS"),Conv_Flags!$C26,1) -> 623.3582153 | D26: =INDIRECT(CONCATENATE("'",D$1,"'!",D$4,(YEAR($A26)-1921)*12+MONTH($A26)+3+IF(ISNUMBER(FIND("PRV",D$6)),1,0)))*IF(AND(D$3>0,TRIM(D$9)="CFS"),Conv_Flags!$C26,1) -> 627.5858765 | E26: =INDIRECT(CONCATENATE("'",E$1,"'!",E$4,(YEAR($A26)-1921)*12+MONTH($A26)+3+IF(ISNUMBER(FIND("PRV",E$6)),1,0)))*IF(AND(E$3>0,TRIM(E$9)="CFS"),Conv_Flags!$C26,1) -> 623.3582153 | F26: =INDIRECT(CONCATENATE("'",F$1,"'!",F$4,(YEAR($A26)-1921)*12+MONTH($A26)+3+IF(ISNUMBER(FIND("PRV",F$6)),1,0)))*IF(AND(F$3>0,TRIM(F$9)="CFS"),Conv_Flags!$C26,1) ->  | J26: 1936 | K26: =B181 -> 2890.603516 | L26: =B182 -> 2423.656982 | M26: =B183 -> 2237.491211 | N26: =B184 -> 268.3292847 | O26: =B185 -> 196.4503784 | P26: =B186 -> 190.8005066 | Q26: =B187 -> 186.7474518 | R26: =B188 -> 190.6203766 | S26: =B189 -> 259.7073669 | T26: =B190 -> 450.6602173 | U26: =B191 -> 1178.953003 | V26: =B192 -> 1798.812378 | X26: 943.9462611 | Y26: 992.0264486 | Z26: 1022.736056 | AB26: 1955.020248 | AC26: 900.756958 | AD26: 206.9689255 | AE26: 922.0332413 | AF26: 2102.813599 | AH26: 1936 | AI26: ='Compile Data'!C181 -> 2289.567871 | AJ26: ='Compile Data'!C182 -> 2012.380371 | AK26: ='Compile Data'!C183 -> 2107.803711 | AL26: ='Compile Data'!C184 -> 270.3327637 | AM26: ='Compile Data'!C185 -> 197.1611633 | AN26: ='Compile Data'!C186 -> 191.9098511 | AO26: ='Compile Data'!C187 -> 186.8269196 | AP26: ='Compile Data'!C188 -> 190.9402924 | AQ26: ='Compile Data'!C189 -> 268.3084106 | AR26: ='Compile Data'!C190 -> 433.0120544 | AS26: ='Compile Data'!C191 -> 941.1955566 | AT26: ='Compile Data'!C192 -> 1602.550537 | AV26: 840.1359253 | AW26: 885.7824999 | AX26: 890.9991252 | AZ26: 1670.021179 | BA26: 858.432546 | BB26: 209.4963684 | BC26: 811.2666397 | BD26: 1833.570923 | BF26: 1936 | BG26: ='Compile Data'!D181 -> 2338.616699 | BH26: ='Compile Data'!D182 -> 2035.02063 | BI26: ='Compile Data'!D183 -> 2119.755615 | BJ26: ='Compile Data'!D184 -> 270.424408 | BK26: ='Compile Data'!D185 -> 197.1695557 | BL26: ='Compile Data'!D186 -> 191.9073029 | BM26: ='Compile Data'!D187 -> 186.827774 | BN26: ='Compile Data'!D188 -> 190.9844055 | BO26: ='Compile Data'!D189 -> 268.2866821 | BP26: ='Compile Data'!D190 -> 433.8616943 | BQ26: ='Compile Data'!D191 -> 932.6707764 | BR26: ='Compile Data'!D192 -> 1574.55835 | BT26: 841.3084742 | BU26: 887.1286685 | BV26: 895.0069911 | BX26: 1690.954338 | BY26: 862.4498596 | BZ26: 209.5015411 | CA26: 802.3443756 | CB26: 1842.753825 | CD26: 1936 | CE26: ='Compile Data'!E181 -> 2181.4375 | CF26: ='Compile Data'!E182 -> 1970.994385 | CG26: ='Compile Data'!E183 -> 2089.239014 | CH26: ='Compile Data'!E184 -> 268.6105347 | CI26: ='Compile Data'!E185 -> 197.5447083 | CJ26: ='Compile Data'!E186 -> 191.9940033 | CK26: ='Compile Data'!E187 -> 186.8728485 | CL26: ='Compile Data'!E188 -> 190.8766785 | CM26: ='Compile Data'!E189 -> 268.2765198 | CN26: ='Compile Data'!E190 -> 433.1382141 | CO26: ='Compile Data'!E191 -> 941.7791138 | CP26: ='Compile Data'!E192 -> 1577.604858 | CR26: 833.1298498 | CS26: 878.785745 | CT26: 874.8640315 | CV26: 1627.570358 | CW26: 851.7980855 | CX26: 209.5050125 | CY26: 805.1996765 | CZ26: 1808.705973 | DB26: 1936 | DC26: ='Compile Data'!F181 ->  | DD26: ='Compile Data'!F182 ->  | DE26: ='Compile Data'!F183 ->  | DF26: ='Compile Data'!F184 ->  | DG26: ='Compile Data'!F185 ->  | DH26: ='Compile Data'!F186 ->  | DI26: ='Compile Data'!F187 ->  | DJ26: ='Compile Data'!F188 ->  | DK26: ='Compile Data'!F189 ->  | DL26: ='Compile Data'!F190 ->  | DM26: ='Compile Data'!F191 ->  | DN26: ='Compile Data'!F192 -> 
A27: 1922-12-31 | B27: =INDIRECT(CONCATENATE("'",B$1,"'!",B$4,(YEAR($A27)-1921)*12+MONTH($A27)+3+IF(ISNUMBER(FIND("PRV",B$6)),1,0)))*IF(AND(B$3>0,TRIM(B$9)="CFS"),Conv_Flags!$C27,1) -> 246.6677856 | C27: =INDIRECT(CONCATENATE("'",C$1,"'!",C$4,(YEAR($A27)-1921)*12+MONTH($A27)+3+IF(ISNUMBER(FIND("PRV",C$6)),1,0)))*IF(AND(C$3>0,TRIM(C$9)="CFS"),Conv_Flags!$C27,1) -> 246.1820221 | D27: =INDIRECT(CONCATENATE("'",D$1,"'!",D$4,(YEAR($A27)-1921)*12+MONTH($A27)+3+IF(ISNUMBER(FIND("PRV",D$6)),1,0)))*IF(AND(D$3>0,TRIM(D$9)="CFS"),Conv_Flags!$C27,1) -> 246.3734283 | E27: =INDIRECT(CONCATENATE("'",E$1,"'!",E$4,(YEAR($A27)-1921)*12+MONTH($A27)+3+IF(ISNUMBER(FIND("PRV",E$6)),1,0)))*IF(AND(E$3>0,TRIM(E$9)="CFS"),Conv_Flags!$C27,1) -> 246.1820221 | F27: =INDIRECT(CONCATENATE("'",F$1,"'!",F$4,(YEAR($A27)-1921)*12+MONTH($A27)+3+IF(ISNUMBER(FIND("PRV",F$6)),1,0)))*IF(AND(F$3>0,TRIM(F$9)="CFS"),Conv_Flags!$C27,1) ->  | J27: 1937 | K27: =B193 -> 2116.382568 | L27: =B194 -> 2393.24585 | M27: =B195 -> 2096.645752 | N27: =B196 -> 824.3363037 | O27: =B197 -> 217.4056091 | P27: =B198 -> 204.6347351 | Q27: =B199 -> 194.9352264 | R27: =B200 -> 190.9307861 | S27: =B201 -> 219.7069397 | T27: =B202 -> 435.8824768 | U27: =B203 -> 1218.581299 | V27: =B204 -> 2535.328857 | X27: 777.8450419 | Y27: 722.8553085 | Z27: 1054.001367 | AB27: 1857.652618 | AC27: 1046.129222 | AD27: 202.5519218 | AE27: 1102.374893 | AF27: 1882.076263 | AH27: 1937 | AI27: ='Compile Data'!C193 -> 1974.524414 | AJ27: ='Compile Data'!C194 -> 1923.637817 | AK27: ='Compile Data'!C195 -> 1901.231323 | AL27: ='Compile Data'!C196 -> 797.1696777 | AM27: ='Compile Data'!C197 -> 218.0831451 | AN27: ='Compile Data'!C198 -> 206.8305206 | AO27: ='Compile Data'!C199 -> 195.1684113 | AP27: ='Compile Data'!C200 -> 191.6076813 | AQ27: ='Compile Data'!C201 -> 221.1140442 | AR27: ='Compile Data'!C202 -> 413.3442078 | AS27: ='Compile Data'!C203 -> 1113.851562 | AT27: ='Compile Data'!C204 -> 2400.727295 | AV27: 742.6560822 | AW27: 689.9820353 | AX27: 963.1075083 | AZ27: 1649.140808 | BA27: 972.161382 | BB27: 203.6801643 | BC27: 1037.259277 | BD27: 1791.019989 | BF27: 1937 | BG27: ='Compile Data'!D193 -> 2010.526245 | BH27: ='Compile Data'!D194 -> 1943.17688 | BI27: ='Compile Data'!D195 -> 1895.307617 | BJ27: ='Compile Data'!D196 -> 799.4580688 | BK27: ='Compile Data'!D197 -> 217.9782257 | BL27: ='Compile Data'!D198 -> 206.8222656 | BM27: ='Compile Data'!D199 -> 195.1358948 | BN27: ='Compile Data'!D200 -> 191.5633545 | BO27: ='Compile Data'!D201 -> 221.7380524 | BP27: ='Compile Data'!D202 -> 408.0334778 | BQ27: ='Compile Data'!D203 -> 1006.4375 | BR27: ='Compile Data'!D204 -> 2234.82666 | BT27: 734.0872383 | BU27: 681.2238146 | BV27: 944.2503535 | BX27: 1662.117203 | BY27: 970.9146372 | BZ27: 203.8148918 | CA27: 967.7589226 | CB27: 1793.59669 | CD27: 1937 | CE27: ='Compile Data'!E193 -> 1942.609619 | CF27: ='Compile Data'!E194 -> 1905.903442 | CG27: ='Compile Data'!E195 -> 1892.347656 | CH27: ='Compile Data'!E196 -> 795.9776611 | CI27: ='Compile Data'!E197 -> 218.0483246 | CJ27: ='Compile Data'!E198 -> 206.8304596 | CK27: ='Compile Data'!E199 -> 195.1684875 | CL27: ='Compile Data'!E200 -> 191.6083374 | CM27: ='Compile Data'!E201 -> 221.1199951 | CN27: ='Compile Data'!E202 -> 413.3922729 | CO27: ='Compile Data'!E203 -> 1114.000122 | CP27: ='Compile Data'!E204 -> 2400.644775 | CR27: 742.6281649 | CS27: 690.0562057 | CT27: 958.1375961 | CV27: 1634.209595 | CW27: 968.791214 | CX27: 203.6818199 | CY27: 1037.289291 | CZ27: 1791.248515 | DB27: 1937 | DC27: ='Compile Data'!F193 ->  | DD27: ='Compile Data'!F194 ->  | DE27: ='Compile Data'!F195 ->  | DF27: ='Compile Data'!F196 ->  | DG27: ='Compile Data'!F197 ->  | DH27: ='Compile Data'!F198 ->  | DI27: ='Compile Data'!F199 ->  | DJ27: ='Compile Data'!F200 ->  | DK27: ='Compile Data'!F201 ->  | DL27: ='Compile Data'!F202 ->  | DM27: ='Compile Data'!F203 ->  | DN27: ='Compile Data'!F204 -> 
A28: 1923-01-31 | B28: =INDIRECT(CONCATENATE("'",B$1,"'!",B$4,(YEAR($A28)-1921)*12+MONTH($A28)+3+IF(ISNUMBER(FIND("PRV",B$6)),1,0)))*IF(AND(B$3>0,TRIM(B$9)="CFS"),Conv_Flags!$C28,1) -> 205.2501221 | C28: =INDIRECT(CONCATENATE("'",C$1,"'!",C$4,(YEAR($A28)-1921)*12+MONTH($A28)+3+IF(ISNUMBER(FIND("PRV",C$6)),1,0)))*IF(AND(C$3>0,TRIM(C$9)="CFS"),Conv_Flags!$C28,1) -> 205.7574768 | D28: =INDIRECT(CONCATENATE("'",D$1,"'!",D$4,(YEAR($A28)-1921)*12+MONTH($A28)+3+IF(ISNUMBER(FIND("PRV",D$6)),1,0)))*IF(AND(D$3>0,TRIM(D$9)="CFS"),Conv_Flags!$C28,1) -> 205.7493439 | E28: =INDIRECT(CONCATENATE("'",E$1,"'!",E$4,(YEAR($A28)-1921)*12+MONTH($A28)+3+IF(ISNUMBER(FIND("PRV",E$6)),1,0)))*IF(AND(E$3>0,TRIM(E$9)="CFS"),Conv_Flags!$C28,1) -> 205.7574768 | F28: =INDIRECT(CONCATENATE("'",F$1,"'!",F$4,(YEAR($A28)-1921)*12+MONTH($A28)+3+IF(ISNUMBER(FIND("PRV",F$6)),1,0)))*IF(AND(F$3>0,TRIM(F$9)="CFS"),Conv_Flags!$C28,1) ->  | J28: 1938 | K28: =B205 -> 2720.815918 | L28: =B206 -> 390.0840149 | M28: =B207 -> 181.4983368 | N28: =B208 -> 192.4227448 | O28: =B209 -> 189.4423676 | P28: =B210 -> 180.2106171 | Q28: =B211 -> 179.7660217 | R28: =B212 -> 177.2219238 | S28: =B213 -> 180.4041901 | T28: =B214 -> 257.8883667 | U28: =B215 -> 486.3228455 | V28: =B216 -> 325.292511 | X28: 362.369901 | Y28: 483.8356654 | Z28: 455.1141548 | AB28: 871.2052536 | AC28: 187.7878164 | AD28: 179.4006882 | AE28: 312.4769783 | AF28: 460.7503153 | AH28: 1938 | AI28: ='Compile Data'!C205 -> 2594.005859 | AJ28: ='Compile Data'!C206 -> 378.3268127 | AK28: ='Compile Data'!C207 -> 181.6437683 | AL28: ='Compile Data'!C208 -> 193.0537109 | AM28: ='Compile Data'!C209 -> 190.1105499 | AN28: ='Compile Data'!C210 -> 180.577301 | AO28: ='Compile Data'!C211 -> 180.3220215 | AP28: ='Compile Data'!C212 -> 177.3763733 | AQ28: ='Compile Data'!C213 -> 180.5516205 | AR28: ='Compile Data'!C214 -> 258.2057495 | AS28: ='Compile Data'!C215 -> 454.2289429 | AT28: ='Compile Data'!C216 -> 304.4294128 | AV28: 355.030009 | AW28: 476.2871132 | AX28: 439.4026769 | AZ28: 836.7575378 | BA28: 188.2693431 | BB28: 179.7068291 | BC28: 299.3539314 | BD28: 439.5140381 | BF28: 1938 | BG28: ='Compile Data'!D205 -> 2785.350098 | BH28: ='Compile Data'!D206 -> 360.6133118 | BI28: ='Compile Data'!D207 -> 181.0899506 | BJ28: ='Compile Data'!D208 -> 192.8562775 | BK28: ='Compile Data'!D209 -> 190.2189331 | BL28: ='Compile Data'!D210 -> 180.5756531 | BM28: ='Compile Data'!D211 -> 180.3238068 | BN28: ='Compile Data'!D212 -> 177.3730011 | BO28: ='Compile Data'!D213 -> 180.5489502 | BP28: ='Compile Data'!D214 -> 258.2081909 | BQ28: ='Compile Data'!D215 -> 454.2273865 | BR28: ='Compile Data'!D216 -> 304.429657 | BT28: 354.2261264 | BU28: 475.1838531 | BV28: 453.8179347 | BX28: 879.9774094 | BY28: 188.0550537 | BZ28: 179.7053528 | CA28: 299.3535461 | CB28: 440.0974426 | CD28: 1938 | CE28: ='Compile Data'!E205 -> 2594.619629 | CF28: ='Compile Data'!E206 -> 378.4811401 | CG28: ='Compile Data'!E207 -> 181.6467743 | CH28: ='Compile Data'!E208 -> 193.0525055 | CI28: ='Compile Data'!E209 -> 190.1099701 | CJ28: ='Compile Data'!E210 -> 180.5772705 | CK28: ='Compile Data'!E211 -> 180.3218994 | CL28: ='Compile Data'!E212 -> 177.3762512 | CM28: ='Compile Data'!E213 -> 180.5514526 | CN28: ='Compile Data'!E214 -> 258.2047424 | CO28: ='Compile Data'!E215 -> 454.2263184 | CP28: ='Compile Data'!E216 -> 304.4276733 | CR28: 355.0281423 | CS28: 476.2832184 | CT28: 439.4663022 | CV28: 836.9500122 | CW28: 188.26975 | CX28: 179.7067184 | CY28: 299.3525467 | CZ28: 439.5114136 | DB28: 1938 | DC28: ='Compile Data'!F205 ->  | DD28: ='Compile Data'!F206 ->  | DE28: ='Compile Data'!F207 ->  | DF28: ='Compile Data'!F208 ->  | DG28: ='Compile Data'!F209 ->  | DH28: ='Compile Data'!F210 ->  | DI28: ='Compile Data'!F211 ->  | DJ28: ='Compile Data'!F212 ->  | DK28: ='Compile Data'!F213 ->  | DL28: ='Compile Data'!F214 ->  | DM28: ='Compile Data'!F215 ->  | DN28: ='Compile Data'!F216 -> 
A29: 1923-02-28 | B29: =INDIRECT(CONCATENATE("'",B$1,"'!",B$4,(YEAR($A29)-1921)*12+MONTH($A29)+3+IF(ISNUMBER(FIND("PRV",B$6)),1,0)))*IF(AND(B$3>0,TRIM(B$9)="CFS"),Conv_Flags!$C29,1) -> 200.213501 | C29: =INDIRECT(CONCATENATE("'",C$1,"'!",C$4,(YEAR($A29)-1921)*12+MONTH($A29)+3+IF(ISNUMBER(FIND("PRV",C$6)),1,0)))*IF(AND(C$3>0,TRIM(C$9)="CFS"),Conv_Flags!$C29,1) -> 200.3646698 | D29: =INDIRECT(CONCATENATE("'",D$1,"'!",D$4,(YEAR($A29)-1921)*12+MONTH($A29)+3+IF(ISNUMBER(FIND("PRV",D$6)),1,0)))*IF(AND(D$3>0,TRIM(D$9)="CFS"),Conv_Flags!$C29,1) -> 200.3965607 | E29: =INDIRECT(CONCATENATE("'",E$1,"'!",E$4,(YEAR($A29)-1921)*12+MONTH($A29)+3+IF(ISNUMBER(FIND("PRV",E$6)),1,0)))*IF(AND(E$3>0,TRIM(E$9)="CFS"),Conv_Flags!$C29,1) -> 200.3646698 | F29: =INDIRECT(CONCATENATE("'",F$1,"'!",F$4,(YEAR($A29)-1921)*12+MONTH($A29)+3+IF(ISNUMBER(FIND("PRV",F$6)),1,0)))*IF(AND(F$3>0,TRIM(F$9)="CFS"),Conv_Flags!$C29,1) ->  | J29: 1939 | K29: =B217 -> 345.0767822 | L29: =B218 -> 711.8816528 | M29: =B219 -> 1122.508789 | N29: =B220 -> 1253.970947 | O29: =B221 -> 585.4833374 | P29: =B222 -> 428.9029541 | Q29: =B223 -> 337.1150208 | R29: =B224 -> 337.9689941 | S29: =B225 -> 926.013855 | T29: =B226 -> 1198.291504 | U29: =B227 -> 2362.821777 | V29: =B228 -> 3163.490479 | X29: 1534.751996 | Y29: 1423.753895 | Z29: 1064.460508 | AB29: 858.3595428 | AC29: 987.3210246 | AD29: 507.500206 | AE29: 1912.654404 | AF29: 2929.293457 | AH29: 1939 | AI29: ='Compile Data'!C217 -> 321.4848938 | AJ29: ='Compile Data'!C218 -> 692.6278076 | AK29: ='Compile Data'!C219 -> 1127.391724 | AL29: ='Compile Data'!C220 -> 1252.846313 | AM29: ='Compile Data'!C221 -> 585.4031982 | AN29: ='Compile Data'!C222 -> 428.9631653 | AO29: ='Compile Data'!C223 -> 337.1737061 | AP29: ='Compile Data'!C224 -> 341.9379883 | AQ29: ='Compile Data'!C225 -> 911.6126709 | AR29: ='Compile Data'!C226 -> 1059.458252 | AS29: ='Compile Data'!C227 -> 1883.462402 | AT29: ='Compile Data'!C228 -> 2542.488525 | AV29: 1327.893496 | AW29: 1217.356369 | AX29: 957.0708872 | AZ29: 848.5876846 | BA29: 988.5470785 | BB29: 504.9218826 | BC29: 1599.255463 | BD29: 2337.667074 | BF29: 1939 | BG29: ='Compile Data'!D217 -> 322.3198853 | BH29: ='Compile Data'!D218 -> 693.5427856 | BI29: ='Compile Data'!D219 -> 1116.088989 | BJ29: ='Compile Data'!D220 -> 1249.415894 | BK29: ='Compile Data'!D221 -> 585.1520386 | BL29: ='Compile Data'!D222 -> 429.7672729 | BM29: ='Compile Data'!D223 -> 339.3392334 | BN29: ='Compile Data'!D224 -> 351.7745361 | BO29: ='Compile Data'!D225 -> 925.0704346 | BP29: ='Compile Data'!D226 -> 1072.616089 | BQ29: ='Compile Data'!D227 -> 1874.961914 | BR29: ='Compile Data'!D228 -> 2488.174072 | BT29: 1318.163656 | BU29: 1207.486741 | BV29: 954.0185954 | BX29: 845.3418884 | BY29: 983.5523071 | BZ29: 511.4878693 | CA29: 1590.205627 | CB29: 2276.261068 | CD29: 1939 | CE29: ='Compile Data'!E217 -> 321.4823608 | CF29: ='Compile Data'!E218 -> 692.6242065 | CG29: ='Compile Data'!E219 -> 1127.383057 | CH29: ='Compile Data'!E220 -> 1252.829468 | CI29: ='Compile Data'!E221 -> 585.3939209 | CJ29: ='Compile Data'!E222 -> 428.9564819 | CK29: ='Compile Data'!E223 -> 337.1712036 | CL29: ='Compile Data'!E224 -> 341.9381409 | CM29: ='Compile Data'!E225 -> 911.6393433 | CN29: ='Compile Data'!E226 -> 1058.123657 | CO29: ='Compile Data'!E227 -> 1888.761719 | CP29: ='Compile Data'!E228 -> 2547.777588 | CR29: 1328.33447 | CS29: 1217.83676 | CT29: 957.8400955 | CV29: 848.5797729 | CW29: 988.5354818 | CX29: 504.9262924 | CY29: 1601.575577 | CZ29: 2335.423421 | DB29: 1939 | DC29: ='Compile Data'!F217 ->  | DD29: ='Compile Data'!F218 ->  | DE29: ='Compile Data'!F219 ->  | DF29: ='Compile Data'!F220 ->  | DG29: ='Compile Data'!F221 ->  | DH29: ='Compile Data'!F222 ->  | DI29: ='Compile Data'!F223 ->  | DJ29: ='Compile Data'!F224 ->  | DK29: ='Compile Data'!F225 ->  | DL29: ='Compile Data'!F226 ->  | DM29: ='Compile Data'!F227 ->  | DN29: ='Compile Data'!F228 -> 
A30: 1923-03-31 | B30: =INDIRECT(CONCATENATE("'",B$1,"'!",B$4,(YEAR($A30)-1921)*12+MONTH($A30)+3+IF(ISNUMBER(FIND("PRV",B$6)),1,0)))*IF(AND(B$3>0,TRIM(B$9)="CFS"),Conv_Flags!$C30,1) -> 249.6968536 | C30: =INDIRECT(CONCATENATE("'",C$1,"'!",C$4,(YEAR($A30)-1921)*12+MONTH($A30)+3+IF(ISNUMBER(FIND("PRV",C$6)),1,0)))*IF(AND(C$3>0,TRIM(C$9)="CFS"),Conv_Flags!$C30,1) -> 249.770462 | D30: =INDIRECT(CONCATENATE("'",D$1,"'!",D$4,(YEAR($A30)-1921)*12+MONTH($A30)+3+IF(ISNUMBER(FIND("PRV",D$6)),1,0)))*IF(AND(D$3>0,TRIM(D$9)="CFS"),Conv_Flags!$C30,1) -> 249.6878357 | E30: =INDIRECT(CONCATENATE("'",E$1,"'!",E$4,(YEAR($A30)-1921)*12+MONTH($A30)+3+IF(ISNUMBER(FIND("PRV",E$6)),1,0)))*IF(AND(E$3>0,TRIM(E$9)="CFS"),Conv_Flags!$C30,1) -> 249.770462 | F30: =INDIRECT(CONCATENATE("'",F$1,"'!",F$4,(YEAR($A30)-1921)*12+MONTH($A30)+3+IF(ISNUMBER(FIND("PRV",F$6)),1,0)))*IF(AND(F$3>0,TRIM(F$9)="CFS"),Conv_Flags!$C30,1) ->  | J30: 1940 | K30: =B229 -> 2909.208496 | L30: =B230 -> 2715.181396 | M30: =B231 -> 2198.575195 | N30: =B232 -> 310.3015747 | O30: =B233 -> 197.1754913 | P30: =B234 -> 181.3474579 | Q30: =B235 -> 178.2644653 | R30: =B236 -> 187.7994843 | S30: =B237 -> 353.2478943 | T30: =B238 -> 326.5431213 | U30: =B239 -> 663.1131592 | V30: =B240 -> 468.5105286 | X30: 375.4312477 | Y30: 364.1044515 | Z30: 890.7723554 | AB30: 2033.316666 | AC30: 902.0174205 | AD30: 225.1648254 | AE30: 452.8536758 | AF30: 620.3736369 | AH30: 1940 | AI30: ='Compile Data'!C229 -> 2239.675781 | AJ30: ='Compile Data'!C230 -> 2230.836914 | AK30: ='Compile Data'!C231 -> 2120.863037 | AL30: ='Compile Data'!C232 -> 314.0910645 | AM30: ='Compile Data'!C233 -> 197.7129211 | AN30: ='Compile Data'!C234 -> 181.6959839 | AO30: ='Compile Data'!C235 -> 178.4383087 | AP30: ='Compile Data'!C236 -> 188.5075378 | AQ30: ='Compile Data'!C237 -> 344.8826294 | AR30: ='Compile Data'!C238 -> 322.2734985 | AS30: ='Compile Data'!C239 -> 642.8968506 | AT30: ='Compile Data'!C240 -> 453.497467 | AV30: 366.9109014 | AW30: 355.3037593 | AX30: 784.6143328 | AZ30: 1726.366699 | BA30: 877.5556742 | BB30: 223.381115 | BC30: 440.8876114 | BD30: 596.0211182 | BF30: 1940 | BG30: ='Compile Data'!D229 -> 2193.575928 | BH30: ='Compile Data'!D230 -> 2147.033203 | BI30: ='Compile Data'!D231 -> 2161.083252 | BJ30: ='Compile Data'!D232 -> 308.7226257 | BK30: ='Compile Data'!D233 -> 197.7223358 | BL30: ='Compile Data'!D234 -> 181.7001343 | BM30: ='Compile Data'!D235 -> 178.4347382 | BN30: ='Compile Data'!D236 -> 188.5058441 | BO30: ='Compile Data'!D237 -> 344.8760986 | BP30: ='Compile Data'!D238 -> 322.3609619 | BQ30: ='Compile Data'!D239 -> 649.5008545 | BR30: ='Compile Data'!D240 -> 456.594574 | BT30: 369.7275492 | BU30: 358.5659421 | BV30: 777.5092125 | BX30: 1702.603752 | BY30: 889.1760712 | BZ30: 223.3792038 | CA30: 443.3331223 | CB30: 607.2762655 | CD30: 1940 | CE30: ='Compile Data'!E229 -> 2241.172852 | CF30: ='Compile Data'!E230 -> 2217.319824 | CG30: ='Compile Data'!E231 -> 2128.929443 | CH30: ='Compile Data'!E232 -> 314.596405 | CI30: ='Compile Data'!E233 -> 197.6544647 | CJ30: ='Compile Data'!E234 -> 181.7210388 | CK30: ='Compile Data'!E235 -> 178.4466858 | CL30: ='Compile Data'!E236 -> 188.5106354 | CM30: ='Compile Data'!E237 -> 344.8820801 | CN30: ='Compile Data'!E238 -> 322.2713623 | CO30: ='Compile Data'!E239 -> 642.9226685 | CP30: ='Compile Data'!E240 -> 452.8291931 | CR30: 368.3587812 | CS30: 356.7145602 | CT30: 784.2713877 | CV30: 1725.504631 | CW30: 880.3934377 | CX30: 223.39011 | CY30: 440.726326 | CZ30: 601.679362 | DB30: 1940 | DC30: ='Compile Data'!F229 ->  | DD30: ='Compile Data'!F230 ->  | DE30: ='Compile Data'!F231 ->  | DF30: ='Compile Data'!F232 ->  | DG30: ='Compile Data'!F233 ->  | DH30: ='Compile Data'!F234 ->  | DI30: ='Compile Data'!F235 ->  | DJ30: ='Compile Data'!F236 ->  | DK30: ='Compile Data'!F237 ->  | DL30: ='Compile Data'!F238 ->  | DM30: ='Compile Data'!F239 ->  | DN30: ='Compile Data'!F240 -> 
A31: 1923-04-30 | B31: =INDIRECT(CONCATENATE("'",B$1,"'!",B$4,(YEAR($A31)-1921)*12+MONTH($A31)+3+IF(ISNUMBER(FIND("PRV",B$6)),1,0)))*IF(AND(B$3>0,TRIM(B$9)="CFS"),Conv_Flags!$C31,1) -> 198.4570465 | C31: =INDIRECT(CONCATENATE("'",C$1,"'!",C$4,(YEAR($A31)-1921)*12+MONTH($A31)+3+IF(ISNUMBER(FIND("PRV",C$6)),1,0)))*IF(AND(C$3>0,TRIM(C$9)="CFS"),Conv_Flags!$C31,1) -> 198.6297913 | D31: =INDIRECT(CONCATENATE("'",D$1,"'!",D$4,(YEAR($A31)-1921)*12+MONTH($A31)+3+IF(ISNUMBER(FIND("PRV",D$6)),1,0)))*IF(AND(D$3>0,TRIM(D$9)="CFS"),Conv_Flags!$C31,1) -> 198.6874542 | E31: =INDIRECT(CONCATENATE("'",E$1,"'!",E$4,(YEAR($A31)-1921)*12+MONTH($A31)+3+IF(ISNUMBER(FIND("PRV",E$6)),1,0)))*IF(AND(E$3>0,TRIM(E$9)="CFS"),Conv_Flags!$C31,1) -> 198.6297913 | F31: =INDIRECT(CONCATENATE("'",F$1,"'!",F$4,(YEAR($A31)-1921)*12+MONTH($A31)+3+IF(ISNUMBER(FIND("PRV",F$6)),1,0)))*IF(AND(F$3>0,TRIM(F$9)="CFS"),Conv_Flags!$C31,1) ->  | J31: 1941 | K31: =B241 -> 496.7644958 | L31: =B242 -> 895.8458862 | M31: =B243 -> 246.2614136 | N31: =B244 -> 187.3535156 | O31: =B245 -> 184.2019958 | P31: =B246 -> 181.1665955 | Q31: =B247 -> 179.7223511 | R31: =B248 -> 178.7639008 | S31: =B249 -> 191.7824097 | T31: =B250 -> 302.1811829 | U31: =B251 -> 574.8388062 | V31: =B252 -> 368.3374939 | X31: 316.5319875 | Y31: 315.8672676 | Z31: 332.2683372 | AB31: 456.5563278 | AC31: 205.938975 | AD31: 182.8588142 | AE31: 359.2849731 | AF31: 537.7377421 | AH31: 1941 | AI31: ='Compile Data'!C241 -> 477.5215759 | AJ31: ='Compile Data'!C242 -> 857.0443115 | AK31: ='Compile Data'!C243 -> 244.3686676 | AL31: ='Compile Data'!C244 -> 187.9318237 | AM31: ='Compile Data'!C245 -> 184.5864563 | AN31: ='Compile Data'!C246 -> 181.4910431 | AO31: ='Compile Data'!C247 -> 179.7149353 | AP31: ='Compile Data'!C248 -> 178.7733307 | AQ31: ='Compile Data'!C249 -> 192.2251587 | AR31: ='Compile Data'!C250 -> 303.6342468 | AS31: ='Compile Data'!C251 -> 534.9450684 | AT31: ='Compile Data'!C252 -> 342.8508911 | AV31: 306.6022886 | AW31: 305.8796082 | AX31: 322.0906258 | AZ31: 441.7165947 | BA31: 205.6289825 | BB31: 183.0511169 | BC31: 343.4138412 | BD31: 510.4231873 | BF31: 1941 | BG31: ='Compile Data'!D241 -> 495.5589905 | BH31: ='Compile Data'!D242 -> 869.6752319 | BI31: ='Compile Data'!D243 -> 243.0782013 | BJ31: ='Compile Data'!D244 -> 187.9200287 | BK31: ='Compile Data'!D245 -> 184.5856476 | BL31: ='Compile Data'!D246 -> 181.5183868 | BM31: ='Compile Data'!D247 -> 179.8663483 | BN31: ='Compile Data'!D248 -> 178.8135376 | BO31: ='Compile Data'!D249 -> 192.2331543 | BP31: ='Compile Data'!D250 -> 303.7151184 | BQ31: ='Compile Data'!D251 -> 528.0956421 | BR31: ='Compile Data'!D252 -> 340.2037659 | BT31: 305.7668978 | BU31: 305.0455602 | BV31: 323.7720044 | BX31: 449.0581131 | BY31: 205.1946259 | BZ31: 183.1078568 | CA31: 341.0619202 | CB31: 509.2490946 | CD31: 1941 | CE31: ='Compile Data'!E241 -> 494.2883606 | CF31: ='Compile Data'!E242 -> 857.9205322 | CG31: ='Compile Data'!E243 -> 244.2619476 | CH31: ='Compile Data'!E244 -> 187.9335175 | CI31: ='Compile Data'!E245 -> 184.5867004 | CJ31: ='Compile Data'!E246 -> 181.150589 | CK31: ='Compile Data'!E247 -> 179.7434845 | CL31: ='Compile Data'!E248 -> 178.7779388 | CM31: ='Compile Data'!E249 -> 192.1777649 | CN31: ='Compile Data'!E250 -> 303.486145 | CO31: ='Compile Data'!E251 -> 534.8759155 | CP31: ='Compile Data'!E252 -> 342.8303833 | CR31: 306.5529327 | CS31: 305.8299751 | CT31: 323.5027733 | CV31: 446.1010895 | CW31: 205.5940552 | CX31: 182.9624443 | CY31: 343.3425522 | CZ31: 510.4181213 | DB31: 1941 | DC31: ='Compile Data'!F241 ->  | DD31: ='Compile Data'!F242 ->  | DE31: ='Compile Data'!F243 ->  | DF31: ='Compile Data'!F244 ->  | DG31: ='Compile Data'!F245 ->  | DH31: ='Compile Data'!F246 ->  | DI31: ='Compile Data'!F247 ->  | DJ31: ='Compile Data'!F248 ->  | DK31: ='Compile Data'!F249 ->  | DL31: ='Compile Data'!F250 ->  | DM31: ='Compile Data'!F251 ->  | DN31: ='Compile Data'!F252 -> 
A32: 1923-05-31 | B32: =INDIRECT(CONCATENATE("'",B$1,"'!",B$4,(YEAR($A32)-1921)*12+MONTH($A32)+3+IF(ISNUMBER(FIND("PRV",B$6)),1,0)))*IF(AND(B$3>0,TRIM(B$9)="CFS"),Conv_Flags!$C32,1) -> 188.1662292 | C32: =INDIRECT(CONCATENATE("'",C$1,"'!",C$4,(YEAR($A32)-1921)*12+MONTH($A32)+3+IF(ISNUMBER(FIND("PRV",C$6)),1,0)))*IF(AND(C$3>0,TRIM(C$9)="CFS"),Conv_Flags!$C32,1) -> 188.3809052 | D32: =INDIRECT(CONCATENATE("'",D$1,"'!",D$4,(YEAR($A32)-1921)*12+MONTH($A32)+3+IF(ISNUMBER(FIND("PRV",D$6)),1,0)))*IF(AND(D$3>0,TRIM(D$9)="CFS"),Conv_Flags!$C32,1) -> 188.3800659 | E32: =INDIRECT(CONCATENATE("'",E$1,"'!",E$4,(YEAR($A32)-1921)*12+MONTH($A32)+3+IF(ISNUMBER(FIND("PRV",E$6)),1,0)))*IF(AND(E$3>0,TRIM(E$9)="CFS"),Conv_Flags!$C32,1) -> 188.3809052 | F32: =INDIRECT(CONCATENATE("'",F$1,"'!",F$4,(YEAR($A32)-1921)*12+MONTH($A32)+3+IF(ISNUMBER(FIND("PRV",F$6)),1,0)))*IF(AND(F$3>0,TRIM(F$9)="CFS"),Conv_Flags!$C32,1) ->  | J32: 1942 | K32: =B253 -> 391.3278198 | L32: =B254 -> 853.5479126 | M32: =B255 -> 205.1598663 | N32: =B256 -> 185.6095734 | O32: =B257 -> 177.9692993 | P32: =B258 -> 187.2879028 | Q32: =B259 -> 182.815506 | R32: =B260 -> 180.9601288 | S32: =B261 -> 183.6326904 | T32: =B262 -> 273.2242432 | U32: =B263 -> 487.3101807 | V32: =B264 -> 323.2392578 | X32: 284.2797661 | Y32: 284.7111918 | Z32: 302.6736984 | AB32: 408.911293 | AC32: 189.5795797 | AD32: 183.674057 | AE32: 316.851593 | AF32: 435.4690857 | AH32: 1942 | AI32: ='Compile Data'!C253 -> 360.7886658 | AJ32: ='Compile Data'!C254 -> 827.6300049 | AK32: ='Compile Data'!C255 -> 204.655838 | AL32: ='Compile Data'!C256 -> 185.8599243 | AM32: ='Compile Data'!C257 -> 177.9861908 | AN32: ='Compile Data'!C258 -> 187.3318176 | AO32: ='Compile Data'!C259 -> 182.826889 | AP32: ='Compile Data'!C260 -> 180.8266296 | AQ32: ='Compile Data'!C261 -> 183.7564697 | AR32: ='Compile Data'!C262 -> 273.9006958 | AS32: ='Compile Data'!C263 -> 455.0070496 | AT32: ='Compile Data'!C264 -> 302.6767273 | AV32: 286.1939138 | AW32: 286.6230825 | AX32: 293.6039085 | AZ32: 394.7336082 | BA32: 189.500651 | BB32: 183.6854515 | BC32: 303.8352356 | BD32: 449.2139384 | BF32: 1942 | BG32: ='Compile Data'!D253 -> 360.3240356 | BH32: ='Compile Data'!D254 -> 827.2194824 | BI32: ='Compile Data'!D255 -> 204.7076263 | BJ32: ='Compile Data'!D256 -> 185.8632355 | BK32: ='Compile Data'!D257 -> 177.9863892 | BL32: ='Compile Data'!D258 -> 187.3303833 | BM32: ='Compile Data'!D259 -> 182.8265381 | BN32: ='Compile Data'!D260 -> 180.8263092 | BO32: ='Compile Data'!D261 -> 183.7475891 | BP32: ='Compile Data'!D262 -> 273.855011 | BQ32: ='Compile Data'!D263 -> 454.9842529 | BR32: ='Compile Data'!D264 -> 302.6712646 | BT32: 286.1803436 | BU32: 286.611585 | BV32: 293.5285098 | BX32: 394.528595 | BY32: 189.5190837 | BZ32: 183.6827049 | CA32: 303.8145294 | CB32: 449.193044 | CD32: 1942 | CE32: ='Compile Data'!E253 -> 360.7817688 | CF32: ='Compile Data'!E254 -> 827.6422119 | CG32: ='Compile Data'!E255 -> 204.6487732 | CH32: ='Compile Data'!E256 -> 185.8565979 | CI32: ='Compile Data'!E257 -> 177.9881287 | CJ32: ='Compile Data'!E258 -> 187.3275299 | CK32: ='Compile Data'!E259 -> 182.8267822 | CL32: ='Compile Data'!E260 -> 180.8266296 | CM32: ='Compile Data'!E261 -> 183.7478485 | CN32: ='Compile Data'!E262 -> 273.8543396 | CO32: ='Compile Data'!E263 -> 454.9925537 | CP32: ='Compile Data'!E264 -> 302.6733093 | CR32: 286.1860046 | CS32: 286.6147029 | CT32: 293.5972061 | CV32: 394.732338 | CW32: 189.4978333 | CX32: 183.6821976 | CY32: 303.8170128 | CZ32: 449.2078552 | DB32: 1942 | DC32: ='Compile Data'!F253 ->  | DD32: ='Compile Data'!F254 ->  | DE32: ='Compile Data'!F255 ->  | DF32: ='Compile Data'!F256 ->  | DG32: ='Compile Data'!F257 ->  | DH32: ='Compile Data'!F258 ->  | DI32: ='Compile Data'!F259 ->  | DJ32: ='Compile Data'!F260 ->  | DK32: ='Compile Data'!F261 ->  | DL32: ='Compile Data'!F262 ->  | DM32: ='Compile Data'!F263 ->  | DN32: ='Compile Data'!F264 -> 
A33: 1923-06-30 | B33: =INDIRECT(CONCATENATE("'",B$1,"'!",B$4,(YEAR($A33)-1921)*12+MONTH($A33)+3+IF(ISNUMBER(FIND("PRV",B$6)),1,0)))*IF(AND(B$3>0,TRIM(B$9)="CFS"),Conv_Flags!$C33,1) -> 373.0559692 | C33: =INDIRECT(CONCATENATE("'",C$1,"'!",C$4,(YEAR($A33)-1921)*12+MONTH($A33)+3+IF(ISNUMBER(FIND("PRV",C$6)),1,0)))*IF(AND(C$3>0,TRIM(C$9)="CFS"),Conv_Flags!$C33,1) -> 378.7949829 | D33: =INDIRECT(CONCATENATE("'",D$1,"'!",D$4,(YEAR($A33)-1921)*12+MONTH($A33)+3+IF(ISNUMBER(FIND("PRV",D$6)),1,0)))*IF(AND(D$3>0,TRIM(D$9)="CFS"),Conv_Flags!$C33,1) -> 378.7270813 | E33: =INDIRECT(CONCATENATE("'",E$1,"'!",E$4,(YEAR($A33)-1921)*12+MONTH($A33)+3+IF(ISNUMBER(FIND("PRV",E$6)),1,0)))*IF(AND(E$3>0,TRIM(E$9)="CFS"),Conv_Flags!$C33,1) -> 378.8037109 | F33: =INDIRECT(CONCATENATE("'",F$1,"'!",F$4,(YEAR($A33)-1921)*12+MONTH($A33)+3+IF(ISNUMBER(FIND("PRV",F$6)),1,0)))*IF(AND(F$3>0,TRIM(F$9)="CFS"),Conv_Flags!$C33,1) ->  | J33: 1943 | K33: =B265 -> 371.8406677 | L33: =B266 -> 611.3273315 | M33: =B267 -> 246.1404114 | N33: =B268 -> 186.4751282 | O33: =B269 -> 182.2808533 | P33: =B270 -> 180.4397736 | Q33: =B271 -> 183.5487213 | R33: =B272 -> 187.8630524 | S33: =B273 -> 333.9538879 | T33: =B274 -> 286.1359558 | U33: =B275 -> 640.765564 | V33: =B276 -> 374.1330872 | X33: 427.9780134 | Y33: 478.0771141 | Z33: 315.4087029 | AB33: 353.9458847 | AC33: 204.9654643 | AD33: 221.4513588 | AE33: 408.7471237 | AF33: 596.0140889 | AH33: 1943 | AI33: ='Compile Data'!C265 -> 343.0021362 | AJ33: ='Compile Data'!C266 -> 701.9629517 | AK33: ='Compile Data'!C267 -> 259.1894836 | AL33: ='Compile Data'!C268 -> 186.68013 | AM33: ='Compile Data'!C269 -> 182.3160095 | AN33: ='Compile Data'!C270 -> 180.4421387 | AO33: ='Compile Data'!C271 -> 183.5509796 | AP33: ='Compile Data'!C272 -> 187.8602448 | AQ33: ='Compile Data'!C273 -> 345.4904785 | AR33: ='Compile Data'!C274 -> 287.0009155 | AS33: ='Compile Data'!C275 -> 583.6193237 | AT33: ='Compile Data'!C276 -> 351.4984131 | AV33: 412.8242048 | AW33: 462.7987328 | AX33: 316.0511004 | AZ33: 372.7086754 | BA33: 209.3952077 | BB33: 224.3359604 | BC33: 391.9022827 | BD33: 553.6182251 | BF33: 1943 | BG33: ='Compile Data'!D265 -> 342.9975891 | BH33: ='Compile Data'!D266 -> 701.9102783 | BI33: ='Compile Data'!D267 -> 259.1652832 | BJ33: ='Compile Data'!D268 -> 186.7080383 | BK33: ='Compile Data'!D269 -> 182.3164825 | BL33: ='Compile Data'!D270 -> 180.4420776 | BM33: ='Compile Data'!D271 -> 183.5512695 | BN33: ='Compile Data'!D272 -> 187.8592529 | BO33: ='Compile Data'!D273 -> 345.4794006 | BP33: ='Compile Data'!D274 -> 286.9998779 | BQ33: ='Compile Data'!D275 -> 583.6721802 | BR33: ='Compile Data'!D276 -> 351.4892273 | BT33: 412.8223 | BU33: 462.8567301 | BV33: 316.0492465 | BX33: 372.6952972 | BY33: 209.3966014 | BZ33: 224.3330002 | CA33: 391.9101715 | CB33: 553.6000264 | CD33: 1943 | CE33: ='Compile Data'!E265 -> 342.9989624 | CF33: ='Compile Data'!E266 -> 701.9512939 | CG33: ='Compile Data'!E267 -> 259.1880798 | CH33: ='Compile Data'!E268 -> 186.6789703 | CI33: ='Compile Data'!E269 -> 182.3101349 | CJ33: ='Compile Data'!E270 -> 180.4420624 | CK33: ='Compile Data'!E271 -> 183.5509033 | CL33: ='Compile Data'!E272 -> 187.8601532 | CM33: ='Compile Data'!E273 -> 345.4885254 | CN33: ='Compile Data'!E274 -> 287.0001221 | CO33: ='Compile Data'!E275 -> 583.609375 | CP33: ='Compile Data'!E276 -> 351.4987488 | CR33: 412.8209788 | CS33: 462.795166 | CT33: 316.048111 | CV33: 372.7043266 | CW33: 209.392395 | CX33: 224.3354111 | CY33: 391.8991928 | CZ33: 553.6149495 | DB33: 1943 | DC33: ='Compile Data'!F265 ->  | DD33: ='Compile Data'!F266 ->  | DE33: ='Compile Data'!F267 ->  | DF33: ='Compile Data'!F268 ->  | DG33: ='Compile Data'!F269 ->  | DH33: ='Compile Data'!F270 ->  | DI33: ='Compile Data'!F271 ->  | DJ33: ='Compile Data'!F272 ->  | DK33: ='Compile Data'!F273 ->  | DL33: ='Compile Data'!F274 ->  | DM33: ='Compile Data'!F275 ->  | DN33: ='Compile Data'!F276 -> 
A34: 1923-07-31 | B34: =INDIRECT(CONCATENATE("'",B$1,"'!",B$4,(YEAR($A34)-1921)*12+MONTH($A34)+3+IF(ISNUMBER(FIND("PRV",B$6)),1,0)))*IF(AND(B$3>0,TRIM(B$9)="CFS"),Conv_Flags!$C34,1) -> 591.7183228 | C34: =INDIRECT(CONCATENATE("'",C$1,"'!",C$4,(YEAR($A34)-1921)*12+MONTH($A34)+3+IF(ISNUMBER(FIND("PRV",C$6)),1,0)))*IF(AND(C$3>0,TRIM(C$9)="CFS"),Conv_Flags!$C34,1) -> 574.5285645 | D34: =INDIRECT(CONCATENATE("'",D$1,"'!",D$4,(YEAR($A34)-1921)*12+MONTH($A34)+3+IF(ISNUMBER(FIND("PRV",D$6)),1,0)))*IF(AND(D$3>0,TRIM(D$9)="CFS"),Conv_Flags!$C34,1) -> 574.6029663 | E34: =INDIRECT(CONCATENATE("'",E$1,"'!",E$4,(YEAR($A34)-1921)*12+MONTH($A34)+3+IF(ISNUMBER(FIND("PRV",E$6)),1,0)))*IF(AND(E$3>0,TRIM(E$9)="CFS"),Conv_Flags!$C34,1) -> 573.8532104 | F34: =INDIRECT(CONCATENATE("'",F$1,"'!",F$4,(YEAR($A34)-1921)*12+MONTH($A34)+3+IF(ISNUMBER(FIND("PRV",F$6)),1,0)))*IF(AND(F$3>0,TRIM(F$9)="CFS"),Conv_Flags!$C34,1) ->  | J34: 1944 | K34: =B277 -> 521.9385986 | L34: =B278 -> 891.9705811 | M34: =B279 -> 1166.230957 | N34: =B280 -> 743.1222534 | O34: =B281 -> 226.822937 | P34: =B282 -> 195.5505676 | Q34: =B283 -> 247.9756012 | R34: =B284 -> 409.3278503 | S34: =B285 -> 482.3988037 | T34: =B286 -> 733.7285767 | U34: =B287 -> 1951.305664 | V34: =B288 -> 2884.086426 | X34: 1120.779079 | Y34: 1092.841044 | Z34: 871.2049014 | AB34: 830.8155975 | AC34: 712.0587158 | AD34: 333.8132057 | AE34: 1512.879868 | AF34: 2616.25179 | AH34: 1944 | AI34: ='Compile Data'!C277 -> 462.7785645 | AJ34: ='Compile Data'!C278 -> 846.5776978 | AK34: ='Compile Data'!C279 -> 1156.075562 | AL34: ='Compile Data'!C280 -> 740.4782104 | AM34: ='Compile Data'!C281 -> 228.212265 | AN34: ='Compile Data'!C282 -> 198.4183197 | AO34: ='Compile Data'!C283 -> 249.7862549 | AP34: ='Compile Data'!C284 -> 405.6217346 | AQ34: ='Compile Data'!C285 -> 480.6746521 | AR34: ='Compile Data'!C286 -> 730.8157349 | AS34: ='Compile Data'!C287 -> 1728.872803 | AT34: ='Compile Data'!C288 -> 2378.044189 | AV34: 976.4249903 | AW34: 945.1582896 | AX34: 800.5296656 | AZ34: 801.4775085 | BA34: 708.2553457 | BB34: 333.6252403 | BC34: 1329.601845 | BD34: 2122.684082 | BF34: 1944 | BG34: ='Compile Data'!D277 -> 462.7709961 | BH34: ='Compile Data'!D278 -> 846.539856 | BI34: ='Compile Data'!D279 -> 1156.03894 | BJ34: ='Compile Data'!D280 -> 741.1658325 | BK34: ='Compile Data'!D281 -> 228.2718506 | BL34: ='Compile Data'!D282 -> 198.4251404 | BM34: ='Compile Data'!D283 -> 249.835968 | BN34: ='Compile Data'!D284 -> 405.5952148 | BO34: ='Compile Data'!D285 -> 480.7237854 | BP34: ='Compile Data'!D286 -> 730.4990234 | BQ34: ='Compile Data'!D287 -> 1726.102173 | BR34: ='Compile Data'!D288 -> 2356.760986 | BT34: 959.9717127 | BU34: 927.8039258 | BV34: 798.5608139 | BX34: 801.6289062 | BY34: 708.4922078 | BZ34: 333.6450272 | CA34: 1323.521492 | CB34: 2066.150553 | CD34: 1944 | CE34: ='Compile Data'!E277 -> 462.7760925 | CF34: ='Compile Data'!E278 -> 846.5700073 | CG34: ='Compile Data'!E279 -> 1156.06665 | CH34: ='Compile Data'!E280 -> 740.4681396 | CI34: ='Compile Data'!E281 -> 228.2112122 | CJ34: ='Compile Data'!E282 -> 198.4179688 | CK34: ='Compile Data'!E283 -> 249.7841492 | CL34: ='Compile Data'!E284 -> 405.6210632 | CM34: ='Compile Data'!E285 -> 480.6728821 | CN34: ='Compile Data'!E286 -> 730.8103638 | CO34: ='Compile Data'!E287 -> 1728.867188 | CP34: ='Compile Data'!E288 -> 2378.03833 | CR34: 976.4186808 | CS34: 945.1519839 | CT34: 800.5253372 | CV34: 801.4702225 | CW34: 708.2486674 | CX34: 333.6240158 | CY34: 1329.597191 | CZ34: 2122.674601 | DB34: 1944 | DC34: ='Compile Data'!F277 ->  | DD34: ='Compile Data'!F278 ->  | DE34: ='Compile Data'!F279 ->  | DF34: ='Compile Data'!F280 ->  | DG34: ='Compile Data'!F281 ->  | DH34: ='Compile Data'!F282 ->  | DI34: ='Compile Data'!F283 ->  | DJ34: ='Compile Data'!F284 ->  | DK34: ='Compile Data'!F285 ->  | DL34: ='Compile Data'!F286 ->  | DM34: ='Compile Data'!F287 ->  | DN34: ='Compile Data'!F288 -> 
A35: 1923-08-31 | B35: =INDIRECT(CONCATENATE("'",B$1,"'!",B$4,(YEAR($A35)-1921)*12+MONTH($A35)+3+IF(ISNUMBER(FIND("PRV",B$6)),1,0)))*IF(AND(B$3>0,TRIM(B$9)="CFS"),Conv_Flags!$C35,1) -> 1273.2677 | C35: =INDIRECT(CONCATENATE("'",C$1,"'!",C$4,(YEAR($A35)-1921)*12+MONTH($A35)+3+IF(ISNUMBER(FIND("PRV",C$6)),1,0)))*IF(AND(C$3>0,TRIM(C$9)="CFS"),Conv_Flags!$C35,1) -> 1031.360107 | D35: =INDIRECT(CONCATENATE("'",D$1,"'!",D$4,(YEAR($A35)-1921)*12+MONTH($A35)+3+IF(ISNUMBER(FIND("PRV",D$6)),1,0)))*IF(AND(D$3>0,TRIM(D$9)="CFS"),Conv_Flags!$C35,1) -> 1033.088501 | E35: =INDIRECT(CONCATENATE("'",E$1,"'!",E$4,(YEAR($A35)-1921)*12+MONTH($A35)+3+IF(ISNUMBER(FIND("PRV",E$6)),1,0)))*IF(AND(E$3>0,TRIM(E$9)="CFS"),Conv_Flags!$C35,1) -> 1041.633057 | F35: =INDIRECT(CONCATENATE("'",F$1,"'!",F$4,(YEAR($A35)-1921)*12+MONTH($A35)+3+IF(ISNUMBER(FIND("PRV",F$6)),1,0)))*IF(AND(F$3>0,TRIM(F$9)="CFS"),Conv_Flags!$C35,1) ->  | J35: 1945 | K35: =B289 -> 2988.640869 | L35: =B290 -> 1976.028076 | M35: =B291 -> 610.3613281 | N35: =B292 -> 441.749054 | O35: =B293 -> 192.9397125 | P35: =B294 -> 197.5192108 | Q35: =B295 -> 209.6073914 | R35: =B296 -> 202.5820465 | S35: =B297 -> 377.9436035 | T35: =B298 -> 558.999939 | U35: =B299 -> 1321.850952 | V35: =B300 -> 2384.279785 | X35: 815.894975 | Y35: 793.9527957 | Z35: 955.2084974 | AB35: 1504.194832 | AC35: 415.0166982 | AD35: 246.913063 | AE35: 1160.76857 | AF35: 2031.827006 | AH35: 1945 | AI35: ='Compile Data'!C289 -> 2245.287598 | AJ35: ='Compile Data'!C290 -> 1744.720459 | AK35: ='Compile Data'!C291 -> 586.1676636 | AL35: ='Compile Data'!C292 -> 400.8190613 | AM35: ='Compile Data'!C293 -> 192.6710052 | AN35: ='Compile Data'!C294 -> 199.639328 | AO35: ='Compile Data'!C295 -> 210.1488647 | AP35: ='Compile Data'!C296 -> 202.688797 | AQ35: ='Compile Data'!C297 -> 391.9153748 | AR35: ='Compile Data'!C298 -> 552.8081665 | AS35: ='Compile Data'!C299 -> 1044.862915 | AT35: ='Compile Data'!C300 -> 1955.881714 | AV35: 721.6392797 | AW35: 703.1628914 | AX35: 810.6342456 | AZ35: 1244.248695 | BA35: 393.2192434 | BB35: 251.0980911 | BC35: 986.3670425 | BD35: 1757.638082 | BF35: 1945 | BG35: ='Compile Data'!D289 -> 2169.505859 | BH35: ='Compile Data'!D290 -> 1672.184814 | BI35: ='Compile Data'!D291 -> 560.5899048 | BJ35: ='Compile Data'!D292 -> 391.4492493 | BK35: ='Compile Data'!D293 -> 191.9749908 | BL35: ='Compile Data'!D294 -> 199.7318573 | BM35: ='Compile Data'!D295 -> 210.1414337 | BN35: ='Compile Data'!D296 -> 202.6546783 | BO35: ='Compile Data'!D297 -> 391.8328552 | BP35: ='Compile Data'!D298 -> 552.8183594 | BQ35: ='Compile Data'!D299 -> 1044.562256 | BR35: ='Compile Data'!D300 -> 1981.441162 | BT35: 722.3642832 | BU35: 704.7487361 | BV35: 797.4072851 | BX35: 1198.432457 | BY35: 381.3380483 | BZ35: 251.0902061 | CA35: 992.6636581 | CB35: 1764.181335 | CD35: 1945 | CE35: ='Compile Data'!E289 -> 2245.344238 | CF35: ='Compile Data'!E290 -> 1744.641235 | CG35: ='Compile Data'!E291 -> 586.1473999 | CH35: ='Compile Data'!E292 -> 400.8085327 | CI35: ='Compile Data'!E293 -> 192.6704559 | CJ35: ='Compile Data'!E294 -> 199.6391754 | CK35: ='Compile Data'!E295 -> 210.1484528 | CL35: ='Compile Data'!E296 -> 202.6882324 | CM35: ='Compile Data'!E297 -> 391.9124451 | CN35: ='Compile Data'!E298 -> 552.8077393 | CO35: ='Compile Data'!E299 -> 1044.603516 | CP35: ='Compile Data'!E300 -> 1955.558838 | CR35: 719.4056053 | CS35: 700.9300003 | CT35: 810.5808551 | CV35: 1244.235352 | CW35: 393.2087962 | CX35: 251.0970764 | CY35: 986.2206345 | CZ35: 1748.813639 | DB35: 1945 | DC35: ='Compile Data'!F289 ->  | DD35: ='Compile Data'!F290 ->  | DE35: ='Compile Data'!F291 ->  | DF35: ='Compile Data'!F292 ->  | DG35: ='Compile Data'!F293 ->  | DH35: ='Compile Data'!F294 ->  | DI35: ='Compile Data'!F295 ->  | DJ35: ='Compile Data'!F296 ->  | DK35: ='Compile Data'!F297 ->  | DL35: ='Compile Data'!F298 ->  | DM35: ='Compile Data'!F299 ->  | DN35: ='Compile Data'!F300 -> 
A36: 1923-09-30 | B36: =INDIRECT(CONCATENATE("'",B$1,"'!",B$4,(YEAR($A36)-1921)*12+MONTH($A36)+3+IF(ISNUMBER(FIND("PRV",B$6)),1,0)))*IF(AND(B$3>0,TRIM(B$9)="CFS"),Conv_Flags!$C36,1) -> 1901.265381 | C36: =INDIRECT(CONCATENATE("'",C$1,"'!",C$4,(YEAR($A36)-1921)*12+MONTH($A36)+3+IF(ISNUMBER(FIND("PRV",C$6)),1,0)))*IF(AND(C$3>0,TRIM(C$9)="CFS"),Conv_Flags!$C36,1) -> 1617.44812 | D36: =INDIRECT(CONCATENATE("'",D$1,"'!",D$4,(YEAR($A36)-1921)*12+MONTH($A36)+3+IF(ISNUMBER(FIND("PRV",D$6)),1,0)))*IF(AND(D$3>0,TRIM(D$9)="CFS"),Conv_Flags!$C36,1) -> 1486.946289 | E36: =INDIRECT(CONCATENATE("'",E$1,"'!",E$4,(YEAR($A36)-1921)*12+MONTH($A36)+3+IF(ISNUMBER(FIND("PRV",E$6)),1,0)))*IF(AND(E$3>0,TRIM(E$9)="CFS"),Conv_Flags!$C36,1) -> 1537.212524 | F36: =INDIRECT(CONCATENATE("'",F$1,"'!",F$4,(YEAR($A36)-1921)*12+MONTH($A36)+3+IF(ISNUMBER(FIND("PRV",F$6)),1,0)))*IF(AND(F$3>0,TRIM(F$9)="CFS"),Conv_Flags!$C36,1) ->  | J36: 1946 | K36: =B301 -> 2778.749268 | L36: =B302 -> 932.4519653 | M36: =B303 -> 192.0667725 | N36: =B304 -> 181.8618469 | O36: =B305 -> 189.5207672 | P36: =B306 -> 200.404129 | Q36: =B307 -> 201.2490082 | R36: =B308 -> 208.558609 | S36: =B309 -> 313.0629883 | T36: =B310 -> 566.2270508 | U36: =B311 -> 1135.475586 | V36: =B312 -> 1676.133301 | X36: 828.7901611 | Y36: 877.3767357 | Z36: 714.6467743 | AB36: 1021.282463 | AC36: 187.8164622 | AD36: 230.8186836 | AE36: 922.7247314 | AF36: 2058.193034 | AH36: 1946 | AI36: ='Compile Data'!C301 -> 2463.481689 | AJ36: ='Compile Data'!C302 -> 853.5508423 | AK36: ='Compile Data'!C303 -> 191.203598 | AL36: ='Compile Data'!C304 -> 182.1912537 | AM36: ='Compile Data'!C305 -> 189.5821533 | AN36: ='Compile Data'!C306 -> 200.4088287 | AO36: ='Compile Data'!C307 -> 201.2440186 | AP36: ='Compile Data'!C308 -> 209.8058167 | AQ36: ='Compile Data'!C309 -> 314.2073669 | AR36: ='Compile Data'!C310 -> 567.2357178 | AS36: ='Compile Data'!C311 -> 1008.425476 | AT36: ='Compile Data'!C312 -> 1579.310425 | AV36: 781.500782 | AW36: 843.244297 | AX36: 663.3872655 | AZ36: 922.6068459 | BA36: 187.6590017 | BB36: 231.4165077 | BC36: 867.2947464 | BD36: 1870.146851 | BF36: 1946 | BG36: ='Compile Data'!D301 -> 2493.551514 | BH36: ='Compile Data'!D302 -> 817.5513306 | BI36: ='Compile Data'!D303 -> 190.6617126 | BJ36: ='Compile Data'!D304 -> 182.1456146 | BK36: ='Compile Data'!D305 -> 189.8920593 | BL36: ='Compile Data'!D306 -> 200.4490051 | BM36: ='Compile Data'!D307 -> 201.2408905 | BN36: ='Compile Data'!D308 -> 209.800705 | BO36: ='Compile Data'!D309 -> 315.1824646 | BP36: ='Compile Data'!D310 -> 564.1511841 | BQ36: ='Compile Data'!D311 -> 1009.017639 | BR36: ='Compile Data'!D312 -> 1582.832886 | BT36: 779.8180224 | BU36: 840.5509288 | BV36: 663.0397504 | BX36: 920.9775429 | BY36: 187.5664622 | BZ36: 231.6682663 | CA36: 867.7960434 | CB36: 1867.889038 | CD36: 1946 | CE36: ='Compile Data'!E301 -> 2442.508545 | CF36: ='Compile Data'!E302 -> 848.3735352 | CG36: ='Compile Data'!E303 -> 191.1477966 | CH36: ='Compile Data'!E304 -> 182.1902008 | CI36: ='Compile Data'!E305 -> 189.5815277 | CJ36: ='Compile Data'!E306 -> 200.4077454 | CK36: ='Compile Data'!E307 -> 201.2433472 | CL36: ='Compile Data'!E308 -> 209.8051453 | CM36: ='Compile Data'!E309 -> 314.2109985 | CN36: ='Compile Data'!E310 -> 567.2307129 | CO36: ='Compile Data'!E311 -> 1008.901123 | CP36: ='Compile Data'!E312 -> 1580.123657 | CR36: 780.3873545 | CS36: 842.0844142 | CT36: 661.3103612 | CV36: 916.0550194 | CW36: 187.6398417 | CX36: 231.4168091 | CY36: 867.6166229 | CZ36: 1866.308228 | DB36: 1946 | DC36: ='Compile Data'!F301 ->  | DD36: ='Compile Data'!F302 ->  | DE36: ='Compile Data'!F303 ->  | DF36: ='Compile Data'!F304 ->  | DG36: ='Compile Data'!F305 ->  | DH36: ='Compile Data'!F306 ->  | DI36: ='Compile Data'!F307 ->  | DJ36: ='Compile Data'!F308 ->  | DK36: ='Compile Data'!F309 ->  | DL36: ='Compile Data'!F310 ->  | DM36: ='Compile Data'!F311 ->  | DN36: ='Compile Data'!F312 -> 
A37: 1923-10-31 | B37: =INDIRECT(CONCATENATE("'",B$1,"'!",B$4,(YEAR($A37)-1921)*12+MONTH($A37)+3+IF(ISNUMBER(FIND("PRV",B$6)),1,0)))*IF(AND(B$3>0,TRIM(B$9)="CFS"),Conv_Flags!$C37,1) -> 2506.830811 | C37: =INDIRECT(CONCATENATE("'",C$1,"'!",C$4,(YEAR($A37)-1921)*12+MONTH($A37)+3+IF(ISNUMBER(FIND("PRV",C$6)),1,0)))*IF(AND(C$3>0,TRIM(C$9)="CFS"),Conv_Flags!$C37,1) -> 2037.722778 | D37: =INDIRECT(CONCATENATE("'",D$1,"'!",D$4,(YEAR($A37)-1921)*12+MONTH($A37)+3+IF(ISNUMBER(FIND("PRV",D$6)),1,0)))*IF(AND(D$3>0,TRIM(D$9)="CFS"),Conv_Flags!$C37,1) -> 1961.88269 | E37: =INDIRECT(CONCATENATE("'",E$1,"'!",E$4,(YEAR($A37)-1921)*12+MONTH($A37)+3+IF(ISNUMBER(FIND("PRV",E$6)),1,0)))*IF(AND(E$3>0,TRIM(E$9)="CFS"),Conv_Flags!$C37,1) -> 1987.175781 | F37: =INDIRECT(CONCATENATE("'",F$1,"'!",F$4,(YEAR($A37)-1921)*12+MONTH($A37)+3+IF(ISNUMBER(FIND("PRV",F$6)),1,0)))*IF(AND(F$3>0,TRIM(F$9)="CFS"),Conv_Flags!$C37,1) ->  | J37: 1947 | K37: =B313 -> 2131.794678 | L37: =B314 -> 2366.651123 | M37: =B315 -> 774.5428467 | N37: =B316 -> 658.9422607 | O37: =B317 -> 295.479248 | P37: =B318 -> 194.8829346 | Q37: =B319 -> 212.2893982 | R37: =B320 -> 500.0671082 | S37: =B321 -> 677.7897949 | T37: =B322 -> 929.4252319 | U37: =B323 -> 1977.343872 | V37: =B324 -> 2534.669922 | X37: 1286.769541 | Y37: 1288.935893 | Z37: 1104.489868 | AB37: 1482.982727 | AC37: 576.3214518 | AD37: 396.257309 | AE37: 1529.807205 | AF37: 2506.47111 | AH37: 1947 | AI37: ='Compile Data'!C313 -> 1862.223145 | AJ37: ='Compile Data'!C314 -> 2168.906982 | AK37: ='Compile Data'!C315 -> 894.4682007 | AL37: ='Compile Data'!C316 -> 799.3575439 | AM37: ='Compile Data'!C317 -> 313.3380432 | AN37: ='Compile Data'!C318 -> 199.9509735 | AO37: ='Compile Data'!C319 -> 211.7476959 | AP37: ='Compile Data'!C320 -> 497.546814 | AQ37: ='Compile Data'!C321 -> 678.9824219 | AR37: ='Compile Data'!C322 -> 891.8050537 | AS37: ='Compile Data'!C323 -> 1715.894043 | AT37: ='Compile Data'!C324 -> 2270.983643 | AV37: 1182.104973 | AW37: 1176.879054 | AX37: 1042.10038 | AZ37: 1431.238968 | BA37: 669.0545959 | BB37: 397.0569763 | BC37: 1389.41629 | BD37: 2224.933065 | BF37: 1947 | BG37: ='Compile Data'!D313 -> 1859.228516 | BH37: ='Compile Data'!D314 -> 2161.605713 | BI37: ='Compile Data'!D315 -> 882.2695923 | BJ37: ='Compile Data'!D316 -> 789.2386475 | BK37: ='Compile Data'!D317 -> 311.5939026 | BL37: ='Compile Data'!D318 -> 199.5727539 | BM37: ='Compile Data'!D319 -> 211.6078949 | BN37: ='Compile Data'!D320 -> 497.648468 | BO37: ='Compile Data'!D321 -> 679.2839966 | BP37: ='Compile Data'!D322 -> 892.069519 | BQ37: ='Compile Data'!D323 -> 1715.972046 | BR37: ='Compile Data'!D324 -> 2270.783447 | BT37: 1180.913049 | BU37: 1176.642333 | BV37: 1039.239541 | BX37: 1423.085617 | BY37: 661.0340474 | BZ37: 397.0282784 | CA37: 1389.527252 | CB37: 2224.329386 | CD37: 1947 | CE37: ='Compile Data'!E313 -> 1856.791992 | CF37: ='Compile Data'!E314 -> 2162.009033 | CG37: ='Compile Data'!E315 -> 892.152771 | CH37: ='Compile Data'!E316 -> 798.9110107 | CI37: ='Compile Data'!E317 -> 313.2254333 | CJ37: ='Compile Data'!E318 -> 199.9437866 | CK37: ='Compile Data'!E319 -> 211.7562561 | CL37: ='Compile Data'!E320 -> 497.5496216 | CM37: ='Compile Data'!E321 -> 679.0608521 | CN37: ='Compile Data'!E322 -> 891.7548218 | CO37: ='Compile Data'!E323 -> 1715.85144 | CP37: ='Compile Data'!E324 -> 2271.36377 | CR37: 1182.394216 | CS37: 1177.243629 | CT37: 1040.864232 | CV37: 1427.466202 | CW37: 668.096405 | CX37: 397.0776291 | CY37: 1389.507721 | CZ37: 2225.233602 | DB37: 1947 | DC37: ='Compile Data'!F313 ->  | DD37: ='Compile Data'!F314 ->  | DE37: ='Compile Data'!F315 ->  | DF37: ='Compile Data'!F316 ->  | DG37: ='Compile Data'!F317 ->  | DH37: ='Compile Data'!F318 ->  | DI37: ='Compile Data'!F319 ->  | DJ37: ='Compile Data'!F320 ->  | DK37: ='Compile Data'!F321 ->  | DL37: ='Compile Data'!F322 ->  | DM37: ='Compile Data'!F323 ->  | DN37: ='Compile Data'!F324 -> 
A38: 1923-11-30 | B38: =INDIRECT(CONCATENATE("'",B$1,"'!",B$4,(YEAR($A38)-1921)*12+MONTH($A38)+3+IF(ISNUMBER(FIND("PRV",B$6)),1,0)))*IF(AND(B$3>0,TRIM(B$9)="CFS"),Conv_Flags!$C38,1) -> 2480.14502 | C38: =INDIRECT(CONCATENATE("'",C$1,"'!",C$4,(YEAR($A38)-1921)*12+MONTH($A38)+3+IF(ISNUMBER(FIND("PRV",C$6)),1,0)))*IF(AND(C$3>0,TRIM(C$9)="CFS"),Conv_Flags!$C38,1) -> 2206.447266 | D38: =INDIRECT(CONCATENATE("'",D$1,"'!",D$4,(YEAR($A38)-1921)*12+MONTH($A38)+3+IF(ISNUMBER(FIND("PRV",D$6)),1,0)))*IF(AND(D$3>0,TRIM(D$9)="CFS"),Conv_Flags!$C38,1) -> 2180.561035 | E38: =INDIRECT(CONCATENATE("'",E$1,"'!",E$4,(YEAR($A38)-1921)*12+MONTH($A38)+3+IF(ISNUMBER(FIND("PRV",E$6)),1,0)))*IF(AND(E$3>0,TRIM(E$9)="CFS"),Conv_Flags!$C38,1) -> 2144.446289 | F38: =INDIRECT(CONCATENATE("'",F$1,"'!",F$4,(YEAR($A38)-1921)*12+MONTH($A38)+3+IF(ISNUMBER(FIND("PRV",F$6)),1,0)))*IF(AND(F$3>0,TRIM(F$9)="CFS"),Conv_Flags!$C38,1) ->  | J38: 1948 | K38: =B325 -> 2745.794434 | L38: =B326 -> 2238.948975 | M38: =B327 -> 2475.601318 | N38: =B328 -> 688.0239258 | O38: =B329 -> 292.3937988 | P38: =B330 -> 237.0208435 | Q38: =B331 -> 184.2252502 | R38: =B332 -> 179.7413788 | S38: =B333 -> 187.7481995 | T38: =B334 -> 336.5768433 | U38: =B335 -> 963.4203491 | V38: =B336 -> 1831.524048 | X38: 942.5810509 | Y38: 1003.173743 | Z38: 1030.084947 | AB38: 2037.092163 | AC38: 1152.006348 | AD38: 197.183918 | AE38: 829.8173599 | AF38: 2137.099487 | AH38: 1948 | AI38: ='Compile Data'!C325 -> 2514.723389 | AJ38: ='Compile Data'!C326 -> 1889.092163 | AK38: ='Compile Data'!C327 -> 2201.837891 | AL38: ='Compile Data'!C328 -> 742.3564453 | AM38: ='Compile Data'!C329 -> 307.6281128 | AN38: ='Compile Data'!C330 -> 262.6488037 | AO38: ='Compile Data'!C331 -> 185.6069489 | AP38: ='Compile Data'!C332 -> 179.7063446 | AQ38: ='Compile Data'!C333 -> 194.3345795 | AR38: ='Compile Data'!C334 -> 357.1793518 | AS38: ='Compile Data'!C335 -> 882.8277588 | AT38: ='Compile Data'!C336 -> 1523.69104 | AV38: 899.9868991 | AW38: 953.4832522 | AX38: 936.8027356 | AZ38: 1837.002472 | BA38: 1083.940816 | BB38: 205.5741692 | BC38: 739.5081825 | BD38: 1953.352091 | BF38: 1948 | BG38: ='Compile Data'!D325 -> 2515.554688 | BH38: ='Compile Data'!D326 -> 1886.650024 | BI38: ='Compile Data'!D327 -> 2200.981201 | BJ38: ='Compile Data'!D328 -> 742.1162109 | BK38: ='Compile Data'!D329 -> 307.4677429 | BL38: ='Compile Data'!D330 -> 262.7325439 | BM38: ='Compile Data'!D331 -> 185.5074615 | BN38: ='Compile Data'!D332 -> 179.7018738 | BO38: ='Compile Data'!D333 -> 194.3307953 | BP38: ='Compile Data'!D334 -> 352.7971191 | BQ38: ='Compile Data'!D335 -> 871.1332397 | BR38: ='Compile Data'!D336 -> 1501.485107 | BT38: 895.5060527 | BU38: 947.2194341 | BV38: 933.3715007 | BX38: 1836.325531 | BY38: 1083.521718 | BZ38: 205.5681686 | CA38: 729.9365654 | CB38: 1939.450114 | CD38: 1948 | CE38: ='Compile Data'!E325 -> 2511.85498 | CF38: ='Compile Data'!E326 -> 1892.482056 | CG38: ='Compile Data'!E327 -> 2204.976562 | CH38: ='Compile Data'!E328 -> 742.6724243 | CI38: ='Compile Data'!E329 -> 307.6569824 | CJ38: ='Compile Data'!E330 -> 262.6550903 | CK38: ='Compile Data'!E331 -> 185.603241 | CL38: ='Compile Data'!E332 -> 179.7060089 | CM38: ='Compile Data'!E333 -> 194.3327484 | CN38: ='Compile Data'!E334 -> 357.1517029 | CO38: ='Compile Data'!E335 -> 883.2980957 | CP38: ='Compile Data'!E336 -> 1498.51001 | CR38: 895.579366 | CS38: 948.9222361 | CT38: 935.0749919 | CV38: 1837.996506 | CW38: 1085.10199 | CX38: 205.5742722 | CY38: 733.3231392 | CZ38: 1936.24471 | DB38: 1948 | DC38: ='Compile Data'!F325 ->  | DD38: ='Compile Data'!F326 ->  | DE38: ='Compile Data'!F327 ->  | DF38: ='Compile Data'!F328 ->  | DG38: ='Compile Data'!F329 ->  | DH38: ='Compile Data'!F330 ->  | DI38: ='Compile Data'!F331 ->  | DJ38: ='Compile Data'!F332 ->  | DK38: ='Compile Data'!F333 ->  | DL38: ='Compile Data'!F334 ->  | DM38: ='Compile Data'!F335 ->  | DN38: ='Compile Data'!F336 -> 
A39: 1923-12-31 | B39: =INDIRECT(CONCATENATE("'",B$1,"'!",B$4,(YEAR($A39)-1921)*12+MONTH($A39)+3+IF(ISNUMBER(FIND("PRV",B$6)),1,0)))*IF(AND(B$3>0,TRIM(B$9)="CFS"),Conv_Flags!$C39,1) -> 2087.549561 | C39: =INDIRECT(CONCATENATE("'",C$1,"'!",C$4,(YEAR($A39)-1921)*12+MONTH($A39)+3+IF(ISNUMBER(FIND("PRV",C$6)),1,0)))*IF(AND(C$3>0,TRIM(C$9)="CFS"),Conv_Flags!$C39,1) -> 2011.978638 | D39: =INDIRECT(CONCATENATE("'",D$1,"'!",D$4,(YEAR($A39)-1921)*12+MONTH($A39)+3+IF(ISNUMBER(FIND("PRV",D$6)),1,0)))*IF(AND(D$3>0,TRIM(D$9)="CFS"),Conv_Flags!$C39,1) -> 2001.176147 | E39: =INDIRECT(CONCATENATE("'",E$1,"'!",E$4,(YEAR($A39)-1921)*12+MONTH($A39)+3+IF(ISNUMBER(FIND("PRV",E$6)),1,0)))*IF(AND(E$3>0,TRIM(E$9)="CFS"),Conv_Flags!$C39,1) -> 2020.86377 | F39: =INDIRECT(CONCATENATE("'",F$1,"'!",F$4,(YEAR($A39)-1921)*12+MONTH($A39)+3+IF(ISNUMBER(FIND("PRV",F$6)),1,0)))*IF(AND(F$3>0,TRIM(F$9)="CFS"),Conv_Flags!$C39,1) ->  | J39: 1949 | K39: =B337 -> 2322.105225 | L39: =B338 -> 2257.669189 | M39: =B339 -> 1830.52356 | N39: =B340 -> 1176.149536 | O39: =B341 -> 531.3804932 | P39: =B342 -> 190.7296753 | Q39: =B343 -> 209.2959595 | R39: =B344 -> 226.7431335 | S39: =B345 -> 442.7691345 | T39: =B346 -> 809.8186646 | U39: =B347 -> 1847.683105 | V39: =B348 -> 2488.109375 | X39: 1230.707448 | Y39: 1140.871062 | Z39: 1194.414754 | AB39: 1896.611877 | AC39: 1179.351196 | AD39: 267.3844757 | AE39: 1397.09507 | AF39: 2439.29891 | AH39: 1949 | AI39: ='Compile Data'!C337 -> 2120.040527 | AJ39: ='Compile Data'!C338 -> 2216.324707 | AK39: ='Compile Data'!C339 -> 1827.498169 | AL39: ='Compile Data'!C340 -> 1169.568604 | AM39: ='Compile Data'!C341 -> 522.3721924 | AN39: ='Compile Data'!C342 -> 191.7623444 | AO39: ='Compile Data'!C343 -> 208.6695404 | AP39: ='Compile Data'!C344 -> 234.1178741 | AQ39: ='Compile Data'!C345 -> 461.0629272 | AR39: ='Compile Data'!C346 -> 784.329895 | AS39: ='Compile Data'!C347 -> 1729.097412 | AT39: ='Compile Data'!C348 -> 2295.702393 | AV39: 1118.953732 | AW39: 1032.196807 | AX39: 1146.712215 | AZ39: 1833.358002 | BA39: 1173.146322 | BB39: 273.9031715 | BC39: 1317.548157 | BD39: 2120.21403 | BF39: 1949 | BG39: ='Compile Data'!D337 -> 2094.811035 | BH39: ='Compile Data'!D338 -> 2222.054199 | BI39: ='Compile Data'!D339 -> 1831.935303 | BJ39: ='Compile Data'!D340 -> 1155.501221 | BK39: ='Compile Data'!D341 -> 514.6433105 | BL39: ='Compile Data'!D342 -> 191.5947571 | BM39: ='Compile Data'!D343 -> 208.3921509 | BN39: ='Compile Data'!D344 -> 233.9036865 | BO39: ='Compile Data'!D345 -> 461.2545166 | BP39: ='Compile Data'!D346 -> 790.3358765 | BQ39: ='Compile Data'!D347 -> 1788.834106 | BR39: ='Compile Data'!D348 -> 2386.238037 | BT39: 1176.717379 | BU39: 1092.390675 | BV39: 1156.62485 | BX39: 1826.075439 | BY39: 1167.359945 | BZ39: 273.7862778 | CA39: 1356.665634 | CB39: 2293.883952 | CD39: 1949 | CE39: ='Compile Data'!E337 -> 2096.928467 | CF39: ='Compile Data'!E338 -> 2213.295654 | CG39: ='Compile Data'!E339 -> 1825.141968 | CH39: ='Compile Data'!E340 -> 1168.494385 | CI39: ='Compile Data'!E341 -> 521.9494629 | CJ39: ='Compile Data'!E342 -> 191.7566986 | CK39: ='Compile Data'!E343 -> 208.6682587 | CL39: ='Compile Data'!E344 -> 234.1136322 | CM39: ='Compile Data'!E345 -> 461.1757507 | CN39: ='Compile Data'!E346 -> 795.098999 | CO39: ='Compile Data'!E347 -> 1808.799683 | CP39: ='Compile Data'!E348 -> 2539.130127 | CR39: 1296.721658 | CS39: 1213.120366 | CT39: 1172.04609 | CV39: 1825.965118 | CW39: 1171.861938 | CX39: 273.9285851 | CY39: 1401.05114 | CZ39: 2652.844076 | DB39: 1949 | DC39: ='Compile Data'!F337 ->  | DD39: ='Compile Data'!F338 ->  | DE39: ='Compile Data'!F339 ->  | DF39: ='Compile Data'!F340 ->  | DG39: ='Compile Data'!F341 ->  | DH39: ='Compile Data'!F342 ->  | DI39: ='Compile Data'!F343 ->  | DJ39: ='Compile Data'!F344 ->  | DK39: ='Compile Data'!F345 ->  | DL39: ='Compile Data'!F346 ->  | DM39: ='Compile Data'!F347 ->  | DN39: ='Compile Data'!F348 -> 
A40: 1924-01-31 | B40: =INDIRECT(CONCATENATE("'",B$1,"'!",B$4,(YEAR($A40)-1921)*12+MONTH($A40)+3+IF(ISNUMBER(FIND("PRV",B$6)),1,0)))*IF(AND(B$3>0,TRIM(B$9)="CFS"),Conv_Flags!$C40,1) -> 1221.408447 | C40: =INDIRECT(CONCATENATE("'",C$1,"'!",C$4,(YEAR($A40)-1921)*12+MONTH($A40)+3+IF(ISNUMBER(FIND("PRV",C$6)),1,0)))*IF(AND(C$3>0,TRIM(C$9)="CFS"),Conv_Flags!$C40,1) -> 1207.632324 | D40: =INDIRECT(CONCATENATE("'",D$1,"'!",D$4,(YEAR($A40)-1921)*12+MONTH($A40)+3+IF(ISNUMBER(FIND("PRV",D$6)),1,0)))*IF(AND(D$3>0,TRIM(D$9)="CFS"),Conv_Flags!$C40,1) -> 1203.118286 | E40: =INDIRECT(CONCATENATE("'",E$1,"'!",E$4,(YEAR($A40)-1921)*12+MONTH($A40)+3+IF(ISNUMBER(FIND("PRV",E$6)),1,0)))*IF(AND(E$3>0,TRIM(E$9)="CFS"),Conv_Flags!$C40,1) -> 1211.75769 | F40: =INDIRECT(CONCATENATE("'",F$1,"'!",F$4,(YEAR($A40)-1921)*12+MONTH($A40)+3+IF(ISNUMBER(FIND("PRV",F$6)),1,0)))*IF(AND(F$3>0,TRIM(F$9)="CFS"),Conv_Flags!$C40,1) ->  | J40: 1950 | K40: =B349 -> 2602.897949 | L40: =B350 -> 2226.889404 | M40: =B351 -> 2016.022949 | N40: =B352 -> 439.8535156 | O40: =B353 -> 189.6398773 | P40: =B354 -> 188.770401 | Q40: =B355 -> 185.3911591 | R40: =B356 -> 190.0471649 | S40: =B357 -> 288.563324 | T40: =B358 -> 526.4993896 | U40: =B359 -> 1107.268188 | V40: =B360 -> 2082.405518 | X40: 529.291153 | Y40: 507.3175227 | Z40: 1003.687403 | AB40: 1821.415955 | AC40: 881.8387807 | AD40: 213.1930122 | AE40: 1001.184105 | AF40: 1017.973389 | AH40: 1950 | AI40: ='Compile Data'!C349 -> 2294.636719 | AJ40: ='Compile Data'!C350 -> 1770.302979 | AK40: ='Compile Data'!C351 -> 1765.821899 | AL40: ='Compile Data'!C352 -> 460.7989502 | AM40: ='Compile Data'!C353 -> 190.0587463 | AN40: ='Compile Data'!C354 -> 188.7787323 | AO40: ='Compile Data'!C355 -> 185.2638397 | AP40: ='Compile Data'!C356 -> 190.1133118 | AQ40: ='Compile Data'!C357 -> 294.7537842 | AR40: ='Compile Data'!C358 -> 516.1484985 | AS40: ='Compile Data'!C359 -> 988.1028442 | AT40: ='Compile Data'!C360 -> 1817.50293 | AV40: 490.9010442 | AW40: 467.2231178 | AX40: 888.5236028 | AZ40: 1572.890137 | BA40: 805.5598653 | BB40: 214.727417 | BC40: 904.1270142 | BD40: 898.3839366 | BF40: 1950 | BG40: ='Compile Data'!D349 -> 2417.082275 | BH40: ='Compile Data'!D350 -> 2078.331543 | BI40: ='Compile Data'!D351 -> 1894.49707 | BJ40: ='Compile Data'!D352 -> 468.0523682 | BK40: ='Compile Data'!D353 -> 190.1717072 | BL40: ='Compile Data'!D354 -> 188.7591248 | BM40: ='Compile Data'!D355 -> 185.2634888 | BN40: ='Compile Data'!D356 -> 190.1289825 | BO40: ='Compile Data'!D357 -> 294.8278503 | BP40: ='Compile Data'!D358 -> 512.3248291 | BQ40: ='Compile Data'!D359 -> 1009.638611 | BR40: ='Compile Data'!D360 -> 1843.529419 | BT40: 491.3823115 | BU40: 467.0892423 | BV40: 939.3839391 | BX40: 1714.490814 | BY40: 850.9070485 | BZ40: 214.7448616 | CA40: 915.0801773 | CB40: 891.9246063 | CD40: 1950 | CE40: ='Compile Data'!E349 -> 2852.300537 | CF40: ='Compile Data'!E350 -> 2567.101562 | CG40: ='Compile Data'!E351 -> 2212.070801 | CH40: ='Compile Data'!E352 -> 496.2775574 | CI40: ='Compile Data'!E353 -> 190.9507904 | CJ40: ='Compile Data'!E354 -> 188.8693237 | CK40: ='Compile Data'!E355 -> 185.2902069 | CL40: ='Compile Data'!E356 -> 190.148819 | CM40: ='Compile Data'!E357 -> 294.9002991 | CN40: ='Compile Data'!E358 -> 509.7789001 | CO40: ='Compile Data'!E359 -> 926.4324951 | CP40: ='Compile Data'!E360 -> 1847.912842 | CR40: 485.5359217 | CS40: 458.8257764 | CT40: 1038.502844 | CV40: 2031.937614 | CW40: 966.4330495 | CX40: 214.8021622 | CY40: 894.756134 | CZ40: 887.3883718 | DB40: 1950 | DC40: ='Compile Data'!F349 ->  | DD40: ='Compile Data'!F350 ->  | DE40: ='Compile Data'!F351 ->  | DF40: ='Compile Data'!F352 ->  | DG40: ='Compile Data'!F353 ->  | DH40: ='Compile Data'!F354 ->  | DI40: ='Compile Data'!F355 ->  | DJ40: ='Compile Data'!F356 ->  | DK40: ='Compile Data'!F357 ->  | DL40: ='Compile Data'!F358 ->  | DM40: ='Compile Data'!F359 ->  | DN40: ='Compile Data'!F360 -> 
A41: 1924-02-29 | B41: =INDIRECT(CONCATENATE("'",B$1,"'!",B$4,(YEAR($A41)-1921)*12+MONTH($A41)+3+IF(ISNUMBER(FIND("PRV",B$6)),1,0)))*IF(AND(B$3>0,TRIM(B$9)="CFS"),Conv_Flags!$C41,1) -> 381.3074646 | C41: =INDIRECT(CONCATENATE("'",C$1,"'!",C$4,(YEAR($A41)-1921)*12+MONTH($A41)+3+IF(ISNUMBER(FIND("PRV",C$6)),1,0)))*IF(AND(C$3>0,TRIM(C$9)="CFS"),Conv_Flags!$C41,1) -> 379.0632935 | D41: =INDIRECT(CONCATENATE("'",D$1,"'!",D$4,(YEAR($A41)-1921)*12+MONTH($A41)+3+IF(ISNUMBER(FIND("PRV",D$6)),1,0)))*IF(AND(D$3>0,TRIM(D$9)="CFS"),Conv_Flags!$C41,1) -> 378.4581909 | E41: =INDIRECT(CONCATENATE("'",E$1,"'!",E$4,(YEAR($A41)-1921)*12+MONTH($A41)+3+IF(ISNUMBER(FIND("PRV",E$6)),1,0)))*IF(AND(E$3>0,TRIM(E$9)="CFS"),Conv_Flags!$C41,1) -> 379.5552063 | F41: =INDIRECT(CONCATENATE("'",F$1,"'!",F$4,(YEAR($A41)-1921)*12+MONTH($A41)+3+IF(ISNUMBER(FIND("PRV",F$6)),1,0)))*IF(AND(F$3>0,TRIM(F$9)="CFS"),Conv_Flags!$C41,1) ->  | J41: 1951 | K41: =B361 -> 789.9168701 | L41: =B362 -> 181.5977783 | M41: =B363 -> 181.5406494 | N41: =B364 -> 185.3349457 | O41: =B365 -> 180.474884 | P41: =B366 -> 182.9417572 | Q41: =B367 -> 193.333725 | R41: =B368 -> 191.5653381 | S41: =B369 -> 418.2539673 | T41: =B370 -> 326.5971985 | U41: =B371 -> 564.9812012 | V41: =B372 -> 420.2197876 | X41: 348.4529864 | Y41: 349.1103516 | Z41: 318.0631752 | AB41: 334.5975609 | AC41: 182.4501597 | AD41: 246.5236969 | AE41: 432.5130386 | AF41: 563.2011617 | AH41: 1951 | AI41: ='Compile Data'!C361 -> 696.6596069 | AJ41: ='Compile Data'!C362 -> 180.9892731 | AK41: ='Compile Data'!C363 -> 181.6420135 | AL41: ='Compile Data'!C364 -> 185.925766 | AM41: ='Compile Data'!C365 -> 180.796814 | AN41: ='Compile Data'!C366 -> 183.6476746 | AO41: ='Compile Data'!C367 -> 193.2894897 | AP41: ='Compile Data'!C368 -> 191.4208832 | AQ41: ='Compile Data'!C369 -> 418.6535645 | AR41: ='Compile Data'!C370 -> 326.0351868 | AS41: ='Compile Data'!C371 -> 530.5170288 | AT41: ='Compile Data'!C372 -> 386.0246887 | AV41: 339.0431112 | AW41: 339.7392184 | AX41: 304.6334991 | AZ41: 311.3041649 | BA41: 182.7881978 | BB41: 246.752903 | BC41: 415.3076172 | BD41: 536.8207703 | BF41: 1951 | BG41: ='Compile Data'!D361 -> 651.3101807 | BH41: ='Compile Data'!D362 -> 180.9342194 | BI41: ='Compile Data'!D363 -> 181.6469574 | BJ41: ='Compile Data'!D364 -> 185.9161987 | BK41: ='Compile Data'!D365 -> 180.7910461 | BL41: ='Compile Data'!D366 -> 183.657547 | BM41: ='Compile Data'!D367 -> 193.3056793 | BN41: ='Compile Data'!D368 -> 191.4298096 | BO41: ='Compile Data'!D369 -> 420.9078064 | BP41: ='Compile Data'!D370 -> 326.2403564 | BQ41: ='Compile Data'!D371 -> 529.668457 | BR41: ='Compile Data'!D372 -> 385.852356 | BT41: 339.1296323 | BU41: 339.8220202 | BV41: 300.9717178 | BX41: 299.951889 | BY41: 182.7847341 | BZ41: 247.3252106 | CA41: 415.667244 | CB41: 537.2082113 | CD41: 1951 | CE41: ='Compile Data'!E361 -> 633.2575684 | CF41: ='Compile Data'!E362 -> 180.9947052 | CG41: ='Compile Data'!E363 -> 181.6175537 | CH41: ='Compile Data'!E364 -> 185.9284821 | CI41: ='Compile Data'!E365 -> 180.7781219 | CJ41: ='Compile Data'!E366 -> 183.5200043 | CK41: ='Compile Data'!E367 -> 193.3240051 | CL41: ='Compile Data'!E368 -> 191.4403076 | CM41: ='Compile Data'!E369 -> 418.6409912 | CN41: ='Compile Data'!E370 -> 326.0618591 | CO41: ='Compile Data'!E371 -> 530.4815674 | CP41: ='Compile Data'!E372 -> 386.0141602 | CR41: 339.0320892 | CS41: 339.7298393 | CT41: 299.3382772 | CV41: 295.4495773 | CW41: 182.7747192 | CX41: 246.7313271 | CY41: 415.2996445 | CZ41: 536.8148193 | DB41: 1951 | DC41: ='Compile Data'!F361 ->  | DD41: ='Compile Data'!F362 ->  | DE41: ='Compile Data'!F363 ->  | DF41: ='Compile Data'!F364 ->  | DG41: ='Compile Data'!F365 ->  | DH41: ='Compile Data'!F366 ->  | DI41: ='Compile Data'!F367 ->  | DJ41: ='Compile Data'!F368 ->  | DK41: ='Compile Data'!F369 ->  | DL41: ='Compile Data'!F370 ->  | DM41: ='Compile Data'!F371 ->  | DN41: ='Compile Data'!F372 -> 
A42: 1924-03-31 | B42: =INDIRECT(CONCATENATE("'",B$1,"'!",B$4,(YEAR($A42)-1921)*12+MONTH($A42)+3+IF(ISNUMBER(FIND("PRV",B$6)),1,0)))*IF(AND(B$3>0,TRIM(B$9)="CFS"),Conv_Flags!$C42,1) -> 300.5654602 | C42: =INDIRECT(CONCATENATE("'",C$1,"'!",C$4,(YEAR($A42)-1921)*12+MONTH($A42)+3+IF(ISNUMBER(FIND("PRV",C$6)),1,0)))*IF(AND(C$3>0,TRIM(C$9)="CFS"),Conv_Flags!$C42,1) -> 300.163208 | D42: =INDIRECT(CONCATENATE("'",D$1,"'!",D$4,(YEAR($A42)-1921)*12+MONTH($A42)+3+IF(ISNUMBER(FIND("PRV",D$6)),1,0)))*IF(AND(D$3>0,TRIM(D$9)="CFS"),Conv_Flags!$C42,1) -> 299.9630432 | E42: =INDIRECT(CONCATENATE("'",E$1,"'!",E$4,(YEAR($A42)-1921)*12+MONTH($A42)+3+IF(ISNUMBER(FIND("PRV",E$6)),1,0)))*IF(AND(E$3>0,TRIM(E$9)="CFS"),Conv_Flags!$C42,1) -> 300.345459 | F42: =INDIRECT(CONCATENATE("'",F$1,"'!",F$4,(YEAR($A42)-1921)*12+MONTH($A42)+3+IF(ISNUMBER(FIND("PRV",F$6)),1,0)))*IF(AND(F$3>0,TRIM(F$9)="CFS"),Conv_Flags!$C42,1) ->  | J42: 1952 | K42: =B373 -> 473.4770813 | L42: =B374 -> 795.9066162 | M42: =B375 -> 248.3493347 | N42: =B376 -> 193.1173859 | O42: =B377 -> 180.5808258 | P42: =B378 -> 183.9270172 | Q42: =B379 -> 178.2449951 | R42: =B380 -> 176.3984528 | S42: =B381 -> 179.014679 | T42: =B382 -> 199.588623 | U42: =B383 -> 355.7936707 | V42: =B384 -> 266.700531 | X42: 285.1713511 | Y42: 284.6849213 | Z42: 285.9249344 | AB42: 427.7126045 | AC42: 207.3491821 | AD42: 179.396286 | AE42: 250.2743759 | AF42: 499.5641683 | AH42: 1952 | AI42: ='Compile Data'!C373 -> 441.918335 | AJ42: ='Compile Data'!C374 -> 782.5192871 | AK42: ='Compile Data'!C375 -> 247.7686157 | AL42: ='Compile Data'!C376 -> 194.091568 | AM42: ='Compile Data'!C377 -> 180.9842987 | AN42: ='Compile Data'!C378 -> 184.7348175 | AO42: ='Compile Data'!C379 -> 178.3531952 | AP42: ='Compile Data'!C380 -> 176.406662 | AQ42: ='Compile Data'!C381 -> 179.022522 | AR42: ='Compile Data'!C382 -> 200.9945831 | AS42: ='Compile Data'!C383 -> 335.9996948 | AT42: ='Compile Data'!C384 -> 277.7706299 | AV42: 274.6047414 | AW42: 274.002566 | AX42: 281.7136841 | AZ42: 416.5744514 | BA42: 207.6148275 | BB42: 179.6292992 | BC42: 248.4468575 | BD42: 464.223114 | BF42: 1952 | BG42: ='Compile Data'!D373 -> 441.8432007 | BH42: ='Compile Data'!D374 -> 783.9290771 | BI42: ='Compile Data'!D375 -> 246.0140533 | BJ42: ='Compile Data'!D376 -> 194.0814514 | BK42: ='Compile Data'!D377 -> 180.9344482 | BL42: ='Compile Data'!D378 -> 184.789917 | BM42: ='Compile Data'!D379 -> 178.4394073 | BN42: ='Compile Data'!D380 -> 176.4092712 | BO42: ='Compile Data'!D381 -> 179.0236664 | BP42: ='Compile Data'!D382 -> 200.9792633 | BQ42: ='Compile Data'!D383 -> 336.5568237 | BR42: ='Compile Data'!D384 -> 258.3545532 | BT42: 275.8767865 | BU42: 275.2919744 | BV42: 280.1129278 | BX42: 416.4669456 | BY42: 207.0099843 | BZ42: 179.6655655 | CA42: 243.7285767 | CB42: 469.2296041 | CD42: 1952 | CE42: ='Compile Data'!E373 -> 441.9158936 | CF42: ='Compile Data'!E374 -> 782.5144043 | CG42: ='Compile Data'!E375 -> 247.765274 | CH42: ='Compile Data'!E376 -> 194.0960846 | CI42: ='Compile Data'!E377 -> 180.9835205 | CJ42: ='Compile Data'!E378 -> 184.1468658 | CK42: ='Compile Data'!E379 -> 178.2424316 | CL42: ='Compile Data'!E380 -> 176.4016724 | CM42: ='Compile Data'!E381 -> 179.0265198 | CN42: ='Compile Data'!E382 -> 200.8700256 | CO42: ='Compile Data'!E383 -> 338.1167297 | CP42: ='Compile Data'!E384 -> 259.0960999 | CR42: 276.0785243 | CS42: 275.4809901 | CT42: 280.2646268 | CV42: 416.5729141 | CW42: 207.6149597 | CX42: 179.4543724 | CY42: 244.2773438 | CZ42: 469.3259989 | DB42: 1952 | DC42: ='Compile Data'!F373 ->  | DD42: ='Compile Data'!F374 ->  | DE42: ='Compile Data'!F375 ->  | DF42: ='Compile Data'!F376 ->  | DG42: ='Compile Data'!F377 ->  | DH42: ='Compile Data'!F378 ->  | DI42: ='Compile Data'!F379 ->  | DJ42: ='Compile Data'!F380 ->  | DK42: ='Compile Data'!F381 ->  | DL42: ='Compile Data'!F382 ->  | DM42: ='Compile Data'!F383 ->  | DN42: ='Compile Data'!F384 -> 
A43: 1924-04-30 | B43: =INDIRECT(CONCATENATE("'",B$1,"'!",B$4,(YEAR($A43)-1921)*12+MONTH($A43)+3+IF(ISNUMBER(FIND("PRV",B$6)),1,0)))*IF(AND(B$3>0,TRIM(B$9)="CFS"),Conv_Flags!$C43,1) -> 667.4066772 | C43: =INDIRECT(CONCATENATE("'",C$1,"'!",C$4,(YEAR($A43)-1921)*12+MONTH($A43)+3+IF(ISNUMBER(FIND("PRV",C$6)),1,0)))*IF(AND(C$3>0,TRIM(C$9)="CFS"),Conv_Flags!$C43,1) -> 666.8001709 | D43: =INDIRECT(CONCATENATE("'",D$1,"'!",D$4,(YEAR($A43)-1921)*12+MONTH($A43)+3+IF(ISNUMBER(FIND("PRV",D$6)),1,0)))*IF(AND(D$3>0,TRIM(D$9)="CFS"),Conv_Flags!$C43,1) -> 666.7133179 | E43: =INDIRECT(CONCATENATE("'",E$1,"'!",E$4,(YEAR($A43)-1921)*12+MONTH($A43)+3+IF(ISNUMBER(FIND("PRV",E$6)),1,0)))*IF(AND(E$3>0,TRIM(E$9)="CFS"),Conv_Flags!$C43,1) -> 666.9064331 | F43: =INDIRECT(CONCATENATE("'",F$1,"'!",F$4,(YEAR($A43)-1921)*12+MONTH($A43)+3+IF(ISNUMBER(FIND("PRV",F$6)),1,0)))*IF(AND(F$3>0,TRIM(F$9)="CFS"),Conv_Flags!$C43,1) ->  | J43: 1953 | K43: =B385 -> 355.3482971 | L43: =B386 -> 876.6436768 | M43: =B387 -> 276.6980591 | N43: =B388 -> 180.534729 | O43: =B389 -> 187.3263245 | P43: =B390 -> 186.2581177 | Q43: =B391 -> 191.6342621 | R43: =B392 -> 183.5612488 | S43: =B393 -> 183.2837677 | T43: =B394 -> 268.0152588 | U43: =B395 -> 545.3583984 | V43: =B396 -> 388.8019714 | X43: 334.090037 | Y43: 343.5257263 | Z43: 318.6220093 | AB43: 422.3061905 | AC43: 214.8530375 | AD43: 186.1843491 | AE43: 346.3648491 | AF43: 427.2316691 | AH43: 1953 | AI43: ='Compile Data'!C385 -> 323.3352966 | AJ43: ='Compile Data'!C386 -> 791.5634155 | AK43: ='Compile Data'!C387 -> 272.0002136 | AL43: ='Compile Data'!C388 -> 180.559967 | AM43: ='Compile Data'!C389 -> 187.2897949 | AN43: ='Compile Data'!C390 -> 186.2719421 | AO43: ='Compile Data'!C391 -> 192.5162659 | AP43: ='Compile Data'!C392 -> 183.5534973 | AQ43: ='Compile Data'!C393 -> 183.5236511 | AR43: ='Compile Data'!C394 -> 269.3632507 | AS43: ='Compile Data'!C395 -> 510.4868164 | AT43: ='Compile Data'!C396 -> 361.2411194 | AV43: 351.3967921 | AW43: 363.8261299 | AX43: 303.4754359 | AZ43: 391.8647232 | BA43: 213.2833252 | BB43: 186.4663391 | BC43: 331.1537094 | BD43: 448.0441386 | BF43: 1953 | BG43: ='Compile Data'!D385 -> 325.4023743 | BH43: ='Compile Data'!D386 -> 823.9318848 | BI43: ='Compile Data'!D387 -> 271.6183777 | BJ43: ='Compile Data'!D388 -> 180.623764 | BK43: ='Compile Data'!D389 -> 187.3743896 | BL43: ='Compile Data'!D390 -> 186.2873383 | BM43: ='Compile Data'!D391 -> 192.5194244 | BN43: ='Compile Data'!D392 -> 183.5565948 | BO43: ='Compile Data'!D393 -> 183.5167389 | BP43: ='Compile Data'!D394 -> 269.3247681 | BQ43: ='Compile Data'!D395 -> 510.4630737 | BR43: ='Compile Data'!D396 -> 361.2357788 | BT43: 351.4000181 | BU43: 363.8167432 | BV43: 306.321209 | BX43: 400.3941002 | BY43: 213.2055105 | BZ43: 186.4700241 | CA43: 331.1350899 | CB43: 448.0412089 | CD43: 1953 | CE43: ='Compile Data'!E385 -> 324.1577148 | CF43: ='Compile Data'!E386 -> 824.7241821 | CG43: ='Compile Data'!E387 -> 273.0804443 | CH43: ='Compile Data'!E388 -> 180.6446228 | CI43: ='Compile Data'!E389 -> 187.2645721 | CJ43: ='Compile Data'!E390 -> 186.2733765 | CK43: ='Compile Data'!E391 -> 192.5068512 | CL43: ='Compile Data'!E392 -> 183.5557251 | CM43: ='Compile Data'!E393 -> 183.5084991 | CN43: ='Compile Data'!E394 -> 269.280426 | CO43: ='Compile Data'!E395 -> 510.4327087 | CP43: ='Compile Data'!E396 -> 361.2285767 | CR43: 351.3858274 | CS43: 363.8033129 | CT43: 306.3881416 | CV43: 400.651741 | CW43: 213.6632131 | CX43: 186.461113 | CY43: 331.1125526 | CZ43: 448.0369263 | DB43: 1953 | DC43: ='Compile Data'!F385 ->  | DD43: ='Compile Data'!F386 ->  | DE43: ='Compile Data'!F387 ->  | DF43: ='Compile Data'!F388 ->  | DG43: ='Compile Data'!F389 ->  | DH43: ='Compile Data'!F390 ->  | DI43: ='Compile Data'!F391 ->  | DJ43: ='Compile Data'!F392 ->  | DK43: ='Compile Data'!F393 ->  | DL43: ='Compile Data'!F394 ->  | DM43: ='Compile Data'!F395 ->  | DN43: ='Compile Data'!F396 -> 
A44: 1924-05-31 | B44: =INDIRECT(CONCATENATE("'",B$1,"'!",B$4,(YEAR($A44)-1921)*12+MONTH($A44)+3+IF(ISNUMBER(FIND("PRV",B$6)),1,0)))*IF(AND(B$3>0,TRIM(B$9)="CFS"),Conv_Flags!$C44,1) -> 1602.735474 | C44: =INDIRECT(CONCATENATE("'",C$1,"'!",C$4,(YEAR($A44)-1921)*12+MONTH($A44)+3+IF(ISNUMBER(FIND("PRV",C$6)),1,0)))*IF(AND(C$3>0,TRIM(C$9)="CFS"),Conv_Flags!$C44,1) -> 1602.019653 | D44: =INDIRECT(CONCATENATE("'",D$1,"'!",D$4,(YEAR($A44)-1921)*12+MONTH($A44)+3+IF(ISNUMBER(FIND("PRV",D$6)),1,0)))*IF(AND(D$3>0,TRIM(D$9)="CFS"),Conv_Flags!$C44,1) -> 1601.963867 | E44: =INDIRECT(CONCATENATE("'",E$1,"'!",E$4,(YEAR($A44)-1921)*12+MONTH($A44)+3+IF(ISNUMBER(FIND("PRV",E$6)),1,0)))*IF(AND(E$3>0,TRIM(E$9)="CFS"),Conv_Flags!$C44,1) -> 1602.029175 | F44: =INDIRECT(CONCATENATE("'",F$1,"'!",F$4,(YEAR($A44)-1921)*12+MONTH($A44)+3+IF(ISNUMBER(FIND("PRV",F$6)),1,0)))*IF(AND(F$3>0,TRIM(F$9)="CFS"),Conv_Flags!$C44,1) ->  | J44: 1954 | K44: =B397 -> 376.1997986 | L44: =B398 -> 516.6932373 | M44: =B399 -> 801.4133301 | N44: =B400 -> 299.4744263 | O44: =B401 -> 181.6148987 | P44: =B402 -> 181.5001831 | Q44: =B403 -> 179.8773499 | R44: =B404 -> 198.3015137 | S44: =B405 -> 385.6170959 | T44: =B406 -> 300.8233948 | U44: =B407 -> 522.0128174 | V44: =B408 -> 361.0322266 | X44: =IF(X$11="AVG",AVERAGE(N44:V44,K45:M45),SUM(N44:V44,K45:M45)) -> 347.0362116 | Y44: =IF(Y$11="AVG",AVERAGE(P44:V44,K45:O45),SUM(P44:V44,K45:O45)) -> 349.2306366 | Z44: =IF(Z$11="AVG",AVERAGE(K44:V44),SUM(K44:V44)) -> 358.713356 | AB44: =IF(AB$11="AVG",IF(AB$1="INST-VAL",AVERAGE(V43,K44:M44,K44:N44),AVERAGE(K44:N44)),SUM(K44:N44)) -> 498.4451981 | AC44: =IF(AC$11="AVG",IF(AB$1="INST-VAL",AVERAGE(L44:N44,M44:O44),AVERAGE(M44:O44)),SUM(M44:O44)) -> 427.500885 | AD44: =IF(AD$11="AVG",IF(AB$1="INST-VAL",AVERAGE(O44:R44,P44:S44),AVERAGE(P44:S44)),SUM(P44:S44)) -> 236.3240356 | AE44: =IF(AE$11="AVG",IF(AB$1="INST-VAL",AVERAGE(R44:U44,S44:V44),AVERAGE(S44:V44)),SUM(S44:V44)) -> 392.3713837 | AF44: =IF(AF$11="AVG",IF(AB$1="INST-VAL",AVERAGE(U44:V44,K45,V44,K45:L45),AVERAGE(V44,K45:L45)),SUM(V44,K45:L45)) -> 513.256307 | AH44: 1954 | AI44: ='Compile Data'!C397 -> 346.8672485 | AJ44: ='Compile Data'!C398 -> 636.0240479 | AK44: ='Compile Data'!C399 -> 979.0639038 | AL44: ='Compile Data'!C400 -> 334.7581482 | AM44: ='Compile Data'!C401 -> 182.2436676 | AN44: ='Compile Data'!C402 -> 181.5358124 | AO44: ='Compile Data'!C403 -> 179.9001465 | AP44: ='Compile Data'!C404 -> 198.2676392 | AQ44: ='Compile Data'!C405 -> 385.6380615 | AR44: ='Compile Data'!C406 -> 300.4527283 | AS44: ='Compile Data'!C407 -> 493.9021912 | AT44: ='Compile Data'!C408 -> 340.6227722 | AV44: =IF(AV$11="AVG",AVERAGE(AL44:AT44,AI45:AK45),SUM(AL44:AT44,AI45:AK45)) -> 338.9310176 | AW44: =IF(AW$11="AVG",AVERAGE(AN44:AT44,AI45:AM45),SUM(AN44:AT44,AI45:AM45)) -> 337.9731 | AX44: =IF(AX$11="AVG",AVERAGE(AI44:AT44),SUM(AI44:AT44)) -> 379.9396973 | AZ44: =IF(AZ$11="AVG",IF(AZ$1="INST-VAL",AVERAGE(AT43,AI44:AK44,AI44:AL44),AVERAGE(AI44:AL44)),SUM(AI44:AL44)) -> 574.1783371 | BA44: =IF(BA$11="AVG",IF(AZ$1="INST-VAL",AVERAGE(AJ44:AL44,AK44:AM44),AVERAGE(AK44:AM44)),SUM(AK44:AM44)) -> 498.6885732 | BB44: =IF(BB$11="AVG",IF(AZ$1="INST-VAL",AVERAGE(AM44:AP44,AN44:AQ44),AVERAGE(AN44:AQ44)),SUM(AN44:AQ44)) -> 236.3354149 | BC44: =IF(BC$11="AVG",IF(AZ$1="INST-VAL",AVERAGE(AP44:AS44,AQ44:AT44),AVERAGE(AQ44:AT44)),SUM(AQ44:AT44)) -> 380.1539383 | BD44: =IF(BD$11="AVG",IF(AZ$1="INST-VAL",AVERAGE(AS44:AT44,AI45,AT44,AI45:AJ45),AVERAGE(AT44,AI45:AJ45)),SUM(AT44,AI45:AJ45)) -> 479.9198405 | BF44: 1954 | BG44: ='Compile Data'!D397 -> 346.8606873 | BH44: ='Compile Data'!D398 -> 636.0271606 | BI44: ='Compile Data'!D399 -> 979.010498 | BJ44: ='Compile Data'!D400 -> 334.7420654 | BK44: ='Compile Data'!D401 -> 182.2567902 | BL44: ='Compile Data'!D402 -> 181.5363464 | BM44: ='Compile Data'!D403 -> 179.8998718 | BN44: ='Compile Data'!D404 -> 198.5848236 | BO44: ='Compile Data'!D405 -> 382.4350891 | BP44: ='Compile Data'!D406 -> 300.1130371 | BQ44: ='Compile Data'!D407 -> 495.2832031 | BR44: ='Compile Data'!D408 -> 340.8826294 | BT44: =IF(BT$11="AVG",AVERAGE(BJ44:BR44,BG45:BI45),SUM(BJ44:BR44,BG45:BI45)) -> 336.8643214 | BU44: =IF(BU$11="AVG",AVERAGE(BL44:BR44,BG45:BK45),SUM(BL44:BR44,BG45:BK45)) -> 335.055289 | BV44: =IF(BV$11="AVG",AVERAGE(BG44:BR44),SUM(BG44:BR44)) -> 379.8026835 | BX44: =IF(BX$11="AVG",IF(BX$1="INST-VAL",AVERAGE(BR43,BG44:BI44,BG44:BJ44),AVERAGE(BG44:BJ44)),SUM(BG44:BJ44)) -> 574.1601028 | BY44: =IF(BY$11="AVG",IF(BX$1="INST-VAL",AVERAGE(BH44:BJ44,BI44:BK44),AVERAGE(BI44:BK44)),SUM(BI44:BK44)) -> 498.6697845 | BZ44: =IF(BZ$11="AVG",IF(BX$1="INST-VAL",AVERAGE(BK44:BN44,BL44:BO44),AVERAGE(BL44:BO44)),SUM(BL44:BO44)) -> 235.6140327 | CA44: =IF(CA$11="AVG",IF(BX$1="INST-VAL",AVERAGE(BN44:BQ44,BO44:BR44),AVERAGE(BO44:BR44)),SUM(BO44:BR44)) -> 379.6784897 | CB44: =IF(CB$11="AVG",IF(BX$1="INST-VAL",AVERAGE(BQ44:BR44,BG45,BR44,BG45:BH45),AVERAGE(BR44,BG45:BH45)),SUM(BR44,BG45:BH45)) -> 480.6090597 | CD44: 1954 | CE44: ='Compile Data'!E397 -> 346.8596802 | CF44: ='Compile Data'!E398 -> 636.022522 | CG44: ='Compile Data'!E399 -> 979.0523682 | CH44: ='Compile Data'!E400 -> 334.6767578 | CI44: ='Compile Data'!E401 -> 182.2422638 | CJ44: ='Compile Data'!E402 -> 181.5356903 | CK44: ='Compile Data'!E403 -> 179.900116 | CL44: ='Compile Data'!E404 -> 198.2693481 | CM44: ='Compile Data'!E405 -> 385.635437 | CN44: ='Compile Data'!E406 -> 300.4510498 | CO44: ='Compile Data'!E407 -> 493.8994141 | CP44: ='Compile Data'!E408 -> 340.6209412 | CR44: 338.9197744 | CS44: 337.9671186 | CT44: 379.9304657 | CV44: 574.152832 | CW44: 498.6571299 | CX44: 236.3351479 | CY44: 380.1517105 | CZ44: 479.9179789 | DB44: 1954 | DC44: ='Compile Data'!F397 ->  | DD44: ='Compile Data'!F398 ->  | DE44: ='Compile Data'!F399 ->  | DF44: ='Compile Data'!F400 ->  | DG44: ='Compile Data'!F401 ->  | DH44: ='Compile Data'!F402 ->  | DI44: ='Compile Data'!F403 ->  | DJ44: ='Compile Data'!F404 ->  | DK44: ='Compile Data'!F405 ->  | DL44: ='Compile Data'!F406 ->  | DM44: ='Compile Data'!F407 ->  | DN44: ='Compile Data'!F408 -> 
A45: 1924-06-30 | B45: =INDIRECT(CONCATENATE("'",B$1,"'!",B$4,(YEAR($A45)-1921)*12+MONTH($A45)+3+IF(ISNUMBER(FIND("PRV",B$6)),1,0)))*IF(AND(B$3>0,TRIM(B$9)="CFS"),Conv_Flags!$C45,1) -> 2582.70166 | C45: =INDIRECT(CONCATENATE("'",C$1,"'!",C$4,(YEAR($A45)-1921)*12+MONTH($A45)+3+IF(ISNUMBER(FIND("PRV",C$6)),1,0)))*IF(AND(C$3>0,TRIM(C$9)="CFS"),Conv_Flags!$C45,1) -> 2595.155273 | D45: =INDIRECT(CONCATENATE("'",D$1,"'!",D$4,(YEAR($A45)-1921)*12+MONTH($A45)+3+IF(ISNUMBER(FIND("PRV",D$6)),1,0)))*IF(AND(D$3>0,TRIM(D$9)="CFS"),Conv_Flags!$C45,1) -> 2595.406982 | E45: =INDIRECT(CONCATENATE("'",E$1,"'!",E$4,(YEAR($A45)-1921)*12+MONTH($A45)+3+IF(ISNUMBER(FIND("PRV",E$6)),1,0)))*IF(AND(E$3>0,TRIM(E$9)="CFS"),Conv_Flags!$C45,1) -> 2598.778076 | F45: =INDIRECT(CONCATENATE("'",F$1,"'!",F$4,(YEAR($A45)-1921)*12+MONTH($A45)+3+IF(ISNUMBER(FIND("PRV",F$6)),1,0)))*IF(AND(F$3>0,TRIM(F$9)="CFS"),Conv_Flags!$C45,1) ->  | J45: 1955 | K45: =B409 -> 465.4580688 | L45: =B410 -> 713.2786255 | M45: =B411 -> 375.4439392 | N45: =B412 -> 243.7206421 | O45: =B413 -> 263.7017822 | P45: =B414 -> 441.6007996 | Q45: =B415 -> 321.5751038 | R45: =B416 -> 349.0028992 | S45: =B417 -> 471.1661377 | T45: =B418 -> 927.7589722 | U45: =B419 -> 1811.424072 | V45: =B420 -> 2482.229248 | X45: 1033.405712 | Y45: 1021.314974 | Z45: 738.8633575 | AB45: 449.4753189 | AC45: 294.2887878 | AD45: 395.836235 | AE45: 1423.144608 | AF45: 2457.544271 | AH45: 1955 | AI45: ='Compile Data'!C409 -> 415.9635925 | AJ45: ='Compile Data'!C410 -> 683.1731567 | AK45: ='Compile Data'!C411 -> 370.7142944 | AL45: ='Compile Data'!C412 -> 244.2006531 | AM45: ='Compile Data'!C413 -> 261.3061523 | AN45: ='Compile Data'!C414 -> 438.1360474 | AO45: ='Compile Data'!C415 -> 320.9084167 | AP45: ='Compile Data'!C416 -> 348.5545959 | AQ45: ='Compile Data'!C417 -> 474.2891541 | AR45: ='Compile Data'!C418 -> 824.4053345 | AS45: ='Compile Data'!C419 -> 1572.923706 | AT45: ='Compile Data'!C420 -> 2185.693359 | AV45: 905.8008448 | AW45: 893.9105275 | AX45: 678.3557053 | AZ45: 428.5129242 | BA45: 292.0737 | BB45: 395.4720535 | BC45: 1264.327888 | BD45: 2061.661051 | BF45: 1955 | BG45: ='Compile Data'!D409 -> 415.4567566 | BH45: ='Compile Data'!D410 -> 685.487793 | BI45: ='Compile Data'!D411 -> 345.6934509 | BJ45: ='Compile Data'!D412 -> 237.4292603 | BK45: ='Compile Data'!D413 -> 257.8612061 | BL45: ='Compile Data'!D414 -> 432.7593689 | BM45: ='Compile Data'!D415 -> 320.1991882 | BN45: ='Compile Data'!D416 -> 348.5901489 | BO45: ='Compile Data'!D417 -> 474.5516968 | BP45: ='Compile Data'!D418 -> 821.5455322 | BQ45: ='Compile Data'!D419 -> 1581.97229 | BR45: ='Compile Data'!D420 -> 2091.056396 | BT45: 905.4555092 | BU45: 894.4416148 | BV45: 667.716924 | BX45: 421.0168152 | BY45: 280.3279724 | BZ45: 394.0251007 | CA45: 1242.281479 | CB45: 2059.144694 | CD45: 1955 | CE45: ='Compile Data'!E409 -> 415.9602051 | CF45: ='Compile Data'!E410 -> 683.1727905 | CG45: ='Compile Data'!E411 -> 370.6732788 | CH45: ='Compile Data'!E412 -> 244.1851196 | CI45: ='Compile Data'!E413 -> 261.3020325 | CJ45: ='Compile Data'!E414 -> 438.0947571 | CK45: ='Compile Data'!E415 -> 320.8917847 | CL45: ='Compile Data'!E416 -> 348.5435791 | CM45: ='Compile Data'!E417 -> 474.280304 | CN45: ='Compile Data'!E418 -> 824.3354492 | CO45: ='Compile Data'!E419 -> 1572.938477 | CP45: ='Compile Data'!E420 -> 2189.55249 | CR45: 906.2317085 | CS45: 894.343043 | CT45: 678.6608556 | CV45: 428.4978485 | CW45: 292.053477 | CX45: 395.4526062 | CY45: 1265.27668 | CZ45: 2063.433268 | DB45: 1955 | DC45: ='Compile Data'!F409 ->  | DD45: ='Compile Data'!F410 ->  | DE45: ='Compile Data'!F411 ->  | DF45: ='Compile Data'!F412 ->  | DG45: ='Compile Data'!F413 ->  | DH45: ='Compile Data'!F414 ->  | DI45: ='Compile Data'!F415 ->  | DJ45: ='Compile Data'!F416 ->  | DK45: ='Compile Data'!F417 ->  | DL45: ='Compile Data'!F418 ->  | DM45: ='Compile Data'!F419 ->  | DN45: ='Compile Data'!F420 -> 
A46: 1924-07-31 | B46: =INDIRECT(CONCATENATE("'",B$1,"'!",B$4,(YEAR($A46)-1921)*12+MONTH($A46)+3+IF(ISNUMBER(FIND("PRV",B$6)),1,0)))*IF(AND(B$3>0,TRIM(B$9)="CFS"),Conv_Flags!$C46,1) -> 2790.875244 | C46: =INDIRECT(CONCATENATE("'",C$1,"'!",C$4,(YEAR($A46)-1921)*12+MONTH($A46)+3+IF(ISNUMBER(FIND("PRV",C$6)),1,0)))*IF(AND(C$3>0,TRIM(C$9)="CFS"),Conv_Flags!$C46,1) -> 2487.16333 | D46: =INDIRECT(CONCATENATE("'",D$1,"'!",D$4,(YEAR($A46)-1921)*12+MONTH($A46)+3+IF(ISNUMBER(FIND("PRV",D$6)),1,0)))*IF(AND(D$3>0,TRIM(D$9)="CFS"),Conv_Flags!$C46,1) -> 2483.690186 | E46: =INDIRECT(CONCATENATE("'",E$1,"'!",E$4,(YEAR($A46)-1921)*12+MONTH($A46)+3+IF(ISNUMBER(FIND("PRV",E$6)),1,0)))*IF(AND(E$3>0,TRIM(E$9)="CFS"),Conv_Flags!$C46,1) -> 2486.037109 | F46: =INDIRECT(CONCATENATE("'",F$1,"'!",F$4,(YEAR($A46)-1921)*12+MONTH($A46)+3+IF(ISNUMBER(FIND("PRV",F$6)),1,0)))*IF(AND(F$3>0,TRIM(F$9)="CFS"),Conv_Flags!$C46,1) ->  | J46: 1956 | K46: =B421 -> 2673.236084 | L46: =B422 -> 2217.16748 | M46: =B423 -> 198.2853241 | N46: =B424 -> 182.0333252 | O46: =B425 -> 180.3002472 | P46: =B426 -> 181.2289581 | Q46: =B427 -> 185.6132202 | R46: =B428 -> 179.7373657 | S46: =B429 -> 187.2621765 | T46: =B430 -> 270.423645 | U46: =B431 -> 554.4788208 | V46: =B432 -> 338.5656128 | X46: 371.5777868 | Y46: 452.1846377 | Z46: 612.3610217 | AB46: 1317.680553 | AC46: 186.8729655 | AD46: 183.4604301 | AE46: 337.6825638 | AF46: 444.533844 | AH46: 1956 | AI46: ='Compile Data'!C421 -> 2187.213135 | AJ46: ='Compile Data'!C422 -> 1812.07666 | AK46: ='Compile Data'!C423 -> 199.9029236 | AL46: ='Compile Data'!C424 -> 182.4430237 | AM46: ='Compile Data'!C425 -> 180.3799744 | AN46: ='Compile Data'!C426 -> 181.7658539 | AO46: ='Compile Data'!C427 -> 185.6854248 | AP46: ='Compile Data'!C428 -> 179.7369995 | AQ46: ='Compile Data'!C429 -> 187.4646759 | AR46: ='Compile Data'!C430 -> 271.4077759 | AS46: ='Compile Data'!C431 -> 508.6296082 | AT46: ='Compile Data'!C432 -> 322.3105164 | AV46: 366.1504567 | AW46: 446.7446493 | AX46: 533.2513809 | AZ46: 1095.408936 | BA46: 187.5753072 | BB46: 183.6632385 | BC46: 322.4531441 | BD46: 437.3889262 | BF46: 1956 | BG46: ='Compile Data'!D421 -> 2114.322754 | BH46: ='Compile Data'!D422 -> 1972.054932 | BI46: ='Compile Data'!D423 -> 213.1233368 | BJ46: ='Compile Data'!D424 -> 182.6004944 | BK46: ='Compile Data'!D425 -> 180.5232391 | BL46: ='Compile Data'!D426 -> 181.8184052 | BM46: ='Compile Data'!D427 -> 185.77565 | BN46: ='Compile Data'!D428 -> 179.7362976 | BO46: ='Compile Data'!D429 -> 187.4667053 | BP46: ='Compile Data'!D430 -> 271.4077148 | BQ46: ='Compile Data'!D431 -> 508.5664368 | BR46: ='Compile Data'!D432 -> 322.3177795 | BT46: 366.1772601 | BU46: 446.7840157 | BV46: 541.6428121 | BX46: 1120.525379 | BY46: 192.0823568 | BZ46: 183.6992645 | CA46: 322.4396591 | CB46: 437.3857015 | CD46: 1956 | CE46: ='Compile Data'!E421 -> 2188.671875 | CF46: ='Compile Data'!E422 -> 1812.075439 | CG46: ='Compile Data'!E423 -> 199.9091949 | CH46: ='Compile Data'!E424 -> 182.4430695 | CI46: ='Compile Data'!E425 -> 180.3800964 | CJ46: ='Compile Data'!E426 -> 181.765976 | CK46: ='Compile Data'!E427 -> 185.6854858 | CL46: ='Compile Data'!E428 -> 179.7372437 | CM46: ='Compile Data'!E429 -> 187.464798 | CN46: ='Compile Data'!E430 -> 271.4059448 | CO46: ='Compile Data'!E431 -> 508.6175537 | CP46: ='Compile Data'!E432 -> 318.8036194 | CR46: 365.6656965 | CS46: 446.2539279 | CT46: 533.0800247 | CV46: 1095.774895 | CW46: 187.5774536 | CX46: 183.6633759 | CY46: 321.572979 | CZ46: 435.4876404 | DB46: 1956 | DC46: ='Compile Data'!F421 ->  | DD46: ='Compile Data'!F422 ->  | DE46: ='Compile Data'!F423 ->  | DF46: ='Compile Data'!F424 ->  | DG46: ='Compile Data'!F425 ->  | DH46: ='Compile Data'!F426 ->  | DI46: ='Compile Data'!F427 ->  | DJ46: ='Compile Data'!F428 ->  | DK46: ='Compile Data'!F429 ->  | DL46: ='Compile Data'!F430 ->  | DM46: ='Compile Data'!F431 ->  | DN46: ='Compile Data'!F432 -> 
A47: 1924-08-31 | B47: =INDIRECT(CONCATENATE("'",B$1,"'!",B$4,(YEAR($A47)-1921)*12+MONTH($A47)+3+IF(ISNUMBER(FIND("PRV",B$6)),1,0)))*IF(AND(B$3>0,TRIM(B$9)="CFS"),Conv_Flags!$C47,1) -> 2602.434814 | C47: =INDIRECT(CONCATENATE("'",C$1,"'!",C$4,(YEAR($A47)-1921)*12+MONTH($A47)+3+IF(ISNUMBER(FIND("PRV",C$6)),1,0)))*IF(AND(C$3>0,TRIM(C$9)="CFS"),Conv_Flags!$C47,1) -> 2461.462402 | D47: =INDIRECT(CONCATENATE("'",D$1,"'!",D$4,(YEAR($A47)-1921)*12+MONTH($A47)+3+IF(ISNUMBER(FIND("PRV",D$6)),1,0)))*IF(AND(D$3>0,TRIM(D$9)="CFS"),Conv_Flags!$C47,1) -> 2527.501709 | E47: =INDIRECT(CONCATENATE("'",E$1,"'!",E$4,(YEAR($A47)-1921)*12+MONTH($A47)+3+IF(ISNUMBER(FIND("PRV",E$6)),1,0)))*IF(AND(E$3>0,TRIM(E$9)="CFS"),Conv_Flags!$C47,1) -> 2471.648193 | F47: =INDIRECT(CONCATENATE("'",F$1,"'!",F$4,(YEAR($A47)-1921)*12+MONTH($A47)+3+IF(ISNUMBER(FIND("PRV",F$6)),1,0)))*IF(AND(F$3>0,TRIM(F$9)="CFS"),Conv_Flags!$C47,1) ->  | J47: 1957 | K47: =B433 -> 329.6645813 | L47: =B434 -> 665.3713379 | M47: =B435 -> 1204.25415 | N47: =B436 -> 1088.337769 | O47: =B437 -> 241.2780151 | P47: =B438 -> 181.333374 | Q47: =B439 -> 200.859436 | R47: =B440 -> 188.6250916 | S47: =B441 -> 427.2881775 | T47: =B442 -> 365.3464966 | U47: =B443 -> 576.9090576 | V47: =B444 -> 403.0507812 | X47: 427.9262034 | Y47: 349.5855598 | Z47: 489.3598557 | AB47: 821.9069595 | AC47: 844.6233114 | AD47: 249.5265198 | AE47: 443.1486282 | AF47: 501.5649109 | AH47: 1957 | AI47: ='Compile Data'!C433 -> 325.3485107 | AJ47: ='Compile Data'!C434 -> 664.5077515 | AK47: ='Compile Data'!C435 -> 1204.125366 | AL47: ='Compile Data'!C436 -> 1086.63562 | AM47: ='Compile Data'!C437 -> 243.317688 | AN47: ='Compile Data'!C438 -> 182.1526947 | AO47: ='Compile Data'!C439 -> 201.0865326 | AP47: ='Compile Data'!C440 -> 188.6755676 | AQ47: ='Compile Data'!C441 -> 444.7929688 | AR47: ='Compile Data'!C442 -> 366.7473145 | AS47: ='Compile Data'!C443 -> 536.5957642 | AT47: ='Compile Data'!C444 -> 376.0275879 | AV47: 426.5298335 | AW47: 348.3111839 | AX47: 485.0011139 | AZ47: 820.1543121 | BA47: 844.6928914 | BB47: 254.1769409 | BC47: 431.0409088 | BD47: 498.2558899 | BF47: 1957 | BG47: ='Compile Data'!D433 -> 325.3363342 | BH47: ='Compile Data'!D434 -> 664.5029907 | BI47: ='Compile Data'!D435 -> 1204.075073 | BJ47: ='Compile Data'!D436 -> 1088.552124 | BK47: ='Compile Data'!D437 -> 241.8526764 | BL47: ='Compile Data'!D438 -> 182.1134033 | BM47: ='Compile Data'!D439 -> 201.0041351 | BN47: ='Compile Data'!D440 -> 188.6766205 | BO47: ='Compile Data'!D441 -> 444.815094 | BP47: ='Compile Data'!D442 -> 366.8854065 | BQ47: ='Compile Data'!D443 -> 536.4729004 | BR47: ='Compile Data'!D444 -> 392.0411682 | BT47: 431.6053301 | BU47: 353.3136571 | BV47: 486.3606606 | BX47: 820.6166306 | BY47: 844.8266246 | BZ47: 254.1523132 | CA47: 435.0536423 | CB47: 517.7915243 | CD47: 1957 | CE47: ='Compile Data'!E433 -> 323.5547485 | CF47: ='Compile Data'!E434 -> 664.1045532 | CG47: ='Compile Data'!E435 -> 1204.025269 | CH47: ='Compile Data'!E436 -> 1086.572021 | CI47: ='Compile Data'!E437 -> 243.3099213 | CJ47: ='Compile Data'!E438 -> 182.152359 | CK47: ='Compile Data'!E439 -> 201.085968 | CL47: ='Compile Data'!E440 -> 188.6756439 | CM47: ='Compile Data'!E441 -> 444.7878113 | CN47: ='Compile Data'!E442 -> 366.7453308 | CO47: ='Compile Data'!E443 -> 536.5942383 | CP47: ='Compile Data'!E444 -> 376.0262146 | CR47: 426.5213839 | CS47: 348.3081487 | CT47: 484.8028399 | CV47: 819.5641479 | CW47: 844.6357371 | CX47: 254.1754456 | CY47: 431.0383987 | CZ47: 498.2513224 | DB47: 1957 | DC47: ='Compile Data'!F433 ->  | DD47: ='Compile Data'!F434 ->  | DE47: ='Compile Data'!F435 ->  | DF47: ='Compile Data'!F436 ->  | DG47: ='Compile Data'!F437 ->  | DH47: ='Compile Data'!F438 ->  | DI47: ='Compile Data'!F439 ->  | DJ47: ='Compile Data'!F440 ->  | DK47: ='Compile Data'!F441 ->  | DL47: ='Compile Data'!F442 ->  | DM47: ='Compile Data'!F443 ->  | DN47: ='Compile Data'!F444 -> 
A48: 1924-09-30 | B48: =INDIRECT(CONCATENATE("'",B$1,"'!",B$4,(YEAR($A48)-1921)*12+MONTH($A48)+3+IF(ISNUMBER(FIND("PRV",B$6)),1,0)))*IF(AND(B$3>0,TRIM(B$9)="CFS"),Conv_Flags!$C48,1) -> 3135.399658 | C48: =INDIRECT(CONCATENATE("'",C$1,"'!",C$4,(YEAR($A48)-1921)*12+MONTH($A48)+3+IF(ISNUMBER(FIND("PRV",C$6)),1,0)))*IF(AND(C$3>0,TRIM(C$9)="CFS"),Conv_Flags!$C48,1) -> 2857.988037 | D48: =INDIRECT(CONCATENATE("'",D$1,"'!",D$4,(YEAR($A48)-1921)*12+MONTH($A48)+3+IF(ISNUMBER(FIND("PRV",D$6)),1,0)))*IF(AND(D$3>0,TRIM(D$9)="CFS"),Conv_Flags!$C48,1) -> 2756.885986 | E48: =INDIRECT(CONCATENATE("'",E$1,"'!",E$4,(YEAR($A48)-1921)*12+MONTH($A48)+3+IF(ISNUMBER(FIND("PRV",E$6)),1,0)))*IF(AND(E$3>0,TRIM(E$9)="CFS"),Conv_Flags!$C48,1) -> 2903.287109 | F48: =INDIRECT(CONCATENATE("'",F$1,"'!",F$4,(YEAR($A48)-1921)*12+MONTH($A48)+3+IF(ISNUMBER(FIND("PRV",F$6)),1,0)))*IF(AND(F$3>0,TRIM(F$9)="CFS"),Conv_Flags!$C48,1) ->  | J48: 1958 | K48: =B445 -> 417.8321228 | L48: =B446 -> 683.8118286 | M48: =B447 -> 360.4422913 | N48: =B448 -> 206.9927826 | O48: =B449 -> 182.5352783 | P48: =B450 -> 184.3290558 | Q48: =B451 -> 180.4367676 | R48: =B452 -> 178.386261 | S48: =B453 -> 179.997757 | T48: =B454 -> 278.5411072 | U48: =B455 -> 548.2207031 | V48: =B456 -> 299.0161438 | X48: 409.7431959 | Y48: 420.106856 | Z48: 308.3785082 | AB48: 417.2697563 | AC48: 249.9901174 | AD48: 180.7874603 | AE48: 326.4439278 | AF48: 512.6275228 | AH48: 1958 | AI48: ='Compile Data'!C445 -> 394.1678162 | AJ48: ='Compile Data'!C446 -> 724.5722656 | AK48: ='Compile Data'!C447 -> 373.5861816 | AL48: ='Compile Data'!C448 -> 208.6305389 | AM48: ='Compile Data'!C449 -> 182.6989746 | AN48: ='Compile Data'!C450 -> 184.3226013 | AO48: ='Compile Data'!C451 -> 180.6698303 | AP48: ='Compile Data'!C452 -> 178.5169678 | AQ48: ='Compile Data'!C453 -> 180.1043854 | AR48: ='Compile Data'!C454 -> 278.7539368 | AS48: ='Compile Data'!C455 -> 509.8517456 | AT48: ='Compile Data'!C456 -> 281.3464966 | AV48: 400.1260681 | AW48: 410.8168793 | AX48: 306.4351451 | AZ48: 425.2392006 | BA48: 254.9718984 | BB48: 180.9034462 | BC48: 312.5141411 | BD48: 488.9639791 | BF48: 1958 | BG48: ='Compile Data'!D445 -> 415.4836121 | BH48: ='Compile Data'!D446 -> 745.8497925 | BI48: ='Compile Data'!D447 -> 375.5170288 | BJ48: ='Compile Data'!D448 -> 208.1574554 | BK48: ='Compile Data'!D449 -> 182.7472687 | BL48: ='Compile Data'!D450 -> 184.3283539 | BM48: ='Compile Data'!D451 -> 180.4548645 | BN48: ='Compile Data'!D452 -> 178.3999329 | BO48: ='Compile Data'!D453 -> 180.0179138 | BP48: ='Compile Data'!D454 -> 278.6924438 | BQ48: ='Compile Data'!D455 -> 509.8259888 | BR48: ='Compile Data'!D456 -> 281.2868347 | BT48: 399.652579 | BU48: 410.1712405 | BV48: 310.0634575 | BX48: 436.2519722 | BY48: 255.4739176 | BZ48: 180.8002663 | CA48: 312.4557953 | CB48: 488.9217326 | CD48: 1958 | CE48: ='Compile Data'!E445 -> 394.1559143 | CF48: ='Compile Data'!E446 -> 724.5718384 | CG48: ='Compile Data'!E447 -> 373.5793457 | CH48: ='Compile Data'!E448 -> 208.6295319 | CI48: ='Compile Data'!E449 -> 182.6935883 | CJ48: ='Compile Data'!E450 -> 184.407074 | CK48: ='Compile Data'!E451 -> 180.7803497 | CL48: ='Compile Data'!E452 -> 178.5944824 | CM48: ='Compile Data'!E453 -> 180.212616 | CN48: ='Compile Data'!E454 -> 278.9432678 | CO48: ='Compile Data'!E455 -> 510.1201782 | CP48: ='Compile Data'!E456 -> 281.5713196 | CR48: 400.2499733 | CS48: 411.0075467 | CT48: 306.5216255 | CV48: 425.2341576 | CW48: 254.9674886 | CX48: 180.9986305 | CY48: 312.7118454 | CZ48: 489.1623332 | DB48: 1958 | DC48: ='Compile Data'!F445 ->  | DD48: ='Compile Data'!F446 ->  | DE48: ='Compile Data'!F447 ->  | DF48: ='Compile Data'!F448 ->  | DG48: ='Compile Data'!F449 ->  | DH48: ='Compile Data'!F450 ->  | DI48: ='Compile Data'!F451 ->  | DJ48: ='Compile Data'!F452 ->  | DK48: ='Compile Data'!F453 ->  | DL48: ='Compile Data'!F454 ->  | DM48: ='Compile Data'!F455 ->  | DN48: ='Compile Data'!F456 -> 
A49: 1924-10-31 | B49: =INDIRECT(CONCATENATE("'",B$1,"'!",B$4,(YEAR($A49)-1921)*12+MONTH($A49)+3+IF(ISNUMBER(FIND("PRV",B$6)),1,0)))*IF(AND(B$3>0,TRIM(B$9)="CFS"),Conv_Flags!$C49,1) -> 3696.948975 | C49: =INDIRECT(CONCATENATE("'",C$1,"'!",C$4,(YEAR($A49)-1921)*12+MONTH($A49)+3+IF(ISNUMBER(FIND("PRV",C$6)),1,0)))*IF(AND(C$3>0,TRIM(C$9)="CFS"),Conv_Flags!$C49,1) -> 2739.878662 | D49: =INDIRECT(CONCATENATE("'",D$1,"'!",D$4,(YEAR($A49)-1921)*12+MONTH($A49)+3+IF(ISNUMBER(FIND("PRV",D$6)),1,0)))*IF(AND(D$3>0,TRIM(D$9)="CFS"),Conv_Flags!$C49,1) -> 2718.004395 | E49: =INDIRECT(CONCATENATE("'",E$1,"'!",E$4,(YEAR($A49)-1921)*12+MONTH($A49)+3+IF(ISNUMBER(FIND("PRV",E$6)),1,0)))*IF(AND(E$3>0,TRIM(E$9)="CFS"),Conv_Flags!$C49,1) -> 2749.855225 | F49: =INDIRECT(CONCATENATE("'",F$1,"'!",F$4,(YEAR($A49)-1921)*12+MONTH($A49)+3+IF(ISNUMBER(FIND("PRV",F$6)),1,0)))*IF(AND(F$3>0,TRIM(F$9)="CFS"),Conv_Flags!$C49,1) ->  | J49: 1959 | K49: =B457 -> 390.3215027 | L49: =B458 -> 848.5449219 | M49: =B459 -> 1439.596069 | N49: =B460 -> 326.6112061 | O49: =B461 -> 187.280777 | P49: =B462 -> 195.1493988 | Q49: =B463 -> 315.6356812 | R49: =B464 -> 436.0450439 | S49: =B465 -> 689.6381836 | T49: =B466 -> 452.2496643 | U49: =B467 -> 868.796936 | V49: =B468 -> 1391.146851 | X49: 955.6574936 | Y49: 1038.48415 | Z49: 628.4180196 | AB49: 751.268425 | AC49: 651.1626841 | AD49: 409.1170769 | AE49: 850.4579086 | AF49: 1840.594198 | AH49: 1959 | AI49: ='Compile Data'!C457 -> 362.0848694 | AJ49: ='Compile Data'!C458 -> 823.4605713 | AK49: ='Compile Data'!C459 -> 1431.071899 | AL49: ='Compile Data'!C460 -> 331.9282837 | AM49: ='Compile Data'!C461 -> 187.6909637 | AN49: ='Compile Data'!C462 -> 195.3187714 | AO49: ='Compile Data'!C463 -> 308.0893555 | AP49: ='Compile Data'!C464 -> 438.170166 | AQ49: ='Compile Data'!C465 -> 688.1254272 | AR49: ='Compile Data'!C466 -> 444.1841125 | AS49: ='Compile Data'!C467 -> 799.2575073 | AT49: ='Compile Data'!C468 -> 1206.854736 | AV49: 886.4938812 | AW49: 968.4118754 | AX49: 601.3530553 | AZ49: 737.1364059 | BA49: 650.2303823 | BB49: 407.42593 | BC49: 784.6054459 | BD49: 1605.73466 | BF49: 1959 | BG49: ='Compile Data'!D457 -> 362.025177 | BH49: ='Compile Data'!D458 -> 823.453186 | BI49: ='Compile Data'!D459 -> 1426.441528 | BJ49: ='Compile Data'!D460 -> 329.3990784 | BK49: ='Compile Data'!D461 -> 187.7295837 | BL49: ='Compile Data'!D462 -> 195.3216095 | BM49: ='Compile Data'!D463 -> 307.9150085 | BN49: ='Compile Data'!D464 -> 438.4073792 | BO49: ='Compile Data'!D465 -> 687.6629639 | BP49: ='Compile Data'!D466 -> 443.8749084 | BQ49: ='Compile Data'!D467 -> 799.2322998 | BR49: ='Compile Data'!D468 -> 1201.43811 | BT49: 882.7382291 | BU49: 964.8454323 | BV49: 600.2417361 | BX49: 735.3297424 | BY49: 647.8567301 | BZ49: 407.3267403 | CA49: 783.0520706 | CB49: 1589.71224 | CD49: 1959 | CE49: ='Compile Data'!E457 -> 362.2876892 | CF49: ='Compile Data'!E458 -> 823.6279907 | CG49: ='Compile Data'!E459 -> 1431.131592 | CH49: ='Compile Data'!E460 -> 332.3068848 | CI49: ='Compile Data'!E461 -> 188.1071167 | CJ49: ='Compile Data'!E462 -> 195.5797729 | CK49: ='Compile Data'!E463 -> 308.4673462 | CL49: ='Compile Data'!E464 -> 438.65979 | CM49: ='Compile Data'!E465 -> 688.5745239 | CN49: ='Compile Data'!E466 -> 444.4110107 | CO49: ='Compile Data'!E467 -> 799.4765015 | CP49: ='Compile Data'!E468 -> 1207.092285 | CR49: 886.8048859 | CS49: 968.7235107 | CT49: 601.643542 | CV49: 737.3385391 | CW49: 650.5151978 | CX49: 407.8203583 | CY49: 784.8885803 | CZ49: 1605.972331 | DB49: 1959 | DC49: ='Compile Data'!F457 ->  | DD49: ='Compile Data'!F458 ->  | DE49: ='Compile Data'!F459 ->  | DF49: ='Compile Data'!F460 ->  | DG49: ='Compile Data'!F461 ->  | DH49: ='Compile Data'!F462 ->  | DI49: ='Compile Data'!F463 ->  | DJ49: ='Compile Data'!F464 ->  | DK49: ='Compile Data'!F465 ->  | DL49: ='Compile Data'!F466 ->  | DM49: ='Compile Data'!F467 ->  | DN49: ='Compile Data'!F468 -> 
A50: 1924-11-30 | B50: =INDIRECT(CONCATENATE("'",B$1,"'!",B$4,(YEAR($A50)-1921)*12+MONTH($A50)+3+IF(ISNUMBER(FIND("PRV",B$6)),1,0)))*IF(AND(B$3>0,TRIM(B$9)="CFS"),Conv_Flags!$C50,1) -> 3698.976074 | C50: =INDIRECT(CONCATENATE("'",C$1,"'!",C$4,(YEAR($A50)-1921)*12+MONTH($A50)+3+IF(ISNUMBER(FIND("PRV",C$6)),1,0)))*IF(AND(C$3>0,TRIM(C$9)="CFS"),Conv_Flags!$C50,1) -> 2830.339111 | D50: =INDIRECT(CONCATENATE("'",D$1,"'!",D$4,(YEAR($A50)-1921)*12+MONTH($A50)+3+IF(ISNUMBER(FIND("PRV",D$6)),1,0)))*IF(AND(D$3>0,TRIM(D$9)="CFS"),Conv_Flags!$C50,1) -> 2825.141113 | E50: =INDIRECT(CONCATENATE("'",E$1,"'!",E$4,(YEAR($A50)-1921)*12+MONTH($A50)+3+IF(ISNUMBER(FIND("PRV",E$6)),1,0)))*IF(AND(E$3>0,TRIM(E$9)="CFS"),Conv_Flags!$C50,1) -> 2824.974854 | F50: =INDIRECT(CONCATENATE("'",F$1,"'!",F$4,(YEAR($A50)-1921)*12+MONTH($A50)+3+IF(ISNUMBER(FIND("PRV",F$6)),1,0)))*IF(AND(F$3>0,TRIM(F$9)="CFS"),Conv_Flags!$C50,1) ->  | J50: 1960 | K50: =B469 -> 2065.869873 | L50: =B470 -> 2064.765869 | M50: =B471 -> 2474.700439 | N50: =B472 -> 1267.707031 | O50: =B473 -> 240.1048279 | P50: =B474 -> 194.7581329 | Q50: =B475 -> 205.7145691 | R50: =B476 -> 333.4822083 | S50: =B477 -> 568.3268433 | T50: =B478 -> 746.7584839 | U50: =B479 -> 1778.922852 | V50: =B480 -> 2752.294922 | X50: 1129.062692 | Y50: 1067.392114 | Z50: 1224.450504 | AB50: 1968.260803 | AC50: 1327.5041 | AD50: 325.5704384 | AE50: 1461.575775 | AF50: 2490.576009 | AH50: 1960 | AI50: ='Compile Data'!C469 -> 1699.17395 | AJ50: ='Compile Data'!C470 -> 1911.175293 | AK50: ='Compile Data'!C471 -> 2427.958008 | AL50: ='Compile Data'!C472 -> 1259.410034 | AM50: ='Compile Data'!C473 -> 243.2251434 | AN50: ='Compile Data'!C474 -> 202.6871948 | AO50: ='Compile Data'!C475 -> 202.7318878 | AP50: ='Compile Data'!C476 -> 334.6057739 | AQ50: ='Compile Data'!C477 -> 550.5188599 | AR50: ='Compile Data'!C478 -> 743.9176025 | AS50: ='Compile Data'!C479 -> 1241.654907 | AT50: ='Compile Data'!C480 -> 1733.268555 | AV50: 934.2916768 | AW50: 877.094841 | AX50: 1045.860601 | AZ50: 1824.429321 | BA50: 1310.197728 | BB50: 322.6359291 | BC50: 1067.339981 | BD50: 1880.663249 | BF50: 1960 | BG50: ='Compile Data'!D469 -> 1683.614746 | BH50: ='Compile Data'!D470 -> 1884.083862 | BI50: ='Compile Data'!D471 -> 2434.179199 | BJ50: ='Compile Data'!D472 -> 1259.210571 | BK50: ='Compile Data'!D473 -> 243.2045288 | BL50: ='Compile Data'!D474 -> 202.6934662 | BM50: ='Compile Data'!D475 -> 202.7265625 | BN50: ='Compile Data'!D476 -> 334.2623291 | BO50: ='Compile Data'!D477 -> 562.1828613 | BP50: ='Compile Data'!D478 -> 747.2192993 | BQ50: ='Compile Data'!D479 -> 1235.74707 | BR50: ='Compile Data'!D480 -> 1898.604614 | BT50: 948.0914752 | BU50: 885.5996691 | BV50: 1057.310759 | BX50: 1815.272095 | BY50: 1312.1981 | BZ50: 325.4663048 | CA50: 1110.938461 | CB50: 1971.793335 | CD50: 1960 | CE50: ='Compile Data'!E469 -> 1699.409668 | CF50: ='Compile Data'!E470 -> 1911.415039 | CG50: ='Compile Data'!E471 -> 2428.158691 | CH50: ='Compile Data'!E472 -> 1259.814575 | CI50: ='Compile Data'!E473 -> 243.6229248 | CJ50: ='Compile Data'!E474 -> 202.8805542 | CK50: ='Compile Data'!E475 -> 202.9363861 | CL50: ='Compile Data'!E476 -> 334.9744263 | CM50: ='Compile Data'!E477 -> 550.8824463 | CN50: ='Compile Data'!E478 -> 744.1740112 | CO50: ='Compile Data'!E479 -> 1241.979858 | CP50: ='Compile Data'!E480 -> 1733.628784 | CR50: 934.5883522 | CS50: 877.4513359 | CT50: 1046.156447 | CV50: 1824.699493 | CW50: 1310.532064 | CX50: 322.9184532 | CY50: 1067.666275 | CZ50: 1880.956624 | DB50: 1960 | DC50: ='Compile Data'!F469 ->  | DD50: ='Compile Data'!F470 ->  | DE50: ='Compile Data'!F471 ->  | DF50: ='Compile Data'!F472 ->  | DG50: ='Compile Data'!F473 ->  | DH50: ='Compile Data'!F474 ->  | DI50: ='Compile Data'!F475 ->  | DJ50: ='Compile Data'!F476 ->  | DK50: ='Compile Data'!F477 ->  | DL50: ='Compile Data'!F478 ->  | DM50: ='Compile Data'!F479 ->  | DN50: ='Compile Data'!F480 -> 
A51: 1924-12-31 | B51: =INDIRECT(CONCATENATE("'",B$1,"'!",B$4,(YEAR($A51)-1921)*12+MONTH($A51)+3+IF(ISNUMBER(FIND("PRV",B$6)),1,0)))*IF(AND(B$3>0,TRIM(B$9)="CFS"),Conv_Flags!$C51,1) -> 1239.64624 | C51: =INDIRECT(CONCATENATE("'",C$1,"'!",C$4,(YEAR($A51)-1921)*12+MONTH($A51)+3+IF(ISNUMBER(FIND("PRV",C$6)),1,0)))*IF(AND(C$3>0,TRIM(C$9)="CFS"),Conv_Flags!$C51,1) -> 1496.094482 | D51: =INDIRECT(CONCATENATE("'",D$1,"'!",D$4,(YEAR($A51)-1921)*12+MONTH($A51)+3+IF(ISNUMBER(FIND("PRV",D$6)),1,0)))*IF(AND(D$3>0,TRIM(D$9)="CFS"),Conv_Flags!$C51,1) -> 1496.69458 | E51: =INDIRECT(CONCATENATE("'",E$1,"'!",E$4,(YEAR($A51)-1921)*12+MONTH($A51)+3+IF(ISNUMBER(FIND("PRV",E$6)),1,0)))*IF(AND(E$3>0,TRIM(E$9)="CFS"),Conv_Flags!$C51,1) -> 1487.045288 | F51: =INDIRECT(CONCATENATE("'",F$1,"'!",F$4,(YEAR($A51)-1921)*12+MONTH($A51)+3+IF(ISNUMBER(FIND("PRV",F$6)),1,0)))*IF(AND(F$3>0,TRIM(F$9)="CFS"),Conv_Flags!$C51,1) ->  | J51: 1961 | K51: =B481 -> 2764.741699 | L51: =B482 -> 1954.691406 | M51: =B483 -> 741.2493286 | N51: =B484 -> 567.1497192 | O51: =B485 -> 200.6152039 | P51: =B486 -> 188.8035431 | Q51: =B487 -> 249.1139069 | R51: =B488 -> 400.9064331 | S51: =B489 -> 605.3878174 | T51: =B490 -> 993.9026489 | U51: =B491 -> 2061.49707 | V51: =B492 -> 2772.551514 | X51: 1159.190191 | Y51: 1190.87155 | Z51: 1125.050858 | AB51: 1506.958038 | AC51: 503.0047506 | AD51: 361.0529251 | AE51: 1608.334763 | AF51: 2646.027751 | AH51: 1961 | AI51: ='Compile Data'!C481 -> 1957.082397 | AJ51: ='Compile Data'!C482 -> 1951.638794 | AK51: ='Compile Data'!C483 -> 790.7589722 | AL51: ='Compile Data'!C484 -> 611.2348022 | AM51: ='Compile Data'!C485 -> 205.0383453 | AN51: ='Compile Data'!C486 -> 189.3977966 | AO51: ='Compile Data'!C487 -> 249.1393585 | AP51: ='Compile Data'!C488 -> 402.3982849 | AQ51: ='Compile Data'!C489 -> 620.1390381 | AR51: ='Compile Data'!C490 -> 936.130249 | AS51: ='Compile Data'!C491 -> 1788.770508 | AT51: ='Compile Data'!C492 -> 2411.88208 | AV51: 1008.772321 | AW51: 1048.435144 | AX51: 1009.467552 | AZ51: 1327.678741 | BA51: 535.6773733 | BB51: 365.2686195 | BC51: 1439.230469 | BD51: 2072.168132 | BF51: 1961 | BG51: ='Compile Data'!D481 -> 2152.48999 | BH51: ='Compile Data'!D482 -> 1864.2854 | BI51: ='Compile Data'!D483 -> 674.4710083 | BJ51: ='Compile Data'!D484 -> 550.8508301 | BK51: ='Compile Data'!D485 -> 201.6625977 | BL51: ='Compile Data'!D486 -> 189.3235016 | BM51: ='Compile Data'!D487 -> 250.061615 | BN51: ='Compile Data'!D488 -> 401.8292542 | BO51: ='Compile Data'!D489 -> 627.4351196 | BP51: ='Compile Data'!D490 -> 926.2640991 | BQ51: ='Compile Data'!D491 -> 1801.821411 | BR51: ='Compile Data'!D492 -> 2552.821777 | BT51: 1027.703543 | BU51: 1072.818109 | BV51: 1016.109717 | BX51: 1310.524307 | BY51: 475.6614787 | BZ51: 367.1623726 | CA51: 1477.085602 | CB51: 2163.894979 | CD51: 1961 | CE51: ='Compile Data'!E481 -> 1957.355957 | CF51: ='Compile Data'!E482 -> 1951.885132 | CG51: ='Compile Data'!E483 -> 790.9251709 | CH51: ='Compile Data'!E484 -> 612.5275879 | CI51: ='Compile Data'!E485 -> 205.2657166 | CJ51: ='Compile Data'!E486 -> 189.3253784 | CK51: ='Compile Data'!E487 -> 249.2247772 | CL51: ='Compile Data'!E488 -> 402.699707 | CM51: ='Compile Data'!E489 -> 624.1363525 | CN51: ='Compile Data'!E490 -> 939.6047363 | CO51: ='Compile Data'!E491 -> 1790.173462 | CP51: ='Compile Data'!E492 -> 2409.138672 | CR51: 1089.348868 | CS51: 1131.296024 | CT51: 1010.188554 | CV51: 1328.173462 | CW51: 536.2394918 | CX51: 366.3465538 | CY51: 1440.763306 | CZ51: 2359.375163 | DB51: 1961 | DC51: ='Compile Data'!F481 ->  | DD51: ='Compile Data'!F482 ->  | DE51: ='Compile Data'!F483 ->  | DF51: ='Compile Data'!F484 ->  | DG51: ='Compile Data'!F485 ->  | DH51: ='Compile Data'!F486 ->  | DI51: ='Compile Data'!F487 ->  | DJ51: ='Compile Data'!F488 ->  | DK51: ='Compile Data'!F489 ->  | DL51: ='Compile Data'!F490 ->  | DM51: ='Compile Data'!F491 ->  | DN51: ='Compile Data'!F492 -> 
A52: 1925-01-31 | B52: =INDIRECT(CONCATENATE("'",B$1,"'!",B$4,(YEAR($A52)-1921)*12+MONTH($A52)+3+IF(ISNUMBER(FIND("PRV",B$6)),1,0)))*IF(AND(B$3>0,TRIM(B$9)="CFS"),Conv_Flags!$C52,1) -> 828.2877197 | C52: =INDIRECT(CONCATENATE("'",C$1,"'!",C$4,(YEAR($A52)-1921)*12+MONTH($A52)+3+IF(ISNUMBER(FIND("PRV",C$6)),1,0)))*IF(AND(C$3>0,TRIM(C$9)="CFS"),Conv_Flags!$C52,1) -> 933.0721436 | D52: =INDIRECT(CONCATENATE("'",D$1,"'!",D$4,(YEAR($A52)-1921)*12+MONTH($A52)+3+IF(ISNUMBER(FIND("PRV",D$6)),1,0)))*IF(AND(D$3>0,TRIM(D$9)="CFS"),Conv_Flags!$C52,1) -> 935.1104126 | E52: =INDIRECT(CONCATENATE("'",E$1,"'!",E$4,(YEAR($A52)-1921)*12+MONTH($A52)+3+IF(ISNUMBER(FIND("PRV",E$6)),1,0)))*IF(AND(E$3>0,TRIM(E$9)="CFS"),Conv_Flags!$C52,1) -> 928.9413452 | F52: =INDIRECT(CONCATENATE("'",F$1,"'!",F$4,(YEAR($A52)-1921)*12+MONTH($A52)+3+IF(ISNUMBER(FIND("PRV",F$6)),1,0)))*IF(AND(F$3>0,TRIM(F$9)="CFS"),Conv_Flags!$C52,1) ->  | J52: 1962 | K52: =B493 -> 2812.242432 | L52: =B494 -> 2353.289307 | M52: =B495 -> 704.8226929 | N52: =B496 -> 938.8147583 | O52: =B497 -> 209.1264801 | P52: =B498 -> 195.0911102 | Q52: =B499 -> 210.0700989 | R52: =B500 -> 248.5072937 | S52: =B501 -> 594.37677 | T52: =B502 -> 501.8204346 | U52: =B503 -> 1104.703857 | V52: =B504 -> 2514.115967 | X52: 617.8478622 | Y52: 556.753966 | Z52: 1032.248433 | AB52: 1702.292297 | AC52: 617.5879771 | AD52: 312.0113182 | AE52: 1178.754257 | AF52: 1059.567657 | AH52: 1962 | AI52: ='Compile Data'!C493 -> 1968.385498 | AJ52: ='Compile Data'!C494 -> 1836.236816 | AK52: ='Compile Data'!C495 -> 886.5150757 | AL52: ='Compile Data'!C496 -> 1077.96106 | AM52: ='Compile Data'!C497 -> 214.2659607 | AN52: ='Compile Data'!C498 -> 197.8983307 | AO52: ='Compile Data'!C499 -> 211.6791992 | AP52: ='Compile Data'!C500 -> 248.9019012 | AQ52: ='Compile Data'!C501 -> 627.2410889 | AR52: ='Compile Data'!C502 -> 493.2056885 | AS52: ='Compile Data'!C503 -> 893.0359497 | AT52: ='Compile Data'!C504 -> 1905.748779 | AV52: 560.6298701 | AW52: 487.7043012 | AX52: 880.0896123 | AZ52: 1442.274612 | BA52: 726.2473653 | BB52: 321.43013 | BC52: 979.8078766 | BD52: 842.895284 | BF52: 1962 | BG52: ='Compile Data'!D493 -> 2067.182861 | BH52: ='Compile Data'!D494 -> 1871.680298 | BI52: ='Compile Data'!D495 -> 891.5091553 | BJ52: ='Compile Data'!D496 -> 1080.341309 | BK52: ='Compile Data'!D497 -> 213.5469055 | BL52: ='Compile Data'!D498 -> 197.7873383 | BM52: ='Compile Data'!D499 -> 211.6468964 | BN52: ='Compile Data'!D500 -> 247.4300232 | BO52: ='Compile Data'!D501 -> 623.7052002 | BP52: ='Compile Data'!D502 -> 494.1038208 | BQ52: ='Compile Data'!D503 -> 894.9478149 | BR52: ='Compile Data'!D504 -> 1974.694336 | BT52: 566.5915693 | BU52: 493.5255623 | BV52: 897.3813299 | BX52: 1477.678406 | BY52: 728.4657898 | BZ52: 320.1423645 | CA52: 996.862793 | CB52: 867.0046794 | CD52: 1962 | CE52: ='Compile Data'!E493 -> 2167.372314 | CF52: ='Compile Data'!E494 -> 2501.614502 | CG52: ='Compile Data'!E495 -> 981.1032104 | CH52: ='Compile Data'!E496 -> 1106.288818 | CI52: ='Compile Data'!E497 -> 214.8703613 | CJ52: ='Compile Data'!E498 -> 198.045929 | CK52: ='Compile Data'!E499 -> 211.8551025 | CL52: ='Compile Data'!E500 -> 247.7482758 | CM52: ='Compile Data'!E501 -> 624.0274048 | CN52: ='Compile Data'!E502 -> 494.0257263 | CO52: ='Compile Data'!E503 -> 893.5665894 | CP52: ='Compile Data'!E504 -> 1872.237061 | CR52: 559.7450625 | CS52: 484.4658483 | CT52: 959.3962746 | CV52: 1689.094711 | CW52: 767.4207967 | CX52: 320.419178 | CY52: 970.9641953 | CZ52: 830.5218404 | DB52: 1962 | DC52: ='Compile Data'!F493 ->  | DD52: ='Compile Data'!F494 ->  | DE52: ='Compile Data'!F495 ->  | DF52: ='Compile Data'!F496 ->  | DG52: ='Compile Data'!F497 ->  | DH52: ='Compile Data'!F498 ->  | DI52: ='Compile Data'!F499 ->  | DJ52: ='Compile Data'!F500 ->  | DK52: ='Compile Data'!F501 ->  | DL52: ='Compile Data'!F502 ->  | DM52: ='Compile Data'!F503 ->  | DN52: ='Compile Data'!F504 -> 
A53: 1925-02-28 | B53: =INDIRECT(CONCATENATE("'",B$1,"'!",B$4,(YEAR($A53)-1921)*12+MONTH($A53)+3+IF(ISNUMBER(FIND("PRV",B$6)),1,0)))*IF(AND(B$3>0,TRIM(B$9)="CFS"),Conv_Flags!$C53,1) -> 193.1317902 | C53: =INDIRECT(CONCATENATE("'",C$1,"'!",C$4,(YEAR($A53)-1921)*12+MONTH($A53)+3+IF(ISNUMBER(FIND("PRV",C$6)),1,0)))*IF(AND(C$3>0,TRIM(C$9)="CFS"),Conv_Flags!$C53,1) -> 194.9244232 | D53: =INDIRECT(CONCATENATE("'",D$1,"'!",D$4,(YEAR($A53)-1921)*12+MONTH($A53)+3+IF(ISNUMBER(FIND("PRV",D$6)),1,0)))*IF(AND(D$3>0,TRIM(D$9)="CFS"),Conv_Flags!$C53,1) -> 194.9374695 | E53: =INDIRECT(CONCATENATE("'",E$1,"'!",E$4,(YEAR($A53)-1921)*12+MONTH($A53)+3+IF(ISNUMBER(FIND("PRV",E$6)),1,0)))*IF(AND(E$3>0,TRIM(E$9)="CFS"),Conv_Flags!$C53,1) -> 194.9260101 | F53: =INDIRECT(CONCATENATE("'",F$1,"'!",F$4,(YEAR($A53)-1921)*12+MONTH($A53)+3+IF(ISNUMBER(FIND("PRV",F$6)),1,0)))*IF(AND(F$3>0,TRIM(F$9)="CFS"),Conv_Flags!$C53,1) ->  | J53: 1963 | K53: =B505 -> 294.7259521 | L53: =B506 -> 369.8610535 | M53: =B507 -> 232.9605713 | N53: =B508 -> 231.7089691 | O53: =B509 -> 183.1055145 | P53: =B510 -> 189.7454834 | Q53: =B511 -> 179.9247131 | R53: =B512 -> 182.5184631 | S53: =B513 -> 244.9693756 | T53: =B514 -> 298.4124146 | U53: =B515 -> 661.7151489 | V53: =B516 -> 414.8757629 | X53: 312.5174955 | Y53: 320.3481471 | Z53: 290.3769519 | AB53: 282.3141365 | AC53: 215.9250183 | AD53: 199.2895088 | AE53: 404.9931755 | AF53: 383.0281677 | AH53: 1963 | AI53: ='Compile Data'!C505 -> 261.6621094 | AJ53: ='Compile Data'!C506 -> 361.2749634 | AK53: ='Compile Data'!C507 -> 234.6834106 | AL53: ='Compile Data'!C508 -> 233.7329102 | AM53: ='Compile Data'!C509 -> 183.3872833 | AN53: ='Compile Data'!C510 -> 190.9248199 | AO53: ='Compile Data'!C511 -> 180.2478485 | AP53: ='Compile Data'!C512 -> 182.4447327 | AQ53: ='Compile Data'!C513 -> 244.9136963 | AR53: ='Compile Data'!C514 -> 296.802002 | AS53: ='Compile Data'!C515 -> 614.6403809 | AT53: ='Compile Data'!C516 -> 392.782135 | AV53: 306.2344297 | AW53: 314.2054431 | AX53: 281.4580243 | AZ53: 272.8383484 | BA53: 217.267868 | BB53: 199.6327744 | BC53: 387.2845535 | BD53: 370.5202026 | BF53: 1963 | BG53: ='Compile Data'!D505 -> 265.2657166 | BH53: ='Compile Data'!D506 -> 361.0539856 | BI53: ='Compile Data'!D507 -> 234.5754852 | BJ53: ='Compile Data'!D508 -> 233.6993561 | BK53: ='Compile Data'!D509 -> 183.3967743 | BL53: ='Compile Data'!D510 -> 191.0271759 | BM53: ='Compile Data'!D511 -> 180.2368164 | BN53: ='Compile Data'!D512 -> 182.4710541 | BO53: ='Compile Data'!D513 -> 244.9181061 | BP53: ='Compile Data'!D514 -> 296.7874451 | BQ53: ='Compile Data'!D515 -> 614.6124268 | BR53: ='Compile Data'!D516 -> 388.9960632 | BT53: 305.7128843 | BU53: 313.679348 | BV53: 281.4200338 | BX53: 273.6486359 | BY53: 217.2238719 | BZ53: 199.6632881 | CA53: 386.3285103 | CB53: 368.5113118 | CD53: 1963 | CE53: ='Compile Data'!E505 -> 258.8814087 | CF53: ='Compile Data'!E506 -> 360.447052 | CG53: ='Compile Data'!E507 -> 234.9470215 | CH53: ='Compile Data'!E508 -> 234.3224182 | CI53: ='Compile Data'!E509 -> 183.4861908 | CJ53: ='Compile Data'!E510 -> 190.7108002 | CK53: ='Compile Data'!E511 -> 180.1104279 | CL53: ='Compile Data'!E512 -> 182.4608765 | CM53: ='Compile Data'!E513 -> 244.9166107 | CN53: ='Compile Data'!E514 -> 296.5623474 | CO53: ='Compile Data'!E515 -> 614.4368896 | CP53: ='Compile Data'!E516 -> 387.9188538 | CR53: 305.4868749 | CS53: 313.3558235 | CT53: 280.7667414 | CV53: 272.1494751 | CW53: 217.5852102 | CX53: 199.5496788 | CY53: 385.9586754 | CZ53: 367.9583944 | DB53: 1963 | DC53: ='Compile Data'!F505 ->  | DD53: ='Compile Data'!F506 ->  | DE53: ='Compile Data'!F507 ->  | DF53: ='Compile Data'!F508 ->  | DG53: ='Compile Data'!F509 ->  | DH53: ='Compile Data'!F510 ->  | DI53: ='Compile Data'!F511 ->  | DJ53: ='Compile Data'!F512 ->  | DK53: ='Compile Data'!F513 ->  | DL53: ='Compile Data'!F514 ->  | DM53: ='Compile Data'!F515 ->  | DN53: ='Compile Data'!F516 -> 
A54: 1925-03-31 | B54: =INDIRECT(CONCATENATE("'",B$1,"'!",B$4,(YEAR($A54)-1921)*12+MONTH($A54)+3+IF(ISNUMBER(FIND("PRV",B$6)),1,0)))*IF(AND(B$3>0,TRIM(B$9)="CFS"),Conv_Flags!$C54,1) -> 199.566803 | C54: =INDIRECT(CONCATENATE("'",C$1,"'!",C$4,(YEAR($A54)-1921)*12+MONTH($A54)+3+IF(ISNUMBER(FIND("PRV",C$6)),1,0)))*IF(AND(C$3>0,TRIM(C$9)="CFS"),Conv_Flags!$C54,1) -> 199.7764435 | D54: =INDIRECT(CONCATENATE("'",D$1,"'!",D$4,(YEAR($A54)-1921)*12+MONTH($A54)+3+IF(ISNUMBER(FIND("PRV",D$6)),1,0)))*IF(AND(D$3>0,TRIM(D$9)="CFS"),Conv_Flags!$C54,1) -> 199.9165344 | E54: =INDIRECT(CONCATENATE("'",E$1,"'!",E$4,(YEAR($A54)-1921)*12+MONTH($A54)+3+IF(ISNUMBER(FIND("PRV",E$6)),1,0)))*IF(AND(E$3>0,TRIM(E$9)="CFS"),Conv_Flags!$C54,1) -> 199.812149 | F54: =INDIRECT(CONCATENATE("'",F$1,"'!",F$4,(YEAR($A54)-1921)*12+MONTH($A54)+3+IF(ISNUMBER(FIND("PRV",F$6)),1,0)))*IF(AND(F$3>0,TRIM(F$9)="CFS"),Conv_Flags!$C54,1) ->  | J54: 1964 | K54: =B517 -> 476.2106934 | L54: =B518 -> 257.9980469 | M54: =B519 -> 429.0253601 | N54: =B520 -> 275.8143005 | O54: =B521 -> 232.9680023 | P54: =B522 -> 404.8006897 | Q54: =B523 -> 447.7350464 | R54: =B524 -> 497.6171875 | S54: =B525 -> 646.489624 | T54: =B526 -> 849.5707397 | U54: =B527 -> 2169.205566 | V54: =B528 -> 2989.385498 | X54: 1053.401318 | Y54: 1041.423162 | Z54: 806.4017296 | AB54: 359.7621002 | AC54: 312.6025543 | AD54: 499.1606369 | AE54: 1663.662857 | AF54: 2311.851501 | AH54: 1964 | AI54: ='Compile Data'!C517 -> 456.1908569 | AJ54: ='Compile Data'!C518 -> 262.587616 | AK54: ='Compile Data'!C519 -> 436.1588745 | AL54: ='Compile Data'!C520 -> 279.0089722 | AM54: ='Compile Data'!C521 -> 233.763382 | AN54: ='Compile Data'!C522 -> 405.8976135 | AO54: ='Compile Data'!C523 -> 446.5913391 | AP54: ='Compile Data'!C524 -> 469.6131592 | AQ54: ='Compile Data'!C525 -> 614.7177734 | AR54: ='Compile Data'!C526 -> 836.3925781 | AS54: ='Compile Data'!C527 -> 1590.796143 | AT54: ='Compile Data'!C528 -> 2021.371216 | AV54: 867.7386793 | AW54: 855.4604429 | AX54: 671.0907936 | AZ54: 358.4865799 | BA54: 316.3104095 | BB54: 484.2049713 | BC54: 1265.819427 | BD54: 1784.994995 | BF54: 1964 | BG54: ='Compile Data'!D517 -> 454.0099182 | BH54: ='Compile Data'!D518 -> 262.5279541 | BI54: ='Compile Data'!D519 -> 435.871521 | BJ54: ='Compile Data'!D520 -> 278.9380493 | BK54: ='Compile Data'!D521 -> 233.7556458 | BL54: ='Compile Data'!D522 -> 405.7946777 | BM54: ='Compile Data'!D523 -> 448.3260498 | BN54: ='Compile Data'!D524 -> 470.4706726 | BO54: ='Compile Data'!D525 -> 614.7946777 | BP54: ='Compile Data'!D526 -> 836.0669556 | BQ54: ='Compile Data'!D527 -> 1592.046143 | BR54: ='Compile Data'!D528 -> 2027.186157 | BT54: 868.4354553 | BU54: 856.1630427 | BV54: 671.6490351 | BX54: 357.8368607 | BY54: 316.1884054 | BZ54: 484.8465195 | CA54: 1267.523483 | CB54: 1786.655741 | CD54: 1964 | CE54: ='Compile Data'!E517 -> 453.3237305 | CF54: ='Compile Data'!E518 -> 262.6325989 | CG54: ='Compile Data'!E519 -> 434.9607544 | CH54: ='Compile Data'!E520 -> 278.5276489 | CI54: ='Compile Data'!E521 -> 233.7083435 | CJ54: ='Compile Data'!E522 -> 405.8347168 | CK54: ='Compile Data'!E523 -> 446.5484619 | CL54: ='Compile Data'!E524 -> 469.5324097 | CM54: ='Compile Data'!E525 -> 614.692688 | CN54: ='Compile Data'!E526 -> 836.4489136 | CO54: ='Compile Data'!E527 -> 1588.115723 | CP54: ='Compile Data'!E528 -> 2002.488403 | CR54: 865.0835241 | CS54: 852.8500379 | CT54: 668.9011993 | CV54: 357.3611832 | CW54: 315.7322489 | CX54: 484.1520691 | CY54: 1260.436432 | CZ54: 1775.48704 | DB54: 1964 | DC54: ='Compile Data'!F517 ->  | DD54: ='Compile Data'!F518 ->  | DE54: ='Compile Data'!F519 ->  | DF54: ='Compile Data'!F520 ->  | DG54: ='Compile Data'!F521 ->  | DH54: ='Compile Data'!F522 ->  | DI54: ='Compile Data'!F523 ->  | DJ54: ='Compile Data'!F524 ->  | DK54: ='Compile Data'!F525 ->  | DL54: ='Compile Data'!F526 ->  | DM54: ='Compile Data'!F527 ->  | DN54: ='Compile Data'!F528 -> 
A55: 1925-04-30 | B55: =INDIRECT(CONCATENATE("'",B$1,"'!",B$4,(YEAR($A55)-1921)*12+MONTH($A55)+3+IF(ISNUMBER(FIND("PRV",B$6)),1,0)))*IF(AND(B$3>0,TRIM(B$9)="CFS"),Conv_Flags!$C55,1) -> 188.4519196 | C55: =INDIRECT(CONCATENATE("'",C$1,"'!",C$4,(YEAR($A55)-1921)*12+MONTH($A55)+3+IF(ISNUMBER(FIND("PRV",C$6)),1,0)))*IF(AND(C$3>0,TRIM(C$9)="CFS"),Conv_Flags!$C55,1) -> 188.509613 | D55: =INDIRECT(CONCATENATE("'",D$1,"'!",D$4,(YEAR($A55)-1921)*12+MONTH($A55)+3+IF(ISNUMBER(FIND("PRV",D$6)),1,0)))*IF(AND(D$3>0,TRIM(D$9)="CFS"),Conv_Flags!$C55,1) -> 188.5552826 | E55: =INDIRECT(CONCATENATE("'",E$1,"'!",E$4,(YEAR($A55)-1921)*12+MONTH($A55)+3+IF(ISNUMBER(FIND("PRV",E$6)),1,0)))*IF(AND(E$3>0,TRIM(E$9)="CFS"),Conv_Flags!$C55,1) -> 188.5224762 | F55: =INDIRECT(CONCATENATE("'",F$1,"'!",F$4,(YEAR($A55)-1921)*12+MONTH($A55)+3+IF(ISNUMBER(FIND("PRV",F$6)),1,0)))*IF(AND(F$3>0,TRIM(F$9)="CFS"),Conv_Flags!$C55,1) ->  | J55: 1965 | K55: =B529 -> 2986.499023 | L55: =B530 -> 959.6699829 | M55: =B531 -> 181.0601501 | N55: =B532 -> 180.7213745 | O55: =B533 -> 184.3230591 | P55: =B534 -> 186.5051575 | Q55: =B535 -> 180.7355957 | R55: =B536 -> 184.5128174 | S55: =B537 -> 244.517395 | T55: =B538 -> 336.2500916 | U55: =B539 -> 744.8768311 | V55: =B540 -> 390.0214233 | X55: 311.9823265 | Y55: 314.8147125 | Z55: 563.3077418 | AB55: 1076.987633 | AC55: 182.0348612 | AD55: 199.0677414 | AE55: 428.9164352 | AF55: 372.7563527 | AH55: 1965 | AI55: ='Compile Data'!C529 -> 2448.992432 | AJ55: ='Compile Data'!C530 -> 884.6213379 | AK55: ='Compile Data'!C531 -> 181.0982056 | AL55: ='Compile Data'!C532 -> 180.8665924 | AM55: ='Compile Data'!C533 -> 184.566925 | AN55: ='Compile Data'!C534 -> 188.0322266 | AO55: ='Compile Data'!C535 -> 181.3440857 | AP55: ='Compile Data'!C536 -> 184.8825378 | AQ55: ='Compile Data'!C537 -> 248.8609619 | AR55: ='Compile Data'!C538 -> 345.022583 | AS55: ='Compile Data'!C539 -> 664.7754517 | AT55: ='Compile Data'!C540 -> 363.7597046 | AV55: 305.8722572 | AW55: 309.1550916 | AX55: 504.7352537 | AZ55: 923.8946419 | BA55: 182.177241 | BB55: 200.779953 | BC55: 405.6046753 | BD55: 358.4896139 | BF55: 1965 | BG55: ='Compile Data'!D529 -> 2447.112305 | BH55: ='Compile Data'!D530 -> 885.6687622 | BI55: ='Compile Data'!D531 -> 181.0653687 | BJ55: ='Compile Data'!D532 -> 180.8645325 | BK55: ='Compile Data'!D533 -> 184.5602112 | BL55: ='Compile Data'!D534 -> 188.0299377 | BM55: ='Compile Data'!D535 -> 181.3435822 | BN55: ='Compile Data'!D536 -> 184.8817596 | BO55: ='Compile Data'!D537 -> 248.84552 | BP55: ='Compile Data'!D538 -> 345.0168762 | BQ55: ='Compile Data'!D539 -> 664.7996216 | BR55: ='Compile Data'!D540 -> 363.8496704 | BT55: 305.8802694 | BU55: 309.1633046 | BV55: 504.6698456 | BX55: 923.677742 | BY55: 182.1633708 | BZ55: 200.7751999 | CA55: 405.6279221 | CB55: 358.5376994 | CD55: 1965 | CE55: ='Compile Data'!E529 -> 2439.426025 | CF55: ='Compile Data'!E530 -> 884.5466919 | CG55: ='Compile Data'!E531 -> 181.1322632 | CH55: ='Compile Data'!E532 -> 180.8660736 | CI55: ='Compile Data'!E533 -> 184.5680847 | CJ55: ='Compile Data'!E534 -> 188.0324402 | CK55: ='Compile Data'!E535 -> 181.3441772 | CL55: ='Compile Data'!E536 -> 184.8826141 | CM55: ='Compile Data'!E537 -> 248.8584595 | CN55: ='Compile Data'!E538 -> 345.0189514 | CO55: ='Compile Data'!E539 -> 664.7789307 | CP55: ='Compile Data'!E540 -> 360.0941467 | CR55: 304.9988149 | CS55: 308.2810135 | CT55: 503.6290716 | CV55: 921.4927635 | CW55: 182.1888072 | CX55: 200.7794228 | CY55: 404.6876221 | CZ55: 355.0324809 | DB55: 1965 | DC55: ='Compile Data'!F529 ->  | DD55: ='Compile Data'!F530 ->  | DE55: ='Compile Data'!F531 ->  | DF55: ='Compile Data'!F532 ->  | DG55: ='Compile Data'!F533 ->  | DH55: ='Compile Data'!F534 ->  | DI55: ='Compile Data'!F535 ->  | DJ55: ='Compile Data'!F536 ->  | DK55: ='Compile Data'!F537 ->  | DL55: ='Compile Data'!F538 ->  | DM55: ='Compile Data'!F539 ->  | DN55: ='Compile Data'!F540 -> 
A56: 1925-05-31 | B56: =INDIRECT(CONCATENATE("'",B$1,"'!",B$4,(YEAR($A56)-1921)*12+MONTH($A56)+3+IF(ISNUMBER(FIND("PRV",B$6)),1,0)))*IF(AND(B$3>0,TRIM(B$9)="CFS"),Conv_Flags!$C56,1) -> 189.3830261 | C56: =INDIRECT(CONCATENATE("'",C$1,"'!",C$4,(YEAR($A56)-1921)*12+MONTH($A56)+3+IF(ISNUMBER(FIND("PRV",C$6)),1,0)))*IF(AND(C$3>0,TRIM(C$9)="CFS"),Conv_Flags!$C56,1) -> 190.2667999 | D56: =INDIRECT(CONCATENATE("'",D$1,"'!",D$4,(YEAR($A56)-1921)*12+MONTH($A56)+3+IF(ISNUMBER(FIND("PRV",D$6)),1,0)))*IF(AND(D$3>0,TRIM(D$9)="CFS"),Conv_Flags!$C56,1) -> 190.1945038 | E56: =INDIRECT(CONCATENATE("'",E$1,"'!",E$4,(YEAR($A56)-1921)*12+MONTH($A56)+3+IF(ISNUMBER(FIND("PRV",E$6)),1,0)))*IF(AND(E$3>0,TRIM(E$9)="CFS"),Conv_Flags!$C56,1) -> 190.2747803 | F56: =INDIRECT(CONCATENATE("'",F$1,"'!",F$4,(YEAR($A56)-1921)*12+MONTH($A56)+3+IF(ISNUMBER(FIND("PRV",F$6)),1,0)))*IF(AND(F$3>0,TRIM(F$9)="CFS"),Conv_Flags!$C56,1) ->  | J56: 1966 | K56: =B541 -> 493.1286926 | L56: =B542 -> 235.1189423 | M56: =B543 -> 383.0765381 | N56: =B544 -> 211.130249 | O56: =B545 -> 187.9028168 | P56: =B546 -> 185.169693 | Q56: =B547 -> 191.5007019 | R56: =B548 -> 248.857605 | S56: =B549 -> 567.9646606 | T56: =B550 -> 511.7830811 | U56: =B551 -> 1019.299438 | V56: =B552 -> 2321.112549 | X56: 800.2121404 | Y56: 799.5136337 | Z56: 546.3370806 | AB56: 330.6136055 | AC56: 260.7032013 | AD56: 298.3731651 | AE56: 1105.039932 | AF56: 2090.337077 | AH56: 1966 | AI56: ='Compile Data'!C541 -> 480.7793579 | AJ56: ='Compile Data'!C542 -> 230.9297791 | AK56: ='Compile Data'!C543 -> 416.6468811 | AL56: ='Compile Data'!C544 -> 216.4030762 | AM56: ='Compile Data'!C545 -> 188.4244537 | AN56: ='Compile Data'!C546 -> 186.7615814 | AO56: ='Compile Data'!C547 -> 192.412262 | AP56: ='Compile Data'!C548 -> 245.4050598 | AQ56: ='Compile Data'!C549 -> 578.9215698 | AR56: ='Compile Data'!C550 -> 508.2803345 | AS56: ='Compile Data'!C551 -> 946.385376 | AT56: ='Compile Data'!C552 -> 1945.52832 | AV56: 727.5859222 | AW56: 726.5394338 | AX56: 511.4065043 | AZ56: 336.1897736 | BA56: 273.8248037 | BB56: 300.8751183 | BC56: 994.7789001 | BD56: 1821.270793 | BF56: 1966 | BG56: ='Compile Data'!D541 -> 480.836853 | BH56: ='Compile Data'!D542 -> 230.9265747 | BI56: ='Compile Data'!D543 -> 416.6080933 | BJ56: ='Compile Data'!D544 -> 216.3973541 | BK56: ='Compile Data'!D545 -> 188.4238129 | BL56: ='Compile Data'!D546 -> 186.7610474 | BM56: ='Compile Data'!D547 -> 192.4104767 | BN56: ='Compile Data'!D548 -> 245.4030151 | BO56: ='Compile Data'!D549 -> 578.9428711 | BP56: ='Compile Data'!D550 -> 507.6829834 | BQ56: ='Compile Data'!D551 -> 945.7130127 | BR56: ='Compile Data'!D552 -> 1954.037231 | BT56: 726.5346438 | BU56: 725.4864718 | BV56: 512.0119438 | BX56: 336.1922188 | BY56: 273.8097534 | BZ56: 300.8793526 | CA56: 996.5940247 | CB56: 1818.158651 | CD56: 1966 | CE56: ='Compile Data'!E541 -> 474.6705933 | CF56: ='Compile Data'!E542 -> 230.3327026 | CG56: ='Compile Data'!E543 -> 416.5386047 | CH56: ='Compile Data'!E544 -> 216.3965912 | CI56: ='Compile Data'!E545 -> 188.4239502 | CJ56: ='Compile Data'!E546 -> 186.7614746 | CK56: ='Compile Data'!E547 -> 192.4115753 | CL56: ='Compile Data'!E548 -> 245.4016571 | CM56: ='Compile Data'!E549 -> 578.9083252 | CN56: ='Compile Data'!E550 -> 508.2748108 | CO56: ='Compile Data'!E551 -> 946.3764648 | CP56: ='Compile Data'!E552 -> 1919.736572 | CR56: 723.4440206 | CS56: 722.396904 | CT56: 508.6861102 | CV56: 334.484623 | CW56: 273.786382 | CX56: 300.8707581 | CY56: 988.3240433 | CZ56: 1804.772746 | DB56: 1966 | DC56: ='Compile Data'!F541 ->  | DD56: ='Compile Data'!F542 ->  | DE56: ='Compile Data'!F543 ->  | DF56: ='Compile Data'!F544 ->  | DG56: ='Compile Data'!F545 ->  | DH56: ='Compile Data'!F546 ->  | DI56: ='Compile Data'!F547 ->  | DJ56: ='Compile Data'!F548 ->  | DK56: ='Compile Data'!F549 ->  | DL56: ='Compile Data'!F550 ->  | DM56: ='Compile Data'!F551 ->  | DN56: ='Compile Data'!F552 -> 
A57: 1925-06-30 | B57: =INDIRECT(CONCATENATE("'",B$1,"'!",B$4,(YEAR($A57)-1921)*12+MONTH($A57)+3+IF(ISNUMBER(FIND("PRV",B$6)),1,0)))*IF(AND(B$3>0,TRIM(B$9)="CFS"),Conv_Flags!$C57,1) -> 452.780304 | C57: =INDIRECT(CONCATENATE("'",C$1,"'!",C$4,(YEAR($A57)-1921)*12+MONTH($A57)+3+IF(ISNUMBER(FIND("PRV",C$6)),1,0)))*IF(AND(C$3>0,TRIM(C$9)="CFS"),Conv_Flags!$C57,1) -> 457.4541626 | D57: =INDIRECT(CONCATENATE("'",D$1,"'!",D$4,(YEAR($A57)-1921)*12+MONTH($A57)+3+IF(ISNUMBER(FIND("PRV",D$6)),1,0)))*IF(AND(D$3>0,TRIM(D$9)="CFS"),Conv_Flags!$C57,1) -> 456.8332214 | E57: =INDIRECT(CONCATENATE("'",E$1,"'!",E$4,(YEAR($A57)-1921)*12+MONTH($A57)+3+IF(ISNUMBER(FIND("PRV",E$6)),1,0)))*IF(AND(E$3>0,TRIM(E$9)="CFS"),Conv_Flags!$C57,1) -> 457.1951904 | F57: =INDIRECT(CONCATENATE("'",F$1,"'!",F$4,(YEAR($A57)-1921)*12+MONTH($A57)+3+IF(ISNUMBER(FIND("PRV",F$6)),1,0)))*IF(AND(F$3>0,TRIM(F$9)="CFS"),Conv_Flags!$C57,1) ->  | J57: 1967 | K57: =B553 -> 2747.161133 | L57: =B554 -> 1202.737549 | M57: =B555 -> 207.9262085 | N57: =B556 -> 206.3388672 | O57: =B557 -> 184.3121185 | P57: =B558 -> 185.6660767 | Q57: =B559 -> 186.8870087 | R57: =B560 -> 178.7201691 | S57: =B561 -> 179.4832001 | T57: =B562 -> 202.7108459 | U57: =B563 -> 345.4288635 | V57: =B564 -> 306.0756226 | X57: 356.6742554 | Y57: 370.6665662 | Z57: 511.1206385 | AB57: 1091.040939 | AC57: 199.5257314 | AD57: 182.6891136 | AE57: 258.424633 | AF57: 486.4370829 | AH57: 1967 | AI57: ='Compile Data'!C553 -> 2419.476318 | AJ57: ='Compile Data'!C554 -> 1098.807739 | AK57: ='Compile Data'!C555 -> 204.2249756 | AL57: ='Compile Data'!C556 -> 207.2574768 | AM57: ='Compile Data'!C557 -> 185.0121918 | AN57: ='Compile Data'!C558 -> 186.1643372 | AO57: ='Compile Data'!C559 -> 188.2033539 | AP57: ='Compile Data'!C560 -> 178.8057709 | AQ57: ='Compile Data'!C561 -> 179.5019531 | AR57: ='Compile Data'!C562 -> 202.7504578 | AS57: ='Compile Data'!C563 -> 326.882019 | AT57: ='Compile Data'!C564 -> 288.3665771 | AV57: 354.3048566 | AW57: 369.1957143 | AX57: 472.1210976 | AZ57: 982.4416275 | BA57: 198.8315481 | BB57: 183.1688538 | BC57: 249.3752518 | BD57: 465.1756694 | BF57: 1967 | BG57: ='Compile Data'!D553 -> 2423.437012 | BH57: ='Compile Data'!D554 -> 1077.001709 | BI57: ='Compile Data'!D555 -> 202.2052002 | BJ57: ='Compile Data'!D556 -> 207.231369 | BK57: ='Compile Data'!D557 -> 185.011734 | BL57: ='Compile Data'!D558 -> 186.1494141 | BM57: ='Compile Data'!D559 -> 188.1934967 | BN57: ='Compile Data'!D560 -> 179.065567 | BO57: ='Compile Data'!D561 -> 179.6262817 | BP57: ='Compile Data'!D562 -> 202.7337341 | BQ57: ='Compile Data'!D563 -> 334.118927 | BR57: ='Compile Data'!D564 -> 302.3766785 | BT57: 353.1576462 | BU57: 367.4798813 | BV57: 472.2625936 | BX57: 977.4688225 | BY57: 198.1494344 | BZ57: 183.2586899 | CA57: 254.7139053 | CB57: 472.7974854 | CD57: 1967 | CE57: ='Compile Data'!E553 -> 2399.071533 | CF57: ='Compile Data'!E554 -> 1095.510132 | CG57: ='Compile Data'!E555 -> 204.0551605 | CH57: ='Compile Data'!E556 -> 207.2471771 | CI57: ='Compile Data'!E557 -> 185.0079651 | CJ57: ='Compile Data'!E558 -> 186.199585 | CK57: ='Compile Data'!E559 -> 187.6384888 | CL57: ='Compile Data'!E560 -> 178.7695923 | CM57: ='Compile Data'!E561 -> 179.4976196 | CN57: ='Compile Data'!E562 -> 202.749527 | CO57: ='Compile Data'!E563 -> 326.834137 | CP57: ='Compile Data'!E564 -> 288.3553467 | CR57: 354.2481054 | CS57: 369.127622 | CT57: 470.078022 | CV57: 976.4710007 | CW57: 198.7701009 | CX57: 183.0263214 | CY57: 249.3591576 | CZ57: 465.1712952 | DB57: 1967 | DC57: ='Compile Data'!F553 ->  | DD57: ='Compile Data'!F554 ->  | DE57: ='Compile Data'!F555 ->  | DF57: ='Compile Data'!F556 ->  | DG57: ='Compile Data'!F557 ->  | DH57: ='Compile Data'!F558 ->  | DI57: ='Compile Data'!F559 ->  | DJ57: ='Compile Data'!F560 ->  | DK57: ='Compile Data'!F561 ->  | DL57: ='Compile Data'!F562 ->  | DM57: ='Compile Data'!F563 ->  | DN57: ='Compile Data'!F564 -> 
A58: 1925-07-31 | B58: =INDIRECT(CONCATENATE("'",B$1,"'!",B$4,(YEAR($A58)-1921)*12+MONTH($A58)+3+IF(ISNUMBER(FIND("PRV",B$6)),1,0)))*IF(AND(B$3>0,TRIM(B$9)="CFS"),Conv_Flags!$C58,1) -> 855.6957397 | C58: =INDIRECT(CONCATENATE("'",C$1,"'!",C$4,(YEAR($A58)-1921)*12+MONTH($A58)+3+IF(ISNUMBER(FIND("PRV",C$6)),1,0)))*IF(AND(C$3>0,TRIM(C$9)="CFS"),Conv_Flags!$C58,1) -> 826.5703125 | D58: =INDIRECT(CONCATENATE("'",D$1,"'!",D$4,(YEAR($A58)-1921)*12+MONTH($A58)+3+IF(ISNUMBER(FIND("PRV",D$6)),1,0)))*IF(AND(D$3>0,TRIM(D$9)="CFS"),Conv_Flags!$C58,1) -> 841.8325195 | E58: =INDIRECT(CONCATENATE("'",E$1,"'!",E$4,(YEAR($A58)-1921)*12+MONTH($A58)+3+IF(ISNUMBER(FIND("PRV",E$6)),1,0)))*IF(AND(E$3>0,TRIM(E$9)="CFS"),Conv_Flags!$C58,1) -> 832.6140137 | F58: =INDIRECT(CONCATENATE("'",F$1,"'!",F$4,(YEAR($A58)-1921)*12+MONTH($A58)+3+IF(ISNUMBER(FIND("PRV",F$6)),1,0)))*IF(AND(F$3>0,TRIM(F$9)="CFS"),Conv_Flags!$C58,1) ->  | J58: 1968 | K58: =B565 -> 331.0758972 | L58: =B566 -> 822.159729 | M58: =B567 -> 1151.232666 | N58: =B568 -> 376.2661743 | O58: =B569 -> 182.2925415 | P58: =B570 -> 181.2813721 | Q58: =B571 -> 238.6308746 | R58: =B572 -> 424.3711853 | S58: =B573 -> 678.4235229 | T58: =B574 -> 435.3856506 | U58: =B575 -> 872.8939819 | V58: =B576 -> 1642.09668 | X58: 765.0806491 | Y58: 749.8588371 | Z58: 611.3425229 | AB58: 670.1836166 | AC58: 569.9304606 | AD58: 380.6767387 | AE58: 907.1999588 | AF58: 1783.845174 | AH58: 1968 | AI58: ='Compile Data'!C565 -> 310.0958557 | AJ58: ='Compile Data'!C566 -> 797.0645752 | AK58: ='Compile Data'!C567 -> 1201.553711 | AL58: ='Compile Data'!C568 -> 388.4283447 | AM58: ='Compile Data'!C569 -> 182.5316162 | AN58: ='Compile Data'!C570 -> 181.309967 | AO58: ='Compile Data'!C571 -> 237.2392883 | AP58: ='Compile Data'!C572 -> 427.7395325 | AQ58: ='Compile Data'!C573 -> 683.7990723 | AR58: ='Compile Data'!C574 -> 435.1608582 | AS58: ='Compile Data'!C575 -> 722.8196411 | AT58: ='Compile Data'!C576 -> 1473.879395 | AV58: 701.5859858 | AW58: 685.390672 | AX58: 586.8018214 | AZ58: 674.2856216 | BA58: 590.8378906 | BB58: 382.521965 | BC58: 828.9147415 | BD58: 1573.019897 | BF58: 1968 | BG58: ='Compile Data'!D565 -> 316.1870422 | BH58: ='Compile Data'!D566 -> 799.8287354 | BI58: ='Compile Data'!D567 -> 1157.368774 | BJ58: ='Compile Data'!D568 -> 381.6270142 | BK58: ='Compile Data'!D569 -> 182.4829102 | BL58: ='Compile Data'!D570 -> 181.3083191 | BM58: ='Compile Data'!D571 -> 237.2219849 | BN58: ='Compile Data'!D572 -> 424.2075195 | BO58: ='Compile Data'!D573 -> 677.9893799 | BP58: ='Compile Data'!D574 -> 434.7948608 | BQ58: ='Compile Data'!D575 -> 723.6751099 | BR58: ='Compile Data'!D576 -> 1421.03772 | BT58: 686.5230001 | BU58: 670.8941523 | BV58: 578.1441142 | BX58: 663.7528915 | BY58: 573.8262329 | BZ58: 380.1818008 | CA58: 814.3742676 | CB58: 1523.814535 | CD58: 1968 | CE58: ='Compile Data'!E565 -> 310.0882263 | CF58: ='Compile Data'!E566 -> 797.0703125 | CG58: ='Compile Data'!E567 -> 1201.519287 | CH58: ='Compile Data'!E568 -> 388.2845459 | CI58: ='Compile Data'!E569 -> 182.5247955 | CJ58: ='Compile Data'!E570 -> 181.3083801 | CK58: ='Compile Data'!E571 -> 237.2337799 | CL58: ='Compile Data'!E572 -> 427.7428284 | CM58: ='Compile Data'!E573 -> 683.8375244 | CN58: ='Compile Data'!E574 -> 434.9004517 | CO58: ='Compile Data'!E575 -> 722.581604 | CP58: ='Compile Data'!E576 -> 1473.663574 | CR58: 701.6674296 | CS58: 685.4858462 | CT58: 586.7296092 | CV58: 674.240593 | CW58: 590.7762095 | CX58: 382.5306282 | CY58: 828.7457886 | CZ58: 1573.893188 | DB58: 1968 | DC58: ='Compile Data'!F565 ->  | DD58: ='Compile Data'!F566 ->  | DE58: ='Compile Data'!F567 ->  | DF58: ='Compile Data'!F568 ->  | DG58: ='Compile Data'!F569 ->  | DH58: ='Compile Data'!F570 ->  | DI58: ='Compile Data'!F571 ->  | DJ58: ='Compile Data'!F572 ->  | DK58: ='Compile Data'!F573 ->  | DL58: ='Compile Data'!F574 ->  | DM58: ='Compile Data'!F575 ->  | DN58: ='Compile Data'!F576 -> 
A59: 1925-08-31 | B59: =INDIRECT(CONCATENATE("'",B$1,"'!",B$4,(YEAR($A59)-1921)*12+MONTH($A59)+3+IF(ISNUMBER(FIND("PRV",B$6)),1,0)))*IF(AND(B$3>0,TRIM(B$9)="CFS"),Conv_Flags!$C59,1) -> 2046.848633 | C59: =INDIRECT(CONCATENATE("'",C$1,"'!",C$4,(YEAR($A59)-1921)*12+MONTH($A59)+3+IF(ISNUMBER(FIND("PRV",C$6)),1,0)))*IF(AND(C$3>0,TRIM(C$9)="CFS"),Conv_Flags!$C59,1) -> 1753.640869 | D59: =INDIRECT(CONCATENATE("'",D$1,"'!",D$4,(YEAR($A59)-1921)*12+MONTH($A59)+3+IF(ISNUMBER(FIND("PRV",D$6)),1,0)))*IF(AND(D$3>0,TRIM(D$9)="CFS"),Conv_Flags!$C59,1) -> 1659.197266 | E59: =INDIRECT(CONCATENATE("'",E$1,"'!",E$4,(YEAR($A59)-1921)*12+MONTH($A59)+3+IF(ISNUMBER(FIND("PRV",E$6)),1,0)))*IF(AND(E$3>0,TRIM(E$9)="CFS"),Conv_Flags!$C59,1) -> 1863.422607 | F59: =INDIRECT(CONCATENATE("'",F$1,"'!",F$4,(YEAR($A59)-1921)*12+MONTH($A59)+3+IF(ISNUMBER(FIND("PRV",F$6)),1,0)))*IF(AND(F$3>0,TRIM(F$9)="CFS"),Conv_Flags!$C59,1) ->  | J59: 1969 | K59: =B577 -> 2069.883789 | L59: =B578 -> 1639.555054 | M59: =B579 -> 439.8869629 | N59: =B580 -> 189.447464 | O59: =B581 -> 186.4495087 | P59: =B582 -> 188.852356 | Q59: =B583 -> 181.5789795 | R59: =B584 -> 177.8558197 | S59: =B585 -> 185.0527649 | T59: =B586 -> 269.7501526 | U59: =B587 -> 497.2495422 | V59: =B588 -> 309.0476379 | X59: 297.801918 | Y59: 296.5695915 | Z59: 527.8841693 | AB59: 1084.693317 | AC59: 271.9279785 | AD59: 183.33498 | AE59: 315.2750244 | AF59: 499.6989339 | AH59: 1969 | AI59: ='Compile Data'!C577 -> 1807.645752 | AJ59: ='Compile Data'!C578 -> 1437.534546 | AK59: ='Compile Data'!C579 -> 440.9438171 | AL59: ='Compile Data'!C580 -> 189.9831696 | AM59: ='Compile Data'!C581 -> 186.6330261 | AN59: ='Compile Data'!C582 -> 188.8653107 | AO59: ='Compile Data'!C583 -> 181.4724274 | AP59: ='Compile Data'!C584 -> 177.8218842 | AQ59: ='Compile Data'!C585 -> 185.1834259 | AR59: ='Compile Data'!C586 -> 270.0994873 | AS59: ='Compile Data'!C587 -> 466.8299255 | AT59: ='Compile Data'!C588 -> 291.3441467 | AV59: 290.0626996 | AW59: 288.776137 | AX59: 485.3630765 | AZ59: 969.0268211 | BA59: 272.5200043 | BB59: 183.335762 | BC59: 303.3642464 | BD59: 478.7601522 | BF59: 1969 | BG59: ='Compile Data'!D577 -> 1764.436035 | BH59: ='Compile Data'!D578 -> 1385.969849 | BI59: ='Compile Data'!D579 -> 423.5252991 | BJ59: ='Compile Data'!D580 -> 189.7062073 | BK59: ='Compile Data'!D581 -> 186.8575439 | BL59: ='Compile Data'!D582 -> 189.1285095 | BM59: ='Compile Data'!D583 -> 181.5957184 | BN59: ='Compile Data'!D584 -> 177.8653107 | BO59: ='Compile Data'!D585 -> 185.2256775 | BP59: ='Compile Data'!D586 -> 270.1190491 | BQ59: ='Compile Data'!D587 -> 466.843811 | BR59: ='Compile Data'!D588 -> 291.3519287 | BT59: 290.1026738 | BU59: 288.8184802 | BV59: 476.0520782 | BX59: 940.9093475 | BY59: 266.6963501 | BZ59: 183.453804 | CA59: 303.3851166 | CB59: 478.7718201 | CD59: 1969 | CE59: ='Compile Data'!E577 -> 1812.817383 | CF59: ='Compile Data'!E578 -> 1435.198608 | CG59: ='Compile Data'!E579 -> 439.9156799 | CH59: ='Compile Data'!E580 -> 189.995285 | CI59: ='Compile Data'!E581 -> 186.6350555 | CJ59: ='Compile Data'!E582 -> 189.0290222 | CK59: ='Compile Data'!E583 -> 181.5909882 | CL59: ='Compile Data'!E584 -> 177.8704224 | CM59: ='Compile Data'!E585 -> 185.227066 | CN59: ='Compile Data'!E586 -> 270.1210022 | CO59: ='Compile Data'!E587 -> 466.841217 | CP59: ='Compile Data'!E588 -> 291.3504639 | CR59: 290.0993741 | CS59: 288.8095182 | CT59: 485.5493495 | CV59: 969.481739 | CW59: 272.1820068 | CX59: 183.4293747 | CY59: 303.3849373 | CZ59: 478.7684835 | DB59: 1969 | DC59: ='Compile Data'!F577 ->  | DD59: ='Compile Data'!F578 ->  | DE59: ='Compile Data'!F579 ->  | DF59: ='Compile Data'!F580 ->  | DG59: ='Compile Data'!F581 ->  | DH59: ='Compile Data'!F582 ->  | DI59: ='Compile Data'!F583 ->  | DJ59: ='Compile Data'!F584 ->  | DK59: ='Compile Data'!F585 ->  | DL59: ='Compile Data'!F586 ->  | DM59: ='Compile Data'!F587 ->  | DN59: ='Compile Data'!F588 -> 
A60: 1925-09-30 | B60: =INDIRECT(CONCATENATE("'",B$1,"'!",B$4,(YEAR($A60)-1921)*12+MONTH($A60)+3+IF(ISNUMBER(FIND("PRV",B$6)),1,0)))*IF(AND(B$3>0,TRIM(B$9)="CFS"),Conv_Flags!$C60,1) -> 2604.31665 | C60: =INDIRECT(CONCATENATE("'",C$1,"'!",C$4,(YEAR($A60)-1921)*12+MONTH($A60)+3+IF(ISNUMBER(FIND("PRV",C$6)),1,0)))*IF(AND(C$3>0,TRIM(C$9)="CFS"),Conv_Flags!$C60,1) -> 2301.951172 | D60: =INDIRECT(CONCATENATE("'",D$1,"'!",D$4,(YEAR($A60)-1921)*12+MONTH($A60)+3+IF(ISNUMBER(FIND("PRV",D$6)),1,0)))*IF(AND(D$3>0,TRIM(D$9)="CFS"),Conv_Flags!$C60,1) -> 2448.530518 | E60: =INDIRECT(CONCATENATE("'",E$1,"'!",E$4,(YEAR($A60)-1921)*12+MONTH($A60)+3+IF(ISNUMBER(FIND("PRV",E$6)),1,0)))*IF(AND(E$3>0,TRIM(E$9)="CFS"),Conv_Flags!$C60,1) -> 2665.187744 | F60: =INDIRECT(CONCATENATE("'",F$1,"'!",F$4,(YEAR($A60)-1921)*12+MONTH($A60)+3+IF(ISNUMBER(FIND("PRV",F$6)),1,0)))*IF(AND(F$3>0,TRIM(F$9)="CFS"),Conv_Flags!$C60,1) ->  | J60: 1970 | K60: =B589 -> 338.3285828 | L60: =B590 -> 851.7205811 | M60: =B591 -> 198.2896271 | N60: =B592 -> 180.2637024 | O60: =B593 -> 180.8453522 | P60: =B594 -> 181.4941254 | Q60: =B595 -> 202.5582123 | R60: =B596 -> 314.4282227 | S60: =B597 -> 421.5279846 | T60: =B598 -> 316.1106262 | U60: =B599 -> 632.0557251 | V60: =B600 -> 422.4571838 | X60: 325.8409831 | Y60: 326.3020401 | Z60: 353.3399938 | AB60: 392.1506233 | AC60: 186.4662272 | AD60: 280.0021362 | AE60: 448.0378799 | AF60: 429.8625692 | AH60: 1970 | AI60: ='Compile Data'!C589 -> 317.4159241 | AJ60: ='Compile Data'!C590 -> 827.5203857 | AK60: ='Compile Data'!C591 -> 197.5832825 | AL60: ='Compile Data'!C592 -> 180.2927094 | AM60: ='Compile Data'!C593 -> 180.8847351 | AN60: ='Compile Data'!C594 -> 181.5154114 | AO60: ='Compile Data'!C595 -> 202.4758911 | AP60: ='Compile Data'!C596 -> 315.1796265 | AQ60: ='Compile Data'!C597 -> 420.2732239 | AR60: ='Compile Data'!C598 -> 315.6304626 | AS60: ='Compile Data'!C599 -> 632.1174927 | AT60: ='Compile Data'!C600 -> 422.152771 | AV60: 330.1655083 | AW60: 330.6129888 | AX60: 349.4201597 | AZ60: 380.7030754 | BA60: 186.2535756 | BB60: 279.8610382 | BC60: 447.5434875 | BD60: 446.4222819 | BF60: 1970 | BG60: ='Compile Data'!D589 -> 317.4248352 | BH60: ='Compile Data'!D590 -> 827.5386963 | BI60: ='Compile Data'!D591 -> 197.5747986 | BJ60: ='Compile Data'!D592 -> 180.3204498 | BK60: ='Compile Data'!D593 -> 180.8329773 | BL60: ='Compile Data'!D594 -> 181.4965515 | BM60: ='Compile Data'!D595 -> 202.4616852 | BN60: ='Compile Data'!D596 -> 315.1582336 | BO60: ='Compile Data'!D597 -> 420.2649841 | BP60: ='Compile Data'!D598 -> 315.6294861 | BQ60: ='Compile Data'!D599 -> 632.1126709 | BR60: ='Compile Data'!D600 -> 422.149292 | BT60: 330.1934916 | BU60: 330.6429176 | BV60: 349.4137217 | BX60: 380.714695 | BY60: 186.2427419 | BZ60: 279.8453636 | CA60: 447.5391083 | CB60: 446.5582886 | CD60: 1970 | CE60: ='Compile Data'!E589 -> 317.4238586 | CF60: ='Compile Data'!E590 -> 827.5311279 | CG60: ='Compile Data'!E591 -> 197.5769806 | CH60: ='Compile Data'!E592 -> 180.3179321 | CI60: ='Compile Data'!E593 -> 180.834137 | CJ60: ='Compile Data'!E594 -> 181.4960632 | CK60: ='Compile Data'!E595 -> 202.4580688 | CL60: ='Compile Data'!E596 -> 315.1705627 | CM60: ='Compile Data'!E597 -> 420.2690735 | CN60: ='Compile Data'!E598 -> 315.6292114 | CO60: ='Compile Data'!E599 -> 632.1147461 | CP60: ='Compile Data'!E600 -> 422.150238 | CR60: 329.8956566 | CS60: 330.3449071 | CT60: 349.4143333 | CV60: 380.7124748 | CW60: 186.2430166 | CX60: 279.8484421 | CY60: 447.5408173 | CZ60: 445.4204814 | DB60: 1970 | DC60: ='Compile Data'!F589 ->  | DD60: ='Compile Data'!F590 ->  | DE60: ='Compile Data'!F591 ->  | DF60: ='Compile Data'!F592 ->  | DG60: ='Compile Data'!F593 ->  | DH60: ='Compile Data'!F594 ->  | DI60: ='Compile Data'!F595 ->  | DJ60: ='Compile Data'!F596 ->  | DK60: ='Compile Data'!F597 ->  | DL60: ='Compile Data'!F598 ->  | DM60: ='Compile Data'!F599 ->  | DN60: ='Compile Data'!F600 -> 
A61: 1925-10-31 | B61: =INDIRECT(CONCATENATE("'",B$1,"'!",B$4,(YEAR($A61)-1921)*12+MONTH($A61)+3+IF(ISNUMBER(FIND("PRV",B$6)),1,0)))*IF(AND(B$3>0,TRIM(B$9)="CFS"),Conv_Flags!$C61,1) -> 3140.509033 | C61: =INDIRECT(CONCATENATE("'",C$1,"'!",C$4,(YEAR($A61)-1921)*12+MONTH($A61)+3+IF(ISNUMBER(FIND("PRV",C$6)),1,0)))*IF(AND(C$3>0,TRIM(C$9)="CFS"),Conv_Flags!$C61,1) -> 2949.035645 | D61: =INDIRECT(CONCATENATE("'",D$1,"'!",D$4,(YEAR($A61)-1921)*12+MONTH($A61)+3+IF(ISNUMBER(FIND("PRV",D$6)),1,0)))*IF(AND(D$3>0,TRIM(D$9)="CFS"),Conv_Flags!$C61,1) -> 3073.230225 | E61: =INDIRECT(CONCATENATE("'",E$1,"'!",E$4,(YEAR($A61)-1921)*12+MONTH($A61)+3+IF(ISNUMBER(FIND("PRV",E$6)),1,0)))*IF(AND(E$3>0,TRIM(E$9)="CFS"),Conv_Flags!$C61,1) -> 3174.614502 | F61: =INDIRECT(CONCATENATE("'",F$1,"'!",F$4,(YEAR($A61)-1921)*12+MONTH($A61)+3+IF(ISNUMBER(FIND("PRV",F$6)),1,0)))*IF(AND(F$3>0,TRIM(F$9)="CFS"),Conv_Flags!$C61,1) ->  | J61: 1971 | K61: =B601 -> 489.0883484 | L61: =B602 -> 378.0421753 | M61: =B603 -> 191.2201385 | N61: =B604 -> 182.2014008 | O61: =B605 -> 184.4403381 | P61: =B606 -> 179.6101227 | Q61: =B607 -> 183.6486816 | R61: =B608 -> 180.4000092 | S61: =B609 -> 191.526947 | T61: =B610 -> 284.8741455 | U61: =B611 -> 561.6681519 | V61: =B612 -> 406.5884399 | X61: 377.370388 | Y61: 405.2635193 | Z61: 284.4424082 | AB61: 310.1380157 | AC61: 185.9539591 | AD61: 183.7964401 | AE61: 361.1644211 | AF61: 560.6899719 | AH61: 1971 | AI61: ='Compile Data'!C601 -> 472.605957 | AJ61: ='Compile Data'!C602 -> 444.5081177 | AK61: ='Compile Data'!C603 -> 194.3497009 | AL61: ='Compile Data'!C604 -> 182.1221008 | AM61: ='Compile Data'!C605 -> 184.4251099 | AN61: ='Compile Data'!C606 -> 179.6350098 | AO61: ='Compile Data'!C607 -> 183.5775146 | AP61: ='Compile Data'!C608 -> 180.3997192 | AQ61: ='Compile Data'!C609 -> 193.0027771 | AR61: ='Compile Data'!C610 -> 287.5492554 | AS61: ='Compile Data'!C611 -> 527.1594238 | AT61: ='Compile Data'!C612 -> 377.0649719 | AV61: 365.6746038 | AW61: 392.7898547 | AX61: 283.8666382 | AZ61: 323.3964691 | BA61: 186.9656372 | BB61: 184.1537552 | BC61: 346.1941071 | BD61: 529.1228536 | BF61: 1971 | BG61: ='Compile Data'!D601 -> 472.5939026 | BH61: ='Compile Data'!D602 -> 444.9316711 | BI61: ='Compile Data'!D603 -> 194.3699951 | BJ61: ='Compile Data'!D604 -> 182.1224518 | BK61: ='Compile Data'!D605 -> 184.4240875 | BL61: ='Compile Data'!D606 -> 179.6350708 | BM61: ='Compile Data'!D607 -> 183.5773315 | BN61: ='Compile Data'!D608 -> 180.3996582 | BO61: ='Compile Data'!D609 -> 192.9138641 | BP61: ='Compile Data'!D610 -> 287.3840637 | BQ61: ='Compile Data'!D611 -> 527.0685425 | BR61: ='Compile Data'!D612 -> 377.045166 | BT61: 365.8887596 | BU61: 393.4998639 | BV61: 283.8721504 | BX61: 323.5045052 | BY61: 186.9721781 | BZ61: 184.1314812 | CA61: 346.1029091 | CB61: 529.0857035 | CD61: 1971 | CE61: ='Compile Data'!E601 -> 472.6851196 | CF61: ='Compile Data'!E602 -> 441.4260864 | CG61: ='Compile Data'!E603 -> 194.19664 | CH61: ='Compile Data'!E604 -> 182.1199036 | CI61: ='Compile Data'!E605 -> 184.423172 | CJ61: ='Compile Data'!E606 -> 179.6346283 | CK61: ='Compile Data'!E607 -> 183.5772247 | CL61: ='Compile Data'!E608 -> 180.3996429 | CM61: ='Compile Data'!E609 -> 192.9123535 | CN61: ='Compile Data'!E610 -> 287.3819275 | CO61: ='Compile Data'!E611 -> 527.0635986 | CP61: ='Compile Data'!E612 -> 377.0430908 | CR61: 365.7472534 | CS61: 393.0775515 | CT61: 283.571949 | CV61: 322.6069374 | CW61: 186.9132385 | CX61: 184.1309624 | CY61: 346.1002426 | CZ61: 529.0999959 | DB61: 1971 | DC61: ='Compile Data'!F601 ->  | DD61: ='Compile Data'!F602 ->  | DE61: ='Compile Data'!F603 ->  | DF61: ='Compile Data'!F604 ->  | DG61: ='Compile Data'!F605 ->  | DH61: ='Compile Data'!F606 ->  | DI61: ='Compile Data'!F607 ->  | DJ61: ='Compile Data'!F608 ->  | DK61: ='Compile Data'!F609 ->  | DL61: ='Compile Data'!F610 ->  | DM61: ='Compile Data'!F611 ->  | DN61: ='Compile Data'!F612 -> 
A62: 1925-11-30 | B62: =INDIRECT(CONCATENATE("'",B$1,"'!",B$4,(YEAR($A62)-1921)*12+MONTH($A62)+3+IF(ISNUMBER(FIND("PRV",B$6)),1,0)))*IF(AND(B$3>0,TRIM(B$9)="CFS"),Conv_Flags!$C62,1) -> 2664.541992 | C62: =INDIRECT(CONCATENATE("'",C$1,"'!",C$4,(YEAR($A62)-1921)*12+MONTH($A62)+3+IF(ISNUMBER(FIND("PRV",C$6)),1,0)))*IF(AND(C$3>0,TRIM(C$9)="CFS"),Conv_Flags!$C62,1) -> 2627.157959 | D62: =INDIRECT(CONCATENATE("'",D$1,"'!",D$4,(YEAR($A62)-1921)*12+MONTH($A62)+3+IF(ISNUMBER(FIND("PRV",D$6)),1,0)))*IF(AND(D$3>0,TRIM(D$9)="CFS"),Conv_Flags!$C62,1) -> 2648.619385 | E62: =INDIRECT(CONCATENATE("'",E$1,"'!",E$4,(YEAR($A62)-1921)*12+MONTH($A62)+3+IF(ISNUMBER(FIND("PRV",E$6)),1,0)))*IF(AND(E$3>0,TRIM(E$9)="CFS"),Conv_Flags!$C62,1) -> 2674.798584 | F62: =INDIRECT(CONCATENATE("'",F$1,"'!",F$4,(YEAR($A62)-1921)*12+MONTH($A62)+3+IF(ISNUMBER(FIND("PRV",F$6)),1,0)))*IF(AND(F$3>0,TRIM(F$9)="CFS"),Conv_Flags!$C62,1) ->  | J62: 1972 | K62: =B613 -> 394.1073914 | L62: =B614 -> 881.3740845 | M62: =B615 -> 898.0049438 | N62: =B616 -> 482.9913635 | O62: =B617 -> 218.3679504 | P62: =B618 -> 183.0892334 | Q62: =B619 -> 193.2250214 | R62: =B620 -> 284.4043884 | S62: =B621 -> 523.8955078 | T62: =B622 -> 468.3763428 | U62: =B623 -> 1087.974487 | V62: =B624 -> 2298.052002 | X62: 771.5435931 | Y62: 744.9042931 | Z62: 659.4885597 | AB62: 664.1194458 | AC62: 533.1214193 | AD62: 296.1535378 | AE62: 1094.574585 | AF62: 1871.553182 | AH62: 1972 | AI62: ='Compile Data'!C613 -> 364.7322998 | AJ62: ='Compile Data'!C614 -> 845.5712891 | AK62: ='Compile Data'!C615 -> 882.8557739 | AL62: ='Compile Data'!C616 -> 472.5972595 | AM62: ='Compile Data'!C617 -> 219.332962 | AN62: ='Compile Data'!C618 -> 183.9432831 | AO62: ='Compile Data'!C619 -> 193.7228699 | AP62: ='Compile Data'!C620 -> 288.0744629 | AQ62: ='Compile Data'!C621 -> 527.9286499 | AR62: ='Compile Data'!C622 -> 467.5038452 | AS62: ='Compile Data'!C623 -> 1056.319702 | AT62: ='Compile Data'!C624 -> 1996.640381 | AV62: 727.3080432 | AW62: 701.5663757 | AX62: 624.9352315 | AZ62: 641.4391556 | BA62: 524.9286652 | BB62: 298.4173164 | BC62: 1012.098145 | BD62: 1690.327148 | BF62: 1972 | BG62: ='Compile Data'!D613 -> 364.728241 | BH62: ='Compile Data'!D614 -> 845.4837036 | BI62: ='Compile Data'!D615 -> 885.8829346 | BJ62: ='Compile Data'!D616 -> 477.9139404 | BK62: ='Compile Data'!D617 -> 219.9658508 | BL62: ='Compile Data'!D618 -> 183.9184723 | BM62: ='Compile Data'!D619 -> 193.7007294 | BN62: ='Compile Data'!D620 -> 287.9858398 | BO62: ='Compile Data'!D621 -> 542.0195312 | BP62: ='Compile Data'!D622 -> 465.3123169 | BQ62: ='Compile Data'!D623 -> 1046.988159 | BR62: ='Compile Data'!D624 -> 1986.321411 | BT62: 719.9031715 | BU62: 693.6777598 | BV62: 625.0184275 | BX62: 643.5022049 | BY62: 527.9209086 | BZ62: 301.9061432 | CA62: 1010.160355 | CB62: 1662.276794 | CD62: 1972 | CE62: ='Compile Data'!E613 -> 364.7261353 | CF62: ='Compile Data'!E614 -> 845.5307617 | CG62: ='Compile Data'!E615 -> 884.1546021 | CH62: ='Compile Data'!E616 -> 474.8961792 | CI62: ='Compile Data'!E617 -> 219.6104736 | CJ62: ='Compile Data'!E618 -> 183.91716 | CK62: ='Compile Data'!E619 -> 193.7032928 | CL62: ='Compile Data'!E620 -> 288.0645752 | CM62: ='Compile Data'!E621 -> 527.9133301 | CN62: ='Compile Data'!E622 -> 467.5093994 | CO62: ='Compile Data'!E623 -> 1056.328613 | CP62: ='Compile Data'!E624 -> 1996.643188 | CR62: 727.5003052 | CS62: 701.5419655 | CT62: 625.2498093 | CV62: 642.3269196 | CW62: 526.2204183 | CX62: 298.3995895 | CY62: 1012.098633 | CZ62: 1690.262187 | DB62: 1972 | DC62: ='Compile Data'!F613 ->  | DD62: ='Compile Data'!F614 ->  | DE62: ='Compile Data'!F615 ->  | DF62: ='Compile Data'!F616 ->  | DG62: ='Compile Data'!F617 ->  | DH62: ='Compile Data'!F618 ->  | DI62: ='Compile Data'!F619 ->  | DJ62: ='Compile Data'!F620 ->  | DK62: ='Compile Data'!F621 ->  | DL62: ='Compile Data'!F622 ->  | DM62: ='Compile Data'!F623 ->  | DN62: ='Compile Data'!F624 -> 
A63: 1925-12-31 | B63: =INDIRECT(CONCATENATE("'",B$1,"'!",B$4,(YEAR($A63)-1921)*12+MONTH($A63)+3+IF(ISNUMBER(FIND("PRV",B$6)),1,0)))*IF(AND(B$3>0,TRIM(B$9)="CFS"),Conv_Flags!$C63,1) -> 2551.958008 | C63: =INDIRECT(CONCATENATE("'",C$1,"'!",C$4,(YEAR($A63)-1921)*12+MONTH($A63)+3+IF(ISNUMBER(FIND("PRV",C$6)),1,0)))*IF(AND(C$3>0,TRIM(C$9)="CFS"),Conv_Flags!$C63,1) -> 2514.247314 | D63: =INDIRECT(CONCATENATE("'",D$1,"'!",D$4,(YEAR($A63)-1921)*12+MONTH($A63)+3+IF(ISNUMBER(FIND("PRV",D$6)),1,0)))*IF(AND(D$3>0,TRIM(D$9)="CFS"),Conv_Flags!$C63,1) -> 2517.236084 | E63: =INDIRECT(CONCATENATE("'",E$1,"'!",E$4,(YEAR($A63)-1921)*12+MONTH($A63)+3+IF(ISNUMBER(FIND("PRV",E$6)),1,0)))*IF(AND(E$3>0,TRIM(E$9)="CFS"),Conv_Flags!$C63,1) -> 2529.463135 | F63: =INDIRECT(CONCATENATE("'",F$1,"'!",F$4,(YEAR($A63)-1921)*12+MONTH($A63)+3+IF(ISNUMBER(FIND("PRV",F$6)),1,0)))*IF(AND(F$3>0,TRIM(F$9)="CFS"),Conv_Flags!$C63,1) ->  | J63: 1973 | K63: =B625 -> 2796.13916 | L63: =B626 -> 520.4683838 | M63: =B627 -> 201.5392761 | N63: =B628 -> 193.883316 | O63: =B629 -> 187.8043976 | P63: =B630 -> 183.2574158 | Q63: =B631 -> 192.4339905 | R63: =B632 -> 193.237381 | S63: =B633 -> 237.9974976 | T63: =B634 -> 360.754425 | U63: =B635 -> 663.2124634 | V63: =B636 -> 369.6687317 | X63: 283.2616475 | Y63: 281.5318998 | Z63: 508.3663699 | AB63: 928.007534 | AC63: 194.4089966 | AD63: 201.7315712 | AE63: 407.9082794 | AF63: 335.1664429 | AH63: 1973 | AI63: ='Compile Data'!C625 -> 2341.754395 | AJ63: ='Compile Data'!C626 -> 732.5866699 | AK63: ='Compile Data'!C627 -> 247.292038 | AL63: ='Compile Data'!C628 -> 195.0786285 | AM63: ='Compile Data'!C629 -> 187.9515839 | AN63: ='Compile Data'!C630 -> 183.2903137 | AO63: ='Compile Data'!C631 -> 192.4549713 | AP63: ='Compile Data'!C632 -> 193.2326508 | AQ63: ='Compile Data'!C633 -> 238.0004578 | AR63: ='Compile Data'!C634 -> 359.7784729 | AS63: ='Compile Data'!C635 -> 667.7808228 | AT63: ='Compile Data'!C636 -> 357.9332275 | AV63: 278.7151604 | AW63: 276.873656 | AX63: 491.4278526 | AZ63: 879.1779327 | BA63: 210.1074168 | BB63: 201.7445984 | BC63: 405.8732452 | BD63: 315.3177745 | BF63: 1973 | BG63: ='Compile Data'!D625 -> 2344.963867 | BH63: ='Compile Data'!D626 -> 655.545105 | BI63: ='Compile Data'!D627 -> 234.2028351 | BJ63: ='Compile Data'!D628 -> 194.971756 | BK63: ='Compile Data'!D629 -> 188.2030945 | BL63: ='Compile Data'!D630 -> 183.2725983 | BM63: ='Compile Data'!D631 -> 192.4510498 | BN63: ='Compile Data'!D632 -> 193.2267761 | BO63: ='Compile Data'!D633 -> 238.0062256 | BP63: ='Compile Data'!D634 -> 360.7262878 | BQ63: ='Compile Data'!D635 -> 668.2694702 | BR63: ='Compile Data'!D636 -> 357.9699402 | BT63: 278.9183286 | BU63: 277.0624733 | BV63: 484.3174171 | BX63: 857.4208908 | BY63: 205.7925618 | BZ63: 201.7391624 | CA63: 406.242981 | CB63: 315.5776622 | CD63: 1973 | CE63: ='Compile Data'!E625 -> 2341.655029 | CF63: ='Compile Data'!E626 -> 732.4883423 | CG63: ='Compile Data'!E627 -> 247.2740784 | CH63: ='Compile Data'!E628 -> 195.0783691 | CI63: ='Compile Data'!E629 -> 187.9282074 | CJ63: ='Compile Data'!E630 -> 183.2997742 | CK63: ='Compile Data'!E631 -> 192.4555054 | CL63: ='Compile Data'!E632 -> 193.2338409 | CM63: ='Compile Data'!E633 -> 238.0000305 | CN63: ='Compile Data'!E634 -> 359.7778625 | CO63: ='Compile Data'!E635 -> 667.7794189 | CP63: ='Compile Data'!E636 -> 357.9319153 | CR63: 278.7147713 | CS63: 276.875515 | CT63: 491.4085312 | CV63: 879.1239548 | CW63: 210.0935516 | CX63: 201.7472878 | CY63: 405.8723068 | CZ63: 315.3208415 | DB63: 1973 | DC63: ='Compile Data'!F625 ->  | DD63: ='Compile Data'!F626 ->  | DE63: ='Compile Data'!F627 ->  | DF63: ='Compile Data'!F628 ->  | DG63: ='Compile Data'!F629 ->  | DH63: ='Compile Data'!F630 ->  | DI63: ='Compile Data'!F631 ->  | DJ63: ='Compile Data'!F632 ->  | DK63: ='Compile Data'!F633 ->  | DL63: ='Compile Data'!F634 ->  | DM63: ='Compile Data'!F635 ->  | DN63: ='Compile Data'!F636 -> 
A64: 1926-01-31 | B64: =INDIRECT(CONCATENATE("'",B$1,"'!",B$4,(YEAR($A64)-1921)*12+MONTH($A64)+3+IF(ISNUMBER(FIND("PRV",B$6)),1,0)))*IF(AND(B$3>0,TRIM(B$9)="CFS"),Conv_Flags!$C64,1) -> 625.4636841 | C64: =INDIRECT(CONCATENATE("'",C$1,"'!",C$4,(YEAR($A64)-1921)*12+MONTH($A64)+3+IF(ISNUMBER(FIND("PRV",C$6)),1,0)))*IF(AND(C$3>0,TRIM(C$9)="CFS"),Conv_Flags!$C64,1) -> 692.9874268 | D64: =INDIRECT(CONCATENATE("'",D$1,"'!",D$4,(YEAR($A64)-1921)*12+MONTH($A64)+3+IF(ISNUMBER(FIND("PRV",D$6)),1,0)))*IF(AND(D$3>0,TRIM(D$9)="CFS"),Conv_Flags!$C64,1) -> 692.6592407 | E64: =INDIRECT(CONCATENATE("'",E$1,"'!",E$4,(YEAR($A64)-1921)*12+MONTH($A64)+3+IF(ISNUMBER(FIND("PRV",E$6)),1,0)))*IF(AND(E$3>0,TRIM(E$9)="CFS"),Conv_Flags!$C64,1) -> 692.8370972 | F64: =INDIRECT(CONCATENATE("'",F$1,"'!",F$4,(YEAR($A64)-1921)*12+MONTH($A64)+3+IF(ISNUMBER(FIND("PRV",F$6)),1,0)))*IF(AND(F$3>0,TRIM(F$9)="CFS"),Conv_Flags!$C64,1) ->  | J64: 1974 | K64: =B637 -> 453.2614136 | L64: =B638 -> 182.5691833 | M64: =B639 -> 181.0595551 | N64: =B640 -> 178.8596954 | O64: =B641 -> 182.0710449 | P64: =B642 -> 179.6230774 | Q64: =B643 -> 178.0041962 | R64: =B644 -> 183.5348816 | S64: =B645 -> 194.4052887 | T64: =B646 -> 303.4555969 | U64: =B647 -> 625.0036011 | V64: =B648 -> 373.153595 | X64: 386.6728605 | Y64: 427.6547203 | Z64: 267.9167608 | AB64: 248.9374619 | AC64: 180.6634318 | AD64: 183.891861 | AE64: 374.0045204 | AF64: 542.6775716 | AH64: 1974 | AI64: ='Compile Data'!C637 -> 405.8765869 | AJ64: ='Compile Data'!C638 -> 182.1435089 | AK64: ='Compile Data'!C639 -> 181.0606995 | AL64: ='Compile Data'!C640 -> 178.8607178 | AM64: ='Compile Data'!C641 -> 182.0714417 | AN64: ='Compile Data'!C642 -> 179.623764 | AO64: ='Compile Data'!C643 -> 178.005127 | AP64: ='Compile Data'!C644 -> 183.5331116 | AQ64: ='Compile Data'!C645 -> 195.585144 | AR64: ='Compile Data'!C646 -> 306.0115051 | AS64: ='Compile Data'!C647 -> 582.6060181 | AT64: ='Compile Data'!C648 -> 346.8309326 | AV64: 375.6972084 | AW64: 417.5366948 | AX64: 258.5173798 | AZ64: 236.9853783 | BA64: 180.6642863 | BB64: 184.1867867 | BC64: 357.7584 | BD64: 514.4941711 | BF64: 1974 | BG64: ='Compile Data'!D637 -> 406.8502197 | BH64: ='Compile Data'!D638 -> 181.9128265 | BI64: ='Compile Data'!D639 -> 181.1596985 | BJ64: ='Compile Data'!D640 -> 178.8611755 | BK64: ='Compile Data'!D641 -> 182.0434113 | BL64: ='Compile Data'!D642 -> 179.6365356 | BM64: ='Compile Data'!D643 -> 178.0089874 | BN64: ='Compile Data'!D644 -> 183.5719452 | BO64: ='Compile Data'!D645 -> 195.5998077 | BP64: ='Compile Data'!D646 -> 306.0324097 | BQ64: ='Compile Data'!D647 -> 582.6120605 | BR64: ='Compile Data'!D648 -> 346.8114929 | BT64: 375.6910273 | BU64: 417.5571899 | BV64: 258.5917142 | BX64: 237.1959801 | BY64: 180.6880951 | BZ64: 184.204319 | CA64: 357.7639427 | CB64: 514.4821472 | CD64: 1974 | CE64: ='Compile Data'!E637 -> 405.9013367 | CF64: ='Compile Data'!E638 -> 182.1292725 | CG64: ='Compile Data'!E639 -> 181.0617218 | CH64: ='Compile Data'!E640 -> 178.8610535 | CI64: ='Compile Data'!E641 -> 182.0744476 | CJ64: ='Compile Data'!E642 -> 179.6515808 | CK64: ='Compile Data'!E643 -> 178.0087128 | CL64: ='Compile Data'!E644 -> 183.541687 | CM64: ='Compile Data'!E645 -> 195.5824432 | CN64: ='Compile Data'!E646 -> 306.0111084 | CO64: ='Compile Data'!E647 -> 582.6051636 | CP64: ='Compile Data'!E648 -> 346.8272705 | CR64: 375.6974703 | CS64: 417.5447439 | CT64: 258.5213165 | CV64: 236.9883461 | CW64: 180.665741 | CX64: 184.196106 | CY64: 357.7564964 | CZ64: 514.4917603 | DB64: 1974 | DC64: ='Compile Data'!F637 ->  | DD64: ='Compile Data'!F638 ->  | DE64: ='Compile Data'!F639 ->  | DF64: ='Compile Data'!F640 ->  | DG64: ='Compile Data'!F641 ->  | DH64: ='Compile Data'!F642 ->  | DI64: ='Compile Data'!F643 ->  | DJ64: ='Compile Data'!F644 ->  | DK64: ='Compile Data'!F645 ->  | DL64: ='Compile Data'!F646 ->  | DM64: ='Compile Data'!F647 ->  | DN64: ='Compile Data'!F648 -> 
